Workbook

Sheet Start
I3: Bitte die Sprache auswählen
I4: Please Choose language
I8: =gettext("A5",Sprache!$D$1) -> Weiter mit Tabellenblatt "Nutzungsbed._terms of use" (siehe unten)
K17: =gettext("A6",Sprache!$D$1) -> Kurzanleitung :
K19: =gettext("A7",Sprache!$D$1) -> Grundsätzlich gilt : In allen gelb hinterlegten Felder können oder müssen Sie Eingaben machen.
K21: =gettext("A8",Sprache!$D$1) -> 1. Im Tabellenblatt "Wandtypen_Walltypes" den gewünschten Wandtyp durch Klick auf die Schaltfläche
K22: =gettext("A9",Sprache!$D$1) -> des Wandtyps wählen und im erscheinenden Tabellenblatt die Abmessungen der Wand und die
K23: =gettext("A10",Sprache!$D$1) -> gewünschten Einbauten angeben.
K25: =gettext("A11",Sprache!$D$1) -> Beachten Sie dabei bitte die angezeigten Fehlermeldungen!
K27: =gettext("A12",Sprache!$D$1) -> 2. Schritt 1 für alle zu kalkulierenden Wände wiederholen.
K29: =gettext("A13",Sprache!$D$1) -> 3. Im Tabellenblatt "Preise_Prices" auswählen, welche Preise Ihrer Kalkulation zugrunde liegen sollen.
K30: =gettext("A14",Sprache!$D$1) -> 4. Im Tabellenblatt "Übersicht_Summary" werden die Ergebnisse ihrer Kalkulation angezeigt.
K31: =gettext("A15",Sprache!$D$1) -> 5. Das Tabellenblatt "Bestellung_Order" enthält die notwendigen Bestellmengen und dient als Vorlage.
G39: =gettext("A1",Sprache!$D$1) -> Materialbedarfsermittlung
G40: =gettext("A2",Sprache!$D$1) -> und Montagezeiten für
G41: =gettext("A3",Sprache!$D$1) -> SANIT Schienensystem 996 für Trockenbau
G43: =gettext("A4",Sprache!$D$1) -> Version: 03/2023

Sheet Nutzungsbed._terms of use
B1: TRUE
A3: =gettext("B1",Sprache!$D$1) -> Endbenutzer Lizenzvereinbarung für "SANIT Schienensystem 996 für Trockenbau"
A5: =gettext("B2",Sprache!$D$1) -> Stand : 31.03.2023 | M5: =gettext("B49",Sprache!$D$1) -> Hinweis ( ! ) :
M6: =gettext("B50",Sprache!$D$1) -> Bitte Bestätigen Sie die Kenntnisnahme der
M7: =gettext("B51",Sprache!$D$1) -> Nutzungsbedingungen am Ende des Textes.
A8: =gettext("B3",Sprache!$D$1) -> Bitte lesen Sie diese Vereinbarung sorgfältig durch bevor Sie die Software nutzen.
A10: =gettext("B4",Sprache!$D$1) -> Eine Nutzung der Software in jeglicher Form setzt die Zustimmung zu folgender Vereinbarung voraus. | M10: © Sanitärtechnik Eisenberg GmbH (D.Krug, G.Müller, M.Höbbel)
A11: =gettext("B5",Sprache!$D$1) -> Bei Nichtzustimmung wird die Nutzung untersagt und die Software muss von all Ihren Speichermedien entfernt werden.
A14: =gettext("B6",Sprache!$D$1) -> Rechte :
A16: (1) | B16: =gettext("B7",Sprache!$D$1) -> Alle Rechte an dieser Software unterliegen dem Urheberrecht und sind Eigentum der :
B19: Sanitärtechnik Eisenberg GmbH | F19: =gettext("B8",Sprache!$D$1) -> Telefon: | G19: +0049 36691 598-0
B20: In der Wiesen 8 | F20: =gettext("B9",Sprache!$D$1) -> Fax: | G20: +0049 36691 598-88000
B21: D-07607 Eisenberg | F21: =gettext("B10",Sprache!$D$1) -> E-Mail: | G21: info@sanit.com
F22: =gettext("B11",Sprache!$D$1) -> Handelsregister : | G22: Jena, HRB 200237
B25: =gettext("B12",Sprache!$D$1) -> Rechte, welche nachfolgend nicht ausdrücklich freigegeben werden, verbleiben bei der SANITÄRTECHNIK
B26: =gettext("B13",Sprache!$D$1) -> EISENBERG GMBH.
A28: (2) | B28: =gettext("B14",Sprache!$D$1) -> Die Nutzung der Software unterliegt deutschem Recht. Für Nutzungen ausserhalb der
B29: =gettext("B15",Sprache!$D$1) -> Bundesrepublik wird anerkannt, dass dies ausschliesslich nach deutschem Recht geschieht.
A31: (3) | B31: =gettext("B16",Sprache!$D$1) -> Für den Fall der Weitergabe dieser Software durch den jeweiligen Nutzer an nachfolgende Nutzer tritt dieser mit
B32: =gettext("B17",Sprache!$D$1) -> allen Rechten und Pflichten an die Stelle der SANITÄRTECHNIK EISENBERG GMBH.
A36: =gettext("B18",Sprache!$D$1) -> Gewährleistung auf die Nutzung des Programms :
A38: (4) | B38: =gettext("B19",Sprache!$D$1) -> Die SANITÄRTECHNIK EISENBERG GMBH gewährleistet, dass die Software auf einem geprüften Datenträger
B39: =gettext("B20",Sprache!$D$1) -> ordnungsgemäß aufgezeichnet ist.
A41: (5) | B41: =gettext("B21",Sprache!$D$1) -> Die SANITÄRTECHNIK EISENBERG GMBH weist darauf hin, dass es nicht möglich ist, eine Software so zu
B42: =gettext("B22",Sprache!$D$1) -> konzipieren, dass sie für alle Anwendungen fehlerfrei nutzbar ist.
B43: =gettext("B23",Sprache!$D$1) -> Es wird keine Gewährleistung dafür übernommen, dass die Software die individuellen Anforderungen des Nutzers
B44: =gettext("B24",Sprache!$D$1) -> erfüllt.
A46: (6) | B46: =gettext("B25",Sprache!$D$1) -> Der Nutzer ist selbst für die Installation und anschließende Nutzung des Programms verantwortlich.
A48: (7) | B48: =gettext("B26",Sprache!$D$1) -> Die SANITÄRTECHNIK EISENBERG GMBH übernimmt keinerlei Gewährleistung für Bearbeitungen und Ver-
B49: =gettext("B27",Sprache!$D$1) -> änderungen der Software, welche mit Hilfe von Funktionen erfolgen, die zum Zeitpunkt der Auslieferung nicht
B50: =gettext("B28",Sprache!$D$1) -> Bestandteil der Software sind.
A52: (8) | B52: =gettext("B29",Sprache!$D$1) -> Die Ergebnisse, welche die Software liefert, sind nur als unverbindlich und richtungsweisend aufzufassen.
B53: =gettext("B30",Sprache!$D$1) -> Der Nutzer hat diese Ergebnisse vor der Nutzung im Geschäftsverkehr eigenverantwortlich auf ihre Richtigkeit zu
B54: =gettext("B31",Sprache!$D$1) -> überprüfen.
A56: (9) | B56: =gettext("B32",Sprache!$D$1) -> Die SANITÄRTECHNIK EISENBERG GMBH übernimmt keinerlei Haftung für den Verlust von Daten, entgangene
B57: =gettext("B33",Sprache!$D$1) -> Gewinne oder sonstige Schäden, die durch die Nutzung des Programms entstehen.
B58: =gettext("B34",Sprache!$D$1) -> Der vorstehende Haftungsausschluss gilt nicht bei nachweisbarem Vorsatz oder grober Fahrlässigkeit seitens
B59: =gettext("B35",Sprache!$D$1) -> der SANITÄRTECHNIK EISENBERG GMBH.
A61: (10) | B61: =gettext("B36",Sprache!$D$1) -> Sollte eine oder mehrere Bestimmungen dieser Vereinbarung unwirksam sein, so sind die übrigen Bestimmungen
B62: =gettext("B37",Sprache!$D$1) -> davon unberührt.
A64: (11) | B64: =gettext("B38",Sprache!$D$1) -> Im Übrigen gelten die AGB der SANITÄRTECHNIK EISENBERG GMBH.
A66: (12) | B66: =gettext("B39",Sprache!$D$1) -> Mit dem Vorliegen dieser Version der Software verlieren alle früheren Versionen ihre Gültigkeit.
A69: =gettext("B40",Sprache!$D$1) -> Allgemeine Gewährleistung :
A71: (13) | B71: =gettext("B41",Sprache!$D$1) -> Die Software ermittelt im Rahmen des SANIT Schienensystem 996 für Trockenbau den Materialbedarf
B72: =gettext("B42",Sprache!$D$1) -> für Installationswände.
B73: =gettext("B43",Sprache!$D$1) -> Es besteht die Wahlmöglichkeit, auf die Verwendung der Originalbeplankung des Systems zu verzichten.
B74: =gettext("B44",Sprache!$D$1) -> Für diesen Fall gilt :
B76: =gettext("B45",Sprache!$D$1) -> Bei Verwendung einer anderen Beplankung als der vom SANIT Schienensystem 996 für Trockenbau wird vom
B77: =gettext("B46",Sprache!$D$1) -> Hersteller keine Gewährleistung für die Installationswände übernommen, da durch das Weglassen der Original-
B78: =gettext("B47",Sprache!$D$1) -> Beplankung eine wichtige Systemkomponente, die Einfluss auf die Statik der Installationswände hat, verloren geht.
B82: =gettext("B48",Sprache!$D$1) -> Ja, ich akzeptiere die Nutzungs- und Gewährleistungsbedingungen

Sheet Basismaterial (hidden)
A1: Artikel-Nr. | B1: Mengeneinheit | C1: Verpackeinheit | D1: Einbauzeit (min)
A3: 02.208.00..0000 | B3: =gettext("G2",Sprache!$D$1) -> m | C3: =gettext("G2",Sprache!$D$1) -> m | D3: 3
A4: 02.596.00..0000 | B4: =gettext("G3",Sprache!$D$1) -> Kg | C4: =gettext("G3",Sprache!$D$1) -> Kg | D4: 6
A5: 02.597.00..0000 | B5: =gettext("G1",Sprache!$D$1) -> Stück | C5: =gettext("G1",Sprache!$D$1) -> Stück | D5: 0.15
A6: 03.332.00..0000 | B6: =gettext("G1",Sprache!$D$1) -> Stück | C6: =gettext("G1",Sprache!$D$1) -> Stück | D6: 0.5
A7: 03.333.00..0000 | B7: =gettext("G1",Sprache!$D$1) -> Stück | C7: =gettext("G1",Sprache!$D$1) -> Stück | D7: 1
A8: 03.346.00..0000 | B8: =gettext("G2",Sprache!$D$1) -> m | C8: =gettext("G2",Sprache!$D$1) -> m | D8: 0.5
A9: 03.545.00..0000 | B9: =gettext("G1",Sprache!$D$1) -> Stück | C9: =gettext("G1",Sprache!$D$1) -> Stück | D9: 3
A10: 03.723.00..0000 | B10: =gettext("G1",Sprache!$D$1) -> Stück | C10: =gettext("G1",Sprache!$D$1) -> Stück | D10: 2
A11: 03.723.00..S000 | B11: =gettext("G1",Sprache!$D$1) -> Stück | C11: =gettext("G1",Sprache!$D$1) -> Stück | D11: 2
A12: 03.754.00..0000 | B12: =gettext("G1",Sprache!$D$1) -> Stück | C12: =gettext("G1",Sprache!$D$1) -> Stück | D12: 4
A13: 04.070.00..0000 | B13: =gettext("G1",Sprache!$D$1) -> Stück | C13: =gettext("G1",Sprache!$D$1) -> Stück | D13: 3
A14: 16.032.00..0000 | B14: =gettext("G1",Sprache!$D$1) -> Stück | C14: =gettext("G1",Sprache!$D$1) -> Stück | D14: 0.5
A15: 17.115.00..S000 | B15: =gettext("G1",Sprache!$D$1) -> Stück | C15: =gettext("G1",Sprache!$D$1) -> Stück | D15: 6

Sheet Einbauten (hidden)
A1: Artikel-Nr. | B1: Mengeneinheit | C1: Verpack.einheit | D1: Bauhöhe | E1: Baubreite | F1: Mindest- | G1: Element/ Modul | H1: Bedarf an notwendigem Zubehör je Stück | L1: Reduzierung Stab Wand
D2: Element | E2: Element/Modul | F2: Einbautiefe | G2: Einbauzeit | H2: 02.208.00..0000 | I2: 03.332.00..0000 | J2: 03.333.00..0000 | K2: 03.754.00..0000 | L2: 02.208.00..0000
A3: =gettext("G4",Sprache!$D$1) -> WC-Elemente
A4: 90.745.00..T000 | B4: =gettext("G1",Sprache!$D$1) -> Stück | C4: =gettext("G1",Sprache!$D$1) -> Stück | D4: =820+35 -> 855 | E4: =525+100 -> 625 | F4: 155 | G4: 19 | H4: 0 | I4: 4 | J4: 0 | K4: 1 | L4: -0.52
A5: 90.738.00..T000 | B5: =gettext("G1",Sprache!$D$1) -> Stück | C5: =gettext("G1",Sprache!$D$1) -> Stück | D5: =985+35 -> 1020 | E5: 625 | F5: 155 | G5: 19 | H5: 0 | I5: 4 | J5: 0 | K5: 1 | L5: -0.52
A6: 90.743.00..T000 | B6: =gettext("G1",Sprache!$D$1) -> Stück | C6: =gettext("G1",Sprache!$D$1) -> Stück | D6: =1120+35 -> 1155 | E6: =450+100 -> 550 | F6: 135 | G6: 19 | H6: 0 | I6: 4 | J6: 0 | K6: 1 | L6: -0.52
A7: 90.735.00..T000 | B7: =gettext("G1",Sprache!$D$1) -> Stück | C7: =gettext("G1",Sprache!$D$1) -> Stück | D7: =1120+35 -> 1155 | E7: 625 | F7: 135 | G7: 21 | H7: 0 | I7: 4 | J7: 0 | K7: 1 | L7: -0.52
A8: =gettext("G5",Sprache!$D$1) -> Waschtisch- und Ausgussbecken-Elemente
A9: 90.672.00..T000 | B9: =gettext("G1",Sprache!$D$1) -> Stück | C9: =gettext("G1",Sprache!$D$1) -> Stück | D9: =820+35 -> 855 | E9: =525+100 -> 625 | G9: 16 | H9: 0 | I9: 4 | J9: 0 | K9: 1 | L9: -0.52
A10: 90.669.00..T000 | B10: =gettext("G1",Sprache!$D$1) -> Stück | C10: =gettext("G1",Sprache!$D$1) -> Stück | D10: =985+35 -> 1020 | E10: 625 | G10: 16 | H10: 0 | I10: 4 | J10: 0 | K10: 1 | L10: -0.52
A11: 90.696.00..T000 | B11: =gettext("G1",Sprache!$D$1) -> Stück | C11: =gettext("G1",Sprache!$D$1) -> Stück | D11: =1120+35 -> 1155 | E11: 625 | G11: 16 | H11: 0 | I11: 4 | J11: 0 | K11: 1 | L11: -0.52
A12: 90.671.00..T000 | B12: =gettext("G1",Sprache!$D$1) -> Stück | C12: =gettext("G1",Sprache!$D$1) -> Stück | D12: =1120+35 -> 1155 | E12: 625 | G12: 16 | H12: 0 | I12: 4 | J12: 0 | K12: 1 | L12: -0.52
A13: 90.677.00..T000 | B13: =gettext("G1",Sprache!$D$1) -> Stück | C13: =gettext("G1",Sprache!$D$1) -> Stück | D13: =1120+35 -> 1155 | E13: 625 | G13: 17 | H13: 0 | I13: 4 | J13: 0 | K13: 1 | L13: -0.52
A14: 90.691.00..T000 | B14: =gettext("G1",Sprache!$D$1) -> Stück | C14: =gettext("G1",Sprache!$D$1) -> Stück | D14: =985+35 -> 1020 | E14: 625 | G14: 19 | H14: 0 | I14: 4 | J14: 0 | K14: 1 | L14: -0.52
A15: 90.687.00..T000 | B15: =gettext("G1",Sprache!$D$1) -> Stück | C15: =gettext("G1",Sprache!$D$1) -> Stück | D15: =1120+35 -> 1155 | E15: 625 | G15: 19 | H15: 0 | I15: 4 | J15: 0 | K15: 1 | L15: -0.52
A16: 90.689.00..T000 | B16: =gettext("G1",Sprache!$D$1) -> Stück | C16: =gettext("G1",Sprache!$D$1) -> Stück | D16: 1155 | E16: 625 | G16: 19 | H16: 0 | I16: 4 | J16: 0 | K16: 1 | L16: -0.52
A17: 90.688.00..T000 | B17: =gettext("G1",Sprache!$D$1) -> Stück | C17: =gettext("G1",Sprache!$D$1) -> Stück | D17: 1155 | E17: 625 | G17: 4 | H17: 0 | I17: 4 | J17: 0 | K17: 1 | L17: -0.52
A18: 90.659.00..0000 | B18: =gettext("G1",Sprache!$D$1) -> Stück | C18: =gettext("G1",Sprache!$D$1) -> Stück | D18: =1530+35 -> 1565 | E18: 625 | F18: 155 | G18: 19 | H18: 0 | I18: 4 | J18: 0 | K18: 1 | L18: -0.52
A19: =gettext("G6",Sprache!$D$1) -> Bidet- und Urinal-Elemente
A20: 90.663.00..T000 | B20: =gettext("G1",Sprache!$D$1) -> Stück | C20: =gettext("G1",Sprache!$D$1) -> Stück | D20: =820+35 -> 855 | E20: =525+100 -> 625 | F20: 135 | G20: 17 | H20: 0 | I20: 4 | J20: 0 | K20: 1 | L20: -0.52
A21: 90.662.00..T000 | B21: =gettext("G1",Sprache!$D$1) -> Stück | C21: =gettext("G1",Sprache!$D$1) -> Stück | D21: =985+35 -> 1020 | E21: =525+100 -> 625 | F21: 135 | G21: 17 | H21: 0 | I21: 4 | J21: 0 | K21: 1 | L21: -0.52
A22: 90.676.00..T000 | B22: =gettext("G1",Sprache!$D$1) -> Stück | C22: =gettext("G1",Sprache!$D$1) -> Stück | D22: =1120+35 -> 1155 | E22: =525+100 -> 625 | F22: 135 | G22: 17 | H22: 0 | I22: 4 | J22: 0 | K22: 1 | L22: -0.52
A23: 90.668.00..T000 | B23: =gettext("G1",Sprache!$D$1) -> Stück | C23: =gettext("G1",Sprache!$D$1) -> Stück | D23: =1120+35 -> 1155 | E23: =525+100 -> 625 | G23: 34 | H23: 0 | I23: 4 | J23: 0 | K23: 1 | L23: -0.52
A24: 90.675.00..T000 | B24: =gettext("G1",Sprache!$D$1) -> Stück | C24: =gettext("G1",Sprache!$D$1) -> Stück | D24: =1120+35 -> 1155 | E24: =525+100 -> 625 | G24: 20 | H24: 0 | I24: 4 | J24: 0 | K24: 1 | L24: -0.52
A25: =gettext("G7",Sprache!$D$1) -> Bade-und Brausewannen
A26: 90.681.00..T000 | B26: =gettext("G1",Sprache!$D$1) -> Stück | C26: =gettext("G1",Sprache!$D$1) -> Stück | D26: =1120+35 -> 1155 | E26: =525+100 -> 625 | G26: 9 | H26: 0 | I26: 4 | J26: 0 | K26: 1 | L26: -0.52
A27: 90.682.00..T000 | B27: =gettext("G1",Sprache!$D$1) -> Stück | C27: =gettext("G1",Sprache!$D$1) -> Stück | D27: =1120+35 -> 1155 | E27: =525+100 -> 625 | G27: 9 | H27: 0 | I27: 4 | J27: 0 | K27: 1 | L27: -0.52
A28: =gettext("G8",Sprache!$D$1) -> Waschtisch- und Urinal-Module (Sanitärfunktion ohne Trockenbaurahmen)
A29: 17.276.00..0000 | B29: =gettext("G1",Sprache!$D$1) -> Stück | C29: =gettext("G1",Sprache!$D$1) -> Stück | E29: =444+51+70 -> 565 | G29: 0 | H29: 2.4 | I29: 8 | J29: 4 | K29: 0 | L29: 0
A30: 17.286.00..0000 | B30: =gettext("G1",Sprache!$D$1) -> Stück | C30: =gettext("G1",Sprache!$D$1) -> Stück | E30: =350+51+70 -> 471 | G30: 0 | H30: 2.4 | I30: 8 | J30: 0 | K30: 0 | L30: 0
A31: 03.877.00..0000 | B31: =gettext("G1",Sprache!$D$1) -> Stück | C31: =gettext("G1",Sprache!$D$1) -> Stück | E31: =444+51+70 -> 565 | G31: 0 | H31: 2.4 | I31: 8 | J31: 8 | K31: 0 | L31: 0
A32: =gettext("G9",Sprache!$D$1) -> Weitere Module (Sanitärfunktion ohne Trockenbaurahmen) & Zubehör
A33: 17.268.00..0000 | B33: =gettext("G1",Sprache!$D$1) -> Stück | C33: =gettext("G1",Sprache!$D$1) -> Stück | E33: =444+51+70 -> 565 | G33: 0 | H33: 2.4 | I33: 8 | J33: 2 | K33: 0 | L33: 0
A34: 17.287.00..0000 | B34: =gettext("G1",Sprache!$D$1) -> Stück | C34: =gettext("G1",Sprache!$D$1) -> Stück | E34: =505+51+70 -> 626 | G34: 0 | H34: 2.4 | I34: 8 | J34: 0 | K34: 0 | L34: 0
A35: 17.275.00..0000 | B35: =gettext("G1",Sprache!$D$1) -> Stück | C35: =gettext("G1",Sprache!$D$1) -> Stück | E35: 565 | G35: 0 | H35: 2.4 | I35: 8 | J35: 2 | K35: 0 | L35: 0
A36: 17.282.00..0000 | B36: =gettext("G1",Sprache!$D$1) -> Stück | C36: =gettext("G1",Sprache!$D$1) -> Stück | E36: =121+26+35 -> 182 | G36: 0 | H36: 1.2 | I36: 4 | J36: 0 | K36: 0 | L36: 0
A37: 17.216.00..0000 | B37: =gettext("G1",Sprache!$D$1) -> Stück | C37: =gettext("G1",Sprache!$D$1) -> Stück | E37: 565 | G37: 0 | H37: 2.4 | I37: 8 | J37: 4 | K37: 0 | L37: 0
A38: 17.280.00..0000 | B38: =gettext("G1",Sprache!$D$1) -> Stück | C38: =gettext("G1",Sprache!$D$1) -> Stück | E38: 565 | G38: 0 | H38: 2.4 | I38: 8 | J38: 2 | K38: 0 | L38: 0
A39: 17.239.00..0000 | B39: =gettext("G1",Sprache!$D$1) -> Stück | C39: =gettext("G1",Sprache!$D$1) -> Stück | E39: 565 | G39: 0 | H39: 2.4 | I39: 8 | J39: 4 | K39: 0 | L39: 0
A40: 17.281.00..0000 | B40: =gettext("G1",Sprache!$D$1) -> Stück | C40: =gettext("G1",Sprache!$D$1) -> Stück | E40: =121+51+70 -> 242 | G40: 0 | H40: 1.2 | I40: 4 | J40: 0 | K40: 0 | L40: 0
A41: 05.132.00..0000 | B41: =gettext("G1",Sprache!$D$1) -> Stück | C41: =gettext("G1",Sprache!$D$1) -> Stück | E41: 0 | G41: 0 | H41: 2 | I41: 0 | J41: 0 | K41: 0 | L41: 0
A42: 05.201.00..0000 | B42: =gettext("G1",Sprache!$D$1) -> Stück | C42: =gettext("G1",Sprache!$D$1) -> Stück | E42: 0 | G42: 5 | H42: 0 | I42: 0 | J42: 0 | K42: 0 | L42: 0
A43: =gettext("G10",Sprache!$D$1) -> barrierefreie Elemente und Module
A44: 90.685.00..T000 | B44: =gettext("G1",Sprache!$D$1) -> Stück | C44: =gettext("G1",Sprache!$D$1) -> Stück | D44: =820+35 -> 855 | E44: =525+100 -> 625 | G44: 19 | H44: 0 | I44: 4 | J44: 0 | K44: 1 | L44: -0.52
A45: 90.673.00..T000 | B45: =gettext("G1",Sprache!$D$1) -> Stück | C45: =gettext("G1",Sprache!$D$1) -> Stück | D45: =1120+35 -> 1155 | E45: =525+100 -> 625 | G45: 19 | H45: 0 | I45: 4 | J45: 0 | K45: 1 | L45: -0.52
A46: 90.744.00..T000 | B46: =gettext("G1",Sprache!$D$1) -> Stück | C46: =gettext("G1",Sprache!$D$1) -> Stück | D46: =1120+35 -> 1155 | E46: =450+100 -> 550 | F46: 135 | G46: 19 | H46: 0 | I46: 4 | J46: 0 | K46: 1 | L46: -0.52
A47: 90.680.00..TR00 | B47: =gettext("G1",Sprache!$D$1) -> Stück | C47: =gettext("G1",Sprache!$D$1) -> Stück | D47: =1120+35 -> 1155 | E47: =294+50 -> 344 | G47: 1 | H47: 0 | I47: 2 | J47: 0 | K47: 1 | L47: -0.52
A48: 90.680.00..TL00 | B48: =gettext("G1",Sprache!$D$1) -> Stück | C48: =gettext("G1",Sprache!$D$1) -> Stück | D48: =1120+35 -> 1155 | E48: =294+50 -> 344 | G48: 1 | H48: 0 | I48: 2 | J48: 0 | K48: 1 | L48: -0.52
A49: 17.288.00..0000 | B49: =gettext("G1",Sprache!$D$1) -> Stück | C49: =gettext("G1",Sprache!$D$1) -> Stück | E49: =505+51+70 -> 626 | G49: 0 | H49: 2.4 | I49: 8 | J49: 0 | K49: 0 | L49: 0
A50: 17.279.00..0000 | B50: =gettext("G1",Sprache!$D$1) -> Stück | C50: =gettext("G1",Sprache!$D$1) -> Stück | E50: =254+51+70 -> 375 | G50: 0 | H50: 2.4 | I50: 8 | J50: 4 | K50: 0 | L50: 0
A51: 17.289.00..0000 | B51: =gettext("G1",Sprache!$D$1) -> Stück | C51: =gettext("G1",Sprache!$D$1) -> Stück | E51: =320+51+70 -> 441 | G51: 0 | H51: 2.4 | I51: 8 | J51: 0 | K51: 0 | L51: 0

Sheet Basis (hidden)
B4: Artikelnummer | C4: =Basismaterial!$A3 -> 02.208.00..0000 | D4: =Basismaterial!$A4 -> 02.596.00..0000 | E4: =Basismaterial!$A5 -> 02.597.00..0000 | F4: =Basismaterial!$A6 -> 03.332.00..0000 | G4: =Basismaterial!$A8 -> 03.346.00..0000 | H4: =Basismaterial!$A9 -> 03.545.00..0000 | I4: =Basismaterial!$A10 -> 03.723.00..0000 | J4: =Basismaterial!$A11 -> 03.723.00..S000 | K4: =Basismaterial!$A13 -> 04.070.00..0000 | L4: =Basismaterial!$A14 -> 16.032.00..0000 | M4: =Basismaterial!$A15 -> 17.115.00..S000 | N4: Nutzbare
B5: Wandbreite (mm) | N5: Wandbreite | S5: Wandtypen | CP5: Fehlermeldungen
A6: Wandtyp 1.1.1 | B6: 5000 | C6: 21.77 | D6: 1.4 | E6: 165 | F6: 7 | G6: 11.71 | H6: 7 | I6: 4 | L6: 2.75 | M6: 7.1 | N6: =B6-170 -> 4830 | S6: 1.1.1 | T6: 1.1.2 | U6: 1.1.3 | V6: 1.1.4 | W6: 1.1.5 | X6: 1.1.6 | Y6: 1.1.7 | Z6: 1.1.8 | AA6: 1.1.9 | AB6: 1.1.10 | AC6: 1.1.11 | AD6: 1.1.12 | AE6: 1.1.13 | AF6: 1.1.14 | AG6: 1.1.15 | AH6: 1.2.1 | AI6: 1.2.2 | AJ6: 1.2.3 | AK6: 1.2.4 | AL6: 1.2.5 | AM6: 1.2.6 | AN6: 1.2.7 | AO6: 1.2.8 | AP6: 1.2.9 | AQ6: 1.2.10 | AR6: 1.2.11 | AS6: 1.2.12 | AT6: 1.2.13 | AU6: 1.2.14 | AV6: 1.2.15 | AW6: 1.3.1 | AX6: 1.3.2 | AY6: 1.3.3 | AZ6: 1.3.4 | BA6: 1.3.5 | BB6: 1.3.6 | BC6: 1.3.7 | BD6: 1.3.8 | BE6: 1.3.9 | BF6: 1.3.10 | BG6: 1.3.11 | BH6: 1.3.12 | BI6: 1.3.13 | BJ6: 1.3.14 | BK6: 1.3.15 | BL6: 2.1 | BM6: 2.2 | BN6: 2.3 | BO6: 3.1.1 | BP6: 3.1.2 | BQ6: 3.1.3 | BR6: 3.2.1 | BS6: 3.2.2 | BT6: 3.2.3 | BU6: 4.1.1 | BV6: 4.1.2 | BW6: 4.1.3 | BX6: 4.1.4 | BY6: 4.1.5 | BZ6: 4.1.6 | CA6: 4.1.7 | CB6: 4.2.1 | CC6: 4.2.2 | CD6: 4.2.3 | CE6: 4.2.4 | CF6: 4.2.5 | CG6: 4.2.6 | CH6: 4.2.7 | CI6: 4.3.1 | CJ6: 4.3.2 | CK6: 4.3.3 | CL6: 4.3.4 | CM6: 4.3.5 | CN6: 4.3.6 | CO6: 4.3.7
B7: 4800 | C7: 20.97 | D7: 1.4 | E7: 159 | F7: 7 | G7: 11.31 | H7: 7 | I7: 4 | L7: 2.75 | M7: 6.8 | N7: =B7-170 -> 4630 | P7: Bedingung | Q7: Mindestanzahl Wände | R7: Stk | S7: 1 | T7: 1 | U7: 1 | V7: 1 | W7: 1 | X7: 1 | Y7: 1 | Z7: 1 | AA7: 1 | AB7: 1 | AC7: 1 | AD7: 1 | AE7: 1 | AF7: 1 | AG7: 1 | AH7: 1 | AI7: 1 | AJ7: 1 | AK7: 1 | AL7: 1 | AM7: 1 | AN7: 1 | AO7: 1 | AP7: 1 | AQ7: 1 | AR7: 1 | AS7: 1 | AT7: 1 | AU7: 1 | AV7: 1 | AW7: 1 | AX7: 1 | AY7: 1 | AZ7: 1 | BA7: 1 | BB7: 1 | BC7: 1 | BD7: 1 | BE7: 1 | BF7: 1 | BG7: 1 | BH7: 1 | BI7: 1 | BJ7: 1 | BK7: 1 | BL7: 1 | BM7: 1 | BN7: 1 | BO7: 1 | BP7: 1 | BQ7: 1 | BR7: 1 | BS7: 1 | BT7: 1 | BU7: 1 | BV7: 1 | BW7: 1 | BX7: 1 | BY7: 1 | BZ7: 1 | CA7: 1 | CB7: 1 | CC7: 1 | CD7: 1 | CE7: 1 | CF7: 1 | CG7: 1 | CH7: 1 | CI7: 1 | CJ7: 1 | CK7: 1 | CL7: 1 | CM7: 1 | CN7: 1 | CO7: 1 | CP7: =gettext("D1",Sprache!$D$1) -> Die Anzahl der zu berechnenden Wände muss mindestens | CR7: =gettext("D2",Sprache!$D$1) -> betragen ! Bitte Eingabe prüfen.
B8: 4600 | C8: 20.17 | D8: 1.3 | E8: 152 | F8: 7 | G8: 10.91 | H8: 7 | I8: 4 | L8: 2.75 | M8: 6.5 | N8: 4430 | Q8: Minimale Wandbreite | R8: mm | S8: 200 | T8: 200 | U8: 200 | V8: 200 | W8: 200 | X8: 200 | Y8: 200 | Z8: 200 | AA8: 200 | AB8: 200 | AC8: 200 | AD8: 200 | AE8: 200 | AF8: 200 | AG8: 200 | AH8: 200 | AI8: 200 | AJ8: 200 | AK8: 200 | AL8: 200 | AM8: 200 | AN8: 200 | AO8: 200 | AP8: 200 | AQ8: 200 | AR8: 200 | AS8: 200 | AT8: 200 | AU8: 200 | AV8: 200 | AW8: 200 | AX8: 200 | AY8: 200 | AZ8: 200 | BA8: 200 | BB8: 200 | BC8: 200 | BD8: 200 | BE8: 200 | BF8: 200 | BG8: 200 | BH8: 200 | BI8: 200 | BJ8: 200 | BK8: 200 | BL8: 200 | BM8: 200 | BN8: 200 | BO8: 600 | BP8: 600 | BQ8: 600 | BR8: 600 | BS8: 600 | BT8: 600 | BU8: 200 | BV8: 200 | BW8: 200 | BX8: 200 | BY8: 200 | BZ8: 200 | CA8: 200 | CB8: 200 | CC8: 200 | CD8: 200 | CE8: 200 | CF8: 200 | CG8: 200 | CH8: 200 | CI8: 200 | CJ8: 200 | CK8: 200 | CL8: 200 | CM8: 200 | CN8: 200 | CO8: 200 | CP8: =gettext("D3",Sprache!$D$1) -> Es können nur Wandbreiten zwischen | CQ8: =gettext("D6",Sprache!$D$1) -> mm und | CR8: =gettext("D7",Sprache!$D$1) -> mm berechnet werden ! Bitte Eingabe prüfen.
B9: 4400 | C9: 19.37 | D9: 1.3 | E9: 146 | F9: 7 | G9: 10.51 | H9: 7 | I9: 4 | L9: 2.75 | M9: 6.3 | N9: 4230 | Q9: Maximale Wandbreite | R9: mm | S9: 5000 | T9: 5000 | U9: 5000 | V9: 5000 | W9: 5000 | X9: 5000 | Y9: 5000 | Z9: 5000 | AA9: 5000 | AB9: 5000 | AC9: 5000 | AD9: 5000 | AE9: 5000 | AF9: 5000 | AG9: 5000 | AH9: 5000 | AI9: 5000 | AJ9: 5000 | AK9: 5000 | AL9: 5000 | AM9: 5000 | AN9: 5000 | AO9: 5000 | AP9: 5000 | AQ9: 5000 | AR9: 5000 | AS9: 5000 | AT9: 5000 | AU9: 5000 | AV9: 5000 | AW9: 5000 | AX9: 5000 | AY9: 5000 | AZ9: 5000 | BA9: 5000 | BB9: 5000 | BC9: 5000 | BD9: 5000 | BE9: 5000 | BF9: 5000 | BG9: 5000 | BH9: 5000 | BI9: 5000 | BJ9: 5000 | BK9: 5000 | BL9: 5000 | BM9: 5000 | BN9: 5000 | BO9: 2600 | BP9: 2600 | BQ9: 2600 | BR9: 2600 | BS9: 2600 | BT9: 2600 | BU9: 5000 | BV9: 5000 | BW9: 5000 | BX9: 5000 | BY9: 5000 | BZ9: 5000 | CA9: 5000 | CB9: 5000 | CC9: 5000 | CD9: 5000 | CE9: 5000 | CF9: 5000 | CG9: 5000 | CH9: 5000 | CI9: 5000 | CJ9: 5000 | CK9: 5000 | CL9: 5000 | CM9: 5000 | CN9: 5000 | CO9: 5000 | CP9: =gettext("D3",Sprache!$D$1) -> Es können nur Wandbreiten zwischen | CQ9: =gettext("D6",Sprache!$D$1) -> mm und | CR9: =gettext("D7",Sprache!$D$1) -> mm berechnet werden ! Bitte Eingabe prüfen.
B10: 4200 | C10: 18.57 | D10: 1.2 | E10: 139 | F10: 7 | G10: 10.11 | H10: 7 | I10: 4 | L10: 2.75 | M10: 6 | N10: 4030 | Q10: Minimale Wandtiefe | R10: mm | S10: 155 | T10: 255 | U10: 120 | V10: 155 | W10: 255 | X10: 120 | Y10: 155 | Z10: 255 | AA10: 120 | AB10: 155 | AC10: 255 | AD10: 120 | AE10: 155 | AF10: 255 | AG10: 120 | AH10: 155 | AI10: 255 | AJ10: 120 | AK10: 155 | AL10: 255 | AM10: 120 | AN10: 155 | AO10: 255 | AP10: 120 | AQ10: 155 | AR10: 255 | AS10: 120 | AT10: 155 | AU10: 255 | AV10: 120 | AW10: 155 | AX10: 255 | AY10: 120 | AZ10: 155 | BA10: 255 | BB10: 120 | BC10: 155 | BD10: 255 | BE10: 120 | BF10: 155 | BG10: 255 | BH10: 120 | BI10: 155 | BJ10: 255 | BK10: 120 | BL10: 120 | BM10: 120 | BN10: 120 | BO10: 200 | BP10: 255 | BQ10: 316 | BR10: 200 | BS10: 255 | BT10: 316 | BU10: 120 | BV10: 155 | BW10: 255 | BX10: 120 | BY10: 155 | BZ10: 255 | CA10: 120 | CB10: 120 | CC10: 155 | CD10: 255 | CE10: 120 | CF10: 155 | CG10: 255 | CH10: 120 | CI10: 120 | CJ10: 155 | CK10: 255 | CL10: 120 | CM10: 155 | CN10: 255 | CO10: 120 | CP10: =gettext("D4",Sprache!$D$1) -> Es können nur Wandtiefen zwischen | CQ10: =gettext("D6",Sprache!$D$1) -> mm und | CR10: =gettext("D7",Sprache!$D$1) -> mm berechnet werden ! Bitte Eingabe prüfen.
B11: 4000 | C11: 17.77 | D11: 1.1 | E11: 132 | F11: 7 | G11: 9.71 | H11: 7 | I11: 4 | L11: 2.75 | M11: 5.7 | N11: 3830 | Q11: Maximale Wandtiefe | R11: mm | S11: 215 | T11: 315 | U11: 600 | V11: 215 | W11: 315 | X11: 600 | Y11: 215 | Z11: 315 | AA11: 600 | AB11: 215 | AC11: 315 | AD11: 600 | AE11: 215 | AF11: 315 | AG11: 600 | AH11: 215 | AI11: 315 | AJ11: 600 | AK11: 215 | AL11: 315 | AM11: 600 | AN11: 215 | AO11: 315 | AP11: 600 | AQ11: 215 | AR11: 315 | AS11: 600 | AT11: 215 | AU11: 315 | AV11: 600 | AW11: 215 | AX11: 315 | AY11: 600 | AZ11: 215 | BA11: 315 | BB11: 600 | BC11: 215 | BD11: 315 | BE11: 600 | BF11: 215 | BG11: 315 | BH11: 600 | BI11: 215 | BJ11: 315 | BK11: 600 | BL11: 600 | BM11: 600 | BN11: 600 | BO11: 215 | BP11: 315 | BQ11: 600 | BR11: 215 | BS11: 315 | BT11: 600 | BU11: 600 | BV11: 215 | BW11: 315 | BX11: 600 | BY11: 215 | BZ11: 315 | CA11: 600 | CB11: 600 | CC11: 215 | CD11: 315 | CE11: 600 | CF11: 215 | CG11: 315 | CH11: 600 | CI11: 600 | CJ11: 215 | CK11: 315 | CL11: 600 | CM11: 215 | CN11: 315 | CO11: 600 | CP11: =gettext("D4",Sprache!$D$1) -> Es können nur Wandtiefen zwischen | CQ11: =gettext("D6",Sprache!$D$1) -> mm und | CR11: =gettext("D7",Sprache!$D$1) -> mm berechnet werden ! Bitte Eingabe prüfen.
B12: 3800 | C12: 16.97 | D12: 1.1 | E12: 126 | F12: 7 | G12: 9.31 | H12: 7 | I12: 4 | L12: 2.75 | M12: 5.4 | N12: 3630 | Q12: Minimale Bauhöhe OKFFB | R12: mm | V12: 856 | W12: 856 | X12: 856 | Y12: 1156 | Z12: 1156 | AA12: 1156 | AB12: 2601 | AC12: 2601 | AD12: 2601 | AE12: 3301 | AF12: 3301 | AG12: 3301 | AK12: 856 | AL12: 856 | AM12: 856 | AN12: 1156 | AO12: 1156 | AP12: 1156 | AQ12: 2601 | AR12: 2601 | AS12: 2601 | AT12: 3301 | AU12: 3301 | AV12: 3301 | AZ12: 856 | BA12: 856 | BB12: 856 | BC12: 1156 | BD12: 1156 | BE12: 1156 | BF12: 2601 | BG12: 2601 | BH12: 2601 | BI12: 3301 | BJ12: 3301 | BK12: 3301 | BM12: 2601 | BN12: 3301 | BO12: 855 | BP12: 855 | BQ12: 855 | BR12: 855 | BS12: 855 | BT12: 855 | BU12: 0 | BV12: 0 | BW12: 0 | BX12: 601 | BY12: 1446 | BZ12: 1446 | CA12: 1446 | CB12: 0 | CC12: 0 | CD12: 0 | CE12: 601 | CF12: 1446 | CG12: 1446 | CH12: 1446 | CI12: 0 | CJ12: 0 | CK12: 0 | CL12: 601 | CM12: 1446 | CN12: 1446 | CO12: 1446 | CP12: =gettext("D5",Sprache!$D$1) -> Dieser Wandtyp umfasst nur Bauhöhen ab OKFFB zwischen | CQ12: =gettext("D6",Sprache!$D$1) -> mm und | CR12: =gettext("D8",Sprache!$D$1) -> mm ! Bitte Eingabe prüfen.
B13: 3600 | C13: 16.17 | D13: 1 | E13: 119 | F13: 7 | G13: 8.91 | H13: 7 | I13: 4 | L13: 2.75 | M13: 5.1 | N13: 3430 | Q13: Maximale Bauhöhe OKFFB | R13: mm | S13: 855 | T13: 855 | U13: 855 | V13: 1155 | W13: 1155 | X13: 1155 | Y13: 2600 | Z13: 2600 | AA13: 2600 | AB13: 3300 | AC13: 3300 | AD13: 3300 | AE13: 3900 | AF13: 3900 | AG13: 3900 | AH13: 855 | AI13: 855 | AJ13: 855 | AK13: 1155 | AL13: 1155 | AM13: 1155 | AN13: 2600 | AO13: 2600 | AP13: 2600 | AQ13: 3300 | AR13: 3300 | AS13: 3300 | AT13: 3900 | AU13: 3900 | AV13: 3900 | AW13: 855 | AX13: 855 | AY13: 855 | AZ13: 1155 | BA13: 1155 | BB13: 1155 | BC13: 2600 | BD13: 2600 | BE13: 2600 | BF13: 3300 | BG13: 3300 | BH13: 3300 | BI13: 3900 | BJ13: 3900 | BK13: 3900 | BL13: 2600 | BM13: 3300 | BN13: 3900 | BO13: 1155 | BP13: 1155 | BQ13: 1155 | BR13: 1155 | BS13: 1155 | BT13: 1155 | BU13: 600 | BV13: 1445 | BW13: 1445 | BX13: 1445 | BY13: 2745 | BZ13: 2745 | CA13: 2745 | CB13: 600 | CC13: 1445 | CD13: 1445 | CE13: 1445 | CF13: 2745 | CG13: 2745 | CH13: 2745 | CI13: 600 | CJ13: 1445 | CK13: 1445 | CL13: 1445 | CM13: 2745 | CN13: 2745 | CO13: 2245 | CP13: =gettext("D5",Sprache!$D$1) -> Dieser Wandtyp umfasst nur Bauhöhen ab OKFFB zwischen | CQ13: =gettext("D6",Sprache!$D$1) -> mm und | CR13: =gettext("D8",Sprache!$D$1) -> mm ! Bitte Eingabe prüfen.
B14: 3400 | C14: 15.37 | D14: 1 | E14: 113 | F14: 7 | G14: 8.51 | H14: 7 | I14: 4 | L14: 2.75 | M14: 4.8 | N14: 3230
B15: 3200 | C15: 14.57 | D15: 0.9 | E15: 106 | F15: 7 | G15: 8.11 | H15: 7 | I15: 4 | L15: 2.75 | M15: 4.6 | N15: 3030
B16: 3000 | C16: 13.77 | D16: 0.9 | E16: 99 | F16: 7 | G16: 7.71 | H16: 7 | I16: 4 | L16: 2.75 | M16: 4.3 | N16: 2830
B17: 2800 | C17: 12.97 | D17: 0.8 | E17: 93 | F17: 7 | G17: 7.31 | H17: 6 | I17: 3 | L17: 2.25 | M17: 4 | N17: 2630
B18: 2600 | C18: 12.17 | D18: 0.8 | E18: 86 | F18: 7 | G18: 6.91 | H18: 6 | I18: 3 | L18: 2.25 | M18: 3.7 | N18: 2430
B19: 2400 | C19: 11.17 | D19: 0.7 | E19: 80 | F19: 6 | G19: 6.51 | H19: 5 | I19: 3 | L19: 2 | M19: 3.4 | N19: 2230
B20: 2200 | C20: 10.37 | D20: 0.7 | E20: 73 | F20: 6 | G20: 6.11 | H20: 5 | I20: 3 | L20: 2 | M20: 3.2 | N20: 2030
B21: 2000 | C21: 9.57 | D21: 0.6 | E21: 66 | F21: 6 | G21: 5.71 | H21: 5 | I21: 3 | L21: 2 | M21: 2.9 | N21: 1830
B22: 1800 | C22: 8.77 | D22: 0.5 | E22: 60 | F22: 6 | G22: 5.31 | H22: 5 | I22: 3 | L22: 2 | M22: 2.6 | N22: 1630
B23: 1600 | C23: 7.97 | D23: 0.5 | E23: 53 | F23: 6 | G23: 4.91 | H23: 4 | I23: 2 | L23: 1.5 | M23: 2.3 | N23: 1430
B24: 1400 | C24: 7.17 | D24: 0.4 | E24: 47 | F24: 6 | G24: 4.51 | H24: 4 | I24: 2 | L24: 1.5 | M24: 2 | N24: 1230
B25: 1200 | C25: 6.37 | D25: 0.4 | E25: 40 | F25: 6 | G25: 4.11 | H25: 4 | I25: 2 | L25: 1.5 | M25: 1.7 | N25: 1030
B26: 1000 | C26: 5.57 | D26: 0.3 | E26: 33 | F26: 6 | G26: 3.71 | H26: 4 | I26: 2 | L26: 1.5 | M26: 1.5 | N26: 830
B27: 800 | C27: 4.77 | D27: 0.3 | E27: 27 | F27: 6 | G27: 3.31 | H27: 4 | I27: 2 | L27: 1.5 | M27: 1.2 | N27: 630
B28: 600 | C28: 3.97 | D28: 0.2 | E28: 20 | F28: 6 | G28: 2.91 | H28: 4 | I28: 2 | L28: 1.5 | M28: 0.9 | N28: 0
B29: 400 | C29: 3.17 | D29: 0.2 | E29: 14 | F29: 6 | G29: 2.51 | H29: 4 | I29: 2 | L29: 1.5 | M29: 0.6 | N29: 0
B30: 200 | C30: 2.37 | D30: 0.1 | E30: 7 | F30: 6 | G30: 2.11 | H30: 4 | I30: 2 | L30: 1.5 | M30: 0.3 | N30: 0
A31: Wandtyp 1.1.2 | B31: 5000 | C31: 21.77 | D31: 1.4 | E31: 165 | F31: 7 | G31: 11.71 | H31: 7 | J31: 4 | L31: 2.75 | M31: 7.1 | N31: 4830
B32: 4800 | C32: 20.97 | D32: 1.4 | E32: 159 | F32: 7 | G32: 11.31 | H32: 7 | J32: 4 | L32: 2.75 | M32: 6.8 | N32: 4630
B33: 4600 | C33: 20.17 | D33: 1.3 | E33: 152 | F33: 7 | G33: 10.91 | H33: 7 | J33: 4 | L33: 2.75 | M33: 6.5 | N33: 4430
B34: 4400 | C34: 19.37 | D34: 1.3 | E34: 146 | F34: 7 | G34: 10.51 | H34: 7 | J34: 4 | L34: 2.75 | M34: 6.3 | N34: 4230
B35: 4200 | C35: 18.57 | D35: 1.2 | E35: 139 | F35: 7 | G35: 10.11 | H35: 7 | J35: 4 | L35: 2.75 | M35: 6 | N35: 4030
B36: 4000 | C36: 17.77 | D36: 1.1 | E36: 132 | F36: 7 | G36: 9.71 | H36: 7 | J36: 4 | L36: 2.75 | M36: 5.7 | N36: 3830
B37: 3800 | C37: 16.97 | D37: 1.1 | E37: 126 | F37: 7 | G37: 9.31 | H37: 7 | J37: 4 | L37: 2.75 | M37: 5.4 | N37: 3630
B38: 3600 | C38: 16.17 | D38: 1 | E38: 119 | F38: 7 | G38: 8.91 | H38: 7 | J38: 4 | L38: 2.75 | M38: 5.1 | N38: 3430
B39: 3400 | C39: 15.37 | D39: 1 | E39: 113 | F39: 7 | G39: 8.51 | H39: 7 | J39: 4 | L39: 2.75 | M39: 4.8 | N39: 3230
B40: 3200 | C40: 14.57 | D40: 0.9 | E40: 106 | F40: 7 | G40: 8.11 | H40: 7 | J40: 4 | L40: 2.75 | M40: 4.6 | N40: 3030
B41: 3000 | C41: 13.77 | D41: 0.9 | E41: 99 | F41: 7 | G41: 7.71 | H41: 7 | J41: 4 | L41: 2.75 | M41: 4.3 | N41: 2830
B42: 2800 | C42: 12.97 | D42: 0.8 | E42: 93 | F42: 7 | G42: 7.31 | H42: 6 | J42: 3 | L42: 2.25 | M42: 4 | N42: 2630
B43: 2600 | C43: 12.17 | D43: 0.8 | E43: 86 | F43: 7 | G43: 6.91 | H43: 6 | J43: 3 | L43: 2.25 | M43: 3.7 | N43: 2430
B44: 2400 | C44: 11.17 | D44: 0.7 | E44: 80 | F44: 6 | G44: 6.51 | H44: 5 | J44: 3 | L44: 2 | M44: 3.4 | N44: 2230
B45: 2200 | C45: 10.37 | D45: 0.7 | E45: 73 | F45: 6 | G45: 6.11 | H45: 5 | J45: 3 | L45: 2 | M45: 3.2 | N45: 2030
B46: 2000 | C46: 9.57 | D46: 0.6 | E46: 66 | F46: 6 | G46: 5.71 | H46: 5 | J46: 3 | L46: 2 | M46: 2.9 | N46: 1830
B47: 1800 | C47: 8.77 | D47: 0.5 | E47: 60 | F47: 6 | G47: 5.31 | H47: 5 | J47: 3 | L47: 2 | M47: 2.6 | N47: 1630
B48: 1600 | C48: 7.97 | D48: 0.5 | E48: 53 | F48: 6 | G48: 4.91 | H48: 4 | J48: 2 | L48: 1.5 | M48: 2.3 | N48: 1430
B49: 1400 | C49: 7.17 | D49: 0.4 | E49: 47 | F49: 6 | G49: 4.51 | H49: 4 | J49: 2 | L49: 1.5 | M49: 2 | N49: 1230
B50: 1200 | C50: 6.37 | D50: 0.4 | E50: 40 | F50: 6 | G50: 4.11 | H50: 4 | J50: 2 | L50: 1.5 | M50: 1.7 | N50: 1030
B51: 1000 | C51: 5.57 | D51: 0.3 | E51: 33 | F51: 6 | G51: 3.71 | H51: 4 | J51: 2 | L51: 1.5 | M51: 1.5 | N51: 830
B52: 800 | C52: 4.77 | D52: 0.3 | E52: 27 | F52: 6 | G52: 3.31 | H52: 4 | J52: 2 | L52: 1.5 | M52: 1.2 | N52: 630
B53: 600 | C53: 3.97 | D53: 0.2 | E53: 20 | F53: 6 | G53: 2.91 | H53: 4 | J53: 2 | L53: 1.5 | M53: 0.9 | N53: 0
B54: 400 | C54: 3.17 | D54: 0.2 | E54: 14 | F54: 6 | G54: 2.51 | H54: 4 | J54: 2 | L54: 1.5 | M54: 0.6 | N54: 0
B55: 200 | C55: 2.37 | D55: 0.1 | E55: 7 | F55: 6 | G55: 2.11 | H55: 4 | J55: 2 | L55: 1.5 | M55: 0.3 | N55: 0
A56: Wandtyp 1.1.3 | B56: 5000 | C56: 23.28 | D56: 1.9 | E56: 218 | F56: 15 | G56: 11.71 | H56: 11 | L56: 2.75 | M56: 9.3 | N56: 4830
B57: 4800 | C57: 22.48 | D57: 1.8 | E57: 209 | F57: 15 | G57: 11.31 | H57: 11 | L57: 2.75 | M57: 9 | N57: 4630
B58: 4600 | C58: 21.68 | D58: 1.7 | E58: 201 | F58: 15 | G58: 10.91 | H58: 11 | L58: 2.75 | M58: 8.6 | N58: 4430
B59: 4400 | C59: 20.88 | D59: 1.6 | E59: 192 | F59: 15 | G59: 10.51 | H59: 11 | L59: 2.75 | M59: 8.2 | N59: 4230
B60: 4200 | C60: 20.08 | D60: 1.6 | E60: 183 | F60: 15 | G60: 10.11 | H60: 11 | L60: 2.75 | M60: 7.9 | N60: 4030
B61: 4000 | C61: 19.28 | D61: 1.5 | E61: 174 | F61: 15 | G61: 9.71 | H61: 11 | L61: 2.75 | M61: 7.5 | N61: 3830
B62: 3800 | C62: 18.48 | D62: 1.4 | E62: 166 | F62: 15 | G62: 9.31 | H62: 11 | L62: 2.75 | M62: 7.1 | N62: 3630
B63: 3600 | C63: 17.68 | D63: 1.4 | E63: 157 | F63: 15 | G63: 8.91 | H63: 11 | L63: 2.75 | M63: 6.7 | N63: 3430
B64: 3400 | C64: 16.88 | D64: 1.3 | E64: 148 | F64: 15 | G64: 8.51 | H64: 11 | L64: 2.75 | M64: 6.4 | N64: 3230
B65: 3200 | C65: 16.08 | D65: 1.2 | E65: 140 | F65: 15 | G65: 8.11 | H65: 11 | L65: 2.75 | M65: 6 | N65: 3030
B66: 3000 | C66: 15.28 | D66: 1.1 | E66: 131 | F66: 15 | G66: 7.71 | H66: 11 | L66: 2.75 | M66: 5.6 | N66: 2830
B67: 2800 | C67: 14.48 | D67: 1.1 | E67: 122 | F67: 13 | G67: 7.31 | H67: 9 | L67: 2.25 | M67: 5.3 | N67: 2630
B68: 2600 | C68: 13.68 | D68: 1 | E68: 114 | F68: 13 | G68: 6.91 | H68: 9 | L68: 2.25 | M68: 4.9 | N68: 2430
B69: 2400 | C69: 12.31 | D69: 0.9 | E69: 105 | F69: 12 | G69: 6.51 | H69: 8 | L69: 2 | M69: 4.5 | N69: 2230
B70: 2200 | C70: 11.51 | D70: 0.8 | E70: 96 | F70: 12 | G70: 6.11 | H70: 8 | L70: 2 | M70: 4.1 | N70: 2030
B71: 2000 | C71: 10.71 | D71: 0.8 | E71: 87 | F71: 12 | G71: 5.71 | H71: 8 | L71: 2 | M71: 3.8 | N71: =B71-170 -> 1830
B72: 1800 | C72: 9.91 | D72: 0.7 | E72: 79 | F72: 12 | G72: 5.31 | H72: 8 | L72: 2 | M72: 3.4 | N72: 1630
B73: 1600 | C73: 9.11 | D73: 0.6 | E73: 70 | F73: 10 | G73: 4.91 | H73: 6 | L73: 1.5 | M73: 3 | N73: 1430
B74: 1400 | C74: 8.31 | D74: 0.6 | E74: 61 | F74: 10 | G74: 4.51 | H74: 6 | L74: 1.5 | M74: 2.7 | N74: 1230
B75: 1200 | C75: 7.51 | D75: 0.5 | E75: 53 | F75: 10 | G75: 4.11 | H75: 6 | L75: 1.5 | M75: 2.3 | N75: 1030
B76: 1000 | C76: 6.71 | D76: 0.4 | E76: 44 | F76: 10 | G76: 3.71 | H76: 6 | L76: 1.5 | M76: 1.9 | N76: 830
B77: 800 | C77: 5.91 | D77: 0.3 | E77: 35 | F77: 10 | G77: 3.31 | H77: 6 | L77: 1.5 | M77: 1.5 | N77: 630
B78: 600 | C78: 5.11 | D78: 0.3 | E78: 27 | F78: 10 | G78: 2.91 | H78: 6 | L78: 1.5 | M78: 1.2 | N78: 0
B79: 400 | C79: 4.31 | D79: 0.2 | E79: 18 | F79: 10 | G79: 2.51 | H79: 6 | L79: 1.5 | M79: 0.8 | N79: 0
B80: 200 | C80: 3.51 | D80: 0.1 | E80: 9 | F80: 10 | G80: 2.11 | H80: 6 | L80: 1.5 | M80: 0.4 | N80: 0
A81: Wandtyp 1.1.4 | B81: 5000 | C81: 22.35 | D81: 1.7 | E81: 203 | F81: 7 | G81: 12.17 | H81: 7 | I81: 4 | L81: 2.75 | M81: 8.7 | N81: 4830
B82: 4800 | C82: 21.55 | D82: 1.7 | E82: 195 | F82: 7 | G82: 11.77 | H82: 7 | I82: 4 | L82: 2.75 | M82: 8.4 | N82: 4630
B83: 4600 | C83: 20.75 | D83: 1.6 | E83: 187 | F83: 7 | G83: 11.37 | H83: 7 | I83: 4 | L83: 2.75 | M83: 8 | N83: 4430
B84: 4400 | C84: 19.95 | D84: 1.5 | E84: 179 | F84: 7 | G84: 10.97 | H84: 7 | I84: 4 | L84: 2.75 | M84: 7.7 | N84: 4230
B85: 4200 | C85: 19.15 | D85: 1.5 | E85: 171 | F85: 7 | G85: 10.57 | H85: 7 | I85: 4 | L85: 2.75 | M85: 7.3 | N85: 4030
B86: 4000 | C86: 18.35 | D86: 1.4 | E86: 162 | F86: 7 | G86: 10.17 | H86: 7 | I86: 4 | L86: 2.75 | M86: 7 | N86: 3830
B87: 3800 | C87: 17.55 | D87: 1.3 | E87: 154 | F87: 7 | G87: 9.77 | H87: 7 | I87: 4 | L87: 2.75 | M87: 6.6 | N87: 3630
B88: 3600 | C88: 16.75 | D88: 1.3 | E88: 146 | F88: 7 | G88: 9.37 | H88: 7 | I88: 4 | L88: 2.75 | M88: 6.3 | N88: 3430
B89: 3400 | C89: 15.95 | D89: 1.2 | E89: 138 | F89: 7 | G89: 8.97 | H89: 7 | I89: 4 | L89: 2.75 | M89: 5.9 | N89: 3230
B90: 3200 | C90: 15.15 | D90: 1.1 | E90: 130 | F90: 7 | G90: 8.57 | H90: 7 | I90: 4 | L90: 2.75 | M90: 5.6 | N90: 3030
B91: 3000 | C91: 14.35 | D91: 1.1 | E91: 122 | F91: 7 | G91: 8.17 | H91: 7 | I91: 4 | L91: 2.75 | M91: 5.2 | N91: 2830
B92: 2800 | C92: 13.55 | D92: 1 | E92: 114 | F92: 7 | G92: 7.77 | H92: 6 | I92: 3 | L92: 2.25 | M92: 4.9 | N92: 2630
B93: 2600 | C93: 12.75 | D93: 0.9 | E93: 106 | F93: 7 | G93: 7.37 | H93: 6 | I93: 3 | L93: 2.25 | M93: 4.5 | N93: 2430
B94: 2400 | C94: 11.95 | D94: 0.9 | E94: 98 | F94: 6 | G94: 6.97 | H94: 5 | I94: 3 | L94: 2 | M94: 4.2 | N94: 2230
B95: 2200 | C95: 10.97 | D95: 0.8 | E95: 90 | F95: 6 | G95: 6.57 | H95: 5 | I95: 3 | L95: 2 | M95: 3.9 | N95: 2030
B96: 2000 | C96: 10.17 | D96: 0.7 | E96: 81 | F96: 6 | G96: 6.17 | H96: 5 | I96: 3 | L96: 2 | M96: 3.5 | N96: 1830
B97: 1800 | C97: 9.37 | D97: 0.7 | E97: 73 | F97: 6 | G97: 5.77 | H97: 5 | I97: 3 | L97: 2 | M97: 3.2 | N97: 1630
B98: 1600 | C98: 8.57 | D98: 0.6 | E98: 65 | F98: 6 | G98: 5.37 | H98: 4 | I98: 2 | L98: 1.5 | M98: 2.8 | N98: 1430
B99: 1400 | C99: 7.77 | D99: 0.5 | E99: 57 | F99: 6 | G99: 4.97 | H99: 4 | I99: 2 | L99: 1.5 | M99: 2.5 | N99: 1230
B100: 1200 | C100: 6.97 | D100: 0.5 | E100: 49 | F100: 6 | G100: 4.57 | H100: 4 | I100: 2 | L100: 1.5 | M100: 2.1 | N100: 1030
B101: 1000 | C101: 6.17 | D101: 0.4 | E101: 41 | F101: 6 | G101: 4.17 | H101: 4 | I101: 2 | L101: 1.5 | M101: 1.8 | N101: 830
B102: 800 | C102: 5.37 | D102: 0.3 | E102: 33 | F102: 6 | G102: 3.77 | H102: 4 | I102: 2 | L102: 1.5 | M102: 1.4 | N102: 630
B103: 600 | C103: 4.57 | D103: 0.3 | E103: 25 | F103: 6 | G103: 3.37 | H103: 4 | I103: 2 | L103: 1.5 | M103: 1.1 | N103: 0
B104: 400 | C104: 3.77 | D104: 0.2 | E104: 17 | F104: 6 | G104: 2.97 | H104: 4 | I104: 2 | L104: 1.5 | M104: 0.7 | N104: 0
B105: 200 | C105: 2.97 | D105: 0.1 | E105: 9 | F105: 6 | G105: 2.57 | H105: 4 | I105: 2 | L105: 1.5 | M105: 0.4 | N105: 0
A106: Wandtyp 1.1.5 | B106: 5000 | C106: 22.35 | D106: 1.7 | E106: 203 | F106: 7 | G106: 12.17 | H106: 7 | J106: 4 | L106: 2.75 | M106: 8.7 | N106: 4830
B107: 4800 | C107: 21.55 | D107: 1.7 | E107: 195 | F107: 7 | G107: 11.77 | H107: 7 | J107: 4 | L107: 2.75 | M107: 8.4 | N107: 4630
B108: 4600 | C108: 20.75 | D108: 1.6 | E108: 187 | F108: 7 | G108: 11.37 | H108: 7 | J108: 4 | L108: 2.75 | M108: 8 | N108: 4430
B109: 4400 | C109: 19.95 | D109: 1.5 | E109: 179 | F109: 7 | G109: 10.97 | H109: 7 | J109: 4 | L109: 2.75 | M109: 7.7 | N109: 4230
B110: 4200 | C110: 19.15 | D110: 1.5 | E110: 171 | F110: 7 | G110: 10.57 | H110: 7 | J110: 4 | L110: 2.75 | M110: 7.3 | N110: 4030
B111: 4000 | C111: 18.35 | D111: 1.4 | E111: 162 | F111: 7 | G111: 10.17 | H111: 7 | J111: 4 | L111: 2.75 | M111: 7 | N111: 3830
B112: 3800 | C112: 17.55 | D112: 1.3 | E112: 154 | F112: 7 | G112: 9.77 | H112: 7 | J112: 4 | L112: 2.75 | M112: 6.6 | N112: 3630
B113: 3600 | C113: 16.75 | D113: 1.3 | E113: 146 | F113: 7 | G113: 9.37 | H113: 7 | J113: 4 | L113: 2.75 | M113: 6.3 | N113: 3430
B114: 3400 | C114: 15.95 | D114: 1.2 | E114: 138 | F114: 7 | G114: 8.97 | H114: 7 | J114: 4 | L114: 2.75 | M114: 5.9 | N114: 3230
B115: 3200 | C115: 15.15 | D115: 1.1 | E115: 130 | F115: 7 | G115: 8.57 | H115: 7 | J115: 4 | L115: 2.75 | M115: 5.6 | N115: 3030
B116: 3000 | C116: 14.35 | D116: 1.1 | E116: 122 | F116: 7 | G116: 8.17 | H116: 7 | J116: 4 | L116: 2.75 | M116: 5.2 | N116: 2830
B117: 2800 | C117: 13.55 | D117: 1 | E117: 114 | F117: 7 | G117: 7.77 | H117: 6 | J117: 3 | L117: 2.25 | M117: 4.9 | N117: 2630
B118: 2600 | C118: 12.75 | D118: 0.9 | E118: 106 | F118: 7 | G118: 7.37 | H118: 6 | J118: 3 | L118: 2.25 | M118: 4.5 | N118: 2430
B119: 2400 | C119: 11.95 | D119: 0.9 | E119: 98 | F119: 6 | G119: 6.97 | H119: 5 | J119: 3 | L119: 2 | M119: 4.2 | N119: 2230
B120: 2200 | C120: 10.97 | D120: 0.8 | E120: 90 | F120: 6 | G120: 6.57 | H120: 5 | J120: 3 | L120: 2 | M120: 3.9 | N120: 2030
B121: 2000 | C121: 10.17 | D121: 0.7 | E121: 81 | F121: 6 | G121: 6.17 | H121: 5 | J121: 3 | L121: 2 | M121: 3.5 | N121: 1830
B122: 1800 | C122: 9.37 | D122: 0.7 | E122: 73 | F122: 6 | G122: 5.77 | H122: 5 | J122: 3 | L122: 2 | M122: 3.2 | N122: 1630
B123: 1600 | C123: 8.57 | D123: 0.6 | E123: 65 | F123: 6 | G123: 5.37 | H123: 4 | J123: 2 | L123: 1.5 | M123: 2.8 | N123: 1430
B124: 1400 | C124: 7.77 | D124: 0.5 | E124: 57 | F124: 6 | G124: 4.97 | H124: 4 | J124: 2 | L124: 1.5 | M124: 2.5 | N124: 1230
B125: 1200 | C125: 6.97 | D125: 0.5 | E125: 49 | F125: 6 | G125: 4.57 | H125: 4 | J125: 2 | L125: 1.5 | M125: 2.1 | N125: 1030
B126: 1000 | C126: 6.17 | D126: 0.4 | E126: 41 | F126: 6 | G126: 4.17 | H126: 4 | J126: 2 | L126: 1.5 | M126: 1.8 | N126: 830
B127: 800 | C127: 5.37 | D127: 0.3 | E127: 33 | F127: 6 | G127: 3.77 | H127: 4 | J127: 2 | L127: 1.5 | M127: 1.4 | N127: 630
B128: 600 | C128: 4.57 | D128: 0.3 | E128: 25 | F128: 6 | G128: 3.37 | H128: 4 | J128: 2 | L128: 1.5 | M128: 1.1 | N128: 0
B129: 400 | C129: 3.77 | D129: 0.2 | E129: 17 | F129: 6 | G129: 2.97 | H129: 4 | J129: 2 | L129: 1.5 | M129: 0.7 | N129: 0
B130: 200 | C130: 2.97 | D130: 0.1 | E130: 9 | F130: 6 | G130: 2.57 | H130: 4 | J130: 2 | L130: 1.5 | M130: 0.4 | N130: 0
A131: Wandtyp 1.1.6 | B131: 5000 | C131: 23.88 | D131: 2.2 | E131: 263 | F131: 15 | G131: 12.17 | H131: 11 | L131: 2.75 | M131: 11.3 | N131: 4830
B132: 4800 | C132: 23.08 | D132: 2.1 | E132: 252 | F132: 15 | G132: 11.77 | H132: 11 | L132: 2.75 | M132: 10.8 | N132: 4630
B133: 4600 | C133: 22.28 | D133: 2.1 | E133: 242 | F133: 15 | G133: 11.37 | H133: 11 | L133: 2.75 | M133: 10.4 | N133: 4430
B134: 4400 | C134: 21.48 | D134: 2 | E134: 231 | F134: 15 | G134: 10.97 | H134: 11 | L134: 2.75 | M134: 9.9 | N134: 4230
B135: 4200 | C135: 20.68 | D135: 1.9 | E135: 221 | F135: 15 | G135: 10.57 | H135: 11 | L135: 2.75 | M135: 9.5 | N135: =B135-170 -> 4030
B136: 4000 | C136: 19.88 | D136: 1.8 | E136: 210 | F136: 15 | G136: 10.17 | H136: 11 | L136: 2.75 | M136: 9 | N136: 3830
B137: 3800 | C137: 19.08 | D137: 1.7 | E137: 200 | F137: 15 | G137: 9.77 | H137: 11 | L137: 2.75 | M137: 8.6 | N137: 3630
B138: 3600 | C138: 18.28 | D138: 1.6 | E138: 189 | F138: 15 | G138: 9.37 | H138: 11 | L138: 2.75 | M138: 8.1 | N138: 3430
B139: 3400 | C139: 17.48 | D139: 1.5 | E139: 179 | F139: 15 | G139: 8.97 | H139: 11 | L139: 2.75 | M139: 7.7 | N139: 3230
B140: 3200 | C140: 16.68 | D140: 1.4 | E140: 168 | F140: 15 | G140: 8.57 | H140: 11 | L140: 2.75 | M140: 7.2 | N140: 3030
B141: 3000 | C141: 15.88 | D141: 1.4 | E141: 158 | F141: 15 | G141: 8.17 | H141: 11 | L141: 2.75 | M141: 6.8 | N141: 2830
B142: 2800 | C142: 15.08 | D142: 1.3 | E142: 147 | F142: 13 | G142: 7.77 | H142: 9 | L142: 2.25 | M142: 6.3 | N142: 2630
B143: 2600 | C143: 14.28 | D143: 1.2 | E143: 137 | F143: 13 | G143: 7.37 | H143: 9 | L143: 2.25 | M143: 5.9 | N143: 2430
B144: 2400 | C144: 12.91 | D144: 1.1 | E144: 126 | F144: 12 | G144: 6.97 | H144: 8 | L144: 2 | M144: 5.4 | N144: 2230
B145: 2200 | C145: 12.11 | D145: 1 | E145: 116 | F145: 12 | G145: 6.57 | H145: 8 | L145: 2 | M145: 5 | N145: 2030
B146: 2000 | C146: 11.31 | D146: 0.9 | E146: 105 | F146: 12 | G146: 6.17 | H146: 8 | L146: 2 | M146: 4.5 | N146: 1830
B147: 1800 | C147: 10.51 | D147: 0.8 | E147: 95 | F147: 12 | G147: 5.77 | H147: 8 | L147: 2 | M147: 4.1 | N147: 1630
B148: 1600 | C148: 9.71 | D148: 0.7 | E148: 84 | F148: 10 | G148: 5.37 | H148: 6 | L148: 1.5 | M148: 3.6 | N148: 1430
B149: 1400 | C149: 8.91 | D149: 0.7 | E149: 74 | F149: 10 | G149: 4.97 | H149: 6 | L149: 1.5 | M149: 3.2 | N149: 1230
B150: 1200 | C150: 8.11 | D150: 0.6 | E150: 63 | F150: 10 | G150: 4.57 | H150: 6 | L150: 1.5 | M150: 2.7 | N150: 1030
B151: 1000 | C151: 7.31 | D151: 0.5 | E151: 53 | F151: 10 | G151: 4.17 | H151: 6 | L151: 1.5 | M151: 2.3 | N151: 830
B152: 800 | C152: 6.51 | D152: 0.4 | E152: 42 | F152: 10 | G152: 3.77 | H152: 6 | L152: 1.5 | M152: 1.8 | N152: 630
B153: 600 | C153: 5.71 | D153: 0.3 | E153: 32 | F153: 10 | G153: 3.37 | H153: 6 | L153: 1.5 | M153: 1.4 | N153: 0
B154: 400 | C154: 4.91 | D154: 0.2 | E154: 21 | F154: 10 | G154: 2.97 | H154: 6 | L154: 1.5 | M154: 0.9 | N154: 0
B155: 200 | C155: 4.11 | D155: 0.1 | E155: 11 | F155: 10 | G155: 2.57 | H155: 6 | L155: 1.5 | M155: 0.5 | N155: 0
A156: Wandtyp 1.1.7 | B156: 5000 | C156: 34.78 | D156: 3.3 | E156: 390 | F156: 12 | G156: 15.2 | H156: 14 | I156: 8 | L156: 5.5 | M156: 16.7 | N156: 4830
B157: 4800 | C157: 33.58 | D157: 3.2 | E157: 375 | F157: 12 | G157: 14.8 | H157: 14 | I157: 8 | L157: 5.5 | M157: 16 | N157: 4630
B158: 4600 | C158: 32.38 | D158: 3 | E158: 359 | F158: 12 | G158: 14.4 | H158: 14 | I158: 8 | L158: 5.5 | M158: 15.4 | N158: 4430
B159: 4400 | C159: 31.18 | D159: 2.9 | E159: 344 | F159: 12 | G159: 14 | H159: 14 | I159: 8 | L159: 5.5 | M159: 14.7 | N159: 4230
B160: 4200 | C160: 29.98 | D160: 2.8 | E160: 328 | F160: 12 | G160: 13.6 | H160: 14 | I160: 8 | L160: 5.5 | M160: 14 | N160: 4030
B161: 4000 | C161: 28.78 | D161: 2.6 | E161: 312 | F161: 12 | G161: 13.2 | H161: 12 | I161: 8 | L161: 5 | M161: 13.4 | N161: 3830
B162: 3800 | C162: 27.58 | D162: 2.5 | E162: 297 | F162: 12 | G162: 12.8 | H162: 12 | I162: 8 | L162: 5 | M162: 12.7 | N162: 3630
B163: 3600 | C163: 26.38 | D163: 2.4 | E163: 281 | F163: 12 | G163: 12.4 | H163: 12 | I163: 6 | L163: 4.5 | M163: 12 | N163: 3430
B164: 3400 | C164: 25.18 | D164: 2.3 | E164: 266 | F164: 12 | G164: 12 | H164: 12 | I164: 6 | L164: 4.5 | M164: 11.4 | N164: 3230
B165: 3200 | C165: 23.98 | D165: 2.1 | E165: 250 | F165: 12 | G165: 11.6 | H165: 12 | I165: 6 | L165: 4.5 | M165: 10.7 | N165: 3030
B166: 3000 | C166: 22.78 | D166: 2 | E166: 234 | F166: 12 | G166: 11.2 | H166: 12 | I166: 6 | L166: 4.5 | M166: 10 | N166: 2830
B167: 2800 | C167: 21.58 | D167: 1.9 | E167: 219 | F167: 12 | G167: 10.8 | H167: 10 | I167: 6 | L167: 4 | M167: 9.4 | N167: 2630
B168: 2600 | C168: 20.38 | D168: 1.7 | E168: 203 | F168: 12 | G168: 10.4 | H168: 10 | I168: 6 | L168: 4 | M168: 8.7 | N168: 2430
B169: 2400 | C169: 19.18 | D169: 1.6 | E169: 188 | F169: 12 | G169: 10 | H169: 10 | I169: 2 | L169: 3 | M169: 8 | N169: 2230
B170: 2200 | C170: 17.98 | D170: 1.5 | E170: 172 | F170: 12 | G170: 9.6 | H170: 10 | I170: 2 | L170: 3 | M170: 7.4 | N170: 2030
B171: 2000 | C171: 16.78 | D171: 1.3 | E171: 156 | F171: 12 | G171: 9.2 | H171: 10 | I171: 2 | L171: 3 | M171: 6.7 | N171: 1830
B172: 1800 | C172: 15.58 | D172: 1.2 | E172: 141 | F172: 12 | G172: 8.8 | H172: 10 | I172: 2 | L172: 3 | M172: 6 | N172: 1630
B173: 1600 | C173: 14.38 | D173: 1.1 | E173: 125 | F173: 12 | G173: 8.4 | H173: 8 | I173: 2 | L173: 2.5 | M173: 5.4 | N173: 1430
B174: 1400 | C174: 13.18 | D174: 1 | E174: 110 | F174: 12 | G174: 8 | H174: 8 | I174: 2 | L174: 2.5 | M174: 4.7 | N174: 1230
B175: 1200 | C175: 11.98 | D175: 0.8 | E175: 94 | F175: 12 | G175: 7.6 | H175: 6 | I175: 0 | L175: 1.5 | M175: 4 | N175: 1030
B176: 1000 | C176: 10.78 | D176: 0.7 | E176: 78 | F176: 12 | G176: 7.2 | H176: 6 | I176: 0 | L176: 1.5 | M176: 3.4 | N176: 830
B177: 800 | C177: 9.58 | D177: 0.6 | E177: 63 | F177: 12 | G177: 6.8 | H177: 6 | I177: 0 | L177: 1.5 | M177: 2.7 | N177: 630
B178: 600 | C178: 8.38 | D178: 0.4 | E178: 47 | F178: 12 | G178: 6.4 | H178: 6 | I178: 0 | L178: 1.5 | M178: 2 | N178: 0
B179: 400 | C179: 7.18 | D179: 0.3 | E179: 32 | F179: 12 | G179: 6 | H179: 6 | I179: 0 | L179: 1.5 | M179: 1.4 | N179: 0
B180: 200 | C180: 5.98 | D180: 0.2 | E180: 16 | F180: 12 | G180: 5.6 | H180: 4 | I180: 0 | L180: 1 | M180: 0.7 | N180: 0
A181: Wandtyp 1.1.8 | B181: 5000 | C181: 34.78 | D181: 3.3 | E181: 390 | F181: 12 | G181: 15.2 | H181: 14 | J181: 8 | L181: 5.5 | M181: 16.7 | N181: 4830
B182: 4800 | C182: 33.58 | D182: 3.2 | E182: 375 | F182: 12 | G182: 14.8 | H182: 14 | J182: 8 | L182: 5.5 | M182: 16 | N182: 4630
B183: 4600 | C183: 32.38 | D183: 3 | E183: 359 | F183: 12 | G183: 14.4 | H183: 14 | J183: 8 | L183: 5.5 | M183: 15.4 | N183: 4430
B184: 4400 | C184: 31.18 | D184: 2.9 | E184: 344 | F184: 12 | G184: 14 | H184: 14 | J184: 8 | L184: 5.5 | M184: 14.7 | N184: 4230
B185: 4200 | C185: 29.98 | D185: 2.8 | E185: 328 | F185: 12 | G185: 13.6 | H185: 14 | J185: 8 | L185: 5.5 | M185: 14 | N185: 4030
B186: 4000 | C186: 28.78 | D186: 2.6 | E186: 312 | F186: 12 | G186: 13.2 | H186: 12 | J186: 8 | L186: 5 | M186: 13.4 | N186: 3830
B187: 3800 | C187: 27.58 | D187: 2.5 | E187: 297 | F187: 12 | G187: 12.8 | H187: 12 | J187: 8 | L187: 5 | M187: 12.7 | N187: 3630
B188: 3600 | C188: 26.38 | D188: 2.4 | E188: 281 | F188: 12 | G188: 12.4 | H188: 12 | J188: 6 | L188: 4.5 | M188: 12 | N188: 3430
B189: 3400 | C189: 25.18 | D189: 2.3 | E189: 266 | F189: 12 | G189: 12 | H189: 12 | J189: 6 | L189: 4.5 | M189: 11.4 | N189: 3230
B190: 3200 | C190: 23.98 | D190: 2.1 | E190: 250 | F190: 12 | G190: 11.6 | H190: 12 | J190: 6 | L190: 4.5 | M190: 10.7 | N190: 3030
B191: 3000 | C191: 22.78 | D191: 2 | E191: 234 | F191: 12 | G191: 11.2 | H191: 12 | J191: 6 | L191: 4.5 | M191: 10 | N191: 2830
B192: 2800 | C192: 21.58 | D192: 1.9 | E192: 219 | F192: 12 | G192: 10.8 | H192: 10 | J192: 6 | L192: 4 | M192: 9.4 | N192: 2630
B193: 2600 | C193: 20.38 | D193: 1.7 | E193: 203 | F193: 12 | G193: 10.4 | H193: 10 | J193: 6 | L193: 4 | M193: 8.7 | N193: 2430
B194: 2400 | C194: 19.18 | D194: 1.6 | E194: 188 | F194: 12 | G194: 10 | H194: 10 | J194: 2 | L194: 3 | M194: 8 | N194: 2230
B195: 2200 | C195: 17.98 | D195: 1.5 | E195: 172 | F195: 12 | G195: 9.6 | H195: 10 | J195: 2 | L195: 3 | M195: 7.4 | N195: 2030
B196: 2000 | C196: 16.78 | D196: 1.3 | E196: 156 | F196: 12 | G196: 9.2 | H196: 10 | J196: 2 | L196: 3 | M196: 6.7 | N196: 1830
B197: 1800 | C197: 15.58 | D197: 1.2 | E197: 141 | F197: 12 | G197: 8.8 | H197: 10 | J197: 2 | L197: 3 | M197: 6 | N197: 1630
B198: 1600 | C198: 14.38 | D198: 1.1 | E198: 125 | F198: 12 | G198: 8.4 | H198: 8 | J198: 2 | L198: 2.5 | M198: 5.4 | N198: 1430
B199: 1400 | C199: 13.18 | D199: 1 | E199: 110 | F199: 12 | G199: 8 | H199: 8 | J199: 2 | L199: 2.5 | M199: 4.7 | N199: =B199-170 -> 1230
B200: 1200 | C200: 11.98 | D200: 0.8 | E200: 94 | F200: 12 | G200: 7.6 | H200: 6 | J200: 0 | L200: 1.5 | M200: 4 | N200: =B200-170 -> 1030
B201: 1000 | C201: 10.78 | D201: 0.7 | E201: 78 | F201: 12 | G201: 7.2 | H201: 6 | J201: 0 | L201: 1.5 | M201: 3.4 | N201: =B201-170 -> 830
B202: 800 | C202: 9.58 | D202: 0.6 | E202: 63 | F202: 12 | G202: 6.8 | H202: 6 | J202: 0 | L202: 1.5 | M202: 2.7 | N202: =B202-170 -> 630
B203: 600 | C203: 8.38 | D203: 0.4 | E203: 47 | F203: 12 | G203: 6.4 | H203: 6 | J203: 0 | L203: 1.5 | M203: 2 | N203: 0
... 1593 more rows

Sheet WT (hidden)
B1: =IF(AND(D10="",D11="",D12="",W19=0),"",IF(AND(D10="",D11="",D12="",W19<>0),Y6&Y19,IF(X7=TRUE,IF(AND(X12=TRUE,X13=TRUE),IF(AND(X8=TRUE,X9=TRUE),IF(AND(X10=TRUE,X11=TRUE),IF(X23=TRUE,"",Y6&Y23),Y6&Y10),Y6&Y9),Y6&Y13),Y6&Y7))) ->  | T1: Projekt : | U1: Wandtyp | V1: 1.2.1 | W1: =getpiktogramm($V$1) -> OK | X1: Basis_WT_ | Y1: WBreite_
B2: =Wandtypen_Walltypes!E1 -> Bauvorhaben / Projekt : | D2: =Wandtypen_Walltypes!G1 -> 0 | H2: =Wandtypen_Walltypes!K1 -> Projekt-Nr. : | I2: =Wandtypen_Walltypes!L1 -> 0
B4: =Wandtypen_Walltypes!E2 -> Sachbearbeiter : | D4: =Wandtypen_Walltypes!G2 -> 0 | H4: =Wandtypen_Walltypes!K2 -> Datum : | I4: =Wandtypen_Walltypes!L2 -> 00:00:00
B6: =gettext("G11",Sprache!$D$1) -> Wandbezeichnung : | U6: Eingabecheck | V6: Bedingung | W6: Eingabe | X6: Check | Y6: =gettext("G34",Sprache!$D$1) -> Fehler (!) :
H7: =gettext(CONCATENATE($U$1," ",$V$1,"_","1"),Sprache!$D$1) -> Wandtyp 1.2.1 | N7: =IF(X21=TRUE,"H= "&D10&" mm","") ->  | U7: Mindestanzahl Wände | V7: =INDEX(Basis!$S$7:$CO$13,1,MATCH($V$1,Basis!$S$6:$CO$6,0)) -> 1 | W7: =$D$8 -> 1 | X7: =W7>=V7 -> TRUE | Y7: =CONCATENATE(Basis!CP7,V7,Basis!CQ7,Basis!CR7) -> Die Anzahl der zu berechnenden Wände muss mindestens 1 betragen ! Bitte Eingabe prüfen.
B8: =gettext("G12",Sprache!$D$1) -> Anzahl der Wände : | D8: 1 | H8: =gettext(CONCATENATE($U$1," ",$V$1,"_","2"),Sprache!$D$1) -> Vorwand vor Massivwand - einseitig befestigt | U8: Minimale Wandbreite | V8: =INDEX(Basis!$S$7:$CO$13,2,MATCH($V$1,Basis!$S$6:$CO$6,0)) -> 200 | W8: =IF($D$11="","",$D$11) ->  | X8: =AND(W8>=V8,NOT(W8="")) -> FALSE | Y8: =CONCATENATE(Basis!CP8,V8,Basis!CQ8,V9,Basis!CR8) -> Es können nur Wandbreiten zwischen 200 mm und 5000 mm berechnet werden ! Bitte Eingabe prüfen.
H9: =gettext(CONCATENATE($U$1," ",$V$1,"_","3"),Sprache!$D$1) -> Halbhoch, Höhe H ab OKFFB bis 855 mm | P9: =gettext("G39",Sprache!$D$1) -> Hinweis ( ! ) : | U9: Maximale Wandbreite | V9: =INDEX(Basis!$S$7:$CO$13,3,MATCH($V$1,Basis!$S$6:$CO$6,0)) -> 5000 | W9: =IF($D$11="","",$D$11) ->  | X9: =AND(W9<=V9,NOT(W9="")) -> FALSE | Y9: =CONCATENATE(Basis!CP9,V8,Basis!CQ9,V9,Basis!CR9) -> Es können nur Wandbreiten zwischen 200 mm und 5000 mm berechnet werden ! Bitte Eingabe prüfen.
B10: =IF($W$33=TRUE,gettext("G13",Sprache!$D$1),gettext("G14",Sprache!$D$1)) -> Bauhöhe ab OKFFB : | E10: mm | H10: =gettext(CONCATENATE($U$1," ",$V$1,"_","4"),Sprache!$D$1) -> (Einbau Elemente nur bei Höhe H OKFFB 855 mm) | P10: =gettext("G40",Sprache!$D$1) -> Mit Hilfe des Feldes "Anzahl der Wände" können Wände mit gleichen | U10: Minimale Wandtiefe | V10: =INDEX(Basis!$S$7:$CO$13,4,MATCH($V$1,Basis!$S$6:$CO$6,0)) -> 155 | W10: =IF($D$12="","",$D$12) ->  | X10: =AND(W10>=V10,NOT(W10="")) -> FALSE | Y10: =CONCATENATE(Basis!CP10,V10,Basis!CQ10,V11,Basis!CR10) -> Es können nur Wandtiefen zwischen 155 mm und 215 mm berechnet werden ! Bitte Eingabe prüfen.
B11: =IF($W$33=TRUE,gettext("G15",Sprache!$D$1),gettext("G16",Sprache!$D$1)) -> Wandbreite : | E11: mm | H11: =gettext(CONCATENATE($U$1," ",$V$1,"_","5"),Sprache!$D$1) -> Wandbreite von 200 bis 5.000 mm | P11: =gettext("G41",Sprache!$D$1) -> Abmessungen und ! gleichen Einbauten zusammengefasst werden | U11: Maximale Wandtiefe | V11: =INDEX(Basis!$S$7:$CO$13,5,MATCH($V$1,Basis!$S$6:$CO$6,0)) -> 215 | W11: =IF($D$12="","",$D$12) ->  | X11: =AND(W11<=V11,NOT(W11="")) -> FALSE | Y11: =CONCATENATE(Basis!CP11,V10,Basis!CQ11,V11,Basis!CR11) -> Es können nur Wandtiefen zwischen 155 mm und 215 mm berechnet werden ! Bitte Eingabe prüfen.
B12: =IF($W$33=TRUE,gettext("G17",Sprache!$D$1),gettext("G18",Sprache!$D$1)) -> Wandtiefe : | E12: mm | H12: =gettext(CONCATENATE($U$1," ",$V$1,"_","6"),Sprache!$D$1) -> Wandtiefe von 155 bis 215 mm | U12: Minimale Bauhöhe OKFFB | V12: =INDEX(Basis!$S$7:$CO$13,6,MATCH($V$1,Basis!$S$6:$CO$6,0)) -> 0 | W12: =IF($D$10="","",$D$10) ->  | X12: =AND(W12>=V12,NOT(W12="")) -> FALSE | Y12: =CONCATENATE(Basis!CP12,V12,Basis!CQ12,V13,Basis!CR12) -> Dieser Wandtyp umfasst nur Bauhöhen ab OKFFB zwischen 0 mm und 855 mm ! Bitte Eingabe prüfen.
H13: =gettext(CONCATENATE($U$1," ",$V$1,"_","7"),Sprache!$D$1) -> angegebene Abmessungen jeweils ohne Beplankung ! | L13: =IF(X21=TRUE,"B= "&D11&" mm","") ->  | U13: Maximale Bauhöhe OKFFB | V13: =INDEX(Basis!$S$7:$CO$13,7,MATCH($V$1,Basis!$S$6:$CO$6,0)) -> 855 | W13: =IF($D$10="","",$D$10) ->  | X13: =AND(W13<=V13,NOT(W13="")) -> FALSE | Y13: =CONCATENATE(Basis!CP13,V12,Basis!CQ13,V13,Basis!CR13) -> Dieser Wandtyp umfasst nur Bauhöhen ab OKFFB zwischen 0 mm und 855 mm ! Bitte Eingabe prüfen.
H14: =gettext(CONCATENATE($U$1," ",$V$1,"_","8"),Sprache!$D$1) -> fließenfertige Oberfläche zzgl. 18 mm Beplankung
H15: =gettext(CONCATENATE($U$1," ",$V$1,"_","9"),Sprache!$D$1) -> Die Materialangaben enthalten keinen Fußbodenaufbau !
U16: gewählte Bauhöhe Elemente: | V16: =D10 -> 0
H17: =IF($W$111=TRUE,gettext("G39",Sprache!$D$1),"") ->  | P17: =gettext("G39",Sprache!$D$1) -> Hinweis ( ! ) : | U17: gewählte Wandtiefe Elemente: | V17: =D12 -> 0
H18: =IF($W$111=TRUE,gettext("G50",Sprache!$D$1),"") ->  | P18: =gettext("G47",Sprache!$D$1) -> Dieser Wandtyp wird inklusive der Beplankung des SANIT Schienensystem 996
B19: =gettext("G37",Sprache!$D$1) -> Kalkulation ohne Beplankung : | H19: =IF($W$111=TRUE,gettext("G51",Sprache!$D$1),"") ->  | P19: =gettext("G48",Sprache!$D$1) -> berechnet. Sie haben die Möglichkeit, die Berechnung ohne diese Beplankung | U19: Summe Einbauten | V19: 0 | W19: =SUM($J$38:$J$85) -> 0 | X19: =IF(D10="",V19=W19,"") -> TRUE | Y19: =gettext("G35",Sprache!$D$1) -> Bitte geben Sie zuerst alle Abmessungen der Wand ein !
H20: =IF($W$111=TRUE,gettext("G52",Sprache!$D$1),"") ->  | P20: =gettext("G49",Sprache!$D$1) -> durchzuführen. Setzen Sie dafür bitte den Haken im Feld links.
H21: =IF($W$111=TRUE,gettext("G53",Sprache!$D$1),"") ->  | U21: Alle Checks | X21: =AND(X7=TRUE,X8=TRUE,X9=TRUE,X10=TRUE,X11=TRUE,X12=TRUE,X13=TRUE) -> FALSE | Y21: Alle Checks vor technischer Prüfung!
B22: =gettext("G38",Sprache!$D$1) -> Kalkulation mit Trennstreifen
B23: =gettext("G66",Sprache!$D$1) -> und Schallschutzset 996: | H23: =IF($W$112=TRUE,gettext("G54",Sprache!$D$1),"") ->  | U23: Nutzbreite Wand >= Baubreite El. | V23: =IF(NOT(D11=""),IF(AND(W113=TRUE,OR(VALUE(V33)=3,VALUE(V33)=2)),2*INDEX(INDIRECT(CONCATENATE($X$1,$V$1)),MATCH($D$11,INDIRECT(CONCATENATE($Y$1,$V$1)),-1),13),INDEX(INDIRECT(CONCATENATE($X$1,$V$1)),MATCH($D$11,INDIRECT(CONCATENATE($Y$1,$V$1)),-1),13)),0) -> 0 | W23: =SUM(X38:X85) -> 0 | X23: =IF($W$114=TRUE,V23>=W23,TRUE) -> TRUE | Y23: =gettext("G36",Sprache!$D$1) -> Die für alle Einbauten benötigte Baubreite übersteigt die Gesamtbreite der Wand ! Bitte Eingabe prüfen.
B26: =IF($W$33=TRUE,gettext("G67",Sprache!$D$1),gettext("G68",Sprache!$D$1)) -> Kollisionsprüfung für Nutzbreite der Wand: | H26: =IF($W$33=TRUE,IF($W$114=FALSE,gettext("G69",Sprache!$D$1),""),IF($W$114=FALSE,gettext("G70",Sprache!$D$1),"")) -> 
H28: =IF($W$113=TRUE,gettext("G39",Sprache!$D$1),"") ->  | U28: Alle Checks | X28: =AND(X21=TRUE,X23=TRUE) -> FALSE
B29: =gettext("G61",Sprache!$D$1) -> Beidseitig Sanitärinstallationen?: | H29: =IF(AND($W$113=TRUE,NOT(OR(VALUE(V33)=2,VALUE(V33)=3))),gettext("G65",Sprache!$D$1),IF(AND($W$113=TRUE,OR(VALUE($V$33)=2,VALUE($V$33)=3)),gettext("G63",Sprache!$D$1),"")) -> 
B30: =gettext("G62",Sprache!$D$1) -> (nur für freistehende Wände und Installationstrennwände) | H30: =IF(AND($W$113=TRUE,OR(VALUE($V$33)=2,VALUE($V$33)=3)),gettext("G64",Sprache!$D$1),"") -> 
P31: =gettext("G39",Sprache!$D$1) -> Hinweis ( ! ) :
P32: =gettext("G42",Sprache!$D$1) -> Bitte geben Sie zuerst alle Abmessungen der Wand ein !
B33: =gettext("G19",Sprache!$D$1) -> Elemente und Module für den Einbau : | F33: =gettext("G20",Sprache!$D$1) -> (*Betätigungsplatten, Steuerungen, etc. sind separat zu bestellen): | P33: =gettext("G43",Sprache!$D$1) -> In Abhängigkeit von der gewählten Bauhöhe OKFFB werden die | U33: Elemente erlaubt? | V33: =LEFT(V1,1) -> 1 | W33: =VALUE(V33)<4 -> TRUE
P34: =gettext("G44",Sprache!$D$1) -> Eingabefelder der technisch möglichen Elemente gelb hinter-
B35: =gettext("G21",Sprache!$D$1) -> Artikel-Nr. | C35: =gettext("G22",Sprache!$D$1) -> Bezeichnung | J35: =gettext("G23",Sprache!$D$1) -> Anzahl | L35: =gettext("G26",Sprache!$D$1) -> Einheit | M35: =gettext("G27",Sprache!$D$1) -> Preis | P35: =gettext("G45",Sprache!$D$1) -> legt. Achten Sie darauf, dass in nicht gelb markierten Feldern
B36: keine Elemente | J36: =gettext("G24",Sprache!$D$1) -> 1 Wand | K36: =gettext("G25",Sprache!$D$1) -> alle Wd. | M36: =K36 -> alle Wd. | P36: =gettext("G46",Sprache!$D$1) -> keine Werte enthalten sind! ( Diese werden nicht berechnet ) | U36: BH Element | V36: WT Element | W36: El. Zulässig ? | X36: Breite Elemente | Y36: Menge Wand | Z36: =Einbauten!H2 -> 02.208.00..0000 | AA36: =Einbauten!I2 -> 03.332.00..0000 | AB36: =Einbauten!J2 -> 03.333.00..0000 | AC36: =Einbauten!K2 -> 03.754.00..0000 | AD36: =Einbauten!L2 -> 02.208.00..0000 | AE36: =Einbauten!G2 -> Einbauzeit | AF36: Preis/Einheit | AG36: Preis/Wand | AN36: Filter Druck
B37: =Einbauten!A3 -> WC-Elemente | AN37: 0
B38: =Einbauten!A4 -> 90.745.00..T000 | C38: =gettext(B38,Sprache!$D$1) -> INEO FRONTOP WC-El., kl. RÖ, Betät. v.vorn/oben, BH 820 mm | K38: =IF(AND(W38=TRUE,$X$23=TRUE),$D$8*J38,0) -> 0 | L38: =Einbauten!B4 -> Stück | M38: =K38*AF38 -> 0 | U38: =IF(Einbauten!D4="",$V$16,Einbauten!D4) -> 855 | V38: =IF(Einbauten!F4="",$V$17,Einbauten!F4) -> 155 | W38: =IF($V$13>1155,AND($X$21=TRUE,U38>=1155,$W$33=TRUE),AND($X$21=TRUE,U38=$V$16,$V$17>=V38,$W$33=TRUE)) -> FALSE | X38: =IF(W38=TRUE,J38*Einbauten!E4,0) -> 0 | Y38: =IF(AND(W38=TRUE,$X$23=TRUE),J38,0) -> 0 | Z38: =$Y38*Einbauten!H4 -> 0 | AA38: =$Y38*Einbauten!I4 -> 0 | AB38: =$Y38*Einbauten!J4 -> 0 | AC38: =$Y38*Einbauten!K4 -> 0 | AD38: =$Y38*Einbauten!L4 -> 0 | AE38: =$Y38*Einbauten!G4 -> 0 | AF38: =CHOOSE(Preise_Prices!$X$9,0,Preise_Prices!O16,Preise_Prices!T16) -> 0 | AG38: =AF38*Y38 -> 0 | AN38: =K38 -> 0
B39: =Einbauten!A5 -> 90.738.00..T000 | C39: =gettext(B39,Sprache!$D$1) -> INEO FRONTOP WC-El., kl. RÖ, Betät. v.vorn/oben, BH 985 mm | K39: =IF(AND(W39=TRUE,$X$23=TRUE),$D$8*J39,0) -> 0 | L39: =Einbauten!B5 -> Stück | M39: =K39*AF39 -> 0 | U39: =IF(Einbauten!D5="",$V$16,Einbauten!D5) -> 1020 | V39: =IF(Einbauten!F5="",$V$17,Einbauten!F5) -> 155 | W39: =IF($V$13>1155,AND($X$21=TRUE,U39>=1155,$W$33=TRUE),AND($X$21=TRUE,U39=$V$16,$V$17>=V39,$W$33=TRUE)) -> FALSE | X39: =IF(W39=TRUE,J39*Einbauten!E5,0) -> 0 | Y39: =IF(AND(W39=TRUE,$X$23=TRUE),J39,0) -> 0 | Z39: =$Y39*Einbauten!H5 -> 0 | AA39: =$Y39*Einbauten!I5 -> 0 | AB39: =$Y39*Einbauten!J5 -> 0 | AC39: =$Y39*Einbauten!K5 -> 0 | AD39: =$Y39*Einbauten!L5 -> 0 | AE39: =$Y39*Einbauten!G5 -> 0 | AF39: =CHOOSE(Preise_Prices!$X$9,0,Preise_Prices!O17,Preise_Prices!T17) -> 0 | AG39: =AF39*Y39 -> 0 | AN39: =K39 -> 0
B40: =Einbauten!A6 -> 90.743.00..T000 | C40: =gettext(B40,Sprache!$D$1) -> INEO PLUS WC-El., kl. RÖ, Betät. v. vorn, BH 1120 mm, Breite 450 mm o. Wandhalter | K40: =IF(AND(W40=TRUE,$X$23=TRUE),$D$8*J40,0) -> 0 | L40: =Einbauten!B6 -> Stück | M40: =K40*AF40 -> 0 | U40: =IF(Einbauten!D6="",$V$16,Einbauten!D6) -> 1155 | V40: =IF(Einbauten!F6="",$V$17,Einbauten!F6) -> 135 | W40: FALSE | X40: =IF(W40=TRUE,J40*Einbauten!E6,0) -> 0 | Y40: =IF(AND(W40=TRUE,$X$23=TRUE),J40,0) -> 0 | Z40: =$Y40*Einbauten!H6 -> 0 | AA40: =$Y40*Einbauten!I6 -> 0 | AB40: =$Y40*Einbauten!J6 -> 0 | AC40: =$Y40*Einbauten!K6 -> 0 | AD40: =$Y40*Einbauten!L6 -> 0 | AE40: =$Y40*Einbauten!G6 -> 0 | AF40: =CHOOSE(Preise_Prices!$X$9,0,Preise_Prices!O18,Preise_Prices!T18) -> 0 | AG40: 0 | AN40: =K40 -> 0
B41: =Einbauten!A7 -> 90.735.00..T000 | C41: =gettext(B41,Sprache!$D$1) -> INEO WC-El. für Stand-/Kinder-WC, kl. RÖ, Betät. v. vorn, BH 1120 mm | K41: =IF(AND(W41=TRUE,$X$23=TRUE),$D$8*J41,0) -> 0 | L41: =Einbauten!B7 -> Stück | M41: =K41*AF41 -> 0 | U41: =IF(Einbauten!D7="",$V$16,Einbauten!D7) -> 1155 | V41: =IF(Einbauten!F7="",$V$17,Einbauten!F7) -> 135 | W41: FALSE | X41: =IF(W41=TRUE,J41*Einbauten!E7,0) -> 0 | Y41: =IF(AND(W41=TRUE,$X$23=TRUE),J41,0) -> 0 | Z41: =$Y41*Einbauten!H7 -> 0 | AA41: =$Y41*Einbauten!I7 -> 0 | AB41: =$Y41*Einbauten!J7 -> 0 | AC41: =$Y41*Einbauten!K7 -> 0 | AD41: =$Y41*Einbauten!L7 -> 0 | AE41: =$Y41*Einbauten!G7 -> 0 | AF41: =CHOOSE(Preise_Prices!$X$9,0,Preise_Prices!O19,Preise_Prices!T19) -> 0 | AG41: 0 | AN41: =K41 -> 0
B42: =Einbauten!A8 -> Waschtisch- und Ausgussbecken-Elemente | AN42: 0
B43: =Einbauten!A9 -> 90.672.00..T000 | C43: =gettext(B43,Sprache!$D$1) -> INEO WT-Element für Einlocharmaturen, BH 820 mm | K43: =IF(AND(W43=TRUE,$X$23=TRUE),$D$8*J43,0) -> 0 | L43: =Einbauten!B9 -> Stück | M43: =K43*AF43 -> 0 | U43: =IF(Einbauten!D9="",$V$16,Einbauten!D9) -> 855 | V43: =IF(Einbauten!F9="",$V$17,Einbauten!F9) -> 0 | W43: =IF($V$13>1155,AND($X$21=TRUE,U43>=1155,$W$33=TRUE),AND($X$21=TRUE,U43=$V$16,$V$17>=V43,$W$33=TRUE)) -> FALSE | X43: =IF(W43=TRUE,J43*Einbauten!E9,0) -> 0 | Y43: =IF(AND(W43=TRUE,$X$23=TRUE),J43,0) -> 0 | Z43: =$Y43*Einbauten!H9 -> 0 | AA43: =$Y43*Einbauten!I9 -> 0 | AB43: =$Y43*Einbauten!J9 -> 0 | AC43: =$Y43*Einbauten!K9 -> 0 | AD43: =$Y43*Einbauten!L9 -> 0 | AE43: =$Y43*Einbauten!G9 -> 0 | AF43: =CHOOSE(Preise_Prices!$X$9,0,Preise_Prices!O21,Preise_Prices!T21) -> 0 | AG43: =AF43*Y43 -> 0 | AN43: =K43 -> 0
B44: =Einbauten!A10 -> 90.669.00..T000 | C44: =gettext(B44,Sprache!$D$1) -> INEO WT-Element für Einlocharmaturen, BH 985 mm | K44: 0 | L44: =Einbauten!B10 -> Stück | M44: 0 | U44: =IF(Einbauten!D10="",$V$16,Einbauten!D10) -> 1020 | V44: =IF(Einbauten!F10="",$V$17,Einbauten!F10) -> 0 | W44: FALSE | X44: =IF(W44=TRUE,J44*Einbauten!E10,0) -> 0 | Y44: 0 | Z44: =$Y44*Einbauten!H10 -> 0 | AA44: =$Y44*Einbauten!I10 -> 0 | AB44: =$Y44*Einbauten!J10 -> 0 | AC44: =$Y44*Einbauten!K10 -> 0 | AD44: =$Y44*Einbauten!L10 -> 0 | AE44: =$Y44*Einbauten!G10 -> 0 | AF44: =CHOOSE(Preise_Prices!$X$9,0,Preise_Prices!O22,Preise_Prices!T22) -> 0 | AG44: 0 | AN44: 0
B45: =Einbauten!A11 -> 90.696.00..T000 | C45: =gettext(B45,Sprache!$D$1) -> INEO WT-Element für Einlocharmaturen, BH 1120 mm | K45: 0 | L45: =Einbauten!B11 -> Stück | M45: 0 | U45: =IF(Einbauten!D11="",$V$16,Einbauten!D11) -> 1155 | V45: =IF(Einbauten!F11="",$V$17,Einbauten!F11) -> 0 | W45: FALSE | X45: =IF(W45=TRUE,J45*Einbauten!E11,0) -> 0 | Y45: 0 | Z45: =$Y45*Einbauten!H11 -> 0 | AA45: =$Y45*Einbauten!I11 -> 0 | AB45: =$Y45*Einbauten!J11 -> 0 | AC45: =$Y45*Einbauten!K11 -> 0 | AD45: =$Y45*Einbauten!L11 -> 0 | AE45: =$Y45*Einbauten!G11 -> 0 | AF45: =CHOOSE(Preise_Prices!$X$9,0,Preise_Prices!O23,Preise_Prices!T23) -> 0 | AG45: 0 | AN45: 0
B46: =Einbauten!A12 -> 90.671.00..T000 | C46: =gettext(B46,Sprache!$D$1) -> INEO WT-Element für AP-Wandarmaturen, BH 1120 - 1185 mm | K46: 0 | L46: =Einbauten!B12 -> Stück | M46: 0 | U46: =IF(Einbauten!D12="",$V$16,Einbauten!D12) -> 1155 | V46: =IF(Einbauten!F12="",$V$17,Einbauten!F12) -> 0 | W46: FALSE | X46: =IF(W46=TRUE,J46*Einbauten!E12,0) -> 0 | Y46: 0 | Z46: =$Y46*Einbauten!H12 -> 0 | AA46: =$Y46*Einbauten!I12 -> 0 | AB46: =$Y46*Einbauten!J12 -> 0 | AC46: =$Y46*Einbauten!K12 -> 0 | AD46: =$Y46*Einbauten!L12 -> 0 | AE46: =$Y46*Einbauten!G12 -> 0 | AF46: =CHOOSE(Preise_Prices!$X$9,0,Preise_Prices!O24,Preise_Prices!T24) -> 0 | AG46: 0 | AN46: 0
B47: =Einbauten!A13 -> 90.677.00..T000 | C47: =gettext(B47,Sprache!$D$1) -> INEO Ausguss-Element für Wandarmaturen, BH 1120 - 1185 mm | K47: 0 | L47: =Einbauten!B13 -> Stück | M47: 0 | U47: =IF(Einbauten!D13="",$V$16,Einbauten!D13) -> 1155 | V47: =IF(Einbauten!F13="",$V$17,Einbauten!F13) -> 0 | W47: FALSE | X47: =IF(W47=TRUE,J47*Einbauten!E13,0) -> 0 | Y47: 0 | Z47: =$Y47*Einbauten!H13 -> 0 | AA47: =$Y47*Einbauten!I13 -> 0 | AB47: =$Y47*Einbauten!J13 -> 0 | AC47: =$Y47*Einbauten!K13 -> 0 | AD47: =$Y47*Einbauten!L13 -> 0 | AE47: =$Y47*Einbauten!G13 -> 0 | AF47: =CHOOSE(Preise_Prices!$X$9,0,Preise_Prices!O25,Preise_Prices!T25) -> 0 | AG47: 0 | AN47: 0
B48: =Einbauten!A14 -> 90.691.00..T000 | C48: =gettext(B48,Sprache!$D$1) -> INEO WT-El. für Einlocharmaturen mit 2 UP-Wasserzählerstrecken, BH 985 mm | K48: 0 | L48: =Einbauten!B14 -> Stück | M48: 0 | U48: =IF(Einbauten!D14="",$V$16,Einbauten!D14) -> 1020 | V48: =IF(Einbauten!F14="",$V$17,Einbauten!F14) -> 0 | W48: FALSE | X48: =IF(W48=TRUE,J48*Einbauten!E14,0) -> 0 | Y48: 0 | Z48: =$Y48*Einbauten!H14 -> 0 | AA48: =$Y48*Einbauten!I14 -> 0 | AB48: =$Y48*Einbauten!J14 -> 0 | AC48: =$Y48*Einbauten!K14 -> 0 | AD48: =$Y48*Einbauten!L14 -> 0 | AE48: =$Y48*Einbauten!G14 -> 0 | AF48: =CHOOSE(Preise_Prices!$X$9,0,Preise_Prices!O26,Preise_Prices!T26) -> 0 | AG48: 0 | AN48: 0
B49: =Einbauten!A15 -> 90.687.00..T000 | C49: =gettext(B49,Sprache!$D$1) -> INEO WT-El. für Einlocharmaturen mit 2 UP-Wasserzählerstrecken, BH 1120 mm | K49: 0 | L49: =Einbauten!B15 -> Stück | M49: 0 | U49: =IF(Einbauten!D15="",$V$16,Einbauten!D15) -> 1155 | V49: =IF(Einbauten!F15="",$V$17,Einbauten!F15) -> 0 | W49: FALSE | X49: =IF(W49=TRUE,J49*Einbauten!E15,0) -> 0 | Y49: 0 | Z49: =$Y49*Einbauten!H15 -> 0 | AA49: =$Y49*Einbauten!I15 -> 0 | AB49: =$Y49*Einbauten!J15 -> 0 | AC49: =$Y49*Einbauten!K15 -> 0 | AD49: =$Y49*Einbauten!L15 -> 0 | AE49: =$Y49*Einbauten!G15 -> 0 | AF49: =CHOOSE(Preise_Prices!$X$9,0,Preise_Prices!O27,Preise_Prices!T27) -> 0 | AG49: 0 | AN49: 0
B50: =Einbauten!A16 -> 90.689.00..T000 | C50: =gettext(B50,Sprache!$D$1) -> INEO WT-El. für Einlocharmaturen, UP-Montage v. Durchlauferhitzern, BH 1120 mm | K50: 0 | L50: =Einbauten!B16 -> Stück | M50: 0 | U50: =IF(Einbauten!D16="",$V$16,Einbauten!D16) -> 1155 | V50: =IF(Einbauten!F16="",$V$17,Einbauten!F16) -> 0 | W50: FALSE | X50: =IF(W50=TRUE,J50*Einbauten!E16,0) -> 0 | Y50: 0 | Z50: =$Y50*Einbauten!H16 -> 0 | AA50: =$Y50*Einbauten!I16 -> 0 | AB50: =$Y50*Einbauten!J16 -> 0 | AC50: =$Y50*Einbauten!K16 -> 0 | AD50: =$Y50*Einbauten!L16 -> 0 | AE50: =$Y50*Einbauten!G16 -> 0 | AF50: =CHOOSE(Preise_Prices!$X$9,0,Preise_Prices!O28,Preise_Prices!T28) -> 0 | AG50: 0 | AN50: 0
B51: =Einbauten!A17 -> 90.688.00..T000 | C51: =gettext(B51,Sprache!$D$1) -> INEO LINNUM Leer-Element, BH 1120 mm | K51: 0 | L51: =Einbauten!B17 -> Stück | M51: 0 | U51: =IF(Einbauten!D17="",$V$16,Einbauten!D17) -> 1155 | V51: =IF(Einbauten!F17="",$V$17,Einbauten!F17) -> 0 | W51: FALSE | X51: =IF(W51=TRUE,J51*Einbauten!E17,0) -> 0 | Y51: 0 | Z51: =$Y51*Einbauten!H17 -> 0 | AA51: =$Y51*Einbauten!I17 -> 0 | AB51: =$Y51*Einbauten!J17 -> 0 | AC51: =$Y51*Einbauten!K17 -> 0 | AD51: =$Y51*Einbauten!L17 -> 0 | AE51: =$Y51*Einbauten!G17 -> 0 | AF51: =CHOOSE(Preise_Prices!$X$9,0,Preise_Prices!O29,Preise_Prices!T29) -> 0 | AG51: 0 | AN51: 0
B52: =Einbauten!A18 -> 90.659.00..0000 | C52: =gettext(B52,Sprache!$D$1) -> INEO-Fäkalausguss-El. für Ausguss "Publica", kl. RÖ, Betät. v. vorn, BH 1530 mm | K52: 0 | L52: =Einbauten!B18 -> Stück | M52: 0 | U52: =IF(Einbauten!D18="",$V$16,Einbauten!D18) -> 1565 | V52: =IF(Einbauten!F18="",$V$17,Einbauten!F18) -> 155 | W52: FALSE | X52: =IF(W52=TRUE,J52*Einbauten!E18,0) -> 0 | Y52: 0 | Z52: =$Y52*Einbauten!H18 -> 0 | AA52: =$Y52*Einbauten!I18 -> 0 | AB52: =$Y52*Einbauten!J18 -> 0 | AC52: =$Y52*Einbauten!K18 -> 0 | AD52: =$Y52*Einbauten!L18 -> 0 | AE52: =$Y52*Einbauten!G18 -> 0 | AF52: =CHOOSE(Preise_Prices!$X$9,0,Preise_Prices!O30,Preise_Prices!T30) -> 0 | AG52: 0 | AN52: 0
B53: =Einbauten!A19 -> Bidet- und Urinal-Elemente | AN53: 0
B54: =Einbauten!A20 -> 90.663.00..T000 | C54: =gettext(B54,Sprache!$D$1) -> INEO Bidet-Element, BH 820 mm | K54: =IF(AND(W54=TRUE,$X$23=TRUE),$D$8*J54,0) -> 0 | L54: =Einbauten!B20 -> Stück | M54: =K54*AF54 -> 0 | U54: =IF(Einbauten!D20="",$V$16,Einbauten!D20) -> 855 | V54: =IF(Einbauten!F20="",$V$17,Einbauten!F20) -> 135 | W54: =IF($V$13>1155,AND($X$21=TRUE,U54>=1155,$W$33=TRUE),AND($X$21=TRUE,U54=$V$16,$V$17>=V54,$W$33=TRUE)) -> FALSE | X54: =IF(W54=TRUE,J54*Einbauten!E20,0) -> 0 | Y54: =IF(AND(W54=TRUE,$X$23=TRUE),J54,0) -> 0 | Z54: =$Y54*Einbauten!H20 -> 0 | AA54: =$Y54*Einbauten!I20 -> 0 | AB54: =$Y54*Einbauten!J20 -> 0 | AC54: =$Y54*Einbauten!K20 -> 0 | AD54: =$Y54*Einbauten!L20 -> 0 | AE54: =$Y54*Einbauten!G20 -> 0 | AF54: =CHOOSE(Preise_Prices!$X$9,0,Preise_Prices!O32,Preise_Prices!T32) -> 0 | AG54: =AF54*Y54 -> 0 | AN54: =K54 -> 0
B55: =Einbauten!A21 -> 90.662.00..T000 | C55: =gettext(B55,Sprache!$D$1) -> INEO Bidet-Element, BH 985 mm | K55: =IF(AND(W55=TRUE,$X$23=TRUE),$D$8*J55,0) -> 0 | L55: =Einbauten!B21 -> Stück | M55: =K55*AF55 -> 0 | U55: =IF(Einbauten!D21="",$V$16,Einbauten!D21) -> 1020 | V55: =IF(Einbauten!F21="",$V$17,Einbauten!F21) -> 135 | W55: FALSE | X55: =IF(W55=TRUE,J55*Einbauten!E21,0) -> 0 | Y55: =IF(AND(W55=TRUE,$X$23=TRUE),J55,0) -> 0 | Z55: =$Y55*Einbauten!H21 -> 0 | AA55: =$Y55*Einbauten!I21 -> 0 | AB55: =$Y55*Einbauten!J21 -> 0 | AC55: =$Y55*Einbauten!K21 -> 0 | AD55: =$Y55*Einbauten!L21 -> 0 | AE55: =$Y55*Einbauten!G21 -> 0 | AF55: =CHOOSE(Preise_Prices!$X$9,0,Preise_Prices!O33,Preise_Prices!T33) -> 0 | AG55: 0 | AN55: =K55 -> 0
B56: =Einbauten!A22 -> 90.676.00..T000 | C56: =gettext(B56,Sprache!$D$1) -> INEO Bidet-Element, BH 1120 mm | K56: =IF(AND(W56=TRUE,$X$23=TRUE),$D$8*J56,0) -> 0 | L56: =Einbauten!B22 -> Stück | M56: =K56*AF56 -> 0 | U56: =IF(Einbauten!D22="",$V$16,Einbauten!D22) -> 1155 | V56: =IF(Einbauten!F22="",$V$17,Einbauten!F22) -> 135 | W56: FALSE | X56: =IF(W56=TRUE,J56*Einbauten!E22,0) -> 0 | Y56: =IF(AND(W56=TRUE,$X$23=TRUE),J56,0) -> 0 | Z56: =$Y56*Einbauten!H22 -> 0 | AA56: =$Y56*Einbauten!I22 -> 0 | AB56: =$Y56*Einbauten!J22 -> 0 | AC56: =$Y56*Einbauten!K22 -> 0 | AD56: =$Y56*Einbauten!L22 -> 0 | AE56: =$Y56*Einbauten!G22 -> 0 | AF56: =CHOOSE(Preise_Prices!$X$9,0,Preise_Prices!O34,Preise_Prices!T34) -> 0 | AG56: 0 | AN56: =K56 -> 0
B57: =Einbauten!A23 -> 90.668.00..T000 | C57: =gettext(B57,Sprache!$D$1) -> INEO Urinal-Element, für Urinal-Kartuschenventiltechnik, BH 1120 - 1185 mm | K57: =IF(AND(W57=TRUE,$X$23=TRUE),$D$8*J57,0) -> 0 | L57: =Einbauten!B23 -> Stück | M57: =K57*AF57 -> 0 | U57: =IF(Einbauten!D23="",$V$16,Einbauten!D23) -> 1155 | V57: =IF(Einbauten!F23="",$V$17,Einbauten!F23) -> 0 | W57: FALSE | X57: =IF(W57=TRUE,J57*Einbauten!E23,0) -> 0 | Y57: =IF(AND(W57=TRUE,$X$23=TRUE),J57,0) -> 0 | Z57: =$Y57*Einbauten!H23 -> 0 | AA57: =$Y57*Einbauten!I23 -> 0 | AB57: =$Y57*Einbauten!J23 -> 0 | AC57: =$Y57*Einbauten!K23 -> 0 | AD57: =$Y57*Einbauten!L23 -> 0 | AE57: =$Y57*Einbauten!G23 -> 0 | AF57: =CHOOSE(Preise_Prices!$X$9,0,Preise_Prices!O35,Preise_Prices!T35) -> 0 | AG57: 0 | AN57: =K57 -> 0
B58: =Einbauten!A24 -> 90.675.00..T000 | C58: =gettext(B58,Sprache!$D$1) -> INEO Urinal-Element für Aufputzdruckspüler, BH 1120 - 1185 mm | K58: =IF(AND(W58=TRUE,$X$23=TRUE),$D$8*J58,0) -> 0 | L58: =Einbauten!B24 -> Stück | M58: =K58*AF58 -> 0 | U58: =IF(Einbauten!D24="",$V$16,Einbauten!D24) -> 1155 | V58: =IF(Einbauten!F24="",$V$17,Einbauten!F24) -> 0 | W58: FALSE | X58: =IF(W58=TRUE,J58*Einbauten!E24,0) -> 0 | Y58: =IF(AND(W58=TRUE,$X$23=TRUE),J58,0) -> 0 | Z58: =$Y58*Einbauten!H24 -> 0 | AA58: =$Y58*Einbauten!I24 -> 0 | AB58: =$Y58*Einbauten!J24 -> 0 | AC58: =$Y58*Einbauten!K24 -> 0 | AD58: =$Y58*Einbauten!L24 -> 0 | AE58: =$Y58*Einbauten!G24 -> 0 | AF58: =CHOOSE(Preise_Prices!$X$9,0,Preise_Prices!O36,Preise_Prices!T36) -> 0 | AG58: 0 | AN58: =K58 -> 0
B59: =Einbauten!A25 -> Bade-und Brausewannen | AN59: 0
B60: =Einbauten!A26 -> 90.681.00..T000 | C60: =gettext(B60,Sprache!$D$1) -> INEO BW-Element für Aufputzwandarmaturen, BH 1120-1185 mm | K60: =IF(AND(W60=TRUE,$X$23=TRUE),$D$8*J60,0) -> 0 | L60: =Einbauten!B26 -> Stück | M60: =K60*AF60 -> 0 | U60: =IF(Einbauten!D26="",$V$16,Einbauten!D26) -> 1155 | V60: =IF(Einbauten!F26="",$V$17,Einbauten!F26) -> 0 | W60: =IF($V$13>1155,AND($X$21=TRUE,U60>=1155,$W$33=TRUE),AND($X$21=TRUE,U60=$V$16,$V$17>=V60,$W$33=TRUE)) -> FALSE | X60: =IF(W60=TRUE,J60*Einbauten!E26,0) -> 0 | Y60: =IF(AND(W60=TRUE,$X$23=TRUE),J60,0) -> 0 | Z60: =$Y60*Einbauten!H26 -> 0 | AA60: =$Y60*Einbauten!I26 -> 0 | AB60: =$Y60*Einbauten!J26 -> 0 | AC60: =$Y60*Einbauten!K26 -> 0 | AD60: =$Y60*Einbauten!L26 -> 0 | AE60: =$Y60*Einbauten!G26 -> 0 | AF60: =CHOOSE(Preise_Prices!$X$9,0,Preise_Prices!O38,Preise_Prices!T38) -> 0 | AG60: =AF60*Y60 -> 0 | AN60: =K60 -> 0
B61: =Einbauten!A27 -> 90.682.00..T000 | C61: =gettext(B61,Sprache!$D$1) -> INEO BW-Element für UP-Armaturen, BH 1120-1185 mm | K61: =IF(AND(W61=TRUE,$X$23=TRUE),$D$8*J61,0) -> 0 | L61: =Einbauten!B27 -> Stück | M61: =K61*AF61 -> 0 | U61: =IF(Einbauten!D27="",$V$16,Einbauten!D27) -> 1155 | V61: =IF(Einbauten!F27="",$V$17,Einbauten!F27) -> 0 | W61: FALSE | X61: =IF(W61=TRUE,J61*Einbauten!E27,0) -> 0 | Y61: =IF(AND(W61=TRUE,$X$23=TRUE),J61,0) -> 0 | Z61: =$Y61*Einbauten!H27 -> 0 | AA61: =$Y61*Einbauten!I27 -> 0 | AB61: =$Y61*Einbauten!J27 -> 0 | AC61: =$Y61*Einbauten!K27 -> 0 | AD61: =$Y61*Einbauten!L27 -> 0 | AE61: =$Y61*Einbauten!G27 -> 0 | AF61: =CHOOSE(Preise_Prices!$X$9,0,Preise_Prices!O39,Preise_Prices!T39) -> 0 | AG61: 0 | AN61: =K61 -> 0
B62: =Einbauten!A28 -> Waschtisch- und Urinal-Module (Sanitärfunktion ohne Trockenbaurahmen) | AN62: 0
B63: =Einbauten!A29 -> 17.276.00..0000 | C63: =gettext(B63,Sprache!$D$1) -> WT-Modul für Einloch- und AP-Wandarmaturen | K63: =IF(AND(W63=TRUE,$X$23=TRUE),$D$8*J63,0) -> 0 | L63: =Einbauten!B29 -> Stück | M63: =K63*AF63 -> 0 | U63: =IF(Einbauten!D29="",$V$16,Einbauten!D29) -> 0 | V63: =IF(Einbauten!F29="",$V$17,Einbauten!F29) -> 0 | W63: =IF($V$13>1155,AND($X$21=TRUE,U63>=1155,$W$33=TRUE),AND($X$21=TRUE,U63=$V$16,$V$17>=V63,$W$33=TRUE)) -> FALSE | X63: =IF(W63=TRUE,J63*Einbauten!E29,0) -> 0 | Y63: =IF(AND(W63=TRUE,$X$23=TRUE),J63,0) -> 0 | Z63: =$Y63*Einbauten!H29 -> 0 | AA63: =$Y63*Einbauten!I29 -> 0 | AB63: =$Y63*Einbauten!J29 -> 0 | AC63: =$Y63*Einbauten!K29 -> 0 | AD63: =$Y63*Einbauten!L29 -> 0 | AE63: =$Y63*Einbauten!G29 -> 0 | AF63: =CHOOSE(Preise_Prices!$X$9,0,Preise_Prices!O41,Preise_Prices!T41) -> 0 | AG63: =AF63*Y63 -> 0 | AN63: =K63 -> 0
B64: =Einbauten!A30 -> 17.286.00..0000 | C64: =gettext(B64,Sprache!$D$1) -> Waschtisch-Modul für Einlocharmaturen | K64: =IF(AND(W64=TRUE,$X$23=TRUE),$D$8*J64,0) -> 0 | L64: =Einbauten!B30 -> Stück | M64: =K64*AF64 -> 0 | U64: =IF(Einbauten!D30="",$V$16,Einbauten!D30) -> 0 | V64: =IF(Einbauten!F30="",$V$17,Einbauten!F30) -> 0 | W64: FALSE | X64: =IF(W64=TRUE,J64*Einbauten!E30,0) -> 0 | Y64: =IF(AND(W64=TRUE,$X$23=TRUE),J64,0) -> 0 | Z64: =$Y64*Einbauten!H30 -> 0 | AA64: =$Y64*Einbauten!I30 -> 0 | AB64: =$Y64*Einbauten!J30 -> 0 | AC64: =$Y64*Einbauten!K30 -> 0 | AD64: =$Y64*Einbauten!L30 -> 0 | AE64: =$Y64*Einbauten!G30 -> 0 | AF64: =CHOOSE(Preise_Prices!$X$9,0,Preise_Prices!O42,Preise_Prices!T42) -> 0 | AG64: 0 | AN64: =K64 -> 0
B65: =Einbauten!A31 -> 03.877.00..0000 | C65: =gettext(B65,Sprache!$D$1) -> Modul für Waschtisch und Ausgussbecken mit AP-Armatur | K65: =IF(AND(W65=TRUE,$X$23=TRUE),$D$8*J65,0) -> 0 | L65: =Einbauten!B31 -> Stück | M65: =K65*AF65 -> 0 | U65: =IF(Einbauten!D31="",$V$16,Einbauten!D31) -> 0 | V65: =IF(Einbauten!F31="",$V$17,Einbauten!F31) -> 0 | W65: FALSE | X65: =IF(W65=TRUE,J65*Einbauten!E31,0) -> 0 | Y65: =IF(AND(W65=TRUE,$X$23=TRUE),J65,0) -> 0 | Z65: =$Y65*Einbauten!H31 -> 0 | AA65: =$Y65*Einbauten!I31 -> 0 | AB65: =$Y65*Einbauten!J31 -> 0 | AC65: =$Y65*Einbauten!K31 -> 0 | AD65: =$Y65*Einbauten!L31 -> 0 | AE65: =$Y65*Einbauten!G31 -> 0 | AF65: =CHOOSE(Preise_Prices!$X$9,0,Preise_Prices!O43,Preise_Prices!T43) -> 0 | AG65: 0 | AN65: =K65 -> 0
B66: =Einbauten!A32 -> Weitere Module (Sanitärfunktion ohne Trockenbaurahmen) & Zubehör | AN66: 0
B67: =Einbauten!A33 -> 17.268.00..0000 | C67: =gettext(B67,Sprache!$D$1) -> Modul für UP- oder AP-Armaturen | K67: =IF(AND(W67=TRUE,$X$23=TRUE),$D$8*J67,0) -> 0 | L67: =Einbauten!B33 -> Stück | M67: =K67*AF67 -> 0 | U67: =IF(Einbauten!D33="",$V$16,Einbauten!D33) -> 0 | V67: =IF(Einbauten!F33="",$V$17,Einbauten!F33) -> 0 | W67: =IF($V$13>1155,AND($X$21=TRUE,U67>=1155,$W$33=TRUE),AND($X$21=TRUE,U67=$V$16,$V$17>=V67,$W$33=TRUE)) -> FALSE | X67: =IF(W67=TRUE,J67*Einbauten!E33,0) -> 0 | Y67: =IF(AND(W67=TRUE,$X$23=TRUE),J67,0) -> 0 | Z67: =$Y67*Einbauten!H33 -> 0 | AA67: =$Y67*Einbauten!I33 -> 0 | AB67: =$Y67*Einbauten!J33 -> 0 | AC67: =$Y67*Einbauten!K33 -> 0 | AD67: =$Y67*Einbauten!L33 -> 0 | AE67: =$Y67*Einbauten!G33 -> 0 | AF67: =CHOOSE(Preise_Prices!$X$9,0,Preise_Prices!O45,Preise_Prices!T45) -> 0 | AG67: =AF67*Y67 -> 0 | AN67: =K67 -> 0
B68: =Einbauten!A34 -> 17.287.00..0000 | C68: =gettext(B68,Sprache!$D$1) -> Modul für UP- oder AP-Armaturen | K68: 0 | L68: =Einbauten!B34 -> Stück | M68: 0 | U68: =IF(Einbauten!D34="",$V$16,Einbauten!D34) -> 0 | V68: =IF(Einbauten!F34="",$V$17,Einbauten!F34) -> 0 | W68: =IF($V$13>1155,AND($X$21=TRUE,U68>=1155,$W$33=TRUE),AND($X$21=TRUE,U68=$V$16,$V$17>=V68,$W$33=TRUE)) -> FALSE | X68: =IF(W68=TRUE,J68*Einbauten!E34,0) -> 0 | Y68: 0 | Z68: =$Y68*Einbauten!H34 -> 0 | AA68: =$Y68*Einbauten!I34 -> 0 | AB68: =$Y68*Einbauten!J34 -> 0 | AC68: =$Y68*Einbauten!K34 -> 0 | AD68: =$Y68*Einbauten!L34 -> 0 | AE68: =$Y68*Einbauten!G34 -> 0 | AF68: =CHOOSE(Preise_Prices!$X$9,0,Preise_Prices!O46,Preise_Prices!T46) -> 0 | AG68: 0 | AN68: 0
B69: =Einbauten!A35 -> 17.275.00..0000 | C69: =gettext(B69,Sprache!$D$1) -> Modul für Aufputzwandbatterien | K69: 0 | L69: =Einbauten!B35 -> Stück | M69: 0 | U69: =IF(Einbauten!D35="",$V$16,Einbauten!D35) -> 0 | V69: =IF(Einbauten!F35="",$V$17,Einbauten!F35) -> 0 | W69: FALSE | X69: =IF(W69=TRUE,J69*Einbauten!E35,0) -> 0 | Y69: 0 | Z69: =$Y69*Einbauten!H35 -> 0 | AA69: =$Y69*Einbauten!I35 -> 0 | AB69: =$Y69*Einbauten!J35 -> 0 | AC69: =$Y69*Einbauten!K35 -> 0 | AD69: =$Y69*Einbauten!L35 -> 0 | AE69: =$Y69*Einbauten!G35 -> 0 | AF69: =CHOOSE(Preise_Prices!$X$9,0,Preise_Prices!O47,Preise_Prices!T47) -> 0 | AG69: 0 | AN69: 0
B70: =Einbauten!A36 -> 17.282.00..0000 | C70: =gettext(B70,Sprache!$D$1) -> Modul für Waschmaschinenanschluss | K70: 0 | L70: =Einbauten!B36 -> Stück | M70: 0 | U70: =IF(Einbauten!D36="",$V$16,Einbauten!D36) -> 0 | V70: =IF(Einbauten!F36="",$V$17,Einbauten!F36) -> 0 | W70: FALSE | X70: =IF(W70=TRUE,J70*Einbauten!E36,0) -> 0 | Y70: 0 | Z70: =$Y70*Einbauten!H36 -> 0 | AA70: =$Y70*Einbauten!I36 -> 0 | AB70: =$Y70*Einbauten!J36 -> 0 | AC70: =$Y70*Einbauten!K36 -> 0 | AD70: =$Y70*Einbauten!L36 -> 0 | AE70: =$Y70*Einbauten!G36 -> 0 | AF70: =CHOOSE(Preise_Prices!$X$9,0,Preise_Prices!O48,Preise_Prices!T48) -> 0 | AG70: 0 | AN70: 0
B71: =Einbauten!A37 -> 17.216.00..0000 | C71: =gettext(B71,Sprache!$D$1) -> Befestigungsmodul für schwere Gegenstände, Griffe u.ä. | K71: 0 | L71: =Einbauten!B37 -> Stück | M71: 0 | U71: =IF(Einbauten!D37="",$V$16,Einbauten!D37) -> 0 | V71: =IF(Einbauten!F37="",$V$17,Einbauten!F37) -> 0 | W71: FALSE | X71: =IF(W71=TRUE,J71*Einbauten!E37,0) -> 0 | Y71: 0 | Z71: =$Y71*Einbauten!H37 -> 0 | AA71: =$Y71*Einbauten!I37 -> 0 | AB71: =$Y71*Einbauten!J37 -> 0 | AC71: =$Y71*Einbauten!K37 -> 0 | AD71: =$Y71*Einbauten!L37 -> 0 | AE71: =$Y71*Einbauten!G37 -> 0 | AF71: =CHOOSE(Preise_Prices!$X$9,0,Preise_Prices!O49,Preise_Prices!T49) -> 0 | AG71: 0 | AN71: 0
B72: =Einbauten!A38 -> 17.280.00..0000 | C72: =gettext(B72,Sprache!$D$1) -> Befestigungsmodul für Küchenanschlüsse | K72: 0 | L72: =Einbauten!B38 -> Stück | M72: 0 | U72: =IF(Einbauten!D38="",$V$16,Einbauten!D38) -> 0 | V72: =IF(Einbauten!F38="",$V$17,Einbauten!F38) -> 0 | W72: FALSE | X72: =IF(W72=TRUE,J72*Einbauten!E38,0) -> 0 | Y72: 0 | Z72: =$Y72*Einbauten!H38 -> 0 | AA72: =$Y72*Einbauten!I38 -> 0 | AB72: =$Y72*Einbauten!J38 -> 0 | AC72: =$Y72*Einbauten!K38 -> 0 | AD72: =$Y72*Einbauten!L38 -> 0 | AE72: =$Y72*Einbauten!G38 -> 0 | AF72: =CHOOSE(Preise_Prices!$X$9,0,Preise_Prices!O50,Preise_Prices!T50) -> 0 | AG72: 0 | AN72: 0
B73: =Einbauten!A39 -> 17.239.00..0000 | C73: =gettext(B73,Sprache!$D$1) -> Ergänzungsmodul für Sitzbefestigung | K73: 0 | L73: =Einbauten!B39 -> Stück | M73: 0 | U73: =IF(Einbauten!D39="",$V$16,Einbauten!D39) -> 0 | V73: =IF(Einbauten!F39="",$V$17,Einbauten!F39) -> 0 | W73: FALSE | X73: =IF(W73=TRUE,J73*Einbauten!E39,0) -> 0 | Y73: 0 | Z73: =$Y73*Einbauten!H39 -> 0 | AA73: =$Y73*Einbauten!I39 -> 0 | AB73: =$Y73*Einbauten!J39 -> 0 | AC73: =$Y73*Einbauten!K39 -> 0 | AD73: =$Y73*Einbauten!L39 -> 0 | AE73: =$Y73*Einbauten!G39 -> 0 | AF73: =CHOOSE(Preise_Prices!$X$9,0,Preise_Prices!O51,Preise_Prices!T51) -> 0 | AG73: 0 | AN73: 0
B74: =Einbauten!A40 -> 17.281.00..0000 | C74: =gettext(B74,Sprache!$D$1) -> Modul für Wandscheiben | K74: 0 | L74: =Einbauten!B40 -> Stück | M74: 0 | U74: =IF(Einbauten!D40="",$V$16,Einbauten!D40) -> 0 | V74: =IF(Einbauten!F40="",$V$17,Einbauten!F40) -> 0 | W74: FALSE | X74: =IF(W74=TRUE,J74*Einbauten!E40,0) -> 0 | Y74: 0 | Z74: =$Y74*Einbauten!H40 -> 0 | AA74: =$Y74*Einbauten!I40 -> 0 | AB74: =$Y74*Einbauten!J40 -> 0 | AC74: =$Y74*Einbauten!K40 -> 0 | AD74: =$Y74*Einbauten!L40 -> 0 | AE74: =$Y74*Einbauten!G40 -> 0 | AF74: =CHOOSE(Preise_Prices!$X$9,0,Preise_Prices!O52,Preise_Prices!T52) -> 0 | AG74: 0 | AN74: 0
B75: =Einbauten!A41 -> 05.132.00..0000 | C75: =gettext(B75,Sprache!$D$1) -> Dachschrägen-Anschluss | K75: =IF(AND(W75=TRUE,$X$23=TRUE),$D$8*J75,0) -> 0 | L75: =Einbauten!B41 -> Stück | M75: =K75*AF75 -> 0 | U75: =IF(Einbauten!D41="",$V$16,Einbauten!D41) -> 0 | V75: =IF(Einbauten!F41="",$V$17,Einbauten!F41) -> 0 | W75: =IF($V$13>1155,AND($X$21=TRUE,U75>=1155,$W$33=TRUE),AND($X$21=TRUE,U75=$V$16,$V$17>=V75,$W$33=TRUE)) -> FALSE | X75: =IF(W75=TRUE,J75*Einbauten!E41,0) -> 0 | Y75: =IF(AND(W75=TRUE,$X$23=TRUE),J75,0) -> 0 | Z75: =$Y75*Einbauten!H41 -> 0 | AA75: =$Y75*Einbauten!I41 -> 0 | AB75: =$Y75*Einbauten!J41 -> 0 | AC75: =$Y75*Einbauten!K41 -> 0 | AD75: =$Y75*Einbauten!L41 -> 0 | AE75: =$Y75*Einbauten!G41 -> 0 | AF75: =CHOOSE(Preise_Prices!$X$9,0,Preise_Prices!O53,Preise_Prices!T53) -> 0 | AG75: =AF75*Y75 -> 0 | AN75: =K75 -> 0
B76: =Einbauten!A42 -> 05.201.00..0000 | C76: =gettext(B76,Sprache!$D$1) -> Rohrschellenbefestigung | K76: 0 | L76: =Einbauten!B42 -> Stück | M76: 0 | U76: =IF(Einbauten!D42="",$V$16,Einbauten!D42) -> 0 | V76: =IF(Einbauten!F42="",$V$17,Einbauten!F42) -> 0 | W76: FALSE | X76: =IF(W76=TRUE,J76*Einbauten!E42,0) -> 0 | Y76: 0 | Z76: =$Y76*Einbauten!H42 -> 0 | AA76: =$Y76*Einbauten!I42 -> 0 | AB76: =$Y76*Einbauten!J42 -> 0 | AC76: =$Y76*Einbauten!K42 -> 0 | AD76: =$Y76*Einbauten!L42 -> 0 | AE76: =$Y76*Einbauten!G42 -> 0 | AF76: =CHOOSE(Preise_Prices!$X$9,0,Preise_Prices!O54,Preise_Prices!T54) -> 0 | AG76: 0 | AN76: 0
B77: =Einbauten!A43 -> barrierefreie Elemente und Module | AN77: 0
B78: =Einbauten!A44 -> 90.685.00..T000 | C78: =gettext(B78,Sprache!$D$1) -> INEO WT-Element für Einlocharmaturen, behinderteng. BH 820 mm | K78: =IF(AND(W78=TRUE,$X$23=TRUE),$D$8*J78,0) -> 0 | L78: =Einbauten!B44 -> Stück | M78: =K78*AF78 -> 0 | U78: =IF(Einbauten!D44="",$V$16,Einbauten!D44) -> 855 | V78: =IF(Einbauten!F44="",$V$17,Einbauten!F44) -> 0 | W78: =IF($V$13>1155,AND($X$21=TRUE,U78>=1155,$W$33=TRUE),AND($X$21=TRUE,U78=$V$16,$V$17>=V78,$W$33=TRUE)) -> FALSE | X78: =IF(W78=TRUE,J78*Einbauten!E44,0) -> 0 | Y78: =IF(AND(W78=TRUE,$X$23=TRUE),J78,0) -> 0 | Z78: =$Y78*Einbauten!H44 -> 0 | AA78: =$Y78*Einbauten!I44 -> 0 | AB78: =$Y78*Einbauten!J44 -> 0 | AC78: =$Y78*Einbauten!K44 -> 0 | AD78: =$Y78*Einbauten!L44 -> 0 | AE78: =$Y78*Einbauten!G44 -> 0 | AF78: =CHOOSE(Preise_Prices!$X$9,0,Preise_Prices!O56,Preise_Prices!T56) -> 0 | AG78: =AF78*Y78 -> 0 | AN78: =K78 -> 0
B79: =Einbauten!A45 -> 90.673.00..T000 | C79: =gettext(B79,Sprache!$D$1) -> INEO WT-El. für Einloch- o. AP-Wandarmaturen, behinderteng., BH 1120 - 1185 mm | K79: 0 | L79: =Einbauten!B45 -> Stück | M79: 0 | U79: =IF(Einbauten!D45="",$V$16,Einbauten!D45) -> 1155 | V79: =IF(Einbauten!F45="",$V$17,Einbauten!F45) -> 0 | W79: FALSE | X79: =IF(W79=TRUE,J79*Einbauten!E45,0) -> 0 | Y79: 0 | Z79: =$Y79*Einbauten!H45 -> 0 | AA79: =$Y79*Einbauten!I45 -> 0 | AB79: =$Y79*Einbauten!J45 -> 0 | AC79: =$Y79*Einbauten!K45 -> 0 | AD79: =$Y79*Einbauten!L45 -> 0 | AE79: =$Y79*Einbauten!G45 -> 0 | AF79: =CHOOSE(Preise_Prices!$X$9,0,Preise_Prices!O57,Preise_Prices!T57) -> 0 | AG79: 0 | AN79: 0
B80: =Einbauten!A46 -> 90.744.00..T000 | C80: =gettext(B80,Sprache!$D$1) -> INEO PLUS WC-El., kl. RÖ, Betät. v. vorn, behindertengerecht, BH 1120 mm | K80: 0 | L80: =Einbauten!B46 -> Stück | M80: 0 | U80: =IF(Einbauten!D46="",$V$16,Einbauten!D46) -> 1155 | V80: =IF(Einbauten!F46="",$V$17,Einbauten!F46) -> 135 | W80: FALSE | X80: =IF(W80=TRUE,J80*Einbauten!E46,0) -> 0 | Y80: 0 | Z80: =$Y80*Einbauten!H46 -> 0 | AA80: =$Y80*Einbauten!I46 -> 0 | AB80: =$Y80*Einbauten!J46 -> 0 | AC80: =$Y80*Einbauten!K46 -> 0 | AD80: =$Y80*Einbauten!L46 -> 0 | AE80: =$Y80*Einbauten!G46 -> 0 | AF80: =CHOOSE(Preise_Prices!$X$9,0,Preise_Prices!O58,Preise_Prices!T58) -> 0 | AG80: 0 | AN80: 0
B81: =Einbauten!A47 -> 90.680.00..TR00 | C81: =gettext(B81,Sprache!$D$1) -> Befest.-El. rechts für Griff- u. Haltesysteme, BH 1185 mm | K81: 0 | L81: =Einbauten!B47 -> Stück | M81: 0 | U81: =IF(Einbauten!D47="",$V$16,Einbauten!D47) -> 1155 | V81: =IF(Einbauten!F47="",$V$17,Einbauten!F47) -> 0 | W81: FALSE | X81: =IF(W81=TRUE,J81*Einbauten!E47,0) -> 0 | Y81: 0 | Z81: =$Y81*Einbauten!H47 -> 0 | AA81: =$Y81*Einbauten!I47 -> 0 | AB81: =$Y81*Einbauten!J47 -> 0 | AC81: =$Y81*Einbauten!K47 -> 0 | AD81: =$Y81*Einbauten!L47 -> 0 | AE81: =$Y81*Einbauten!G47 -> 0 | AF81: =CHOOSE(Preise_Prices!$X$9,0,Preise_Prices!O59,Preise_Prices!T59) -> 0 | AG81: 0 | AN81: 0
B82: =Einbauten!A48 -> 90.680.00..TL00 | C82: =gettext(B82,Sprache!$D$1) -> Befest.-El. links für Griff- u. Haltesysteme, BH 1185 mm | K82: 0 | L82: =Einbauten!B48 -> Stück | M82: 0 | U82: =IF(Einbauten!D48="",$V$16,Einbauten!D48) -> 1155 | V82: =IF(Einbauten!F48="",$V$17,Einbauten!F48) -> 0 | W82: FALSE | X82: =IF(W82=TRUE,J82*Einbauten!E48,0) -> 0 | Y82: 0 | Z82: =$Y82*Einbauten!H48 -> 0 | AA82: =$Y82*Einbauten!I48 -> 0 | AB82: =$Y82*Einbauten!J48 -> 0 | AC82: =$Y82*Einbauten!K48 -> 0 | AD82: =$Y82*Einbauten!L48 -> 0 | AE82: =$Y82*Einbauten!G48 -> 0 | AF82: =CHOOSE(Preise_Prices!$X$9,0,Preise_Prices!O60,Preise_Prices!T60) -> 0 | AG82: 0 | AN82: 0
B83: =Einbauten!A49 -> 17.288.00..0000 | C83: =gettext(B83,Sprache!$D$1) -> Waschtisch-Modul behindertengerecht | K83: 0 | L83: =Einbauten!B49 -> Stück | M83: 0 | U83: =IF(Einbauten!D49="",$V$16,Einbauten!D49) -> 0 | V83: =IF(Einbauten!F49="",$V$17,Einbauten!F49) -> 0 | W83: FALSE | X83: =IF(W83=TRUE,J83*Einbauten!E49,0) -> 0 | Y83: 0 | Z83: =$Y83*Einbauten!H49 -> 0 | AA83: =$Y83*Einbauten!I49 -> 0 | AB83: =$Y83*Einbauten!J49 -> 0 | AC83: =$Y83*Einbauten!K49 -> 0 | AD83: =$Y83*Einbauten!L49 -> 0 | AE83: =$Y83*Einbauten!G49 -> 0 | AF83: =CHOOSE(Preise_Prices!$X$9,0,Preise_Prices!O61,Preise_Prices!T61) -> 0 | AG83: 0 | AN83: 0
B84: =Einbauten!A50 -> 17.279.00..0000 | C84: =gettext(B84,Sprache!$D$1) -> Befestigungsmodul für Griff- und Haltesysteme | K84: 0 | L84: =Einbauten!B50 -> Stück | M84: 0 | U84: =IF(Einbauten!D50="",$V$16,Einbauten!D50) -> 0 | V84: =IF(Einbauten!F50="",$V$17,Einbauten!F50) -> 0 | W84: FALSE | X84: =IF(W84=TRUE,J84*Einbauten!E50,0) -> 0 | Y84: 0 | Z84: =$Y84*Einbauten!H50 -> 0 | AA84: =$Y84*Einbauten!I50 -> 0 | AB84: =$Y84*Einbauten!J50 -> 0 | AC84: =$Y84*Einbauten!K50 -> 0 | AD84: =$Y84*Einbauten!L50 -> 0 | AE84: =$Y84*Einbauten!G50 -> 0 | AF84: =CHOOSE(Preise_Prices!$X$9,0,Preise_Prices!O62,Preise_Prices!T62) -> 0 | AG84: 0 | AN84: 0
B85: =Einbauten!A51 -> 17.289.00..0000 | C85: =gettext(B85,Sprache!$D$1) -> Befestigungs-Modul für Griff- und Haltesysteme | K85: 0 | L85: =Einbauten!B51 -> Stück | M85: 0 | U85: =IF(Einbauten!D51="",$V$16,Einbauten!D51) -> 0 | V85: =IF(Einbauten!F51="",$V$17,Einbauten!F51) -> 0 | W85: FALSE | X85: =IF(W85=TRUE,J85*Einbauten!E51,0) -> 0 | Y85: 0 | Z85: =$Y85*Einbauten!H51 -> 0 | AA85: =$Y85*Einbauten!I51 -> 0 | AB85: =$Y85*Einbauten!J51 -> 0 | AC85: =$Y85*Einbauten!K51 -> 0 | AD85: =$Y85*Einbauten!L51 -> 0 | AE85: =$Y85*Einbauten!G51 -> 0 | AF85: =CHOOSE(Preise_Prices!$X$9,0,Preise_Prices!O63,Preise_Prices!T63) -> 0 | AG85: 0 | AN85: 0
U87: Summe | X87: =SUM(X38:X85) -> 0 | Y87: 0 | Z87: 0 | AA87: 0 | AB87: 0 | AC87: 0 | AD87: 0 | AE87: 0 | AG87: =SUM(AG38:AG85) -> 0 | AN87: =SUM(AN90:AN102) -> 0
B88: =gettext("G28",Sprache!$D$1) -> Materialbedarf für Tragwerk und Beplankung | AN88: =SUM(AN90:AN102) -> 0
U89: Material | V89: 1 Wand | X89: Wandaufbau | Y89: o. Beplank/m.SS | Z89: Red. Stab Wand | AA89: Material Wand | AB89: Material Einb. | AC89: Gesamt MatWand | AD89: Zeitbedarf/ Wand | AE89: Zeitbed./Einbaut. | AF89: Gesamt Zeit/Wand | AG89: Preis/Einheit | AH89: Preis/Wand | AI89: Preis/Einbauten | AJ89: Preis Gesamt | AN89: =SUM(AN90:AN102) -> 0
B90: =Basismaterial!A3 -> 02.208.00..0000 | C90: =gettext(B90,Sprache!$D$1) -> Stab (5m) | J90: =AC90 -> 0 | K90: =$D$8*J90 -> 0 | L90: =Basismaterial!C3 -> m | M90: =K90*AG90 -> 0 | U90: =B90 -> 02.208.00..0000 | V90: Tragwerk | X90: =IF($X$28=TRUE,INDEX(INDIRECT(CONCATENATE($X$1,$V$1)),MATCH($D$11,INDIRECT(CONCATENATE($Y$1,$V$1)),-1),2),0) -> 0 | Z90: =AD87 -> 0 | AA90: =SUM(X90:Z90) -> 0 | AB90: =Z87 -> 0 | AC90: =AA90+AB90 -> 0 | AD90: =Basismaterial!$D3*AA90 -> 0 | AE90: =Basismaterial!$D3*AB90 -> 0 | AF90: =AD90+AE90 -> 0 | AG90: =CHOOSE(Preise_Prices!$X$9,0,Preise_Prices!O68,Preise_Prices!T68) -> 0 | AH90: =AA90*AG90 -> 0 | AI90: =AG90*AB90 -> 0 | AJ90: =AH90+AI90 -> 0 | AK90: Tragwerk | AN90: =K90 -> 0
B91: =Basismaterial!A4 -> 02.596.00..0000 | C91: =gettext(B91,Sprache!$D$1) -> Universalspachtelmasse ( ca. 0,25 Kg/m2 ) | J91: =AC91 -> 0 | K91: =$D$8*J91 -> 0 | L91: =Basismaterial!C4 -> Kg | M91: =K91*AG91 -> 0 | U91: =B91 -> 02.596.00..0000 | V91: Beplankung | X91: =IF($X$28=TRUE,INDEX(INDIRECT(CONCATENATE($X$1,$V$1)),MATCH($D$11,INDIRECT(CONCATENATE($Y$1,$V$1)),-1),3),0) -> 0 | Y91: =IF(W111=TRUE,-X91,0) -> 0 | AA91: =SUM(X91:Z91) -> 0 | AC91: =AA91+AB91 -> 0 | AD91: =Basismaterial!$D4*AA91 -> 0 | AE91: =Basismaterial!$D4*AB91 -> 0 | AF91: =AD91+AE91 -> 0 | AG91: =CHOOSE(Preise_Prices!$X$9,0,Preise_Prices!O69,Preise_Prices!T69) -> 0 | AH91: =AA91*AG91 -> 0 | AI91: =AG91*AB91 -> 0 | AJ91: =AH91+AI91 -> 0 | AK91: Beplankung | AN91: 0
B92: =Basismaterial!A5 -> 02.597.00..0000 | C92: =gettext(B92,Sprache!$D$1) -> Senkkopf-Kreuzschlitzschraube zur Verkleidungsplatte | J92: 0 | K92: 0 | L92: =Basismaterial!C5 -> Stück | M92: 0 | U92: 02.597.00..0000 | V92: Beplankung | X92: =IF($X$28=TRUE,INDEX(INDIRECT(CONCATENATE($X$1,$V$1)),MATCH($D$11,INDIRECT(CONCATENATE($Y$1,$V$1)),-1),4),0) -> 0 | Y92: =IF(W111=TRUE,-X92,0) -> 0 | AA92: 0 | AC92: 0 | AD92: =Basismaterial!$D5*AA92 -> 0 | AE92: =Basismaterial!$D5*AB92 -> 0 | AF92: 0 | AG92: =CHOOSE(Preise_Prices!$X$9,0,Preise_Prices!O70,Preise_Prices!T70) -> 0 | AH92: 0 | AI92: 0 | AJ92: 0 | AK92: Beplankung | AN92: 0
B93: =Basismaterial!A6 -> 03.332.00..0000 | C93: =gettext(B93,Sprache!$D$1) -> Eckverbinder | J93: 0 | K93: 0 | L93: =Basismaterial!C6 -> Stück | M93: 0 | U93: 03.332.00..0000 | V93: Tragwerk | X93: =IF($X$28=TRUE,INDEX(INDIRECT(CONCATENATE($X$1,$V$1)),MATCH($D$11,INDIRECT(CONCATENATE($Y$1,$V$1)),-1),5),0) -> 0 | AA93: 0 | AB93: =AA87 -> 0 | AC93: 0 | AD93: =Basismaterial!$D6*AA93 -> 0 | AE93: =Basismaterial!$D6*AB93 -> 0 | AF93: 0 | AG93: =CHOOSE(Preise_Prices!$X$9,0,Preise_Prices!O71,Preise_Prices!T71) -> 0 | AH93: 0 | AI93: 0 | AJ93: 0 | AK93: Tragwerk | AN93: 0
B94: =Basismaterial!A7 -> 03.333.00..0000 | C94: =gettext(B94,Sprache!$D$1) -> Modulverbinder | J94: 0 | K94: 0 | L94: =Basismaterial!C7 -> Stück | M94: 0 | U94: 03.333.00..0000 | V94: nur Einbauten | AB94: =AB87 -> 0 | AC94: 0 | AD94: =Basismaterial!$D7*AA94 -> 0 | AE94: =Basismaterial!$D7*AB94 -> 0 | AF94: 0 | AG94: =CHOOSE(Preise_Prices!$X$9,0,Preise_Prices!O72,Preise_Prices!T72) -> 0 | AH94: 0 | AI94: 0 | AJ94: 0 | AK94: nur Einbauten | AN94: 0
B95: =Basismaterial!A8 -> 03.346.00..0000 | C95: =gettext(B95,Sprache!$D$1) -> Trennstreifen für Putzanschluss 20m | J95: 0 | K95: 0 | L95: =Basismaterial!C8 -> m | M95: 0 | U95: 03.346.00..0000 | V95: Tragwerk | X95: =IF($X$28=TRUE,INDEX(INDIRECT(CONCATENATE($X$1,$V$1)),MATCH($D$11,INDIRECT(CONCATENATE($Y$1,$V$1)),-1),6),0) -> 0 | Y95: =IF(W112=FALSE,-X95,0) -> 0 | AA95: 0 | AC95: 0 | AD95: =Basismaterial!$D8*AA95 -> 0 | AE95: =Basismaterial!$D8*AB95 -> 0 | AF95: 0 | AG95: =CHOOSE(Preise_Prices!$X$9,0,Preise_Prices!O73,Preise_Prices!T73) -> 0 | AH95: 0 | AI95: 0 | AJ95: 0 | AK95: Tragwerk | AN95: 0
B96: =Basismaterial!A9 -> 03.545.00..0000 | C96: =gettext(B96,Sprache!$D$1) -> Bauwerksanschluss | J96: 0 | K96: 0 | L96: =Basismaterial!C9 -> Stück | M96: 0 | U96: 03.545.00..0000 | V96: Tragwerk | X96: =IF($X$28=TRUE,INDEX(INDIRECT(CONCATENATE($X$1,$V$1)),MATCH($D$11,INDIRECT(CONCATENATE($Y$1,$V$1)),-1),7),0) -> 0 | AA96: 0 | AC96: 0 | AD96: =Basismaterial!$D9*AA96 -> 0 | AE96: =Basismaterial!$D9*AB96 -> 0 | AF96: 0 | AG96: =CHOOSE(Preise_Prices!$X$9,0,Preise_Prices!O74,Preise_Prices!T74) -> 0 | AH96: 0 | AI96: 0 | AJ96: 0 | AK96: Tragwerk | AN96: 0
B97: =Basismaterial!A10 -> 03.723.00..0000 | C97: =gettext(B97,Sprache!$D$1) -> Multiverbinder (Tiefe 155-215 mm) | J97: 0 | K97: 0 | L97: =Basismaterial!C10 -> Stück | M97: 0 | U97: 03.723.00..0000 | V97: Tragwerk | X97: =IF($X$28=TRUE,INDEX(INDIRECT(CONCATENATE($X$1,$V$1)),MATCH($D$11,INDIRECT(CONCATENATE($Y$1,$V$1)),-1),8),0) -> 0 | AA97: 0 | AC97: 0 | AD97: =Basismaterial!$D10*AA97 -> 0 | AE97: =Basismaterial!$D10*AB97 -> 0 | AF97: 0 | AG97: =CHOOSE(Preise_Prices!$X$9,0,Preise_Prices!O75,Preise_Prices!T75) -> 0 | AH97: 0 | AI97: 0 | AJ97: 0 | AK97: Tragwerk | AN97: 0
B98: =Basismaterial!A11 -> 03.723.00..S000 | C98: =gettext(B98,Sprache!$D$1) -> Multiverbinder (Tiefe 255-315 mm) | J98: 0 | K98: 0 | L98: =Basismaterial!C11 -> Stück | M98: 0 | U98: 03.723.00..S000 | V98: Tragwerk | X98: =IF($X$28=TRUE,INDEX(INDIRECT(CONCATENATE($X$1,$V$1)),MATCH($D$11,INDIRECT(CONCATENATE($Y$1,$V$1)),-1),9),0) -> 0 | AA98: 0 | AC98: 0 | AD98: =Basismaterial!$D11*AA98 -> 0 | AE98: =Basismaterial!$D11*AB98 -> 0 | AF98: 0 | AG98: =CHOOSE(Preise_Prices!$X$9,0,Preise_Prices!O76,Preise_Prices!T76) -> 0 | AH98: 0 | AI98: 0 | AJ98: 0 | AK98: Tragwerk | AN98: 0
B99: =Basismaterial!A12 -> 03.754.00..0000 | C99: =gettext(B99,Sprache!$D$1) -> Verbindungsset für VW-Elemente | J99: 0 | K99: 0 | L99: =Basismaterial!C12 -> Stück | M99: 0 | U99: 03.754.00..0000 | V99: nur Einbauten | AB99: =AC87 -> 0 | AC99: 0 | AD99: =Basismaterial!$D12*AA99 -> 0 | AE99: =Basismaterial!$D12*AB99 -> 0 | AF99: 0 | AG99: =CHOOSE(Preise_Prices!$X$9,0,Preise_Prices!O77,Preise_Prices!T77) -> 0 | AH99: 0 | AI99: 0 | AJ99: 0 | AK99: nur Einbauten | AN99: 0
B100: =Basismaterial!A13 -> 04.070.00..0000 | C100: =gettext(B100,Sprache!$D$1) -> Stützfuß für freistehende Wände | J100: =AC100 -> 0 | K100: 0 | L100: =Basismaterial!C13 -> Stück | M100: 0 | U100: 04.070.00..0000 | V100: Tragwerk | X100: =IF($X$28=TRUE,INDEX(INDIRECT(CONCATENATE($X$1,$V$1)),MATCH($D$11,INDIRECT(CONCATENATE($Y$1,$V$1)),-1),10),0) -> 0 | AA100: 0 | AC100: 0 | AD100: =Basismaterial!$D13*AA100 -> 0 | AE100: =Basismaterial!$D13*AB100 -> 0 | AF100: 0 | AG100: =CHOOSE(Preise_Prices!$X$9,0,Preise_Prices!O78,Preise_Prices!T78) -> 0 | AH100: 0 | AI100: 0 | AJ100: 0 | AK100: Tragwerk | AN100: 0
B101: =Basismaterial!A14 -> 16.032.00..0000 | C101: =gettext(B101,Sprache!$D$1) -> Schallschutzset zu INEO plus, 996 | J101: 0 | K101: 0 | L101: =Basismaterial!C14 -> Stück | M101: 0 | U101: 16.032.00..0000 | V101: Tragwerk | X101: =IF($X$28=TRUE,INDEX(INDIRECT(CONCATENATE($X$1,$V$1)),MATCH($D$11,INDIRECT(CONCATENATE($Y$1,$V$1)),-1),11),0) -> 0 | Y101: =IF(W112=FALSE,-X101,0) -> 0 | AA101: 0 | AC101: 0 | AD101: =Basismaterial!$D14*AA101 -> 0 | AE101: =Basismaterial!$D14*AB101 -> 0 | AF101: 0 | AG101: =CHOOSE(Preise_Prices!$X$9,0,Preise_Prices!O79,Preise_Prices!T79) -> 0 | AH101: 0 | AI101: 0 | AJ101: 0 | AK101: Tragwerk | AN101: 0
B102: =Basismaterial!A15 -> 17.115.00..S000 | C102: =gettext(B102,Sprache!$D$1) -> GKBI-Universalverkleidungsplatte ( 1300x600x18 mm ) | J102: 0 | K102: 0 | L102: =Basismaterial!C15 -> Stück | M102: 0 | U102: 17.115.00..S000 | V102: Beplankung | X102: =IF($X$28=TRUE,INDEX(INDIRECT(CONCATENATE($X$1,$V$1)),MATCH($D$11,INDIRECT(CONCATENATE($Y$1,$V$1)),-1),12),0) -> 0 | Y102: =IF(W111=TRUE,-X102,0) -> 0 | AA102: 0 | AC102: 0 | AD102: =Basismaterial!$D15*AA102 -> 0 | AE102: =Basismaterial!$D15*AB102 -> 0 | AF102: 0 | AG102: =CHOOSE(Preise_Prices!$X$9,0,Preise_Prices!O80,Preise_Prices!T80) -> 0 | AH102: 0 | AI102: 0 | AJ102: 0 | AK102: Beplankung | AN102: 0
B104: =IF(AD87<0,gettext("G57",Sprache!$D$1),gettext("G58",Sprache!$D$1)) -> * Für jeden gewählten Einbau wird der veränderte Materialbedarf ggü. Wänden ohne Einbauten automatisch berücksichtigt. | U104: Summen | V104: Tragwerk | X104: =X90+X93+X95+X96+X97+X98+X100+X101 -> 0 | Y104: =Y90+Y93+Y95+Y96+Y97+Y98+Y100+Y101 -> 0 | Z104: =Z90+Z93+Z95+Z96+Z97+Z98+Z100+Z101 -> 0 | AA104: =AA90+AA93+AA95+AA96+AA97+AA98+AA100+AA101 -> 0 | AD104: =AD90+AD93+AD95+AD96+AD97+AD98+AD100+AD101 -> 0 | AH104: =AH90+AH93+AH95+AH96+AH98+AH99+AH100+AH101 -> 0 | AK104: Tragwerk
V105: Einbauten | AB105: =SUM(AB90:AB102) -> 0 | AE105: =SUM(AE90:AE102) -> 0 | AI105: =SUM(AI90:AI102) -> 0 | AK105: Einbauten
V106: Beplankung | X106: =X91+X92+X102 -> 0 | Y106: =Y91+Y92+Y102 -> 0 | Z106: =Z91+Z92+Z102 -> 0 | AA106: =AA91+AA92+AA102 -> 0 | AD106: =AD91+AD92+AD102 -> 0 | AH106: =AH91+AH92+AH102 -> 0 | AK106: Beplankung
B107: =gettext("G29",Sprache!$D$1) -> Benötigte Montagezeit | J107: =gettext("G24",Sprache!$D$1) -> 1 Wand | K107: =gettext("G25",Sprache!$D$1) -> alle Wd. | V107: Elemente/Module | AE107: =AE87 -> 0 | AI107: =AG87 -> 0 | AK107: Elemente/Module
C109: =gettext("G31",Sprache!$D$1) -> Tragwerk | J109: =IF(X21=TRUE,AD104,0) -> 0 | K109: =$D$8*J109 -> 0 | L109: Min. | V109: Elem.+Zubehör | AE109: =AE105+AE107 -> 0 | AI109: =AI105+AI107 -> 0 | AK109: Elem.+Zubehör
C110: =gettext("G32",Sprache!$D$1) -> Elemente und Module | J110: =IF(X21=TRUE,AE109,0) -> 0 | K110: =$D$8*J110 -> 0 | L110: Min.
C111: =gettext("G33",Sprache!$D$1) -> Beplankung | J111: =IF(X21=TRUE,AD106,0) -> 0 | K111: =$D$8*J111 -> 0 | L111: Min. | V111: Beplankung Ja/Nein | W111: FALSE
J112: =SUM(J109:J111) -> 0 | K112: =SUM(K109:K111) -> 0 | L112: Min. | V112: Schallschutz Ja/Nein | W112: FALSE
V113: Beideseitig Ja/Nein | W113: FALSE
B114: =gettext("G30",Sprache!$D$1) -> Materialkosten | J114: =J107 -> 1 Wand | K114: =K107 -> alle Wd. | V114: Kollisionsprüfung | W114: TRUE
C116: =gettext("G31",Sprache!$D$1) -> Tragwerk | J116: =IF(X21=TRUE,AH104,0) -> 0 | K116: =$D$8*J116 -> 0 | L116: EUR | V116: Montagekosten berechnen und Angaben ok ? | W116: =Preise_Prices!$X$89 -> TRUE
C117: =gettext("G32",Sprache!$D$1) -> Elemente und Module | J117: =IF(X21=TRUE,AI109,0) -> 0 | K117: =$D$8*J117 -> 0 | L117: EUR | V117: Stundensatz in EUR/ min ? | W117: =IF(W116=TRUE,ROUND(Preise_Prices!L89/60,2),0) -> 0
C118: =gettext("G33",Sprache!$D$1) -> Beplankung | J118: =IF(X21=TRUE,AH106,0) -> 0 | K118: =$D$8*J118 -> 0 | L118: EUR | V118: Montagekosten insgesamt | W118: =W117*$K$112 -> 0
J119: =SUM(J116:J118) -> 0 | K119: =SUM(K116:K118) -> 0 | L119: EUR
B120: =gettext("G55",Sprache!$D$1)&CHOOSE(Preise_Prices!$X$9,Preise_Prices!C3,Preise_Prices!C4,Preise_Prices!C5)&gettext("G56",Sprache!$D$1) -> * Kosten auf Basis ohne Preise kalkulieren, siehe "Preise_Prices"
B126: =IF(Preise_Prices!$Y$82>0,gettext("F16",Sprache!$D$1),"") -> 
B127: =IF(Preise_Prices!$Y$82>0,gettext("F17",Sprache!$D$1),"") -> 

Sheet Sprache (hidden)
B1: Deutsch | C1: Ausgewählt | D1: 1
B2: Englisch
A4: TextID | B4: Deutsch | C4: Englisch
B6: Wandtypenbeschreibungen
A8: Wandtyp 1.1.1_1 | B8: Wandtyp 1.1.1 | C8: Type of wall 1.1.1
A9: Wandtyp 1.1.1_2 | B9: Vorwand vor Massivwand - zweiseitig befestigt | C9: Installation on a solid wall - fixed on both ends
A10: Wandtyp 1.1.1_3 | B10: Halbhoch, Höhe H ab OKFFB bis 855 mm | C10: Medium high, Height H from FFL up to 855 mm
A11: Wandtyp 1.1.1_4 | B11: (Einbau Elemente nur bei Höhe H OKFFB 855 mm) | C11: (Installation of elements only at Heigt H of 855 mm)
A12: Wandtyp 1.1.1_5 | B12: Wandbreite von 200 bis 5.000 mm | C12: Length of wall from 200 up to 5.000 mm
A13: Wandtyp 1.1.1_6 | B13: Wandtiefe von 155 bis 215 mm | C13: Depth of wall from 155 up to 215 mm
A14: Wandtyp 1.1.1_7 | B14: angegebene Abmessungen jeweils ohne Beplankung ! | C14: Dimensions given exclude the covering !
A15: Wandtyp 1.1.1_8 | B15: fließenfertige Oberfläche zzgl. 18 mm Beplankung | C15: Facing prepared for tiling, plus 18 mm covering
A16: Wandtyp 1.1.1_9 | B16: Die Materialangaben enthalten keinen Fußbodenaufbau ! | C16: The material supply does not include any floor build-up !
A17: Wandtyp 1.1.2_1 | B17: Wandtyp 1.1.2 | C17: Type of wall 1.1.2
A18: Wandtyp 1.1.2_2 | B18: Vorwand vor Massivwand - zweiseitig befestigt | C18: Installation on a solid wall - fixed on both ends
A19: Wandtyp 1.1.2_3 | B19: Halbhoch, Höhe H ab OKFFB bis 855 mm | C19: Medium high, Height H from FFL up to 855 mm
A20: Wandtyp 1.1.2_4 | B20: (Einbau Elemente nur bei Höhe H OKFFB 855 mm) | C20: (Installation of elements only at Heigt H of 855 mm)
A21: Wandtyp 1.1.2_5 | B21: Wandbreite von 200 bis 5.000 mm | C21: Length of wall from 200 up to 5.000 mm
A22: Wandtyp 1.1.2_6 | B22: Wandtiefe von 255 bis 315 mm | C22: Depth of wall from 255 up to 315 mm
A23: Wandtyp 1.1.2_7 | B23: angegebene Abmessungen jeweils ohne Beplankung ! | C23: Dimensions given exclude the covering !
A24: Wandtyp 1.1.2_8 | B24: fließenfertige Oberfläche zzgl. 18 mm Beplankung | C24: Facing prepared for tiling, plus 18 mm covering
A25: Wandtyp 1.1.2_9 | B25: Die Materialangaben enthalten keinen Fußbodenaufbau ! | C25: The material supply does not include any floor build-up !
A26: Wandtyp 1.1.3_1 | B26: Wandtyp 1.1.3 | C26: Type of wall 1.1.3
A27: Wandtyp 1.1.3_2 | B27: Vorwand vor Massivwand - zweiseitig befestigt | C27: Installation on a solid wall - fixed on both ends
A28: Wandtyp 1.1.3_3 | B28: Halbhoch, Höhe H ab OKFFB bis 855 mm | C28: Medium high, Height H from FFL up to 855 mm
A29: Wandtyp 1.1.3_4 | B29: (Einbau Elemente nur bei Höhe H OKFFB 855 mm) | C29: (Installation of elements only at Heigt H of 855 mm)
A30: Wandtyp 1.1.3_5 | B30: Wandbreite von 200 bis 5.000 mm | C30: Length of wall from 200 up to 5.000 mm
A31: Wandtyp 1.1.3_6 | B31: Wandtiefe von 120 bis 600 mm | C31: Depth of wall from 120 up to 600 mm
A32: Wandtyp 1.1.3_7 | B32: angegebene Abmessungen jeweils ohne Beplankung ! | C32: Dimensions given exclude the covering !
A33: Wandtyp 1.1.3_8 | B33: fließenfertige Oberfläche zzgl. 18 mm Beplankung | C33: Facing prepared for tiling, plus 18 mm covering
A34: Wandtyp 1.1.3_9 | B34: Die Materialangaben enthalten keinen Fußbodenaufbau ! | C34: The material supply does not include any floor build-up !
A35: Wandtyp 1.1.4_1 | B35: Wandtyp 1.1.4 | C35: Type of wall 1.1.4
A36: Wandtyp 1.1.4_2 | B36: Vorwand vor Massivwand - zweiseitig befestigt | C36: Installation on a solid wall - fixed on both ends
A37: Wandtyp 1.1.4_3 | B37: Halbhoch, Höhe H ab OKFFB von 855 bis 1.155 mm | C37: Medium high, Height H from FFL from 855 up to 1.155 mm
A38: Wandtyp 1.1.4_4 | B38: (Einbau Elemente nur bei Höhen H OKFFB 855, 1020, 1155 mm) | C38: (Installation of elements only at Heigts H of 855, 1020, 1155 mm)
A39: Wandtyp 1.1.4_5 | B39: Wandbreite von 200 bis 5.000 mm | C39: Length of wall from 200 up to 5.000 mm
A40: Wandtyp 1.1.4_6 | B40: Wandtiefe von 155 bis 215 mm | C40: Depth of wall from 155 up to 215 mm
A41: Wandtyp 1.1.4_7 | B41: angegebene Abmessungen jeweils ohne Beplankung ! | C41: Dimensions given exclude the covering !
A42: Wandtyp 1.1.4_8 | B42: fließenfertige Oberfläche zzgl. 18 mm Beplankung | C42: Facing prepared for tiling, plus 18 mm covering
A43: Wandtyp 1.1.4_9 | B43: Die Materialangaben enthalten keinen Fußbodenaufbau ! | C43: The material supply does not include any floor build-up !
A44: Wandtyp 1.1.5_1 | B44: Wandtyp 1.1.5 | C44: Type of wall 1.1.5
A45: Wandtyp 1.1.5_2 | B45: Vorwand vor Massivwand - zweiseitig befestigt | C45: Installation on a solid wall - fixed on both ends
A46: Wandtyp 1.1.5_3 | B46: Halbhoch, Höhe H ab OKFFB von 855 bis 1.155 mm | C46: Medium high, Height H from FFL from 855 up to 1.155 mm
A47: Wandtyp 1.1.5_4 | B47: (Einbau Elemente nur bei Höhen H OKFFB 855, 1020, 1155 mm) | C47: (Installation of elements only at Heigts H of 855, 1020, 1155 mm)
A48: Wandtyp 1.1.5_5 | B48: Wandbreite von 200 bis 5.000 mm | C48: Length of wall from 200 up to 5.000 mm
A49: Wandtyp 1.1.5_6 | B49: Wandtiefe von 255 bis 315 mm | C49: Depth of wall from 255 up to 315 mm
A50: Wandtyp 1.1.5_7 | B50: angegebene Abmessungen jeweils ohne Beplankung ! | C50: Dimensions given exclude the covering !
A51: Wandtyp 1.1.5_8 | B51: fließenfertige Oberfläche zzgl. 18 mm Beplankung | C51: Facing prepared for tiling, plus 18 mm covering
A52: Wandtyp 1.1.5_9 | B52: Die Materialangaben enthalten keinen Fußbodenaufbau ! | C52: The material supply does not include any floor build-up !
A53: Wandtyp 1.1.6_1 | B53: Wandtyp 1.1.6 | C53: Type of wall 1.1.6
A54: Wandtyp 1.1.6_2 | B54: Vorwand vor Massivwand - zweiseitig befestigt | C54: Installation on a solid wall - fixed on both ends
A55: Wandtyp 1.1.6_3 | B55: Halbhoch, Höhe H ab OKFFB von 855 bis 1.155 mm | C55: Medium high, Height H from FFL from 855 up to 1.155 mm
A56: Wandtyp 1.1.6_4 | B56: (Einbau Elemente nur bei Höhen H OKFFB 855, 1020, 1155 mm) | C56: (Installation of elements only at Heigts H of 855, 1020, 1155 mm)
A57: Wandtyp 1.1.6_5 | B57: Wandbreite von 200 bis 5.000 mm | C57: Length of wall from 200 up to 5.000 mm
A58: Wandtyp 1.1.6_6 | B58: Wandtiefe von 120 bis 600 mm | C58: Depth of wall from 120 up to 600 mm
A59: Wandtyp 1.1.6_7 | B59: angegebene Abmessungen jeweils ohne Beplankung ! | C59: Dimensions given exclude the covering !
A60: Wandtyp 1.1.6_8 | B60: fließenfertige Oberfläche zzgl. 18 mm Beplankung | C60: Facing prepared for tiling, plus 18 mm covering
A61: Wandtyp 1.1.6_9 | B61: Die Materialangaben enthalten keinen Fußbodenaufbau ! | C61: The material supply does not include any floor build-up !
A62: Wandtyp 1.1.7_1 | B62: Wandtyp 1.1.7 | C62: Type of wall 1.1.7
A63: Wandtyp 1.1.7_2 | B63: Vorwand vor Massivwand - zweiseitig befestigt | C63: Installation on a solid wall - fixed on both ends
A64: Wandtyp 1.1.7_3 | B64: Raumhoch, Höhe H ab OKFFB von 1.155 bis 2.600 mm | C64: Room high, Height H from FFL from 1.155 up to 2.600 mm
A65: Wandtyp 1.1.7_4 | B65: (Einbau Elemente nur bei Höhe H OKFFB 1155 mm) | C65: (Installation of elements only at Heigt H of 1155 mm)
A66: Wandtyp 1.1.7_5 | B66: Wandbreite von 200 bis 5.000 mm | C66: Length of wall from 200 up to 5.000 mm
A67: Wandtyp 1.1.7_6 | B67: Wandtiefe von 155 bis 215 mm | C67: Depth of wall from 155 up to 215 mm
A68: Wandtyp 1.1.7_7 | B68: angegebene Abmessungen jeweils ohne Beplankung ! | C68: Dimensions given exclude the covering !
A69: Wandtyp 1.1.7_8 | B69: fließenfertige Oberfläche zzgl. 18 mm Beplankung | C69: Facing prepared for tiling, plus 18 mm covering
A70: Wandtyp 1.1.7_9 | B70: Die Materialangaben enthalten keinen Fußbodenaufbau ! | C70: The material supply does not include any floor build-up !
A71: Wandtyp 1.1.8_1 | B71: Wandtyp 1.1.8 | C71: Type of wall 1.1.8
A72: Wandtyp 1.1.8_2 | B72: Vorwand vor Massivwand - zweiseitig befestigt | C72: Installation on a solid wall - fixed on both ends
A73: Wandtyp 1.1.8_3 | B73: Raumhoch, Höhe H ab OKFFB von 1.155 bis 2.600 mm | C73: Room high, Height H from FFL from 1.155 up to 2.600 mm
A74: Wandtyp 1.1.8_4 | B74: (Einbau Elemente nur bei Höhe H OKFFB 1155 mm) | C74: (Installation of elements only at Heigt H of 1155 mm)
A75: Wandtyp 1.1.8_5 | B75: Wandbreite von 200 bis 5.000 mm | C75: Length of wall from 200 up to 5.000 mm
A76: Wandtyp 1.1.8_6 | B76: Wandtiefe von 255 bis 315 mm | C76: Depth of wall from 255 up to 315 mm
A77: Wandtyp 1.1.8_7 | B77: angegebene Abmessungen jeweils ohne Beplankung ! | C77: Dimensions given exclude the covering !
A78: Wandtyp 1.1.8_8 | B78: fließenfertige Oberfläche zzgl. 18 mm Beplankung | C78: Facing prepared for tiling, plus 18 mm covering
A79: Wandtyp 1.1.8_9 | B79: Die Materialangaben enthalten keinen Fußbodenaufbau ! | C79: The material supply does not include any floor build-up !
A80: Wandtyp 1.1.9_1 | B80: Wandtyp 1.1.9 | C80: Type of wall 1.1.9
A81: Wandtyp 1.1.9_2 | B81: Vorwand vor Massivwand - zweiseitig befestigt | C81: Installation on a solid wall - fixed on both ends
A82: Wandtyp 1.1.9_3 | B82: Raumhoch, Höhe H ab OKFFB von 1.155 bis 2.600 mm | C82: Room high, Height H from FFL from 1.155 up to 2.600 mm
A83: Wandtyp 1.1.9_4 | B83: (Einbau Elemente nur bei Höhe H OKFFB 1155 mm) | C83: (Installation of elements only at Heigt H of 1155 mm)
A84: Wandtyp 1.1.9_5 | B84: Wandbreite von 200 bis 5.000 mm | C84: Length of wall from 200 up to 5.000 mm
A85: Wandtyp 1.1.9_6 | B85: Wandtiefe von 120 bis 600 mm | C85: Depth of wall from 120 up to 600 mm
A86: Wandtyp 1.1.9_7 | B86: angegebene Abmessungen jeweils ohne Beplankung ! | C86: Dimensions given exclude the covering !
A87: Wandtyp 1.1.9_8 | B87: fließenfertige Oberfläche zzgl. 18 mm Beplankung | C87: Facing prepared for tiling, plus 18 mm covering
A88: Wandtyp 1.1.9_9 | B88: Die Materialangaben enthalten keinen Fußbodenaufbau ! | C88: The material supply does not include any floor build-up !
A89: Wandtyp 1.1.10_1 | B89: Wandtyp 1.1.10 | C89: Type of wall 1.1.10
A90: Wandtyp 1.1.10_2 | B90: Vorwand vor Massivwand - zweiseitig befestigt | C90: Installation on a solid wall - fixed on both ends
A91: Wandtyp 1.1.10_3 | B91: Raumhoch, Höhe H ab OKFFB von 2.600 bis 3.300 mm | C91: Room high, Height H from FFL from 2.600 up to 3.300 mm
A92: Wandtyp 1.1.10_4 | B92: (Einbau Elemente nur bei Höhe H OKFFB 1155 mm) | C92: (Installation of elements only at Heigt H of 1155 mm)
A93: Wandtyp 1.1.10_5 | B93: Wandbreite von 200 bis 5.000 mm | C93: Length of wall from 200 up to 5.000 mm
A94: Wandtyp 1.1.10_6 | B94: Wandtiefe von 155 bis 215 mm | C94: Depth of wall from 155 up to 215 mm
A95: Wandtyp 1.1.10_7 | B95: angegebene Abmessungen jeweils ohne Beplankung ! | C95: Dimensions given exclude the covering !
A96: Wandtyp 1.1.10_8 | B96: fließenfertige Oberfläche zzgl. 18 mm Beplankung | C96: Facing prepared for tiling, plus 18 mm covering
A97: Wandtyp 1.1.10_9 | B97: Die Materialangaben enthalten keinen Fußbodenaufbau ! | C97: The material supply does not include any floor build-up !
A98: Wandtyp 1.1.11_1 | B98: Wandtyp 1.1.11 | C98: Type of wall 1.1.11
A99: Wandtyp 1.1.11_2 | B99: Vorwand vor Massivwand - zweiseitig befestigt | C99: Installation on a solid wall - fixed on both ends
A100: Wandtyp 1.1.11_3 | B100: Raumhoch, Höhe H ab OKFFB von 2.600 bis 3.300 mm | C100: Room high, Height H from FFL from 2.600 up to 3.300 mm
A101: Wandtyp 1.1.11_4 | B101: (Einbau Elemente nur bei Höhe H OKFFB 1155 mm) | C101: (Installation of elements only at Heigt H of 1155 mm)
A102: Wandtyp 1.1.11_5 | B102: Wandbreite von 200 bis 5.000 mm | C102: Length of wall from 200 up to 5.000 mm
A103: Wandtyp 1.1.11_6 | B103: Wandtiefe von 255 bis 315 mm | C103: Depth of wall from 255 up to 315 mm
A104: Wandtyp 1.1.11_7 | B104: angegebene Abmessungen jeweils ohne Beplankung ! | C104: Dimensions given exclude the covering !
A105: Wandtyp 1.1.11_8 | B105: fließenfertige Oberfläche zzgl. 18 mm Beplankung | C105: Facing prepared for tiling, plus 18 mm covering
A106: Wandtyp 1.1.11_9 | B106: Die Materialangaben enthalten keinen Fußbodenaufbau ! | C106: The material supply does not include any floor build-up !
A107: Wandtyp 1.1.12_1 | B107: Wandtyp 1.1.12 | C107: Type of wall 1.1.12
A108: Wandtyp 1.1.12_2 | B108: Vorwand vor Massivwand - zweiseitig befestigt | C108: Installation on a solid wall - fixed on both ends
A109: Wandtyp 1.1.12_3 | B109: Raumhoch, Höhe H ab OKFFB von 2.600 bis 3.300 mm | C109: Room high, Height H from FFL from 2.600 up to 3.300 mm
A110: Wandtyp 1.1.12_4 | B110: (Einbau Elemente nur bei Höhe H OKFFB 1155 mm) | C110: (Installation of elements only at Heigt H of 1155 mm)
A111: Wandtyp 1.1.12_5 | B111: Wandbreite von 200 bis 5.000 mm | C111: Length of wall from 200 up to 5.000 mm
A112: Wandtyp 1.1.12_6 | B112: Wandtiefe von 120 bis 600 mm | C112: Depth of wall from 120 up to 600 mm
A113: Wandtyp 1.1.12_7 | B113: angegebene Abmessungen jeweils ohne Beplankung ! | C113: Dimensions given exclude the covering !
A114: Wandtyp 1.1.12_8 | B114: fließenfertige Oberfläche zzgl. 18 mm Beplankung | C114: Facing prepared for tiling, plus 18 mm covering
A115: Wandtyp 1.1.12_9 | B115: Die Materialangaben enthalten keinen Fußbodenaufbau ! | C115: The material supply does not include any floor build-up !
A116: Wandtyp 1.1.13_1 | B116: Wandtyp 1.1.13 | C116: Type of wall 1.1.13
A117: Wandtyp 1.1.13_2 | B117: Vorwand vor Massivwand - zweiseitig befestigt | C117: Installation on a solid wall - fixed on both ends
A118: Wandtyp 1.1.13_3 | B118: Raumhoch, Höhe H ab OKFFB von 3.300 bis 3.900 mm | C118: Room high, Height H from FFL from 3.300 up to 3.900 mm
A119: Wandtyp 1.1.13_4 | B119: (Einbau Elemente nur bei Höhe H OKFFB 1155 mm) | C119: (Installation of elements only at Heigt H of 1155 mm)
A120: Wandtyp 1.1.13_5 | B120: Wandbreite von 200 bis 5.000 mm | C120: Length of wall from 200 up to 5.000 mm
A121: Wandtyp 1.1.13_6 | B121: Wandtiefe von 155 bis 215 mm | C121: Depth of wall from 155 up to 215 mm
A122: Wandtyp 1.1.13_7 | B122: angegebene Abmessungen jeweils ohne Beplankung ! | C122: Dimensions given exclude the covering !
A123: Wandtyp 1.1.13_8 | B123: fließenfertige Oberfläche zzgl. 18 mm Beplankung | C123: Facing prepared for tiling, plus 18 mm covering
A124: Wandtyp 1.1.13_9 | B124: Die Materialangaben enthalten keinen Fußbodenaufbau ! | C124: The material supply does not include any floor build-up !
A125: Wandtyp 1.1.14_1 | B125: Wandtyp 1.1.14 | C125: Type of wall 1.1.14
A126: Wandtyp 1.1.14_2 | B126: Vorwand vor Massivwand - zweiseitig befestigt | C126: Installation on a solid wall - fixed on both ends
A127: Wandtyp 1.1.14_3 | B127: Raumhoch, Höhe H ab OKFFB von 3.300 bis 3.900 mm | C127: Room high, Height H from FFL from 3.300 up to 3.900 mm
A128: Wandtyp 1.1.14_4 | B128: (Einbau Elemente nur bei Höhe H OKFFB 1155 mm) | C128: (Installation of elements only at Heigt H of 1155 mm)
A129: Wandtyp 1.1.14_5 | B129: Wandbreite von 200 bis 5.000 mm | C129: Length of wall from 200 up to 5.000 mm
A130: Wandtyp 1.1.14_6 | B130: Wandtiefe von 255 bis 315 mm | C130: Depth of wall from 255 up to 315 mm
A131: Wandtyp 1.1.14_7 | B131: angegebene Abmessungen jeweils ohne Beplankung ! | C131: Dimensions given exclude the covering !
A132: Wandtyp 1.1.14_8 | B132: fließenfertige Oberfläche zzgl. 18 mm Beplankung | C132: Facing prepared for tiling, plus 18 mm covering
A133: Wandtyp 1.1.14_9 | B133: Die Materialangaben enthalten keinen Fußbodenaufbau ! | C133: The material supply does not include any floor build-up !
A134: Wandtyp 1.1.15_1 | B134: Wandtyp 1.1.15 | C134: Type of wall 1.1.15
A135: Wandtyp 1.1.15_2 | B135: Vorwand vor Massivwand - zweiseitig befestigt | C135: Installation on a solid wall - fixed on both ends
A136: Wandtyp 1.1.15_3 | B136: Raumhoch, Höhe H ab OKFFB von 3.300 bis 3.900 mm | C136: Room high, Height H from FFL from 3.300 up to 3.900 mm
A137: Wandtyp 1.1.15_4 | B137: (Einbau Elemente nur bei Höhe H OKFFB 1155 mm) | C137: (Installation of elements only at Heigt H of 1155 mm)
A138: Wandtyp 1.1.15_5 | B138: Wandbreite von 200 bis 5.000 mm | C138: Length of wall from 200 up to 5.000 mm
A139: Wandtyp 1.1.15_6 | B139: Wandtiefe von 120 bis 600 mm | C139: Depth of wall from 120 up to 600 mm
A140: Wandtyp 1.1.15_7 | B140: angegebene Abmessungen jeweils ohne Beplankung ! | C140: Dimensions given exclude the covering !
A141: Wandtyp 1.1.15_8 | B141: fließenfertige Oberfläche zzgl. 18 mm Beplankung | C141: Facing prepared for tiling, plus 18 mm covering
A142: Wandtyp 1.1.15_9 | B142: Die Materialangaben enthalten keinen Fußbodenaufbau ! | C142: The material supply does not include any floor build-up !
A143: Wandtyp 1.2.1_1 | B143: Wandtyp 1.2.1 | C143: Type of wall 1.2.1
A144: Wandtyp 1.2.1_2 | B144: Vorwand vor Massivwand - einseitig befestigt | C144: Installation on a solid wall - one side fixing
A145: Wandtyp 1.2.1_3 | B145: Halbhoch, Höhe H ab OKFFB bis 855 mm | C145: Medium high, Height H from FFL up to 855 mm
A146: Wandtyp 1.2.1_4 | B146: (Einbau Elemente nur bei Höhe H OKFFB 855 mm) | C146: (Installation of elements only at Heigt H of 855 mm)
A147: Wandtyp 1.2.1_5 | B147: Wandbreite von 200 bis 5.000 mm | C147: Length of wall from 200 up to 5.000 mm
A148: Wandtyp 1.2.1_6 | B148: Wandtiefe von 155 bis 215 mm | C148: Depth of wall from 155 up to 215 mm
A149: Wandtyp 1.2.1_7 | B149: angegebene Abmessungen jeweils ohne Beplankung ! | C149: Dimensions given exclude the covering !
A150: Wandtyp 1.2.1_8 | B150: fließenfertige Oberfläche zzgl. 18 mm Beplankung | C150: Facing prepared for tiling, plus 18 mm covering
A151: Wandtyp 1.2.1_9 | B151: Die Materialangaben enthalten keinen Fußbodenaufbau ! | C151: The material supply does not include any floor build-up !
A152: Wandtyp 1.2.2_1 | B152: Wandtyp 1.2.2 | C152: Type of wall 1.2.2
A153: Wandtyp 1.2.2_2 | B153: Vorwand vor Massivwand - einseitig befestigt | C153: Installation on a solid wall - one side fixing
A154: Wandtyp 1.2.2_3 | B154: Halbhoch, Höhe H ab OKFFB bis 855 mm | C154: Medium high, Height H from FFL up to 855 mm
A155: Wandtyp 1.2.2_4 | B155: (Einbau Elemente nur bei Höhe H OKFFB 855 mm) | C155: (Installation of elements only at Heigt H of 855 mm)
A156: Wandtyp 1.2.2_5 | B156: Wandbreite von 200 bis 5.000 mm | C156: Length of wall from 200 up to 5.000 mm
A157: Wandtyp 1.2.2_6 | B157: Wandtiefe von 255 bis 315 mm | C157: Depth of wall from 255 up to 315 mm
A158: Wandtyp 1.2.2_7 | B158: angegebene Abmessungen jeweils ohne Beplankung ! | C158: Dimensions given exclude the covering !
A159: Wandtyp 1.2.2_8 | B159: fließenfertige Oberfläche zzgl. 18 mm Beplankung | C159: Facing prepared for tiling, plus 18 mm covering
A160: Wandtyp 1.2.2_9 | B160: Die Materialangaben enthalten keinen Fußbodenaufbau ! | C160: The material supply does not include any floor build-up !
A161: Wandtyp 1.2.3_1 | B161: Wandtyp 1.2.3 | C161: Type of wall 1.2.3
A162: Wandtyp 1.2.3_2 | B162: Vorwand vor Massivwand - einseitig befestigt | C162: Installation on a solid wall - one side fixing
A163: Wandtyp 1.2.3_3 | B163: Halbhoch, Höhe H ab OKFFB bis 855 mm | C163: Medium high, Height H from FFL up to 855 mm
A164: Wandtyp 1.2.3_4 | B164: (Einbau Elemente nur bei Höhe H OKFFB 855 mm) | C164: (Installation of elements only at Heigt H of 855 mm)
A165: Wandtyp 1.2.3_5 | B165: Wandbreite von 200 bis 5.000 mm | C165: Length of wall from 200 up to 5.000 mm
A166: Wandtyp 1.2.3_6 | B166: Wandtiefe von 120 bis 600 mm | C166: Depth of wall from 120 up to 600 mm
A167: Wandtyp 1.2.3_7 | B167: angegebene Abmessungen jeweils ohne Beplankung ! | C167: Dimensions given exclude the covering !
A168: Wandtyp 1.2.3_8 | B168: fließenfertige Oberfläche zzgl. 18 mm Beplankung | C168: Facing prepared for tiling, plus 18 mm covering
A169: Wandtyp 1.2.3_9 | B169: Die Materialangaben enthalten keinen Fußbodenaufbau ! | C169: The material supply does not include any floor build-up !
A170: Wandtyp 1.2.4_1 | B170: Wandtyp 1.2.4 | C170: Type of wall 1.2.4
A171: Wandtyp 1.2.4_2 | B171: Vorwand vor Massivwand - einseitig befestigt | C171: Installation on a solid wall - one side fixing
A172: Wandtyp 1.2.4_3 | B172: Halbhoch, Höhe H ab OKFFB von 855 bis 1.155 mm | C172: Medium high, Height H from FFL from 855 up to 1.155 mm
A173: Wandtyp 1.2.4_4 | B173: (Einbau Elemente nur bei Höhen H OKFFB 855, 1020, 1155 mm) | C173: (Installation of elements only at Heigts H of 855, 1020, 1155 mm)
A174: Wandtyp 1.2.4_5 | B174: Wandbreite von 200 bis 5.000 mm | C174: Length of wall from 200 up to 5.000 mm
A175: Wandtyp 1.2.4_6 | B175: Wandtiefe von 155 bis 215 mm | C175: Depth of wall from 155 up to 215 mm
A176: Wandtyp 1.2.4_7 | B176: angegebene Abmessungen jeweils ohne Beplankung ! | C176: Dimensions given exclude the covering !
A177: Wandtyp 1.2.4_8 | B177: fließenfertige Oberfläche zzgl. 18 mm Beplankung | C177: Facing prepared for tiling, plus 18 mm covering
A178: Wandtyp 1.2.4_9 | B178: Die Materialangaben enthalten keinen Fußbodenaufbau ! | C178: The material supply does not include any floor build-up !
A179: Wandtyp 1.2.5_1 | B179: Wandtyp 1.2.5 | C179: Type of wall 1.2.5
A180: Wandtyp 1.2.5_2 | B180: Vorwand vor Massivwand - einseitig befestigt | C180: Installation on a solid wall - one side fixing
A181: Wandtyp 1.2.5_3 | B181: Halbhoch, Höhe H ab OKFFB von 855 bis 1.155 mm | C181: Medium high, Height H from FFL from 855 up to 1.155 mm
A182: Wandtyp 1.2.5_4 | B182: (Einbau Elemente nur bei Höhen H OKFFB 855, 1020, 1155 mm) | C182: (Installation of elements only at Heigts H of 855, 1020, 1155 mm)
A183: Wandtyp 1.2.5_5 | B183: Wandbreite von 200 bis 5.000 mm | C183: Length of wall from 200 up to 5.000 mm
A184: Wandtyp 1.2.5_6 | B184: Wandtiefe von 255 bis 315 mm | C184: Depth of wall from 255 up to 315 mm
A185: Wandtyp 1.2.5_7 | B185: angegebene Abmessungen jeweils ohne Beplankung ! | C185: Dimensions given exclude the covering !
A186: Wandtyp 1.2.5_8 | B186: fließenfertige Oberfläche zzgl. 18 mm Beplankung | C186: Facing prepared for tiling, plus 18 mm covering
A187: Wandtyp 1.2.5_9 | B187: Die Materialangaben enthalten keinen Fußbodenaufbau ! | C187: The material supply does not include any floor build-up !
A188: Wandtyp 1.2.6_1 | B188: Wandtyp 1.2.6 | C188: Type of wall 1.2.6
A189: Wandtyp 1.2.6_2 | B189: Vorwand vor Massivwand - einseitig befestigt | C189: Installation on a solid wall - one side fixing
A190: Wandtyp 1.2.6_3 | B190: Halbhoch, Höhe H ab OKFFB von 855 bis 1.155 mm | C190: Medium high, Height H from FFL from 855 up to 1.155 mm
A191: Wandtyp 1.2.6_4 | B191: (Einbau Elemente nur bei Höhen H OKFFB 855, 1020, 1155 mm) | C191: (Installation of elements only at Heigts H of 855, 1020, 1155 mm)
A192: Wandtyp 1.2.6_5 | B192: Wandbreite von 200 bis 5.000 mm | C192: Length of wall from 200 up to 5.000 mm
A193: Wandtyp 1.2.6_6 | B193: Wandtiefe von 120 bis 600 mm | C193: Depth of wall from 120 up to 600 mm
A194: Wandtyp 1.2.6_7 | B194: angegebene Abmessungen jeweils ohne Beplankung ! | C194: Dimensions given exclude the covering !
A195: Wandtyp 1.2.6_8 | B195: fließenfertige Oberfläche zzgl. 18 mm Beplankung | C195: Facing prepared for tiling, plus 18 mm covering
A196: Wandtyp 1.2.6_9 | B196: Die Materialangaben enthalten keinen Fußbodenaufbau ! | C196: The material supply does not include any floor build-up !
A197: Wandtyp 1.2.7_1 | B197: Wandtyp 1.2.7 | C197: Type of wall 1.2.7
A198: Wandtyp 1.2.7_2 | B198: Vorwand vor Massivwand - einseitig befestigt | C198: Installation on a solid wall - one side fixing
A199: Wandtyp 1.2.7_3 | B199: Raumhoch, Höhe H ab OKFFB von 1.155 bis 2.600 mm | C199: Room high, Height H from FFL from 1.155 up to 2.600 mm
A200: Wandtyp 1.2.7_4 | B200: (Einbau Elemente nur bei Höhe H OKFFB 1155 mm) | C200: (Installation of elements only at Heigt H of 1155 mm)
A201: Wandtyp 1.2.7_5 | B201: Wandbreite von 200 bis 5.000 mm | C201: Length of wall from 200 up to 5.000 mm
A202: Wandtyp 1.2.7_6 | B202: Wandtiefe von 155 bis 215 mm | C202: Depth of wall from 155 up to 215 mm
A203: Wandtyp 1.2.7_7 | B203: angegebene Abmessungen jeweils ohne Beplankung ! | C203: Dimensions given exclude the covering !
... 881 more rows

Sheet Einbauten_Installations (hidden)
B1: =IF(AND(D10="",D11="",D12="",W19=0),"",IF(AND(D10="",D11="",D12="",W19<>0),Y6&Y19,IF(X7=TRUE,IF(AND(X12=TRUE,X13=TRUE),IF(AND(X8=TRUE,X9=TRUE),IF(AND(X10=TRUE,X11=TRUE),IF(X23=TRUE,"",Y6&Y23),Y6&Y10),Y6&Y9),Y6&Y13),Y6&Y7))) ->  | T1: Projekt : | U1: Wandtyp | V1: 1.1.1 | W1: =getpiktogramm($V$1) -> OK | X1: Basis_WT_ | Y1: WBreite_
B2: =Wandtypen_Walltypes!E1 -> Bauvorhaben / Projekt : | D2: =Wandtypen_Walltypes!G1 -> 0 | H2: =Wandtypen_Walltypes!K1 -> Projekt-Nr. : | I2: =Wandtypen_Walltypes!L1 -> 0
B4: =Wandtypen_Walltypes!E2 -> Sachbearbeiter : | D4: =Wandtypen_Walltypes!G2 -> 0 | H4: =Wandtypen_Walltypes!K2 -> Datum : | I4: =Wandtypen_Walltypes!L2 -> 00:00:00
B6: =gettext("G59",Sprache!$D$1) -> Positionsbezeichnung :
B8: =gettext("G12",Sprache!$D$1) -> Anzahl der Wände : | D8: 1
U21: Alle Checks | X21: TRUE | Y21: Alle Checks vor technischer Prüfung!
U23: Nutzbreite Wand >= Baubreite El. | V23: =IF(NOT(D11=""),IF(AND(W113=TRUE,OR(VALUE(V33)=3,VALUE(V33)=2)),2*INDEX(INDIRECT(CONCATENATE($X$1,$V$1)),MATCH($D$11,INDIRECT(CONCATENATE($Y$1,$V$1)),-1),13),INDEX(INDIRECT(CONCATENATE($X$1,$V$1)),MATCH($D$11,INDIRECT(CONCATENATE($Y$1,$V$1)),-1),13)),0) -> 0 | W23: =SUM(X38:X85) -> 0 | X23: TRUE | Y23: =gettext("G36",Sprache!$D$1) -> Die für alle Einbauten benötigte Baubreite übersteigt die Gesamtbreite der Wand ! Bitte Eingabe prüfen.
U28: Alle Checks
B33: =gettext("G19",Sprache!$D$1) -> Elemente und Module für den Einbau : | F33: =gettext("G20",Sprache!$D$1) -> (*Betätigungsplatten, Steuerungen, etc. sind separat zu bestellen): | U33: Elemente erlaubt? | V33: =LEFT(V1,1) -> 1 | W33: =VALUE(V33)<4 -> TRUE
B35: =gettext("G21",Sprache!$D$1) -> Artikel-Nr. | C35: =gettext("G22",Sprache!$D$1) -> Bezeichnung | J35: =gettext("G23",Sprache!$D$1) -> Anzahl | L35: =gettext("G26",Sprache!$D$1) -> Einheit | M35: =gettext("G27",Sprache!$D$1) -> Preis
B36: keine Elemente | J36: =gettext("G24",Sprache!$D$1) -> 1 Wand | K36: =gettext("G25",Sprache!$D$1) -> alle Wd. | M36: =K36 -> alle Wd. | U36: BH Element | V36: WT Element | W36: El. Zulässig ? | X36: Breite Elemente | Y36: Menge Wand | Z36: =Einbauten!H2 -> 02.208.00..0000 | AA36: =Einbauten!I2 -> 03.332.00..0000 | AB36: =Einbauten!J2 -> 03.333.00..0000 | AC36: =Einbauten!K2 -> 03.754.00..0000 | AD36: =Einbauten!L2 -> 02.208.00..0000 | AE36: =Einbauten!G2 -> Einbauzeit | AF36: Preis/Einheit | AG36: Preis/Wand | AN36: Filter Druck
B37: =Einbauten!A3 -> WC-Elemente | AN37: 0
B38: =Einbauten!A4 -> 90.745.00..T000 | C38: =gettext(B38,Sprache!$D$1) -> INEO FRONTOP WC-El., kl. RÖ, Betät. v.vorn/oben, BH 820 mm | K38: =IF(AND(W38=TRUE,$X$23=TRUE),$D$8*J38,0) -> 0 | L38: =Einbauten!B4 -> Stück | M38: =K38*AF38 -> 0 | U38: =IF(Einbauten!D4="",$V$16,Einbauten!D4) -> 855 | V38: =IF(Einbauten!F4="",$V$17,Einbauten!F4) -> 155 | W38: TRUE | X38: =IF(W38=TRUE,J38*Einbauten!E4,0) -> 0 | Y38: =IF(AND(W38=TRUE,$X$23=TRUE),J38,0) -> 0 | Z38: =$Y38*Einbauten!H4 -> 0 | AA38: =$Y38*Einbauten!I4 -> 0 | AB38: =$Y38*Einbauten!J4 -> 0 | AC38: =$Y38*Einbauten!K4 -> 0 | AD38: =$Y38*Einbauten!L4 -> 0 | AE38: =$Y38*Einbauten!G4 -> 0 | AF38: =CHOOSE(Preise_Prices!$X$9,0,Preise_Prices!O16,Preise_Prices!T16) -> 0 | AG38: =AF38*Y38 -> 0 | AN38: =K38 -> 0
B39: =Einbauten!A5 -> 90.738.00..T000 | C39: =gettext(B39,Sprache!$D$1) -> INEO FRONTOP WC-El., kl. RÖ, Betät. v.vorn/oben, BH 985 mm | K39: =IF(AND(W39=TRUE,$X$23=TRUE),$D$8*J39,0) -> 0 | L39: =Einbauten!B5 -> Stück | M39: =K39*AF39 -> 0 | U39: =IF(Einbauten!D5="",$V$16,Einbauten!D5) -> 1020 | V39: =IF(Einbauten!F5="",$V$17,Einbauten!F5) -> 155 | W39: TRUE | X39: =IF(W39=TRUE,J39*Einbauten!E5,0) -> 0 | Y39: =IF(AND(W39=TRUE,$X$23=TRUE),J39,0) -> 0 | Z39: =$Y39*Einbauten!H5 -> 0 | AA39: =$Y39*Einbauten!I5 -> 0 | AB39: =$Y39*Einbauten!J5 -> 0 | AC39: =$Y39*Einbauten!K5 -> 0 | AD39: =$Y39*Einbauten!L5 -> 0 | AE39: =$Y39*Einbauten!G5 -> 0 | AF39: =CHOOSE(Preise_Prices!$X$9,0,Preise_Prices!O17,Preise_Prices!T17) -> 0 | AG39: =AF39*Y39 -> 0 | AN39: =K39 -> 0
B40: =Einbauten!A6 -> 90.743.00..T000 | C40: =gettext(B40,Sprache!$D$1) -> INEO PLUS WC-El., kl. RÖ, Betät. v. vorn, BH 1120 mm, Breite 450 mm o. Wandhalter | K40: =IF(AND(W40=TRUE,$X$23=TRUE),$D$8*J40,0) -> 0 | L40: =Einbauten!B6 -> Stück | M40: =K40*AF40 -> 0 | U40: =IF(Einbauten!D6="",$V$16,Einbauten!D6) -> 1155 | V40: =IF(Einbauten!F6="",$V$17,Einbauten!F6) -> 135 | W40: TRUE | X40: =IF(W40=TRUE,J40*Einbauten!E6,0) -> 0 | Y40: =IF(AND(W40=TRUE,$X$23=TRUE),J40,0) -> 0 | Z40: =$Y40*Einbauten!H6 -> 0 | AA40: =$Y40*Einbauten!I6 -> 0 | AB40: =$Y40*Einbauten!J6 -> 0 | AC40: =$Y40*Einbauten!K6 -> 0 | AD40: =$Y40*Einbauten!L6 -> 0 | AE40: =$Y40*Einbauten!G6 -> 0 | AF40: =CHOOSE(Preise_Prices!$X$9,0,Preise_Prices!O18,Preise_Prices!T18) -> 0 | AG40: 0 | AN40: =K40 -> 0
B41: =Einbauten!A7 -> 90.735.00..T000 | C41: =gettext(B41,Sprache!$D$1) -> INEO WC-El. für Stand-/Kinder-WC, kl. RÖ, Betät. v. vorn, BH 1120 mm | K41: =IF(AND(W41=TRUE,$X$23=TRUE),$D$8*J41,0) -> 0 | L41: =Einbauten!B7 -> Stück | M41: =K41*AF41 -> 0 | U41: =IF(Einbauten!D7="",$V$16,Einbauten!D7) -> 1155 | V41: =IF(Einbauten!F7="",$V$17,Einbauten!F7) -> 135 | W41: TRUE | X41: =IF(W41=TRUE,J41*Einbauten!E7,0) -> 0 | Y41: =IF(AND(W41=TRUE,$X$23=TRUE),J41,0) -> 0 | Z41: =$Y41*Einbauten!H7 -> 0 | AA41: =$Y41*Einbauten!I7 -> 0 | AB41: =$Y41*Einbauten!J7 -> 0 | AC41: =$Y41*Einbauten!K7 -> 0 | AD41: =$Y41*Einbauten!L7 -> 0 | AE41: =$Y41*Einbauten!G7 -> 0 | AF41: =CHOOSE(Preise_Prices!$X$9,0,Preise_Prices!O19,Preise_Prices!T19) -> 0 | AG41: 0 | AN41: =K41 -> 0
B42: =Einbauten!A8 -> Waschtisch- und Ausgussbecken-Elemente | AN42: 0
B43: =Einbauten!A9 -> 90.672.00..T000 | C43: =gettext(B43,Sprache!$D$1) -> INEO WT-Element für Einlocharmaturen, BH 820 mm | K43: =IF(AND(W43=TRUE,$X$23=TRUE),$D$8*J43,0) -> 0 | L43: =Einbauten!B9 -> Stück | M43: =K43*AF43 -> 0 | U43: =IF(Einbauten!D9="",$V$16,Einbauten!D9) -> 855 | V43: =IF(Einbauten!F9="",$V$17,Einbauten!F9) -> 0 | W43: TRUE | X43: =IF(W43=TRUE,J43*Einbauten!E9,0) -> 0 | Y43: =IF(AND(W43=TRUE,$X$23=TRUE),J43,0) -> 0 | Z43: =$Y43*Einbauten!H9 -> 0 | AA43: =$Y43*Einbauten!I9 -> 0 | AB43: =$Y43*Einbauten!J9 -> 0 | AC43: =$Y43*Einbauten!K9 -> 0 | AD43: =$Y43*Einbauten!L9 -> 0 | AE43: =$Y43*Einbauten!G9 -> 0 | AF43: =CHOOSE(Preise_Prices!$X$9,0,Preise_Prices!O21,Preise_Prices!T21) -> 0 | AG43: =AF43*Y43 -> 0 | AN43: =K43 -> 0
B44: =Einbauten!A10 -> 90.669.00..T000 | C44: =gettext(B44,Sprache!$D$1) -> INEO WT-Element für Einlocharmaturen, BH 985 mm | K44: 0 | L44: =Einbauten!B10 -> Stück | M44: 0 | U44: =IF(Einbauten!D10="",$V$16,Einbauten!D10) -> 1020 | V44: =IF(Einbauten!F10="",$V$17,Einbauten!F10) -> 0 | W44: TRUE | X44: =IF(W44=TRUE,J44*Einbauten!E10,0) -> 0 | Y44: 0 | Z44: =$Y44*Einbauten!H10 -> 0 | AA44: =$Y44*Einbauten!I10 -> 0 | AB44: =$Y44*Einbauten!J10 -> 0 | AC44: =$Y44*Einbauten!K10 -> 0 | AD44: =$Y44*Einbauten!L10 -> 0 | AE44: =$Y44*Einbauten!G10 -> 0 | AF44: =CHOOSE(Preise_Prices!$X$9,0,Preise_Prices!O22,Preise_Prices!T22) -> 0 | AG44: 0 | AN44: 0
B45: =Einbauten!A11 -> 90.696.00..T000 | C45: =gettext(B45,Sprache!$D$1) -> INEO WT-Element für Einlocharmaturen, BH 1120 mm | K45: 0 | L45: =Einbauten!B11 -> Stück | M45: 0 | U45: =IF(Einbauten!D11="",$V$16,Einbauten!D11) -> 1155 | V45: =IF(Einbauten!F11="",$V$17,Einbauten!F11) -> 0 | W45: TRUE | X45: =IF(W45=TRUE,J45*Einbauten!E11,0) -> 0 | Y45: 0 | Z45: =$Y45*Einbauten!H11 -> 0 | AA45: =$Y45*Einbauten!I11 -> 0 | AB45: =$Y45*Einbauten!J11 -> 0 | AC45: =$Y45*Einbauten!K11 -> 0 | AD45: =$Y45*Einbauten!L11 -> 0 | AE45: =$Y45*Einbauten!G11 -> 0 | AF45: =CHOOSE(Preise_Prices!$X$9,0,Preise_Prices!O23,Preise_Prices!T23) -> 0 | AG45: 0 | AN45: 0
B46: =Einbauten!A12 -> 90.671.00..T000 | C46: =gettext(B46,Sprache!$D$1) -> INEO WT-Element für AP-Wandarmaturen, BH 1120 - 1185 mm | K46: 0 | L46: =Einbauten!B12 -> Stück | M46: 0 | U46: =IF(Einbauten!D12="",$V$16,Einbauten!D12) -> 1155 | V46: =IF(Einbauten!F12="",$V$17,Einbauten!F12) -> 0 | W46: TRUE | X46: =IF(W46=TRUE,J46*Einbauten!E12,0) -> 0 | Y46: 0 | Z46: =$Y46*Einbauten!H12 -> 0 | AA46: =$Y46*Einbauten!I12 -> 0 | AB46: =$Y46*Einbauten!J12 -> 0 | AC46: =$Y46*Einbauten!K12 -> 0 | AD46: =$Y46*Einbauten!L12 -> 0 | AE46: =$Y46*Einbauten!G12 -> 0 | AF46: =CHOOSE(Preise_Prices!$X$9,0,Preise_Prices!O24,Preise_Prices!T24) -> 0 | AG46: 0 | AN46: 0
B47: =Einbauten!A13 -> 90.677.00..T000 | C47: =gettext(B47,Sprache!$D$1) -> INEO Ausguss-Element für Wandarmaturen, BH 1120 - 1185 mm | K47: 0 | L47: =Einbauten!B13 -> Stück | M47: 0 | U47: =IF(Einbauten!D13="",$V$16,Einbauten!D13) -> 1155 | V47: =IF(Einbauten!F13="",$V$17,Einbauten!F13) -> 0 | W47: TRUE | X47: =IF(W47=TRUE,J47*Einbauten!E13,0) -> 0 | Y47: 0 | Z47: =$Y47*Einbauten!H13 -> 0 | AA47: =$Y47*Einbauten!I13 -> 0 | AB47: =$Y47*Einbauten!J13 -> 0 | AC47: =$Y47*Einbauten!K13 -> 0 | AD47: =$Y47*Einbauten!L13 -> 0 | AE47: =$Y47*Einbauten!G13 -> 0 | AF47: =CHOOSE(Preise_Prices!$X$9,0,Preise_Prices!O25,Preise_Prices!T25) -> 0 | AG47: 0 | AN47: 0
B48: =Einbauten!A14 -> 90.691.00..T000 | C48: =gettext(B48,Sprache!$D$1) -> INEO WT-El. für Einlocharmaturen mit 2 UP-Wasserzählerstrecken, BH 985 mm | K48: 0 | L48: =Einbauten!B14 -> Stück | M48: 0 | U48: =IF(Einbauten!D14="",$V$16,Einbauten!D14) -> 1020 | V48: =IF(Einbauten!F14="",$V$17,Einbauten!F14) -> 0 | W48: TRUE | X48: =IF(W48=TRUE,J48*Einbauten!E14,0) -> 0 | Y48: 0 | Z48: =$Y48*Einbauten!H14 -> 0 | AA48: =$Y48*Einbauten!I14 -> 0 | AB48: =$Y48*Einbauten!J14 -> 0 | AC48: =$Y48*Einbauten!K14 -> 0 | AD48: =$Y48*Einbauten!L14 -> 0 | AE48: =$Y48*Einbauten!G14 -> 0 | AF48: =CHOOSE(Preise_Prices!$X$9,0,Preise_Prices!O26,Preise_Prices!T26) -> 0 | AG48: 0 | AN48: 0
B49: =Einbauten!A15 -> 90.687.00..T000 | C49: =gettext(B49,Sprache!$D$1) -> INEO WT-El. für Einlocharmaturen mit 2 UP-Wasserzählerstrecken, BH 1120 mm | K49: 0 | L49: =Einbauten!B15 -> Stück | M49: 0 | U49: =IF(Einbauten!D15="",$V$16,Einbauten!D15) -> 1155 | V49: =IF(Einbauten!F15="",$V$17,Einbauten!F15) -> 0 | W49: TRUE | X49: =IF(W49=TRUE,J49*Einbauten!E15,0) -> 0 | Y49: 0 | Z49: =$Y49*Einbauten!H15 -> 0 | AA49: =$Y49*Einbauten!I15 -> 0 | AB49: =$Y49*Einbauten!J15 -> 0 | AC49: =$Y49*Einbauten!K15 -> 0 | AD49: =$Y49*Einbauten!L15 -> 0 | AE49: =$Y49*Einbauten!G15 -> 0 | AF49: =CHOOSE(Preise_Prices!$X$9,0,Preise_Prices!O27,Preise_Prices!T27) -> 0 | AG49: 0 | AN49: 0
B50: =Einbauten!A16 -> 90.689.00..T000 | C50: =gettext(B50,Sprache!$D$1) -> INEO WT-El. für Einlocharmaturen, UP-Montage v. Durchlauferhitzern, BH 1120 mm | K50: 0 | L50: =Einbauten!B16 -> Stück | M50: 0 | U50: =IF(Einbauten!D16="",$V$16,Einbauten!D16) -> 1155 | V50: =IF(Einbauten!F16="",$V$17,Einbauten!F16) -> 0 | W50: TRUE | X50: =IF(W50=TRUE,J50*Einbauten!E16,0) -> 0 | Y50: 0 | Z50: =$Y50*Einbauten!H16 -> 0 | AA50: =$Y50*Einbauten!I16 -> 0 | AB50: =$Y50*Einbauten!J16 -> 0 | AC50: =$Y50*Einbauten!K16 -> 0 | AD50: =$Y50*Einbauten!L16 -> 0 | AE50: =$Y50*Einbauten!G16 -> 0 | AF50: =CHOOSE(Preise_Prices!$X$9,0,Preise_Prices!O28,Preise_Prices!T28) -> 0 | AG50: 0 | AN50: 0
B51: =Einbauten!A17 -> 90.688.00..T000 | C51: =gettext(B51,Sprache!$D$1) -> INEO LINNUM Leer-Element, BH 1120 mm | K51: 0 | L51: =Einbauten!B17 -> Stück | M51: 0 | U51: =IF(Einbauten!D17="",$V$16,Einbauten!D17) -> 1155 | V51: =IF(Einbauten!F17="",$V$17,Einbauten!F17) -> 0 | W51: TRUE | X51: =IF(W51=TRUE,J51*Einbauten!E17,0) -> 0 | Y51: 0 | Z51: =$Y51*Einbauten!H17 -> 0 | AA51: =$Y51*Einbauten!I17 -> 0 | AB51: =$Y51*Einbauten!J17 -> 0 | AC51: =$Y51*Einbauten!K17 -> 0 | AD51: =$Y51*Einbauten!L17 -> 0 | AE51: =$Y51*Einbauten!G17 -> 0 | AF51: =CHOOSE(Preise_Prices!$X$9,0,Preise_Prices!O29,Preise_Prices!T29) -> 0 | AG51: 0 | AN51: 0
B52: =Einbauten!A18 -> 90.659.00..0000 | C52: =gettext(B52,Sprache!$D$1) -> INEO-Fäkalausguss-El. für Ausguss "Publica", kl. RÖ, Betät. v. vorn, BH 1530 mm | K52: 0 | L52: =Einbauten!B18 -> Stück | M52: 0 | U52: =IF(Einbauten!D18="",$V$16,Einbauten!D18) -> 1565 | V52: =IF(Einbauten!F18="",$V$17,Einbauten!F18) -> 155 | W52: TRUE | X52: =IF(W52=TRUE,J52*Einbauten!E18,0) -> 0 | Y52: 0 | Z52: =$Y52*Einbauten!H18 -> 0 | AA52: =$Y52*Einbauten!I18 -> 0 | AB52: =$Y52*Einbauten!J18 -> 0 | AC52: =$Y52*Einbauten!K18 -> 0 | AD52: =$Y52*Einbauten!L18 -> 0 | AE52: =$Y52*Einbauten!G18 -> 0 | AF52: =CHOOSE(Preise_Prices!$X$9,0,Preise_Prices!O30,Preise_Prices!T30) -> 0 | AG52: 0 | AN52: 0
B53: =Einbauten!A19 -> Bidet- und Urinal-Elemente | AN53: 0
B54: =Einbauten!A20 -> 90.663.00..T000 | C54: =gettext(B54,Sprache!$D$1) -> INEO Bidet-Element, BH 820 mm | K54: =IF(AND(W54=TRUE,$X$23=TRUE),$D$8*J54,0) -> 0 | L54: =Einbauten!B20 -> Stück | M54: =K54*AF54 -> 0 | U54: =IF(Einbauten!D20="",$V$16,Einbauten!D20) -> 855 | V54: =IF(Einbauten!F20="",$V$17,Einbauten!F20) -> 135 | W54: TRUE | X54: =IF(W54=TRUE,J54*Einbauten!E20,0) -> 0 | Y54: =IF(AND(W54=TRUE,$X$23=TRUE),J54,0) -> 0 | Z54: =$Y54*Einbauten!H20 -> 0 | AA54: =$Y54*Einbauten!I20 -> 0 | AB54: =$Y54*Einbauten!J20 -> 0 | AC54: =$Y54*Einbauten!K20 -> 0 | AD54: =$Y54*Einbauten!L20 -> 0 | AE54: =$Y54*Einbauten!G20 -> 0 | AF54: =CHOOSE(Preise_Prices!$X$9,0,Preise_Prices!O32,Preise_Prices!T32) -> 0 | AG54: =AF54*Y54 -> 0 | AN54: =K54 -> 0
B55: =Einbauten!A21 -> 90.662.00..T000 | C55: =gettext(B55,Sprache!$D$1) -> INEO Bidet-Element, BH 985 mm | K55: =IF(AND(W55=TRUE,$X$23=TRUE),$D$8*J55,0) -> 0 | L55: =Einbauten!B21 -> Stück | M55: =K55*AF55 -> 0 | U55: =IF(Einbauten!D21="",$V$16,Einbauten!D21) -> 1020 | V55: =IF(Einbauten!F21="",$V$17,Einbauten!F21) -> 135 | W55: TRUE | X55: =IF(W55=TRUE,J55*Einbauten!E21,0) -> 0 | Y55: =IF(AND(W55=TRUE,$X$23=TRUE),J55,0) -> 0 | Z55: =$Y55*Einbauten!H21 -> 0 | AA55: =$Y55*Einbauten!I21 -> 0 | AB55: =$Y55*Einbauten!J21 -> 0 | AC55: =$Y55*Einbauten!K21 -> 0 | AD55: =$Y55*Einbauten!L21 -> 0 | AE55: =$Y55*Einbauten!G21 -> 0 | AF55: =CHOOSE(Preise_Prices!$X$9,0,Preise_Prices!O33,Preise_Prices!T33) -> 0 | AG55: 0 | AN55: =K55 -> 0
B56: =Einbauten!A22 -> 90.676.00..T000 | C56: =gettext(B56,Sprache!$D$1) -> INEO Bidet-Element, BH 1120 mm | K56: =IF(AND(W56=TRUE,$X$23=TRUE),$D$8*J56,0) -> 0 | L56: =Einbauten!B22 -> Stück | M56: =K56*AF56 -> 0 | U56: =IF(Einbauten!D22="",$V$16,Einbauten!D22) -> 1155 | V56: =IF(Einbauten!F22="",$V$17,Einbauten!F22) -> 135 | W56: TRUE | X56: =IF(W56=TRUE,J56*Einbauten!E22,0) -> 0 | Y56: =IF(AND(W56=TRUE,$X$23=TRUE),J56,0) -> 0 | Z56: =$Y56*Einbauten!H22 -> 0 | AA56: =$Y56*Einbauten!I22 -> 0 | AB56: =$Y56*Einbauten!J22 -> 0 | AC56: =$Y56*Einbauten!K22 -> 0 | AD56: =$Y56*Einbauten!L22 -> 0 | AE56: =$Y56*Einbauten!G22 -> 0 | AF56: =CHOOSE(Preise_Prices!$X$9,0,Preise_Prices!O34,Preise_Prices!T34) -> 0 | AG56: 0 | AN56: =K56 -> 0
B57: =Einbauten!A23 -> 90.668.00..T000 | C57: =gettext(B57,Sprache!$D$1) -> INEO Urinal-Element, für Urinal-Kartuschenventiltechnik, BH 1120 - 1185 mm | K57: =IF(AND(W57=TRUE,$X$23=TRUE),$D$8*J57,0) -> 0 | L57: =Einbauten!B23 -> Stück | M57: =K57*AF57 -> 0 | U57: =IF(Einbauten!D23="",$V$16,Einbauten!D23) -> 1155 | V57: =IF(Einbauten!F23="",$V$17,Einbauten!F23) -> 0 | W57: TRUE | X57: =IF(W57=TRUE,J57*Einbauten!E23,0) -> 0 | Y57: =IF(AND(W57=TRUE,$X$23=TRUE),J57,0) -> 0 | Z57: =$Y57*Einbauten!H23 -> 0 | AA57: =$Y57*Einbauten!I23 -> 0 | AB57: =$Y57*Einbauten!J23 -> 0 | AC57: =$Y57*Einbauten!K23 -> 0 | AD57: =$Y57*Einbauten!L23 -> 0 | AE57: =$Y57*Einbauten!G23 -> 0 | AF57: =CHOOSE(Preise_Prices!$X$9,0,Preise_Prices!O35,Preise_Prices!T35) -> 0 | AG57: 0 | AN57: =K57 -> 0
B58: =Einbauten!A24 -> 90.675.00..T000 | C58: =gettext(B58,Sprache!$D$1) -> INEO Urinal-Element für Aufputzdruckspüler, BH 1120 - 1185 mm | K58: =IF(AND(W58=TRUE,$X$23=TRUE),$D$8*J58,0) -> 0 | L58: =Einbauten!B24 -> Stück | M58: =K58*AF58 -> 0 | U58: =IF(Einbauten!D24="",$V$16,Einbauten!D24) -> 1155 | V58: =IF(Einbauten!F24="",$V$17,Einbauten!F24) -> 0 | W58: TRUE | X58: =IF(W58=TRUE,J58*Einbauten!E24,0) -> 0 | Y58: =IF(AND(W58=TRUE,$X$23=TRUE),J58,0) -> 0 | Z58: =$Y58*Einbauten!H24 -> 0 | AA58: =$Y58*Einbauten!I24 -> 0 | AB58: =$Y58*Einbauten!J24 -> 0 | AC58: =$Y58*Einbauten!K24 -> 0 | AD58: =$Y58*Einbauten!L24 -> 0 | AE58: =$Y58*Einbauten!G24 -> 0 | AF58: =CHOOSE(Preise_Prices!$X$9,0,Preise_Prices!O36,Preise_Prices!T36) -> 0 | AG58: 0 | AN58: =K58 -> 0
B59: =Einbauten!A25 -> Bade-und Brausewannen | AN59: 0
B60: =Einbauten!A26 -> 90.681.00..T000 | C60: =gettext(B60,Sprache!$D$1) -> INEO BW-Element für Aufputzwandarmaturen, BH 1120-1185 mm | K60: =IF(AND(W60=TRUE,$X$23=TRUE),$D$8*J60,0) -> 0 | L60: =Einbauten!B26 -> Stück | M60: =K60*AF60 -> 0 | U60: =IF(Einbauten!D26="",$V$16,Einbauten!D26) -> 1155 | V60: =IF(Einbauten!F26="",$V$17,Einbauten!F26) -> 0 | W60: TRUE | X60: =IF(W60=TRUE,J60*Einbauten!E26,0) -> 0 | Y60: =IF(AND(W60=TRUE,$X$23=TRUE),J60,0) -> 0 | Z60: =$Y60*Einbauten!H26 -> 0 | AA60: =$Y60*Einbauten!I26 -> 0 | AB60: =$Y60*Einbauten!J26 -> 0 | AC60: =$Y60*Einbauten!K26 -> 0 | AD60: =$Y60*Einbauten!L26 -> 0 | AE60: =$Y60*Einbauten!G26 -> 0 | AF60: =CHOOSE(Preise_Prices!$X$9,0,Preise_Prices!O38,Preise_Prices!T38) -> 0 | AG60: =AF60*Y60 -> 0 | AN60: =K60 -> 0
B61: =Einbauten!A27 -> 90.682.00..T000 | C61: =gettext(B61,Sprache!$D$1) -> INEO BW-Element für UP-Armaturen, BH 1120-1185 mm | K61: =IF(AND(W61=TRUE,$X$23=TRUE),$D$8*J61,0) -> 0 | L61: =Einbauten!B27 -> Stück | M61: =K61*AF61 -> 0 | U61: =IF(Einbauten!D27="",$V$16,Einbauten!D27) -> 1155 | V61: =IF(Einbauten!F27="",$V$17,Einbauten!F27) -> 0 | W61: TRUE | X61: =IF(W61=TRUE,J61*Einbauten!E27,0) -> 0 | Y61: =IF(AND(W61=TRUE,$X$23=TRUE),J61,0) -> 0 | Z61: =$Y61*Einbauten!H27 -> 0 | AA61: =$Y61*Einbauten!I27 -> 0 | AB61: =$Y61*Einbauten!J27 -> 0 | AC61: =$Y61*Einbauten!K27 -> 0 | AD61: =$Y61*Einbauten!L27 -> 0 | AE61: =$Y61*Einbauten!G27 -> 0 | AF61: =CHOOSE(Preise_Prices!$X$9,0,Preise_Prices!O39,Preise_Prices!T39) -> 0 | AG61: 0 | AN61: =K61 -> 0
B62: =Einbauten!A28 -> Waschtisch- und Urinal-Module (Sanitärfunktion ohne Trockenbaurahmen) | AN62: 0
B63: =Einbauten!A29 -> 17.276.00..0000 | C63: =gettext(B63,Sprache!$D$1) -> WT-Modul für Einloch- und AP-Wandarmaturen | K63: =IF(AND(W63=TRUE,$X$23=TRUE),$D$8*J63,0) -> 0 | L63: =Einbauten!B29 -> Stück | M63: =K63*AF63 -> 0 | U63: =IF(Einbauten!D29="",$V$16,Einbauten!D29) -> 0 | V63: =IF(Einbauten!F29="",$V$17,Einbauten!F29) -> 0 | W63: TRUE | X63: =IF(W63=TRUE,J63*Einbauten!E29,0) -> 0 | Y63: =IF(AND(W63=TRUE,$X$23=TRUE),J63,0) -> 0 | Z63: =$Y63*Einbauten!H29 -> 0 | AA63: =$Y63*Einbauten!I29 -> 0 | AB63: =$Y63*Einbauten!J29 -> 0 | AC63: =$Y63*Einbauten!K29 -> 0 | AD63: =$Y63*Einbauten!L29 -> 0 | AE63: =$Y63*Einbauten!G29 -> 0 | AF63: =CHOOSE(Preise_Prices!$X$9,0,Preise_Prices!O41,Preise_Prices!T41) -> 0 | AG63: =AF63*Y63 -> 0 | AN63: =K63 -> 0
B64: =Einbauten!A30 -> 17.286.00..0000 | C64: =gettext(B64,Sprache!$D$1) -> Waschtisch-Modul für Einlocharmaturen | K64: =IF(AND(W64=TRUE,$X$23=TRUE),$D$8*J64,0) -> 0 | L64: =Einbauten!B30 -> Stück | M64: =K64*AF64 -> 0 | U64: =IF(Einbauten!D30="",$V$16,Einbauten!D30) -> 0 | V64: =IF(Einbauten!F30="",$V$17,Einbauten!F30) -> 0 | W64: TRUE | X64: =IF(W64=TRUE,J64*Einbauten!E30,0) -> 0 | Y64: =IF(AND(W64=TRUE,$X$23=TRUE),J64,0) -> 0 | Z64: =$Y64*Einbauten!H30 -> 0 | AA64: =$Y64*Einbauten!I30 -> 0 | AB64: =$Y64*Einbauten!J30 -> 0 | AC64: =$Y64*Einbauten!K30 -> 0 | AD64: =$Y64*Einbauten!L30 -> 0 | AE64: =$Y64*Einbauten!G30 -> 0 | AF64: =CHOOSE(Preise_Prices!$X$9,0,Preise_Prices!O42,Preise_Prices!T42) -> 0 | AG64: 0 | AN64: =K64 -> 0
B65: =Einbauten!A31 -> 03.877.00..0000 | C65: =gettext(B65,Sprache!$D$1) -> Modul für Waschtisch und Ausgussbecken mit AP-Armatur | K65: =IF(AND(W65=TRUE,$X$23=TRUE),$D$8*J65,0) -> 0 | L65: =Einbauten!B31 -> Stück | M65: =K65*AF65 -> 0 | U65: =IF(Einbauten!D31="",$V$16,Einbauten!D31) -> 0 | V65: =IF(Einbauten!F31="",$V$17,Einbauten!F31) -> 0 | W65: TRUE | X65: =IF(W65=TRUE,J65*Einbauten!E31,0) -> 0 | Y65: =IF(AND(W65=TRUE,$X$23=TRUE),J65,0) -> 0 | Z65: =$Y65*Einbauten!H31 -> 0 | AA65: =$Y65*Einbauten!I31 -> 0 | AB65: =$Y65*Einbauten!J31 -> 0 | AC65: =$Y65*Einbauten!K31 -> 0 | AD65: =$Y65*Einbauten!L31 -> 0 | AE65: =$Y65*Einbauten!G31 -> 0 | AF65: =CHOOSE(Preise_Prices!$X$9,0,Preise_Prices!O43,Preise_Prices!T43) -> 0 | AG65: 0 | AN65: =K65 -> 0
B66: =Einbauten!A32 -> Weitere Module (Sanitärfunktion ohne Trockenbaurahmen) & Zubehör | AN66: 0
B67: =Einbauten!A33 -> 17.268.00..0000 | C67: =gettext(B67,Sprache!$D$1) -> Modul für UP- oder AP-Armaturen | K67: =IF(AND(W67=TRUE,$X$23=TRUE),$D$8*J67,0) -> 0 | L67: =Einbauten!B33 -> Stück | M67: =K67*AF67 -> 0 | U67: =IF(Einbauten!D33="",$V$16,Einbauten!D33) -> 0 | V67: =IF(Einbauten!F33="",$V$17,Einbauten!F33) -> 0 | W67: TRUE | X67: =IF(W67=TRUE,J67*Einbauten!E33,0) -> 0 | Y67: =IF(AND(W67=TRUE,$X$23=TRUE),J67,0) -> 0 | Z67: =$Y67*Einbauten!H33 -> 0 | AA67: =$Y67*Einbauten!I33 -> 0 | AB67: =$Y67*Einbauten!J33 -> 0 | AC67: =$Y67*Einbauten!K33 -> 0 | AD67: =$Y67*Einbauten!L33 -> 0 | AE67: =$Y67*Einbauten!G33 -> 0 | AF67: =CHOOSE(Preise_Prices!$X$9,0,Preise_Prices!O45,Preise_Prices!T45) -> 0 | AG67: =AF67*Y67 -> 0 | AN67: =K67 -> 0
B68: =Einbauten!A34 -> 17.287.00..0000 | C68: =gettext(B68,Sprache!$D$1) -> Modul für UP- oder AP-Armaturen | K68: 0 | L68: =Einbauten!B34 -> Stück | M68: 0 | U68: =IF(Einbauten!D34="",$V$16,Einbauten!D34) -> 0 | V68: =IF(Einbauten!F34="",$V$17,Einbauten!F34) -> 0 | W68: TRUE | X68: =IF(W68=TRUE,J68*Einbauten!E34,0) -> 0 | Y68: 0 | Z68: =$Y68*Einbauten!H34 -> 0 | AA68: =$Y68*Einbauten!I34 -> 0 | AB68: =$Y68*Einbauten!J34 -> 0 | AC68: =$Y68*Einbauten!K34 -> 0 | AD68: =$Y68*Einbauten!L34 -> 0 | AE68: =$Y68*Einbauten!G34 -> 0 | AF68: =CHOOSE(Preise_Prices!$X$9,0,Preise_Prices!O46,Preise_Prices!T46) -> 0 | AG68: 0 | AN68: 0
B69: =Einbauten!A35 -> 17.275.00..0000 | C69: =gettext(B69,Sprache!$D$1) -> Modul für Aufputzwandbatterien | K69: 0 | L69: =Einbauten!B35 -> Stück | M69: 0 | U69: =IF(Einbauten!D35="",$V$16,Einbauten!D35) -> 0 | V69: =IF(Einbauten!F35="",$V$17,Einbauten!F35) -> 0 | W69: TRUE | X69: =IF(W69=TRUE,J69*Einbauten!E35,0) -> 0 | Y69: 0 | Z69: =$Y69*Einbauten!H35 -> 0 | AA69: =$Y69*Einbauten!I35 -> 0 | AB69: =$Y69*Einbauten!J35 -> 0 | AC69: =$Y69*Einbauten!K35 -> 0 | AD69: =$Y69*Einbauten!L35 -> 0 | AE69: =$Y69*Einbauten!G35 -> 0 | AF69: =CHOOSE(Preise_Prices!$X$9,0,Preise_Prices!O47,Preise_Prices!T47) -> 0 | AG69: 0 | AN69: 0
B70: =Einbauten!A36 -> 17.282.00..0000 | C70: =gettext(B70,Sprache!$D$1) -> Modul für Waschmaschinenanschluss | K70: 0 | L70: =Einbauten!B36 -> Stück | M70: 0 | U70: =IF(Einbauten!D36="",$V$16,Einbauten!D36) -> 0 | V70: =IF(Einbauten!F36="",$V$17,Einbauten!F36) -> 0 | W70: TRUE | X70: =IF(W70=TRUE,J70*Einbauten!E36,0) -> 0 | Y70: 0 | Z70: =$Y70*Einbauten!H36 -> 0 | AA70: =$Y70*Einbauten!I36 -> 0 | AB70: =$Y70*Einbauten!J36 -> 0 | AC70: =$Y70*Einbauten!K36 -> 0 | AD70: =$Y70*Einbauten!L36 -> 0 | AE70: =$Y70*Einbauten!G36 -> 0 | AF70: =CHOOSE(Preise_Prices!$X$9,0,Preise_Prices!O48,Preise_Prices!T48) -> 0 | AG70: 0 | AN70: 0
B71: =Einbauten!A37 -> 17.216.00..0000 | C71: =gettext(B71,Sprache!$D$1) -> Befestigungsmodul für schwere Gegenstände, Griffe u.ä. | K71: 0 | L71: =Einbauten!B37 -> Stück | M71: 0 | U71: =IF(Einbauten!D37="",$V$16,Einbauten!D37) -> 0 | V71: =IF(Einbauten!F37="",$V$17,Einbauten!F37) -> 0 | W71: TRUE | X71: =IF(W71=TRUE,J71*Einbauten!E37,0) -> 0 | Y71: 0 | Z71: =$Y71*Einbauten!H37 -> 0 | AA71: =$Y71*Einbauten!I37 -> 0 | AB71: =$Y71*Einbauten!J37 -> 0 | AC71: =$Y71*Einbauten!K37 -> 0 | AD71: =$Y71*Einbauten!L37 -> 0 | AE71: =$Y71*Einbauten!G37 -> 0 | AF71: =CHOOSE(Preise_Prices!$X$9,0,Preise_Prices!O49,Preise_Prices!T49) -> 0 | AG71: 0 | AN71: 0
B72: =Einbauten!A38 -> 17.280.00..0000 | C72: =gettext(B72,Sprache!$D$1) -> Befestigungsmodul für Küchenanschlüsse | K72: 0 | L72: =Einbauten!B38 -> Stück | M72: 0 | U72: =IF(Einbauten!D38="",$V$16,Einbauten!D38) -> 0 | V72: =IF(Einbauten!F38="",$V$17,Einbauten!F38) -> 0 | W72: TRUE | X72: =IF(W72=TRUE,J72*Einbauten!E38,0) -> 0 | Y72: 0 | Z72: =$Y72*Einbauten!H38 -> 0 | AA72: =$Y72*Einbauten!I38 -> 0 | AB72: =$Y72*Einbauten!J38 -> 0 | AC72: =$Y72*Einbauten!K38 -> 0 | AD72: =$Y72*Einbauten!L38 -> 0 | AE72: =$Y72*Einbauten!G38 -> 0 | AF72: =CHOOSE(Preise_Prices!$X$9,0,Preise_Prices!O50,Preise_Prices!T50) -> 0 | AG72: 0 | AN72: 0
B73: =Einbauten!A39 -> 17.239.00..0000 | C73: =gettext(B73,Sprache!$D$1) -> Ergänzungsmodul für Sitzbefestigung | K73: 0 | L73: =Einbauten!B39 -> Stück | M73: 0 | U73: =IF(Einbauten!D39="",$V$16,Einbauten!D39) -> 0 | V73: =IF(Einbauten!F39="",$V$17,Einbauten!F39) -> 0 | W73: TRUE | X73: =IF(W73=TRUE,J73*Einbauten!E39,0) -> 0 | Y73: 0 | Z73: =$Y73*Einbauten!H39 -> 0 | AA73: =$Y73*Einbauten!I39 -> 0 | AB73: =$Y73*Einbauten!J39 -> 0 | AC73: =$Y73*Einbauten!K39 -> 0 | AD73: =$Y73*Einbauten!L39 -> 0 | AE73: =$Y73*Einbauten!G39 -> 0 | AF73: =CHOOSE(Preise_Prices!$X$9,0,Preise_Prices!O51,Preise_Prices!T51) -> 0 | AG73: 0 | AN73: 0
B74: =Einbauten!A40 -> 17.281.00..0000 | C74: =gettext(B74,Sprache!$D$1) -> Modul für Wandscheiben | K74: 0 | L74: =Einbauten!B40 -> Stück | M74: 0 | U74: =IF(Einbauten!D40="",$V$16,Einbauten!D40) -> 0 | V74: =IF(Einbauten!F40="",$V$17,Einbauten!F40) -> 0 | W74: TRUE | X74: =IF(W74=TRUE,J74*Einbauten!E40,0) -> 0 | Y74: 0 | Z74: =$Y74*Einbauten!H40 -> 0 | AA74: =$Y74*Einbauten!I40 -> 0 | AB74: =$Y74*Einbauten!J40 -> 0 | AC74: =$Y74*Einbauten!K40 -> 0 | AD74: =$Y74*Einbauten!L40 -> 0 | AE74: =$Y74*Einbauten!G40 -> 0 | AF74: =CHOOSE(Preise_Prices!$X$9,0,Preise_Prices!O52,Preise_Prices!T52) -> 0 | AG74: 0 | AN74: 0
B75: =Einbauten!A41 -> 05.132.00..0000 | C75: =gettext(B75,Sprache!$D$1) -> Dachschrägen-Anschluss | K75: =IF(AND(W75=TRUE,$X$23=TRUE),$D$8*J75,0) -> 0 | L75: =Einbauten!B41 -> Stück | M75: =K75*AF75 -> 0 | U75: =IF(Einbauten!D41="",$V$16,Einbauten!D41) -> 0 | V75: =IF(Einbauten!F41="",$V$17,Einbauten!F41) -> 0 | W75: TRUE | X75: =IF(W75=TRUE,J75*Einbauten!E41,0) -> 0 | Y75: =IF(AND(W75=TRUE,$X$23=TRUE),J75,0) -> 0 | Z75: =$Y75*Einbauten!H41 -> 0 | AA75: =$Y75*Einbauten!I41 -> 0 | AB75: =$Y75*Einbauten!J41 -> 0 | AC75: =$Y75*Einbauten!K41 -> 0 | AD75: =$Y75*Einbauten!L41 -> 0 | AE75: =$Y75*Einbauten!G41 -> 0 | AF75: =CHOOSE(Preise_Prices!$X$9,0,Preise_Prices!O53,Preise_Prices!T53) -> 0 | AG75: =AF75*Y75 -> 0 | AN75: =K75 -> 0
B76: =Einbauten!A42 -> 05.201.00..0000 | C76: =gettext(B76,Sprache!$D$1) -> Rohrschellenbefestigung | K76: 0 | L76: =Einbauten!B42 -> Stück | M76: 0 | U76: =IF(Einbauten!D42="",$V$16,Einbauten!D42) -> 0 | V76: =IF(Einbauten!F42="",$V$17,Einbauten!F42) -> 0 | W76: TRUE | X76: =IF(W76=TRUE,J76*Einbauten!E42,0) -> 0 | Y76: 0 | Z76: =$Y76*Einbauten!H42 -> 0 | AA76: =$Y76*Einbauten!I42 -> 0 | AB76: =$Y76*Einbauten!J42 -> 0 | AC76: =$Y76*Einbauten!K42 -> 0 | AD76: =$Y76*Einbauten!L42 -> 0 | AE76: =$Y76*Einbauten!G42 -> 0 | AF76: =CHOOSE(Preise_Prices!$X$9,0,Preise_Prices!O54,Preise_Prices!T54) -> 0 | AG76: 0 | AN76: 0
B77: =Einbauten!A43 -> barrierefreie Elemente und Module | AN77: 0
B78: =Einbauten!A44 -> 90.685.00..T000 | C78: =gettext(B78,Sprache!$D$1) -> INEO WT-Element für Einlocharmaturen, behinderteng. BH 820 mm | K78: =IF(AND(W78=TRUE,$X$23=TRUE),$D$8*J78,0) -> 0 | L78: =Einbauten!B44 -> Stück | M78: =K78*AF78 -> 0 | U78: =IF(Einbauten!D44="",$V$16,Einbauten!D44) -> 855 | V78: =IF(Einbauten!F44="",$V$17,Einbauten!F44) -> 0 | W78: TRUE | X78: =IF(W78=TRUE,J78*Einbauten!E44,0) -> 0 | Y78: =IF(AND(W78=TRUE,$X$23=TRUE),J78,0) -> 0 | Z78: =$Y78*Einbauten!H44 -> 0 | AA78: =$Y78*Einbauten!I44 -> 0 | AB78: =$Y78*Einbauten!J44 -> 0 | AC78: =$Y78*Einbauten!K44 -> 0 | AD78: =$Y78*Einbauten!L44 -> 0 | AE78: =$Y78*Einbauten!G44 -> 0 | AF78: =CHOOSE(Preise_Prices!$X$9,0,Preise_Prices!O56,Preise_Prices!T56) -> 0 | AG78: =AF78*Y78 -> 0 | AN78: =K78 -> 0
B79: =Einbauten!A45 -> 90.673.00..T000 | C79: =gettext(B79,Sprache!$D$1) -> INEO WT-El. für Einloch- o. AP-Wandarmaturen, behinderteng., BH 1120 - 1185 mm | K79: 0 | L79: =Einbauten!B45 -> Stück | M79: 0 | U79: =IF(Einbauten!D45="",$V$16,Einbauten!D45) -> 1155 | V79: =IF(Einbauten!F45="",$V$17,Einbauten!F45) -> 0 | W79: TRUE | X79: =IF(W79=TRUE,J79*Einbauten!E45,0) -> 0 | Y79: 0 | Z79: =$Y79*Einbauten!H45 -> 0 | AA79: =$Y79*Einbauten!I45 -> 0 | AB79: =$Y79*Einbauten!J45 -> 0 | AC79: =$Y79*Einbauten!K45 -> 0 | AD79: =$Y79*Einbauten!L45 -> 0 | AE79: =$Y79*Einbauten!G45 -> 0 | AF79: =CHOOSE(Preise_Prices!$X$9,0,Preise_Prices!O57,Preise_Prices!T57) -> 0 | AG79: 0 | AN79: 0
B80: =Einbauten!A46 -> 90.744.00..T000 | C80: =gettext(B80,Sprache!$D$1) -> INEO PLUS WC-El., kl. RÖ, Betät. v. vorn, behindertengerecht, BH 1120 mm | K80: 0 | L80: =Einbauten!B46 -> Stück | M80: 0 | U80: =IF(Einbauten!D46="",$V$16,Einbauten!D46) -> 1155 | V80: =IF(Einbauten!F46="",$V$17,Einbauten!F46) -> 135 | W80: TRUE | X80: =IF(W80=TRUE,J80*Einbauten!E46,0) -> 0 | Y80: 0 | Z80: =$Y80*Einbauten!H46 -> 0 | AA80: =$Y80*Einbauten!I46 -> 0 | AB80: =$Y80*Einbauten!J46 -> 0 | AC80: =$Y80*Einbauten!K46 -> 0 | AD80: =$Y80*Einbauten!L46 -> 0 | AE80: =$Y80*Einbauten!G46 -> 0 | AF80: =CHOOSE(Preise_Prices!$X$9,0,Preise_Prices!O58,Preise_Prices!T58) -> 0 | AG80: 0 | AN80: 0
B81: =Einbauten!A47 -> 90.680.00..TR00 | C81: =gettext(B81,Sprache!$D$1) -> Befest.-El. rechts für Griff- u. Haltesysteme, BH 1185 mm | K81: 0 | L81: =Einbauten!B47 -> Stück | M81: 0 | U81: =IF(Einbauten!D47="",$V$16,Einbauten!D47) -> 1155 | V81: =IF(Einbauten!F47="",$V$17,Einbauten!F47) -> 0 | W81: TRUE | X81: =IF(W81=TRUE,J81*Einbauten!E47,0) -> 0 | Y81: 0 | Z81: =$Y81*Einbauten!H47 -> 0 | AA81: =$Y81*Einbauten!I47 -> 0 | AB81: =$Y81*Einbauten!J47 -> 0 | AC81: =$Y81*Einbauten!K47 -> 0 | AD81: =$Y81*Einbauten!L47 -> 0 | AE81: =$Y81*Einbauten!G47 -> 0 | AF81: =CHOOSE(Preise_Prices!$X$9,0,Preise_Prices!O59,Preise_Prices!T59) -> 0 | AG81: 0 | AN81: 0
B82: =Einbauten!A48 -> 90.680.00..TL00 | C82: =gettext(B82,Sprache!$D$1) -> Befest.-El. links für Griff- u. Haltesysteme, BH 1185 mm | K82: 0 | L82: =Einbauten!B48 -> Stück | M82: 0 | U82: =IF(Einbauten!D48="",$V$16,Einbauten!D48) -> 1155 | V82: =IF(Einbauten!F48="",$V$17,Einbauten!F48) -> 0 | W82: TRUE | X82: =IF(W82=TRUE,J82*Einbauten!E48,0) -> 0 | Y82: 0 | Z82: =$Y82*Einbauten!H48 -> 0 | AA82: =$Y82*Einbauten!I48 -> 0 | AB82: =$Y82*Einbauten!J48 -> 0 | AC82: =$Y82*Einbauten!K48 -> 0 | AD82: =$Y82*Einbauten!L48 -> 0 | AE82: =$Y82*Einbauten!G48 -> 0 | AF82: =CHOOSE(Preise_Prices!$X$9,0,Preise_Prices!O60,Preise_Prices!T60) -> 0 | AG82: 0 | AN82: 0
B83: =Einbauten!A49 -> 17.288.00..0000 | C83: =gettext(B83,Sprache!$D$1) -> Waschtisch-Modul behindertengerecht | K83: 0 | L83: =Einbauten!B49 -> Stück | M83: 0 | U83: =IF(Einbauten!D49="",$V$16,Einbauten!D49) -> 0 | V83: =IF(Einbauten!F49="",$V$17,Einbauten!F49) -> 0 | W83: TRUE | X83: =IF(W83=TRUE,J83*Einbauten!E49,0) -> 0 | Y83: 0 | Z83: =$Y83*Einbauten!H49 -> 0 | AA83: =$Y83*Einbauten!I49 -> 0 | AB83: =$Y83*Einbauten!J49 -> 0 | AC83: =$Y83*Einbauten!K49 -> 0 | AD83: =$Y83*Einbauten!L49 -> 0 | AE83: =$Y83*Einbauten!G49 -> 0 | AF83: =CHOOSE(Preise_Prices!$X$9,0,Preise_Prices!O61,Preise_Prices!T61) -> 0 | AG83: 0 | AN83: 0
B84: =Einbauten!A50 -> 17.279.00..0000 | C84: =gettext(B84,Sprache!$D$1) -> Befestigungsmodul für Griff- und Haltesysteme | K84: 0 | L84: =Einbauten!B50 -> Stück | M84: 0 | U84: =IF(Einbauten!D50="",$V$16,Einbauten!D50) -> 0 | V84: =IF(Einbauten!F50="",$V$17,Einbauten!F50) -> 0 | W84: TRUE | X84: =IF(W84=TRUE,J84*Einbauten!E50,0) -> 0 | Y84: 0 | Z84: =$Y84*Einbauten!H50 -> 0 | AA84: =$Y84*Einbauten!I50 -> 0 | AB84: =$Y84*Einbauten!J50 -> 0 | AC84: =$Y84*Einbauten!K50 -> 0 | AD84: =$Y84*Einbauten!L50 -> 0 | AE84: =$Y84*Einbauten!G50 -> 0 | AF84: =CHOOSE(Preise_Prices!$X$9,0,Preise_Prices!O62,Preise_Prices!T62) -> 0 | AG84: 0 | AN84: 0
B85: =Einbauten!A51 -> 17.289.00..0000 | C85: =gettext(B85,Sprache!$D$1) -> Befestigungs-Modul für Griff- und Haltesysteme | K85: 0 | L85: =Einbauten!B51 -> Stück | M85: 0 | U85: =IF(Einbauten!D51="",$V$16,Einbauten!D51) -> 0 | V85: =IF(Einbauten!F51="",$V$17,Einbauten!F51) -> 0 | W85: TRUE | X85: =IF(W85=TRUE,J85*Einbauten!E51,0) -> 0 | Y85: 0 | Z85: =$Y85*Einbauten!H51 -> 0 | AA85: =$Y85*Einbauten!I51 -> 0 | AB85: =$Y85*Einbauten!J51 -> 0 | AC85: =$Y85*Einbauten!K51 -> 0 | AD85: =$Y85*Einbauten!L51 -> 0 | AE85: =$Y85*Einbauten!G51 -> 0 | AF85: =CHOOSE(Preise_Prices!$X$9,0,Preise_Prices!O63,Preise_Prices!T63) -> 0 | AG85: 0 | AN85: 0
U87: Summe | X87: =SUM(X38:X85) -> 0 | Y87: 0 | Z87: 0 | AA87: 0 | AB87: 0 | AC87: 0 | AD87: 0 | AE87: 0 | AG87: =SUM(AG38:AG85) -> 0 | AN87: =SUM(AN90:AN102) -> 0
B88: =gettext("G28",Sprache!$D$1) -> Materialbedarf für Tragwerk und Beplankung | AN88: =SUM(AN90:AN102) -> 0
U89: Material | V89: 1 Wand | X89: Wandaufbau | Y89: o. Beplank/m.SS | Z89: Red. Stab Wand | AA89: Material Wand | AB89: Material Einb. | AC89: Gesamt MatWand | AD89: Zeitbedarf/ Wand | AE89: Zeitbed./Einbaut. | AF89: Gesamt Zeit/Wand | AG89: Preis/Einheit | AH89: Preis/Wand | AI89: Preis/Einbauten | AJ89: Preis Gesamt | AN89: =SUM(AN90:AN102) -> 0
B90: =Basismaterial!A3 -> 02.208.00..0000 | C90: =gettext(B90,Sprache!$D$1) -> Stab (5m) | J90: =AC90 -> 0 | K90: =$D$8*J90 -> 0 | L90: =Basismaterial!C3 -> m | M90: =K90*AG90 -> 0 | U90: =B90 -> 02.208.00..0000 | V90: Tragwerk | X90: =IF($X$28=TRUE,INDEX(INDIRECT(CONCATENATE($X$1,$V$1)),MATCH($D$11,INDIRECT(CONCATENATE($Y$1,$V$1)),-1),2),0) -> 0 | Z90: =AD87 -> 0 | AA90: =SUM(X90:Z90) -> 0 | AB90: =Z87 -> 0 | AC90: =AA90+AB90 -> 0 | AD90: =Basismaterial!$D3*AA90 -> 0 | AE90: =Basismaterial!$D3*AB90 -> 0 | AF90: =AD90+AE90 -> 0 | AG90: =CHOOSE(Preise_Prices!$X$9,0,Preise_Prices!O68,Preise_Prices!T68) -> 0 | AH90: =AA90*AG90 -> 0 | AI90: =AG90*AB90 -> 0 | AJ90: =AH90+AI90 -> 0 | AK90: Tragwerk | AN90: =K90 -> 0
B91: =Basismaterial!A4 -> 02.596.00..0000 | C91: =gettext(B91,Sprache!$D$1) -> Universalspachtelmasse ( ca. 0,25 Kg/m2 ) | J91: =AC91 -> 0 | K91: =$D$8*J91 -> 0 | L91: =Basismaterial!C4 -> Kg | M91: =K91*AG91 -> 0 | U91: =B91 -> 02.596.00..0000 | V91: Beplankung | X91: =IF($X$28=TRUE,INDEX(INDIRECT(CONCATENATE($X$1,$V$1)),MATCH($D$11,INDIRECT(CONCATENATE($Y$1,$V$1)),-1),3),0) -> 0 | Y91: =IF(W111=TRUE,-X91,0) -> 0 | AA91: =SUM(X91:Z91) -> 0 | AC91: =AA91+AB91 -> 0 | AD91: =Basismaterial!$D4*AA91 -> 0 | AE91: =Basismaterial!$D4*AB91 -> 0 | AF91: =AD91+AE91 -> 0 | AG91: =CHOOSE(Preise_Prices!$X$9,0,Preise_Prices!O69,Preise_Prices!T69) -> 0 | AH91: =AA91*AG91 -> 0 | AI91: =AG91*AB91 -> 0 | AJ91: =AH91+AI91 -> 0 | AK91: Beplankung | AN91: 0
B92: =Basismaterial!A5 -> 02.597.00..0000 | C92: =gettext(B92,Sprache!$D$1) -> Senkkopf-Kreuzschlitzschraube zur Verkleidungsplatte | J92: 0 | K92: 0 | L92: =Basismaterial!C5 -> Stück | M92: 0 | U92: 02.597.00..0000 | V92: Beplankung | X92: =IF($X$28=TRUE,INDEX(INDIRECT(CONCATENATE($X$1,$V$1)),MATCH($D$11,INDIRECT(CONCATENATE($Y$1,$V$1)),-1),4),0) -> 0 | Y92: =IF(W111=TRUE,-X92,0) -> 0 | AA92: 0 | AC92: 0 | AD92: =Basismaterial!$D5*AA92 -> 0 | AE92: =Basismaterial!$D5*AB92 -> 0 | AF92: 0 | AG92: =CHOOSE(Preise_Prices!$X$9,0,Preise_Prices!O70,Preise_Prices!T70) -> 0 | AH92: 0 | AI92: 0 | AJ92: 0 | AK92: Beplankung | AN92: 0
B93: =Basismaterial!A6 -> 03.332.00..0000 | C93: =gettext(B93,Sprache!$D$1) -> Eckverbinder | J93: 0 | K93: 0 | L93: =Basismaterial!C6 -> Stück | M93: 0 | U93: 03.332.00..0000 | V93: Tragwerk | X93: =IF($X$28=TRUE,INDEX(INDIRECT(CONCATENATE($X$1,$V$1)),MATCH($D$11,INDIRECT(CONCATENATE($Y$1,$V$1)),-1),5),0) -> 0 | AA93: 0 | AB93: =AA87 -> 0 | AC93: 0 | AD93: =Basismaterial!$D6*AA93 -> 0 | AE93: =Basismaterial!$D6*AB93 -> 0 | AF93: 0 | AG93: =CHOOSE(Preise_Prices!$X$9,0,Preise_Prices!O71,Preise_Prices!T71) -> 0 | AH93: 0 | AI93: 0 | AJ93: 0 | AK93: Tragwerk | AN93: 0
B94: =Basismaterial!A7 -> 03.333.00..0000 | C94: =gettext(B94,Sprache!$D$1) -> Modulverbinder | J94: 0 | K94: 0 | L94: =Basismaterial!C7 -> Stück | M94: 0 | U94: 03.333.00..0000 | V94: nur Einbauten | AB94: =AB87 -> 0 | AC94: 0 | AD94: =Basismaterial!$D7*AA94 -> 0 | AE94: =Basismaterial!$D7*AB94 -> 0 | AF94: 0 | AG94: =CHOOSE(Preise_Prices!$X$9,0,Preise_Prices!O72,Preise_Prices!T72) -> 0 | AH94: 0 | AI94: 0 | AJ94: 0 | AK94: nur Einbauten | AN94: 0
B95: =Basismaterial!A8 -> 03.346.00..0000 | C95: =gettext(B95,Sprache!$D$1) -> Trennstreifen für Putzanschluss 20m | J95: 0 | K95: 0 | L95: =Basismaterial!C8 -> m | M95: 0 | U95: 03.346.00..0000 | V95: Tragwerk | X95: =IF($X$28=TRUE,INDEX(INDIRECT(CONCATENATE($X$1,$V$1)),MATCH($D$11,INDIRECT(CONCATENATE($Y$1,$V$1)),-1),6),0) -> 0 | Y95: =IF(W112=FALSE,-X95,0) -> 0 | AA95: 0 | AC95: 0 | AD95: =Basismaterial!$D8*AA95 -> 0 | AE95: =Basismaterial!$D8*AB95 -> 0 | AF95: 0 | AG95: =CHOOSE(Preise_Prices!$X$9,0,Preise_Prices!O73,Preise_Prices!T73) -> 0 | AH95: 0 | AI95: 0 | AJ95: 0 | AK95: Tragwerk | AN95: 0
B96: =Basismaterial!A9 -> 03.545.00..0000 | C96: =gettext(B96,Sprache!$D$1) -> Bauwerksanschluss | J96: 0 | K96: 0 | L96: =Basismaterial!C9 -> Stück | M96: 0 | U96: 03.545.00..0000 | V96: Tragwerk | X96: =IF($X$28=TRUE,INDEX(INDIRECT(CONCATENATE($X$1,$V$1)),MATCH($D$11,INDIRECT(CONCATENATE($Y$1,$V$1)),-1),7),0) -> 0 | AA96: 0 | AC96: 0 | AD96: =Basismaterial!$D9*AA96 -> 0 | AE96: =Basismaterial!$D9*AB96 -> 0 | AF96: 0 | AG96: =CHOOSE(Preise_Prices!$X$9,0,Preise_Prices!O74,Preise_Prices!T74) -> 0 | AH96: 0 | AI96: 0 | AJ96: 0 | AK96: Tragwerk | AN96: 0
B97: =Basismaterial!A10 -> 03.723.00..0000 | C97: =gettext(B97,Sprache!$D$1) -> Multiverbinder (Tiefe 155-215 mm) | J97: 0 | K97: 0 | L97: =Basismaterial!C10 -> Stück | M97: 0 | U97: 03.723.00..0000 | V97: Tragwerk | X97: =IF($X$28=TRUE,INDEX(INDIRECT(CONCATENATE($X$1,$V$1)),MATCH($D$11,INDIRECT(CONCATENATE($Y$1,$V$1)),-1),8),0) -> 0 | AA97: 0 | AC97: 0 | AD97: =Basismaterial!$D10*AA97 -> 0 | AE97: =Basismaterial!$D10*AB97 -> 0 | AF97: 0 | AG97: =CHOOSE(Preise_Prices!$X$9,0,Preise_Prices!O75,Preise_Prices!T75) -> 0 | AH97: 0 | AI97: 0 | AJ97: 0 | AK97: Tragwerk | AN97: 0
B98: =Basismaterial!A11 -> 03.723.00..S000 | C98: =gettext(B98,Sprache!$D$1) -> Multiverbinder (Tiefe 255-315 mm) | J98: 0 | K98: 0 | L98: =Basismaterial!C11 -> Stück | M98: 0 | U98: 03.723.00..S000 | V98: Tragwerk | X98: =IF($X$28=TRUE,INDEX(INDIRECT(CONCATENATE($X$1,$V$1)),MATCH($D$11,INDIRECT(CONCATENATE($Y$1,$V$1)),-1),9),0) -> 0 | AA98: 0 | AC98: 0 | AD98: =Basismaterial!$D11*AA98 -> 0 | AE98: =Basismaterial!$D11*AB98 -> 0 | AF98: 0 | AG98: =CHOOSE(Preise_Prices!$X$9,0,Preise_Prices!O76,Preise_Prices!T76) -> 0 | AH98: 0 | AI98: 0 | AJ98: 0 | AK98: Tragwerk | AN98: 0
B99: =Basismaterial!A12 -> 03.754.00..0000 | C99: =gettext(B99,Sprache!$D$1) -> Verbindungsset für VW-Elemente | J99: 0 | K99: 0 | L99: =Basismaterial!C12 -> Stück | M99: 0 | U99: 03.754.00..0000 | V99: nur Einbauten | AB99: =AC87 -> 0 | AC99: 0 | AD99: =Basismaterial!$D12*AA99 -> 0 | AE99: =Basismaterial!$D12*AB99 -> 0 | AF99: 0 | AG99: =CHOOSE(Preise_Prices!$X$9,0,Preise_Prices!O77,Preise_Prices!T77) -> 0 | AH99: 0 | AI99: 0 | AJ99: 0 | AK99: nur Einbauten | AN99: 0
B100: =Basismaterial!A13 -> 04.070.00..0000 | C100: =gettext(B100,Sprache!$D$1) -> Stützfuß für freistehende Wände | J100: =AC100 -> 0 | K100: 0 | L100: =Basismaterial!C13 -> Stück | M100: 0 | U100: 04.070.00..0000 | V100: Tragwerk | X100: =IF($X$28=TRUE,INDEX(INDIRECT(CONCATENATE($X$1,$V$1)),MATCH($D$11,INDIRECT(CONCATENATE($Y$1,$V$1)),-1),10),0) -> 0 | AA100: 0 | AC100: 0 | AD100: =Basismaterial!$D13*AA100 -> 0 | AE100: =Basismaterial!$D13*AB100 -> 0 | AF100: 0 | AG100: =CHOOSE(Preise_Prices!$X$9,0,Preise_Prices!O78,Preise_Prices!T78) -> 0 | AH100: 0 | AI100: 0 | AJ100: 0 | AK100: Tragwerk | AN100: 0
B101: =Basismaterial!A14 -> 16.032.00..0000 | C101: =gettext(B101,Sprache!$D$1) -> Schallschutzset zu INEO plus, 996 | J101: 0 | K101: 0 | L101: =Basismaterial!C14 -> Stück | M101: 0 | U101: 16.032.00..0000 | V101: Tragwerk | X101: =IF($X$28=TRUE,INDEX(INDIRECT(CONCATENATE($X$1,$V$1)),MATCH($D$11,INDIRECT(CONCATENATE($Y$1,$V$1)),-1),11),0) -> 0 | Y101: =IF(W112=FALSE,-X101,0) -> 0 | AA101: 0 | AC101: 0 | AD101: =Basismaterial!$D14*AA101 -> 0 | AE101: =Basismaterial!$D14*AB101 -> 0 | AF101: 0 | AG101: =CHOOSE(Preise_Prices!$X$9,0,Preise_Prices!O79,Preise_Prices!T79) -> 0 | AH101: 0 | AI101: 0 | AJ101: 0 | AK101: Tragwerk | AN101: 0
B102: =Basismaterial!A15 -> 17.115.00..S000 | C102: =gettext(B102,Sprache!$D$1) -> GKBI-Universalverkleidungsplatte ( 1300x600x18 mm ) | J102: 0 | K102: 0 | L102: =Basismaterial!C15 -> Stück | M102: 0 | U102: 17.115.00..S000 | V102: Beplankung | X102: =IF($X$28=TRUE,INDEX(INDIRECT(CONCATENATE($X$1,$V$1)),MATCH($D$11,INDIRECT(CONCATENATE($Y$1,$V$1)),-1),12),0) -> 0 | Y102: =IF(W111=TRUE,-X102,0) -> 0 | AA102: 0 | AC102: 0 | AD102: =Basismaterial!$D15*AA102 -> 0 | AE102: =Basismaterial!$D15*AB102 -> 0 | AF102: 0 | AG102: =CHOOSE(Preise_Prices!$X$9,0,Preise_Prices!O80,Preise_Prices!T80) -> 0 | AH102: 0 | AI102: 0 | AJ102: 0 | AK102: Beplankung | AN102: 0
B104: =IF(AD87<0,gettext("G57",Sprache!$D$1),gettext("G58",Sprache!$D$1)) -> * Für jeden gewählten Einbau wird der veränderte Materialbedarf ggü. Wänden ohne Einbauten automatisch berücksichtigt. | U104: Summen | V104: Tragwerk | X104: =X90+X93+X95+X96+X97+X98+X100+X101 -> 0 | Y104: =Y90+Y93+Y95+Y96+Y97+Y98+Y100+Y101 -> 0 | Z104: =Z90+Z93+Z95+Z96+Z97+Z98+Z100+Z101 -> 0 | AA104: =AA90+AA93+AA95+AA96+AA97+AA98+AA100+AA101 -> 0 | AD104: =AD90+AD93+AD95+AD96+AD97+AD98+AD100+AD101 -> 0 | AH104: =AH90+AH93+AH95+AH96+AH98+AH99+AH100+AH101 -> 0 | AK104: Tragwerk
V105: Einbauten | AB105: =SUM(AB90:AB102) -> 0 | AE105: =SUM(AE90:AE102) -> 0 | AI105: =SUM(AI90:AI102) -> 0 | AK105: Einbauten
V106: Beplankung | X106: =X91+X92+X102 -> 0 | Y106: =Y91+Y92+Y102 -> 0 | Z106: =Z91+Z92+Z102 -> 0 | AA106: =AA91+AA92+AA102 -> 0 | AD106: =AD91+AD92+AD102 -> 0 | AH106: =AH91+AH92+AH102 -> 0 | AK106: Beplankung
B107: =gettext("G29",Sprache!$D$1) -> Benötigte Montagezeit | J107: =gettext("G24",Sprache!$D$1) -> 1 Wand | K107: =gettext("G25",Sprache!$D$1) -> alle Wd. | V107: Elemente/Module | AE107: =AE87 -> 0 | AI107: =AG87 -> 0 | AK107: Elemente/Module
C109: =gettext("G31",Sprache!$D$1) -> Tragwerk | J109: =IF(X21=TRUE,AD104,0) -> 0 | K109: =$D$8*J109 -> 0 | L109: Min. | V109: Elem.+Zubehör | AE109: =AE105+AE107 -> 0 | AI109: =AI105+AI107 -> 0 | AK109: Elem.+Zubehör
C110: =gettext("G32",Sprache!$D$1) -> Elemente und Module | J110: =IF(X21=TRUE,AE109,0) -> 0 | K110: =$D$8*J110 -> 0 | L110: Min.
C111: =gettext("G33",Sprache!$D$1) -> Beplankung | J111: =IF(X21=TRUE,AD106,0) -> 0 | K111: =$D$8*J111 -> 0 | L111: Min. | V111: Beplankung Ja/Nein | W111: FALSE
J112: =SUM(J109:J111) -> 0 | K112: =SUM(K109:K111) -> 0 | L112: Min. | V112: Schallschutz Ja/Nein | W112: TRUE
V113: Beideseitig Ja/Nein | W113: FALSE
B114: =gettext("G30",Sprache!$D$1) -> Materialkosten | J114: =J107 -> 1 Wand | K114: =K107 -> alle Wd. | V114: Kollisionsprüfung | W114: TRUE
C116: =gettext("G31",Sprache!$D$1) -> Tragwerk | J116: =IF(X21=TRUE,AH104,0) -> 0 | K116: =$D$8*J116 -> 0 | L116: EUR | V116: Montagekosten berechnen und Angaben ok ? | W116: =Preise_Prices!$X$89 -> TRUE
C117: =gettext("G32",Sprache!$D$1) -> Elemente und Module | J117: =IF(X21=TRUE,AI109,0) -> 0 | K117: =$D$8*J117 -> 0 | L117: EUR | V117: Stundensatz in EUR/ min ? | W117: =IF(W116=TRUE,ROUND(Preise_Prices!L89/60,2),0) -> 0
C118: =gettext("G33",Sprache!$D$1) -> Beplankung | J118: =IF(X21=TRUE,AH106,0) -> 0 | K118: =$D$8*J118 -> 0 | L118: EUR | V118: Montagekosten insgesamt | W118: =W117*$K$112 -> 0
J119: =SUM(J116:J118) -> 0 | K119: =SUM(K116:K118) -> 0 | L119: EUR
B120: =gettext("G55",Sprache!$D$1)&CHOOSE(Preise_Prices!$X$9,Preise_Prices!C3,Preise_Prices!C4,Preise_Prices!C5)&gettext("G56",Sprache!$D$1) -> * Kosten auf Basis ohne Preise kalkulieren, siehe "Preise_Prices"
B126: =IF(Preise_Prices!$Y$82>0,gettext("F16",Sprache!$D$1),"") -> 
B127: =IF(Preise_Prices!$Y$82>0,gettext("F17",Sprache!$D$1),"") -> 

Sheet Information
B1: =gettext("C1",Sprache!$D$1) -> Informationen zum SANIT Schienensystem 996 für Trockenbau
B4: =gettext("C2",Sprache!$D$1) -> Stand : 31.03.2023
B6: - | C6: =gettext("C3",Sprache!$D$1) -> Schacht- und Vorwandsystem zur Trockenverkleidung für Sanitär-, Heizungs-, Lüftungs- und Elektroinstallationen für innenliegende
C7: =gettext("C4",Sprache!$D$1) -> Räume im Hochbau.
B9: - | C9: =gettext("C5",Sprache!$D$1) -> System für selbsttragende Sanitär-Montageelemente und Sanitär-Montagemodule, bestehend aus symmetrischem Spezialprofil
C10: =gettext("C6",Sprache!$D$1) -> 35 x 35 mm, Eckverbindern, Bauwerksanschlüssen, Multiverbindern, mit Verbindungsset zur Vorwandelementmontage in das
C11: =gettext("C7",Sprache!$D$1) -> System. Trennstreifen für Putzanschluss, GKBI System Platte 18 mm dick, mit selbstbohrenden Schrauben und Spachtelmasse.
C12: =gettext("C8",Sprache!$D$1) -> 0
B14: - | C14: =gettext("C9",Sprache!$D$1) -> Das SANIT Schienensystem 996 für Trockenbau eignet sich für folgende Wandtypen:
C16: - | D16: =gettext("C10",Sprache!$D$1) -> halbhohe oder raumhohe ein- oder zweiseitig befestigte Installationswände sowie Installationswände ohne seitliche Befestigung,
D17: =gettext("C11",Sprache!$D$1) -> Höhe ab OKFFB von 855 bis 3900 mm, Breite von 200 bis 5000 mm, Tiefe von 120 bis 600 mm
C19: - | D19: =gettext("C12",Sprache!$D$1) -> raumhohe, beidseitig befestigte Installationstrennwände,
D20: =gettext("C13",Sprache!$D$1) -> max. Höhe ab OKFFB 3900 mm, Tiefe 120 bis 600 mm
C22: - | D22: =gettext("C14",Sprache!$D$1) -> halbhohe freistehende Installationswände mit oder ohne seitliche Befestigung,
D23: =gettext("C15",Sprache!$D$1) -> Höhe 855 bis 1155 mm, max. Breite 2600 mm, Wandtiefe 200 bis 600 mm
C25: - | D25: =gettext("C16",Sprache!$D$1) -> Schachtaufsätze mit Deckenbefestigung
D26: =gettext("C17",Sprache!$D$1) -> max. Höhe 2745 mm, Breite 200 bis 5000 mm, 120 bis 600 mm
B29: - | C29: =gettext("C18",Sprache!$D$1) -> Die Angaben zum Materialbedarf beinhalten keinen Fußbodenaufbau!
B31: - | C31: =gettext("C19",Sprache!$D$1) -> Alle angegebenen Abmessungen sind ohne Berücksichtigung von Trockenverkleidungen und Wandbelägen.
C32: =gettext("C20",Sprache!$D$1) -> Das SANIT Schienensystem 996 für Trockenbau kann ohne / mit 18 mm dicker Systembeplankung bzw. ohne / mit
C33: =gettext("C21",Sprache!$D$1) -> Trennstreifen berechnet werden.
B35: - | C35: =gettext("C22",Sprache!$D$1) -> das SANIT Schienensystem 996 für Trockenbau kann als vom Auftragnehmer vormontierte Einheit auf die Baustelle
C36: =gettext("C23",Sprache!$D$1) -> eingebracht werden.
C37: =gettext("C24",Sprache!$D$1) -> tatsächliche Wandgrößen sind durch vorheriges Aufmass vor Ort zu prüfen.
B39: - | C39: =gettext("C25",Sprache!$D$1) -> die Verlegerichtlinien des SANIT Schienensystem 996 für Trockenbau gemäß technischer Information in der aktuellsten
C40: =gettext("C26",Sprache!$D$1) -> Form sowie die beigepackten Montageanleitungen sind zu beachten.
B42: - | C42: =gettext("C27",Sprache!$D$1) -> Die Software ist für eine maximale Anzahl von 30 verschiedenen, zu kalkulierenden Wandtypen pro Datei ausgelegt.
C43: =gettext("C28",Sprache!$D$1) -> Die über diese Anzahl hinausgehend kalkulierten Wände werden zwar berechnet, jedoch nicht in der Übersicht
C44: =gettext("C29",Sprache!$D$1) -> berücksichtigt. Bauvorhaben mit mehr als 30 Wänden sollten mit Hilfe von mehreren Dateien kalkuliert werden.
B46: - | C46: =gettext("C30",Sprache!$D$1) -> Die Software ermittelt auf der Grundlage der Eingaben des jeweiligen Nutzers Montagezeiten für Installationswände.
D48: =gettext("C31",Sprache!$D$1) -> Für diese Montagezeiten gilt die folgende Definition :
D50: =gettext("C32",Sprache!$D$1) -> Montagezeit :
D51: =gettext("C33",Sprache!$D$1) -> Die Montagezeit pro Installationswand ist die notwendige Zeit, um diese Wand einschließlich gewählter Einbauten
D52: =gettext("C34",Sprache!$D$1) -> mit dem zum Lieferumfang gehörenden Zubehör (ohne Medienanschlüsse) unter Voraussetzung tragfähiger Bau-
D53: =gettext("C35",Sprache!$D$1) -> körper fachgerecht zu montieren. Die ermittelten Montagezeiten sind Richtwerte und beinhalten nicht die Zeiten für
D54: =gettext("C36",Sprache!$D$1) -> Baustelleneinrichtung, Transporte, Anreißen von Wandabmessungen sowie das Bohren in verschiedene
D55: =gettext("C37",Sprache!$D$1) -> Baukörpermaterialien.
B57: - | C57: =gettext("C38",Sprache!$D$1) -> Um korrekte Materialberechnungen zu gewährleisten ist die Eingabe von Elementen und Modulen in den Eingabemasken
C58: =gettext("C39",Sprache!$D$1) -> der einzelnen Wandtypen erforderlich.
B60: - | C60: =gettext("C40",Sprache!$D$1) -> Das System prüft, wieviele Elemente bzw. Module sich bei einer bestimmten Wandbreite montieren lassen.
C61: =gettext("C41",Sprache!$D$1) -> Mindestbewegungsflächen sanitärer Objekte werden jedoch nicht berücksichtigt.
C64: =gettext("C42",Sprache!$D$1) -> Änderungen im Sinne technischer Weiterentwicklungen sind vorbehalten.

Sheet Wandtypen_Walltypes
B1: =gettext("E1",Sprache!$D$1) -> Angaben zum Bauvorhaben/ Projekt : | E1: =gettext("E5",Sprache!$D$1) -> Bauvorhaben / Projekt : | K1: =gettext("E7",Sprache!$D$1) -> Projekt-Nr. :
B2: =gettext("E2",Sprache!$D$1) -> ( *freiwillig ) | E2: =gettext("E6",Sprache!$D$1) -> Sachbearbeiter : | K2: =gettext("E8",Sprache!$D$1) -> Datum :
B6: =gettext("E3",Sprache!$D$1) -> Auswahl der Wandtypen : | C6: =gettext("E4",Sprache!$D$1) -> (Auswahl durch Klick auf entsprechende Schaltfläche !)
E8: =gettext("E10",Sprache!$D$1) -> Halbhohe Wände: | L8: =gettext("E11",Sprache!$D$1) -> Raumhohe Wände
B9: =gettext("E9",Sprache!$D$1) -> Wandtyp | C9: =gettext("E12",Sprache!$D$1) -> Bauhöhe ab OKFFB : | E9: mm | F9: =gettext("E23",Sprache!$D$1) -> bis 855 | I9: =gettext("E24",Sprache!$D$1) -> bis 1155 | L9: mm | M9: =gettext("E25",Sprache!$D$1) -> bis 2600 | P9: =gettext("E26",Sprache!$D$1) -> bis 3300 | S9: =gettext("E27",Sprache!$D$1) -> bis 3900
C10: =gettext("E13",Sprache!$D$1) -> Wandtiefe : | E10: mm | F10: 155 - 215 | G10: 255 - 315 | H10: 120 - 600 | I10: 155 - 215 | J10: 255 - 315 | K10: 120 - 600 | L10: mm | M10: 155 - 215 | N10: 255 - 315 | O10: 120 - 600 | P10: 155 - 215 | Q10: 255 - 315 | R10: 120 - 600 | S10: 155 - 215 | T10: 255 - 315 | U10: 120 - 600
B12: =gettext("E14",Sprache!$D$1) -> Vorwand vor Massivwand | C12: =gettext("E18",Sprache!$D$1) -> zweiseitig befestigt
C13: =gettext("E19",Sprache!$D$1) -> einseitig befestigt
C14: =gettext("E20",Sprache!$D$1) -> ohne seitliche Befestigung
B16: =gettext("E15",Sprache!$D$1) -> Installationstrennwand | C16: =gettext("E18",Sprache!$D$1) -> zweiseitig befestigt
E18: =gettext("E10",Sprache!$D$1) -> Halbhohe Wände:
B19: =gettext("E9",Sprache!$D$1) -> Wandtyp | C19: =gettext("E12",Sprache!$D$1) -> Bauhöhe ab OKFFB : | E19: mm | F19: =gettext("E28",Sprache!$D$1) -> 855 bis 1155
C20: =gettext("E13",Sprache!$D$1) -> Wandtiefe : | E20: mm | F20: 200 - 215 | G20: 255 - 315 | H20: 316 - 600
B22: =gettext("E16",Sprache!$D$1) -> Freistehende Wand | C22: =gettext("E19",Sprache!$D$1) -> einseitig befestigt
C23: =gettext("E20",Sprache!$D$1) -> ohne seitliche Befestigung
E25: =gettext("E17",Sprache!$D$1) -> Schachtaufsatz
B26: =gettext("E9",Sprache!$D$1) -> Wandtyp | C26: =gettext("E12",Sprache!$D$1) -> Bauhöhe ab OKFFB : | E26: mm | F26: =gettext("E22",Sprache!$D$1) -> bis 600 | I26: =gettext("E29",Sprache!$D$1) -> bis 1445 | L26: mm | M26: =gettext("E30",Sprache!$D$1) -> bis 2745
C27: =gettext("E13",Sprache!$D$1) -> Wandtiefe : | E27: mm | F27: 155 - 215 | G27: 255 - 315 | H27: 120 - 600 | I27: 155 - 215 | J27: 255 - 315 | K27: 120 - 600 | L27: mm | M27: 155 - 215 | N27: 255 - 315 | O27: 120 - 600
B29: =gettext("E17",Sprache!$D$1) -> Schachtaufsatz | C29: =gettext("E18",Sprache!$D$1) -> zweiseitig befestigt
C30: =gettext("E19",Sprache!$D$1) -> einseitig befestigt
C31: =gettext("E20",Sprache!$D$1) -> ohne seitliche Befestigung
G34: =gettext("E21",Sprache!$D$1) -> Verwendung falls die Zuordnung der Elemente und Module auf einzelne Wände nicht bekannt ist.

Sheet Preise_Prices
B1: =gettext("F1",Sprache!$D$1) -> Auswahl der Artikelpreise und Stundensätze als Preisbasis für die Kalkulation
C3: =gettext("F17",Sprache!$D$1) -> ohne Preise kalkulieren
C4: =L8&" - "&L9 -> Preise 1 - | I4: =IF($Y$82>0,gettext("F12",Sprache!$D$1),"") -> 
C5: =Q8&" - "&Q9 -> Preise 2 - | I5: =IF($Y$82>0,gettext("F13",Sprache!$D$1),"") -> 
I6: =IF($Y$82>0,gettext("F14",Sprache!$D$1),"") -> 
L8: =gettext("F3",Sprache!$D$1) -> Preise 1 | M8: 0 | N8: 0 | Q8: =gettext("F4",Sprache!$D$1) -> Preise 2 | R8: 0 | S8: 0 | X8: Gewählte Preisbasis:
X9: 1
B12: =WT!B35 -> Artikel-Nr. | C12: =WT!C35 -> Bezeichnung | D12: Artikel-Nr. | E12: Artikel-Nr. | F12: Artikel-Nr. | G12: Artikel-Nr. | H12: Artikel-Nr. | I12: Artikel-Nr. | J12: Artikel-Nr. | L12: =gettext("F5",Sprache!$D$1) -> Preis | M12: =gettext("F6",Sprache!$D$1) -> Preis- | N12: =gettext("F8",Sprache!$D$1) -> Einheit | Q12: =gettext("F5",Sprache!$D$1) -> Preis | R12: =gettext("F6",Sprache!$D$1) -> Preis- | S12: =gettext("F8",Sprache!$D$1) -> Einheit | W12: ohne Preise | X12: AP 1 | Y12: AP 2
B13: keine Elemente | C13: keine Elemente | D13: keine Elemente | E13: keine Elemente | F13: keine Elemente | G13: keine Elemente | H13: keine Elemente | I13: keine Elemente | J13: keine Elemente | L13: keine Elemente | M13: =gettext("F7",Sprache!$D$1) -> einheit | Q13: keine Elemente | R13: =gettext("F7",Sprache!$D$1) -> einheit
B15: =Einbauten!A3 -> WC-Elemente
B16: =Einbauten!A4 -> 90.745.00..T000 | C16: =gettext(B16,Sprache!$D$1) -> INEO FRONTOP WC-El., kl. RÖ, Betät. v.vorn/oben, BH 820 mm | N16: =Einbauten!B4 -> Stück | O16: =IF(M16>0,L16/M16,0) -> 0 | S16: =N16 -> Stück | T16: =IF(R16>0,Q16/R16,0) -> 0 | W16: TRUE | X16: =IF($X$9=2,IF(Übersicht_Summary!$J52=0,TRUE,AND(L16>0,M16>0)),TRUE) -> TRUE | Y16: =IF($X$9=3,IF(Übersicht_Summary!$J52=0,TRUE,AND(Q16>0,R16>0)),TRUE) -> TRUE
B17: =Einbauten!A5 -> 90.738.00..T000 | C17: =gettext(B17,Sprache!$D$1) -> INEO FRONTOP WC-El., kl. RÖ, Betät. v.vorn/oben, BH 985 mm | N17: =Einbauten!B5 -> Stück | O17: =IF(M17>0,L17/M17,0) -> 0 | S17: =N17 -> Stück | T17: =IF(R17>0,Q17/R17,0) -> 0 | W17: TRUE | X17: =IF($X$9=2,IF(Übersicht_Summary!$J53=0,TRUE,AND(L17>0,M17>0)),TRUE) -> TRUE | Y17: =IF($X$9=3,IF(Übersicht_Summary!$J53=0,TRUE,AND(Q17>0,R17>0)),TRUE) -> TRUE
B18: =Einbauten!A6 -> 90.743.00..T000 | C18: =gettext(B18,Sprache!$D$1) -> INEO PLUS WC-El., kl. RÖ, Betät. v. vorn, BH 1120 mm, Breite 450 mm o. Wandhalter | N18: =Einbauten!B6 -> Stück | O18: 0 | S18: Stück | T18: 0 | W18: TRUE | X18: =IF($X$9=2,IF(Übersicht_Summary!$J54=0,TRUE,AND(L18>0,M18>0)),TRUE) -> TRUE | Y18: =IF($X$9=3,IF(Übersicht_Summary!$J54=0,TRUE,AND(Q18>0,R18>0)),TRUE) -> TRUE
B19: =Einbauten!A7 -> 90.735.00..T000 | C19: =gettext(B19,Sprache!$D$1) -> INEO WC-El. für Stand-/Kinder-WC, kl. RÖ, Betät. v. vorn, BH 1120 mm | N19: =Einbauten!B7 -> Stück | O19: 0 | S19: Stück | T19: 0 | W19: TRUE | X19: =IF($X$9=2,IF(Übersicht_Summary!$J55=0,TRUE,AND(L19>0,M19>0)),TRUE) -> TRUE | Y19: =IF($X$9=3,IF(Übersicht_Summary!$J55=0,TRUE,AND(Q19>0,R19>0)),TRUE) -> TRUE
B20: =Einbauten!A8 -> Waschtisch- und Ausgussbecken-Elemente
B21: =Einbauten!A9 -> 90.672.00..T000 | C21: =gettext(B21,Sprache!$D$1) -> INEO WT-Element für Einlocharmaturen, BH 820 mm | N21: =Einbauten!B9 -> Stück | O21: =IF(M21>0,L21/M21,0) -> 0 | S21: =N21 -> Stück | T21: =IF(R21>0,Q21/R21,0) -> 0 | W21: TRUE | X21: =IF($X$9=2,IF(Übersicht_Summary!$J57=0,TRUE,AND(L21>0,M21>0)),TRUE) -> TRUE | Y21: =IF($X$9=3,IF(Übersicht_Summary!$J57=0,TRUE,AND(Q21>0,R21>0)),TRUE) -> TRUE
B22: =Einbauten!A10 -> 90.669.00..T000 | C22: =gettext(B22,Sprache!$D$1) -> INEO WT-Element für Einlocharmaturen, BH 985 mm | N22: =Einbauten!B10 -> Stück | O22: =IF(M22>0,L22/M22,0) -> 0 | S22: =N22 -> Stück | T22: =IF(R22>0,Q22/R22,0) -> 0 | W22: TRUE | X22: =IF($X$9=2,IF(Übersicht_Summary!$J58=0,TRUE,AND(L22>0,M22>0)),TRUE) -> TRUE | Y22: =IF($X$9=3,IF(Übersicht_Summary!$J58=0,TRUE,AND(Q22>0,R22>0)),TRUE) -> TRUE
B23: =Einbauten!A11 -> 90.696.00..T000 | C23: =gettext(B23,Sprache!$D$1) -> INEO WT-Element für Einlocharmaturen, BH 1120 mm | N23: =Einbauten!B11 -> Stück | O23: 0 | S23: Stück | T23: 0 | W23: TRUE | X23: =IF($X$9=2,IF(Übersicht_Summary!$J59=0,TRUE,AND(L23>0,M23>0)),TRUE) -> TRUE | Y23: =IF($X$9=3,IF(Übersicht_Summary!$J59=0,TRUE,AND(Q23>0,R23>0)),TRUE) -> TRUE
B24: =Einbauten!A12 -> 90.671.00..T000 | C24: =gettext(B24,Sprache!$D$1) -> INEO WT-Element für AP-Wandarmaturen, BH 1120 - 1185 mm | N24: =Einbauten!B12 -> Stück | O24: 0 | S24: Stück | T24: 0 | W24: TRUE | X24: =IF($X$9=2,IF(Übersicht_Summary!$J60=0,TRUE,AND(L24>0,M24>0)),TRUE) -> TRUE | Y24: =IF($X$9=3,IF(Übersicht_Summary!$J60=0,TRUE,AND(Q24>0,R24>0)),TRUE) -> TRUE
B25: =Einbauten!A13 -> 90.677.00..T000 | C25: =gettext(B25,Sprache!$D$1) -> INEO Ausguss-Element für Wandarmaturen, BH 1120 - 1185 mm | N25: =Einbauten!B13 -> Stück | O25: 0 | S25: Stück | T25: 0 | W25: TRUE | X25: =IF($X$9=2,IF(Übersicht_Summary!$J61=0,TRUE,AND(L25>0,M25>0)),TRUE) -> TRUE | Y25: =IF($X$9=3,IF(Übersicht_Summary!$J61=0,TRUE,AND(Q25>0,R25>0)),TRUE) -> TRUE
B26: =Einbauten!A14 -> 90.691.00..T000 | C26: =gettext(B26,Sprache!$D$1) -> INEO WT-El. für Einlocharmaturen mit 2 UP-Wasserzählerstrecken, BH 985 mm | N26: =Einbauten!B14 -> Stück | O26: 0 | S26: Stück | T26: 0 | W26: TRUE | X26: =IF($X$9=2,IF(Übersicht_Summary!$J62=0,TRUE,AND(L26>0,M26>0)),TRUE) -> TRUE | Y26: =IF($X$9=3,IF(Übersicht_Summary!$J62=0,TRUE,AND(Q26>0,R26>0)),TRUE) -> TRUE
B27: =Einbauten!A15 -> 90.687.00..T000 | C27: =gettext(B27,Sprache!$D$1) -> INEO WT-El. für Einlocharmaturen mit 2 UP-Wasserzählerstrecken, BH 1120 mm | N27: =Einbauten!B15 -> Stück | O27: 0 | S27: Stück | T27: 0 | W27: TRUE | X27: =IF($X$9=2,IF(Übersicht_Summary!$J63=0,TRUE,AND(L27>0,M27>0)),TRUE) -> TRUE | Y27: =IF($X$9=3,IF(Übersicht_Summary!$J63=0,TRUE,AND(Q27>0,R27>0)),TRUE) -> TRUE
B28: =Einbauten!A16 -> 90.689.00..T000 | C28: =gettext(B28,Sprache!$D$1) -> INEO WT-El. für Einlocharmaturen, UP-Montage v. Durchlauferhitzern, BH 1120 mm | N28: =Einbauten!B16 -> Stück | O28: 0 | S28: Stück | T28: 0 | W28: TRUE | X28: =IF($X$9=2,IF(Übersicht_Summary!$J64=0,TRUE,AND(L28>0,M28>0)),TRUE) -> TRUE | Y28: =IF($X$9=3,IF(Übersicht_Summary!$J64=0,TRUE,AND(Q28>0,R28>0)),TRUE) -> TRUE
B29: =Einbauten!A17 -> 90.688.00..T000 | C29: =gettext(B29,Sprache!$D$1) -> INEO LINNUM Leer-Element, BH 1120 mm | N29: =Einbauten!B17 -> Stück | O29: 0 | S29: Stück | T29: 0 | W29: TRUE | X29: =IF($X$9=2,IF(Übersicht_Summary!$J65=0,TRUE,AND(L29>0,M29>0)),TRUE) -> TRUE | Y29: =IF($X$9=3,IF(Übersicht_Summary!$J65=0,TRUE,AND(Q29>0,R29>0)),TRUE) -> TRUE
B30: =Einbauten!A18 -> 90.659.00..0000 | C30: =gettext(B30,Sprache!$D$1) -> INEO-Fäkalausguss-El. für Ausguss "Publica", kl. RÖ, Betät. v. vorn, BH 1530 mm | N30: =Einbauten!B18 -> Stück | O30: 0 | S30: Stück | T30: 0 | W30: TRUE | X30: =IF($X$9=2,IF(Übersicht_Summary!$J66=0,TRUE,AND(L30>0,M30>0)),TRUE) -> TRUE | Y30: =IF($X$9=3,IF(Übersicht_Summary!$J66=0,TRUE,AND(Q30>0,R30>0)),TRUE) -> TRUE
B31: =Einbauten!A19 -> Bidet- und Urinal-Elemente
B32: =Einbauten!A20 -> 90.663.00..T000 | C32: =gettext(B32,Sprache!$D$1) -> INEO Bidet-Element, BH 820 mm | N32: =Einbauten!B20 -> Stück | O32: =IF(M32>0,L32/M32,0) -> 0 | S32: =N32 -> Stück | T32: =IF(R32>0,Q32/R32,0) -> 0 | W32: TRUE | X32: =IF($X$9=2,IF(Übersicht_Summary!$J68=0,TRUE,AND(L32>0,M32>0)),TRUE) -> TRUE | Y32: =IF($X$9=3,IF(Übersicht_Summary!$J68=0,TRUE,AND(Q32>0,R32>0)),TRUE) -> TRUE
B33: =Einbauten!A21 -> 90.662.00..T000 | C33: =gettext(B33,Sprache!$D$1) -> INEO Bidet-Element, BH 985 mm | N33: =Einbauten!B21 -> Stück | O33: =IF(M33>0,L33/M33,0) -> 0 | S33: =N33 -> Stück | T33: =IF(R33>0,Q33/R33,0) -> 0 | W33: TRUE | X33: =IF($X$9=2,IF(Übersicht_Summary!$J69=0,TRUE,AND(L33>0,M33>0)),TRUE) -> TRUE | Y33: =IF($X$9=3,IF(Übersicht_Summary!$J69=0,TRUE,AND(Q33>0,R33>0)),TRUE) -> TRUE
B34: =Einbauten!A22 -> 90.676.00..T000 | C34: =gettext(B34,Sprache!$D$1) -> INEO Bidet-Element, BH 1120 mm | N34: =Einbauten!B22 -> Stück | O34: 0 | S34: Stück | T34: 0 | W34: TRUE | X34: =IF($X$9=2,IF(Übersicht_Summary!$J70=0,TRUE,AND(L34>0,M34>0)),TRUE) -> TRUE | Y34: =IF($X$9=3,IF(Übersicht_Summary!$J70=0,TRUE,AND(Q34>0,R34>0)),TRUE) -> TRUE
B35: =Einbauten!A23 -> 90.668.00..T000 | C35: =gettext(B35,Sprache!$D$1) -> INEO Urinal-Element, für Urinal-Kartuschenventiltechnik, BH 1120 - 1185 mm | N35: =Einbauten!B23 -> Stück | O35: 0 | S35: Stück | T35: 0 | W35: TRUE | X35: =IF($X$9=2,IF(Übersicht_Summary!$J71=0,TRUE,AND(L35>0,M35>0)),TRUE) -> TRUE | Y35: =IF($X$9=3,IF(Übersicht_Summary!$J71=0,TRUE,AND(Q35>0,R35>0)),TRUE) -> TRUE
B36: =Einbauten!A24 -> 90.675.00..T000 | C36: =gettext(B36,Sprache!$D$1) -> INEO Urinal-Element für Aufputzdruckspüler, BH 1120 - 1185 mm | N36: =Einbauten!B24 -> Stück | O36: 0 | S36: Stück | T36: 0 | W36: TRUE | X36: =IF($X$9=2,IF(Übersicht_Summary!$J72=0,TRUE,AND(L36>0,M36>0)),TRUE) -> TRUE | Y36: =IF($X$9=3,IF(Übersicht_Summary!$J72=0,TRUE,AND(Q36>0,R36>0)),TRUE) -> TRUE
B37: =Einbauten!A25 -> Bade-und Brausewannen
B38: =Einbauten!A26 -> 90.681.00..T000 | C38: =gettext(B38,Sprache!$D$1) -> INEO BW-Element für Aufputzwandarmaturen, BH 1120-1185 mm | N38: =Einbauten!B26 -> Stück | O38: =IF(M38>0,L38/M38,0) -> 0 | S38: =N38 -> Stück | T38: =IF(R38>0,Q38/R38,0) -> 0 | W38: TRUE | X38: =IF($X$9=2,IF(Übersicht_Summary!$J74=0,TRUE,AND(L38>0,M38>0)),TRUE) -> TRUE | Y38: =IF($X$9=3,IF(Übersicht_Summary!$J74=0,TRUE,AND(Q38>0,R38>0)),TRUE) -> TRUE
B39: =Einbauten!A27 -> 90.682.00..T000 | C39: =gettext(B39,Sprache!$D$1) -> INEO BW-Element für UP-Armaturen, BH 1120-1185 mm | N39: =Einbauten!B27 -> Stück | O39: =IF(M39>0,L39/M39,0) -> 0 | S39: =N39 -> Stück | T39: =IF(R39>0,Q39/R39,0) -> 0 | W39: TRUE | X39: =IF($X$9=2,IF(Übersicht_Summary!$J75=0,TRUE,AND(L39>0,M39>0)),TRUE) -> TRUE | Y39: =IF($X$9=3,IF(Übersicht_Summary!$J75=0,TRUE,AND(Q39>0,R39>0)),TRUE) -> TRUE
B40: =Einbauten!A28 -> Waschtisch- und Urinal-Module (Sanitärfunktion ohne Trockenbaurahmen)
B41: =Einbauten!A29 -> 17.276.00..0000 | C41: =gettext(B41,Sprache!$D$1) -> WT-Modul für Einloch- und AP-Wandarmaturen | N41: =Einbauten!B29 -> Stück | O41: =IF(M41>0,L41/M41,0) -> 0 | S41: =N41 -> Stück | T41: =IF(R41>0,Q41/R41,0) -> 0 | W41: TRUE | X41: =IF($X$9=2,IF(Übersicht_Summary!$J77=0,TRUE,AND(L41>0,M41>0)),TRUE) -> TRUE | Y41: =IF($X$9=3,IF(Übersicht_Summary!$J77=0,TRUE,AND(Q41>0,R41>0)),TRUE) -> TRUE
B42: =Einbauten!A30 -> 17.286.00..0000 | C42: =gettext(B42,Sprache!$D$1) -> Waschtisch-Modul für Einlocharmaturen | N42: =Einbauten!B30 -> Stück | O42: =IF(M42>0,L42/M42,0) -> 0 | S42: =N42 -> Stück | T42: =IF(R42>0,Q42/R42,0) -> 0 | W42: TRUE | X42: =IF($X$9=2,IF(Übersicht_Summary!$J78=0,TRUE,AND(L42>0,M42>0)),TRUE) -> TRUE | Y42: =IF($X$9=3,IF(Übersicht_Summary!$J78=0,TRUE,AND(Q42>0,R42>0)),TRUE) -> TRUE
B43: =Einbauten!A31 -> 03.877.00..0000 | C43: =gettext(B43,Sprache!$D$1) -> Modul für Waschtisch und Ausgussbecken mit AP-Armatur | N43: =Einbauten!B31 -> Stück | O43: =IF(M43>0,L43/M43,0) -> 0 | S43: =N43 -> Stück | T43: =IF(R43>0,Q43/R43,0) -> 0 | W43: TRUE | X43: =IF($X$9=2,IF(Übersicht_Summary!$J79=0,TRUE,AND(L43>0,M43>0)),TRUE) -> TRUE | Y43: =IF($X$9=3,IF(Übersicht_Summary!$J79=0,TRUE,AND(Q43>0,R43>0)),TRUE) -> TRUE
B44: =Einbauten!A32 -> Weitere Module (Sanitärfunktion ohne Trockenbaurahmen) & Zubehör
B45: =Einbauten!A33 -> 17.268.00..0000 | C45: =gettext(B45,Sprache!$D$1) -> Modul für UP- oder AP-Armaturen | N45: =Einbauten!B33 -> Stück | O45: =IF(M45>0,L45/M45,0) -> 0 | S45: =N45 -> Stück | T45: =IF(R45>0,Q45/R45,0) -> 0 | W45: TRUE | X45: =IF($X$9=2,IF(Übersicht_Summary!$J81=0,TRUE,AND(L45>0,M45>0)),TRUE) -> TRUE | Y45: =IF($X$9=3,IF(Übersicht_Summary!$J81=0,TRUE,AND(Q45>0,R45>0)),TRUE) -> TRUE
B46: =Einbauten!A34 -> 17.287.00..0000 | C46: =gettext(B46,Sprache!$D$1) -> Modul für UP- oder AP-Armaturen | N46: =Einbauten!B34 -> Stück | O46: =IF(M46>0,L46/M46,0) -> 0 | S46: =N46 -> Stück | T46: =IF(R46>0,Q46/R46,0) -> 0 | W46: TRUE | X46: =IF($X$9=2,IF(Übersicht_Summary!$J82=0,TRUE,AND(L46>0,M46>0)),TRUE) -> TRUE | Y46: =IF($X$9=3,IF(Übersicht_Summary!$J82=0,TRUE,AND(Q46>0,R46>0)),TRUE) -> TRUE
B47: =Einbauten!A35 -> 17.275.00..0000 | C47: =gettext(B47,Sprache!$D$1) -> Modul für Aufputzwandbatterien | N47: =Einbauten!B35 -> Stück | O47: 0 | S47: Stück | T47: 0 | W47: TRUE | X47: =IF($X$9=2,IF(Übersicht_Summary!$J83=0,TRUE,AND(L47>0,M47>0)),TRUE) -> TRUE | Y47: =IF($X$9=3,IF(Übersicht_Summary!$J83=0,TRUE,AND(Q47>0,R47>0)),TRUE) -> TRUE
B48: =Einbauten!A36 -> 17.282.00..0000 | C48: =gettext(B48,Sprache!$D$1) -> Modul für Waschmaschinenanschluss | N48: =Einbauten!B36 -> Stück | O48: 0 | S48: Stück | T48: 0 | W48: TRUE | X48: =IF($X$9=2,IF(Übersicht_Summary!$J84=0,TRUE,AND(L48>0,M48>0)),TRUE) -> TRUE | Y48: =IF($X$9=3,IF(Übersicht_Summary!$J84=0,TRUE,AND(Q48>0,R48>0)),TRUE) -> TRUE
B49: =Einbauten!A37 -> 17.216.00..0000 | C49: =gettext(B49,Sprache!$D$1) -> Befestigungsmodul für schwere Gegenstände, Griffe u.ä. | N49: =Einbauten!B37 -> Stück | O49: 0 | S49: Stück | T49: 0 | W49: TRUE | X49: =IF($X$9=2,IF(Übersicht_Summary!$J85=0,TRUE,AND(L49>0,M49>0)),TRUE) -> TRUE | Y49: =IF($X$9=3,IF(Übersicht_Summary!$J85=0,TRUE,AND(Q49>0,R49>0)),TRUE) -> TRUE
B50: =Einbauten!A38 -> 17.280.00..0000 | C50: =gettext(B50,Sprache!$D$1) -> Befestigungsmodul für Küchenanschlüsse | N50: =Einbauten!B38 -> Stück | O50: 0 | S50: Stück | T50: 0 | W50: TRUE | X50: =IF($X$9=2,IF(Übersicht_Summary!$J86=0,TRUE,AND(L50>0,M50>0)),TRUE) -> TRUE | Y50: =IF($X$9=3,IF(Übersicht_Summary!$J86=0,TRUE,AND(Q50>0,R50>0)),TRUE) -> TRUE
B51: =Einbauten!A39 -> 17.239.00..0000 | C51: =gettext(B51,Sprache!$D$1) -> Ergänzungsmodul für Sitzbefestigung | N51: =Einbauten!B39 -> Stück | O51: 0 | S51: Stück | T51: 0 | W51: TRUE | X51: =IF($X$9=2,IF(Übersicht_Summary!$J87=0,TRUE,AND(L51>0,M51>0)),TRUE) -> TRUE | Y51: =IF($X$9=3,IF(Übersicht_Summary!$J87=0,TRUE,AND(Q51>0,R51>0)),TRUE) -> TRUE
B52: =Einbauten!A40 -> 17.281.00..0000 | C52: =gettext(B52,Sprache!$D$1) -> Modul für Wandscheiben | N52: =Einbauten!B40 -> Stück | O52: 0 | S52: Stück | T52: 0 | W52: TRUE | X52: =IF($X$9=2,IF(Übersicht_Summary!$J88=0,TRUE,AND(L52>0,M52>0)),TRUE) -> TRUE | Y52: =IF($X$9=3,IF(Übersicht_Summary!$J88=0,TRUE,AND(Q52>0,R52>0)),TRUE) -> TRUE
B53: =Einbauten!A41 -> 05.132.00..0000 | C53: =gettext(B53,Sprache!$D$1) -> Dachschrägen-Anschluss | N53: =Einbauten!B41 -> Stück | O53: =IF(M53>0,L53/M53,0) -> 0 | S53: =N53 -> Stück | T53: =IF(R53>0,Q53/R53,0) -> 0 | W53: TRUE | X53: =IF($X$9=2,IF(Übersicht_Summary!$J89=0,TRUE,AND(L53>0,M53>0)),TRUE) -> TRUE | Y53: =IF($X$9=3,IF(Übersicht_Summary!$J89=0,TRUE,AND(Q53>0,R53>0)),TRUE) -> TRUE
B54: =Einbauten!A42 -> 05.201.00..0000 | C54: =gettext(B54,Sprache!$D$1) -> Rohrschellenbefestigung | N54: =Einbauten!B42 -> Stück | O54: 0 | S54: Stück | T54: 0 | W54: TRUE | X54: =IF($X$9=2,IF(Übersicht_Summary!$J90=0,TRUE,AND(L54>0,M54>0)),TRUE) -> TRUE | Y54: =IF($X$9=3,IF(Übersicht_Summary!$J90=0,TRUE,AND(Q54>0,R54>0)),TRUE) -> TRUE
B55: =Einbauten!A43 -> barrierefreie Elemente und Module
B56: =Einbauten!A44 -> 90.685.00..T000 | C56: =gettext(B56,Sprache!$D$1) -> INEO WT-Element für Einlocharmaturen, behinderteng. BH 820 mm | N56: =Einbauten!B44 -> Stück | O56: =IF(M56>0,L56/M56,0) -> 0 | S56: =N56 -> Stück | T56: =IF(R56>0,Q56/R56,0) -> 0 | W56: TRUE | X56: =IF($X$9=2,IF(Übersicht_Summary!$J92=0,TRUE,AND(L56>0,M56>0)),TRUE) -> TRUE | Y56: =IF($X$9=3,IF(Übersicht_Summary!$J92=0,TRUE,AND(Q56>0,R56>0)),TRUE) -> TRUE
B57: =Einbauten!A45 -> 90.673.00..T000 | C57: =gettext(B57,Sprache!$D$1) -> INEO WT-El. für Einloch- o. AP-Wandarmaturen, behinderteng., BH 1120 - 1185 mm | N57: =Einbauten!B45 -> Stück | O57: =IF(M57>0,L57/M57,0) -> 0 | S57: =N57 -> Stück | T57: =IF(R57>0,Q57/R57,0) -> 0 | W57: TRUE | X57: =IF($X$9=2,IF(Übersicht_Summary!$J93=0,TRUE,AND(L57>0,M57>0)),TRUE) -> TRUE | Y57: =IF($X$9=3,IF(Übersicht_Summary!$J93=0,TRUE,AND(Q57>0,R57>0)),TRUE) -> TRUE
B58: =Einbauten!A46 -> 90.744.00..T000 | C58: =gettext(B58,Sprache!$D$1) -> INEO PLUS WC-El., kl. RÖ, Betät. v. vorn, behindertengerecht, BH 1120 mm | N58: =Einbauten!B46 -> Stück | O58: 0 | S58: Stück | T58: 0 | W58: TRUE | X58: =IF($X$9=2,IF(Übersicht_Summary!$J94=0,TRUE,AND(L58>0,M58>0)),TRUE) -> TRUE | Y58: =IF($X$9=3,IF(Übersicht_Summary!$J94=0,TRUE,AND(Q58>0,R58>0)),TRUE) -> TRUE
B59: =Einbauten!A47 -> 90.680.00..TR00 | C59: =gettext(B59,Sprache!$D$1) -> Befest.-El. rechts für Griff- u. Haltesysteme, BH 1185 mm | N59: =Einbauten!B47 -> Stück | O59: 0 | S59: Stück | T59: 0 | W59: TRUE | X59: =IF($X$9=2,IF(Übersicht_Summary!$J95=0,TRUE,AND(L59>0,M59>0)),TRUE) -> TRUE | Y59: =IF($X$9=3,IF(Übersicht_Summary!$J95=0,TRUE,AND(Q59>0,R59>0)),TRUE) -> TRUE
B60: =Einbauten!A48 -> 90.680.00..TL00 | C60: =gettext(B60,Sprache!$D$1) -> Befest.-El. links für Griff- u. Haltesysteme, BH 1185 mm | N60: =Einbauten!B48 -> Stück | O60: 0 | S60: Stück | T60: 0 | W60: TRUE | X60: =IF($X$9=2,IF(Übersicht_Summary!$J96=0,TRUE,AND(L60>0,M60>0)),TRUE) -> TRUE | Y60: =IF($X$9=3,IF(Übersicht_Summary!$J96=0,TRUE,AND(Q60>0,R60>0)),TRUE) -> TRUE
B61: =Einbauten!A49 -> 17.288.00..0000 | C61: =gettext(B61,Sprache!$D$1) -> Waschtisch-Modul behindertengerecht | N61: =Einbauten!B49 -> Stück | O61: 0 | S61: Stück | T61: 0 | W61: TRUE | X61: =IF($X$9=2,IF(Übersicht_Summary!$J97=0,TRUE,AND(L61>0,M61>0)),TRUE) -> TRUE | Y61: =IF($X$9=3,IF(Übersicht_Summary!$J97=0,TRUE,AND(Q61>0,R61>0)),TRUE) -> TRUE
B62: =Einbauten!A50 -> 17.279.00..0000 | C62: =gettext(B62,Sprache!$D$1) -> Befestigungsmodul für Griff- und Haltesysteme | N62: =Einbauten!B50 -> Stück | O62: 0 | S62: Stück | T62: 0 | W62: TRUE | X62: =IF($X$9=2,IF(Übersicht_Summary!$J98=0,TRUE,AND(L62>0,M62>0)),TRUE) -> TRUE | Y62: =IF($X$9=3,IF(Übersicht_Summary!$J98=0,TRUE,AND(Q62>0,R62>0)),TRUE) -> TRUE
B63: =Einbauten!A51 -> 17.289.00..0000 | C63: =gettext(B63,Sprache!$D$1) -> Befestigungs-Modul für Griff- und Haltesysteme | N63: =Einbauten!B51 -> Stück | O63: 0 | S63: Stück | T63: 0 | W63: TRUE | X63: =IF($X$9=2,IF(Übersicht_Summary!$J99=0,TRUE,AND(L63>0,M63>0)),TRUE) -> TRUE | Y63: =IF($X$9=3,IF(Übersicht_Summary!$J99=0,TRUE,AND(Q63>0,R63>0)),TRUE) -> TRUE
B66: =WT!B88 -> Materialbedarf für Tragwerk und Beplankung
B68: =Basismaterial!A3 -> 02.208.00..0000 | C68: =gettext(B68,Sprache!$D$1) -> Stab (5m) | N68: =Basismaterial!B3 -> m | O68: =IF(M68>0,L68/M68,0) -> 0 | S68: =N68 -> m | T68: =IF(R68>0,Q68/R68,0) -> 0 | W68: TRUE | X68: =IF($X$9=2,IF(Übersicht_Summary!$J102=0,TRUE,AND(L68>0,M68>0)),TRUE) -> TRUE | Y68: =IF($X$9=3,IF(Übersicht_Summary!$J102=0,TRUE,AND(Q68>0,R68>0)),TRUE) -> TRUE
B69: =Basismaterial!A4 -> 02.596.00..0000 | C69: =gettext(B69,Sprache!$D$1) -> Universalspachtelmasse ( ca. 0,25 Kg/m2 ) | N69: =Basismaterial!B4 -> Kg | O69: =IF(M69>0,L69/M69,0) -> 0 | S69: =N69 -> Kg | T69: =IF(R69>0,Q69/R69,0) -> 0 | W69: TRUE | X69: =IF($X$9=2,IF(Übersicht_Summary!$J103=0,TRUE,AND(L69>0,M69>0)),TRUE) -> TRUE | Y69: =IF($X$9=3,IF(Übersicht_Summary!$J103=0,TRUE,AND(Q69>0,R69>0)),TRUE) -> TRUE
B70: =Basismaterial!A5 -> 02.597.00..0000 | C70: =gettext(B70,Sprache!$D$1) -> Senkkopf-Kreuzschlitzschraube zur Verkleidungsplatte | N70: =Basismaterial!B5 -> Stück | O70: 0 | S70: Stück | T70: 0 | W70: TRUE | X70: =IF($X$9=2,IF(Übersicht_Summary!$J104=0,TRUE,AND(L70>0,M70>0)),TRUE) -> TRUE | Y70: =IF($X$9=3,IF(Übersicht_Summary!$J104=0,TRUE,AND(Q70>0,R70>0)),TRUE) -> TRUE
B71: =Basismaterial!A6 -> 03.332.00..0000 | C71: =gettext(B71,Sprache!$D$1) -> Eckverbinder | N71: =Basismaterial!B6 -> Stück | O71: 0 | S71: Stück | T71: 0 | W71: TRUE | X71: =IF($X$9=2,IF(Übersicht_Summary!$J105=0,TRUE,AND(L71>0,M71>0)),TRUE) -> TRUE | Y71: =IF($X$9=3,IF(Übersicht_Summary!$J105=0,TRUE,AND(Q71>0,R71>0)),TRUE) -> TRUE
B72: =Basismaterial!A7 -> 03.333.00..0000 | C72: =gettext(B72,Sprache!$D$1) -> Modulverbinder | N72: =Basismaterial!B7 -> Stück | O72: 0 | S72: Stück | T72: 0 | W72: TRUE | X72: =IF($X$9=2,IF(Übersicht_Summary!$J106=0,TRUE,AND(L72>0,M72>0)),TRUE) -> TRUE | Y72: =IF($X$9=3,IF(Übersicht_Summary!$J106=0,TRUE,AND(Q72>0,R72>0)),TRUE) -> TRUE
B73: =Basismaterial!A8 -> 03.346.00..0000 | C73: =gettext(B73,Sprache!$D$1) -> Trennstreifen für Putzanschluss 20m | N73: =Basismaterial!B8 -> m | O73: 0 | S73: m | T73: 0 | W73: TRUE | X73: =IF($X$9=2,IF(Übersicht_Summary!$J107=0,TRUE,AND(L73>0,M73>0)),TRUE) -> TRUE | Y73: =IF($X$9=3,IF(Übersicht_Summary!$J107=0,TRUE,AND(Q73>0,R73>0)),TRUE) -> TRUE
B74: =Basismaterial!A9 -> 03.545.00..0000 | C74: =gettext(B74,Sprache!$D$1) -> Bauwerksanschluss | N74: =Basismaterial!B9 -> Stück | O74: 0 | S74: Stück | T74: 0 | W74: TRUE | X74: =IF($X$9=2,IF(Übersicht_Summary!$J108=0,TRUE,AND(L74>0,M74>0)),TRUE) -> TRUE | Y74: =IF($X$9=3,IF(Übersicht_Summary!$J108=0,TRUE,AND(Q74>0,R74>0)),TRUE) -> TRUE
B75: =Basismaterial!A10 -> 03.723.00..0000 | C75: =gettext(B75,Sprache!$D$1) -> Multiverbinder (Tiefe 155-215 mm) | N75: =Basismaterial!B10 -> Stück | O75: 0 | S75: Stück | T75: 0 | W75: TRUE | X75: =IF($X$9=2,IF(Übersicht_Summary!$J109=0,TRUE,AND(L75>0,M75>0)),TRUE) -> TRUE | Y75: =IF($X$9=3,IF(Übersicht_Summary!$J109=0,TRUE,AND(Q75>0,R75>0)),TRUE) -> TRUE
B76: =Basismaterial!A11 -> 03.723.00..S000 | C76: =gettext(B76,Sprache!$D$1) -> Multiverbinder (Tiefe 255-315 mm) | N76: =Basismaterial!B11 -> Stück | O76: 0 | S76: Stück | T76: 0 | W76: TRUE | X76: =IF($X$9=2,IF(Übersicht_Summary!$J110=0,TRUE,AND(L76>0,M76>0)),TRUE) -> TRUE | Y76: =IF($X$9=3,IF(Übersicht_Summary!$J110=0,TRUE,AND(Q76>0,R76>0)),TRUE) -> TRUE
B77: =Basismaterial!A12 -> 03.754.00..0000 | C77: =gettext(B77,Sprache!$D$1) -> Verbindungsset für VW-Elemente | N77: =Basismaterial!B12 -> Stück | O77: 0 | S77: Stück | T77: 0 | W77: TRUE | X77: =IF($X$9=2,IF(Übersicht_Summary!$J111=0,TRUE,AND(L77>0,M77>0)),TRUE) -> TRUE | Y77: =IF($X$9=3,IF(Übersicht_Summary!$J111=0,TRUE,AND(Q77>0,R77>0)),TRUE) -> TRUE
B78: =Basismaterial!A13 -> 04.070.00..0000 | C78: =gettext(B78,Sprache!$D$1) -> Stützfuß für freistehende Wände | N78: =Basismaterial!B13 -> Stück | O78: 0 | S78: Stück | T78: 0 | W78: TRUE | X78: =IF($X$9=2,IF(Übersicht_Summary!$J112=0,TRUE,AND(L78>0,M78>0)),TRUE) -> TRUE | Y78: =IF($X$9=3,IF(Übersicht_Summary!$J112=0,TRUE,AND(Q78>0,R78>0)),TRUE) -> TRUE
B79: =Basismaterial!A14 -> 16.032.00..0000 | C79: =gettext(B79,Sprache!$D$1) -> Schallschutzset zu INEO plus, 996 | N79: =Basismaterial!B14 -> Stück | O79: 0 | S79: Stück | T79: 0 | W79: TRUE | X79: =IF($X$9=2,IF(Übersicht_Summary!$J113=0,TRUE,AND(L79>0,M79>0)),TRUE) -> TRUE | Y79: =IF($X$9=3,IF(Übersicht_Summary!$J113=0,TRUE,AND(Q79>0,R79>0)),TRUE) -> TRUE
B80: =Basismaterial!A15 -> 17.115.00..S000 | C80: =gettext(B80,Sprache!$D$1) -> GKBI-Universalverkleidungsplatte ( 1300x600x18 mm ) | N80: =Basismaterial!B15 -> Stück | O80: 0 | S80: Stück | T80: 0 | W80: TRUE | X80: =IF($X$9=2,IF(Übersicht_Summary!$J114=0,TRUE,AND(L80>0,M80>0)),TRUE) -> TRUE | Y80: =IF($X$9=3,IF(Übersicht_Summary!$J114=0,TRUE,AND(Q80>0,R80>0)),TRUE) -> TRUE
Y82: =COUNTIF($W$16:$Y$80,FALSE) -> 0
B84: =gettext("F9",Sprache!$D$1) -> Stundensatz für Montagearbeiten
L86: =gettext("F11",Sprache!$D$1) -> Stundensatz
B89: =gettext("F9",Sprache!$D$1) -> Stundensatz für Montagearbeiten | M89: EUR/ h | W89: FALSE | X89: =IF(W89=TRUE,AND(L89>0,NOT(L89="")),TRUE) -> TRUE | Y89: =X89=TRUE -> TRUE
B92: =IF(Preise_Prices!$Y$89=FALSE,gettext("F12",Sprache!$D$1),"") -> 
B93: =IF(Preise_Prices!$Y$89=FALSE,gettext("F15",Sprache!$D$1),"") -> 
B94: =IF(Preise_Prices!$Y$89=FALSE,gettext("F16",Sprache!$D$1),"") -> 

Sheet Übersicht_Summary
L1: 1 | M1: 2 | N1: 3 | O1: 4 | P1: 5 | Q1: 6 | R1: 7 | S1: 8 | T1: 9 | U1: 10 | V1: 11 | W1: 12 | X1: 13 | Y1: 14 | Z1: 15 | AA1: 16 | AB1: 17 | AC1: 18 | AD1: 19 | AE1: 20 | AF1: 21 | AG1: 22 | AH1: 23 | AI1: 24 | AJ1: 25 | AK1: 26 | AL1: 27 | AM1: 28 | AN1: 29 | AO1: 30
D2: 13 | L2: =getsheet(L1,"T1=Projekt :",$D$2) -> Not found | M2: =getsheet(M1,"T1=Projekt :",$D$2) -> Not found | N2: Not found | O2: Not found | P2: Not found | Q2: Not found | R2: Not found | S2: Not found | T2: Not found | U2: Not found | V2: Not found | W2: Not found | X2: Not found | Y2: Not found | Z2: Not found | AA2: Not found | AB2: Not found | AC2: Not found | AD2: Not found | AE2: Not found | AF2: Not found | AG2: Not found | AH2: Not found | AI2: Not found | AJ2: Not found | AK2: Not found | AL2: Not found | AM2: Not found | AN2: Not found | AO2: Not found
B5: X28 | E5: Fehlerhafte Wandtypen ? | J5: =COUNTIF($L$5:$AO$5,FALSE) -> 0 | L5: =IF(L$2<>"Not Found",INDIRECT(CONCATENATE("'",L$2,"'","!",$B5)),0) -> 0 | M5: =IF(M$2<>"Not Found",INDIRECT(CONCATENATE("'",M$2,"'","!",$B5)),0) -> 0 | N5: 0 | O5: 0 | P5: 0 | Q5: 0 | R5: 0 | S5: 0 | T5: 0 | U5: 0 | V5: 0 | W5: 0 | X5: 0 | Y5: 0 | Z5: 0 | AA5: 0 | AB5: 0 | AC5: 0 | AD5: 0 | AE5: 0 | AF5: 0 | AG5: 0 | AH5: 0 | AI5: 0 | AJ5: 0 | AK5: 0 | AL5: 0 | AM5: 0 | AN5: 0 | AO5: 0
B6: W111 | E6: Verzicht auf Beplankung ? | J6: =COUNTIF($L$6:$AO$6,TRUE) -> 0 | L6: =IF(L$2<>"Not Found",INDIRECT(CONCATENATE("'",L$2,"'","!",$B6)),0) -> 0 | M6: 0 | N6: 0 | O6: 0 | P6: 0 | Q6: 0 | R6: 0 | S6: 0 | T6: 0 | U6: 0 | V6: 0 | W6: 0 | X6: 0 | Y6: 0 | Z6: 0 | AA6: 0 | AB6: 0 | AC6: 0 | AD6: 0 | AE6: 0 | AF6: 0 | AG6: 0 | AH6: 0 | AI6: 0 | AJ6: 0 | AK6: 0 | AL6: 0 | AM6: 0 | AN6: 0 | AO6: 0
C7: =IF(OR(Preise_Prices!$Y$82>0,Preise_Prices!$Y$89=FALSE,J5>0),gettext("F12",Sprache!$D$1),"") -> 
C8: =IF($J$5>0,gettext("H19",Sprache!$D$1),IF(Preise_Prices!$Y$82>0,gettext("F13",Sprache!$D$1),IF(Preise_Prices!$Y$89=FALSE,gettext("F15",Sprache!$D$1),""))) -> 
C9: =IF($J$5>0,gettext("H20",Sprache!$D$1),IF(Preise_Prices!$Y$82>0,gettext("F14",Sprache!$D$1),IF(Preise_Prices!$Y$89=FALSE,gettext("F16",Sprache!$D$1),""))) -> 
C10: =gettext("H21",Sprache!$D$1) -> Für Ausdrucke bitte die Anzahl der benötigten Seiten eingeben (Anzeige über das Menü Datei > Seitenansicht möglich, Druck über das Menü Datei > Drucken > Druckbereich).
C11: =gettext("H22",Sprache!$D$1) -> Ansonsten werden alle Seiten ausgedruckt (max. 6 Seiten) !
C13: =Wandtypen_Walltypes!E1 -> Bauvorhaben / Projekt : | E13: =Wandtypen_Walltypes!G1 -> 0
C15: =Wandtypen_Walltypes!E2 -> Sachbearbeiter : | E15: =Wandtypen_Walltypes!G2 -> 0
C17: =Wandtypen_Walltypes!K1 -> Projekt-Nr. : | E17: =Wandtypen_Walltypes!L1 -> 0 | L17: =IF(L5=FALSE,L2,"") ->  | M17: =IF(M5=FALSE,M2,"") ->  | N17: =IF(N5=FALSE,N2,"") -> 
C19: =Wandtypen_Walltypes!K2 -> Datum : | E19: =Wandtypen_Walltypes!L2 -> 00:00:00 | J19: =gettext("H1",Sprache!$D$1) -> Projekt insgesamt | L19: =IF(L$2<>"Not Found",INDIRECT(CONCATENATE("'",L$2,"'","!",$B28)),0) -> 0 | M19: =IF(M$2<>"Not Found",INDIRECT(CONCATENATE("'",M$2,"'","!",$B28)),0) -> 0 | N19: 0 | O19: 0 | P19: 0 | Q19: 0 | R19: 0 | S19: 0 | T19: 0 | U19: 0 | V19: 0 | W19: 0 | X19: 0 | Y19: 0 | Z19: 0 | AA19: 0 | AB19: 0 | AC19: 0 | AD19: 0 | AE19: 0 | AF19: 0 | AG19: 0 | AH19: 0 | AI19: 0 | AJ19: 0 | AK19: 0 | AL19: 0 | AM19: 0 | AN19: 0 | AO19: 0
J20: =gettext(86,Sprache!$D$1) -> Not Found
C21: =IF($J$6>0,gettext("H23",Sprache!$D$1),"") ->  | J21: =gettext(86,Sprache!$D$1) -> Not Found
C22: =IF($J$6>0,gettext("H24",Sprache!$D$1),"") ->  | J22: =gettext(86,Sprache!$D$1) -> Not Found
C23: =IF($J$6>0,gettext("H25",Sprache!$D$1),"") ->  | J23: =gettext(86,Sprache!$D$1) -> Not Found
C24: =IF($J$6>0,gettext("H26",Sprache!$D$1),"") ->  | J24: =gettext(86,Sprache!$D$1) -> Not Found
C25: =IF($J$6>0,gettext("H27",Sprache!$D$1),"") ->  | J25: =gettext(86,Sprache!$D$1) -> Not Found
C26: =IF($J$6>0,gettext("H28",Sprache!$D$1),"") ->  | J26: =gettext(86,Sprache!$D$1) -> Not Found
C27: =IF($J$6>0,gettext("H29",Sprache!$D$1),"") ->  | J27: =gettext(86,Sprache!$D$1) -> Not Found
B28: D6 | C28: =IF($J$6>0,gettext("H30",Sprache!$D$1),"") ->  | J28: =gettext(86,Sprache!$D$1) -> Not Found
B30: V1 | C30: =gettext("H2",Sprache!$D$1) -> Wandtyp | L30: =IF(L$2<>"Not Found",INDIRECT(CONCATENATE("'",L$2,"'","!",$B30)),0) -> 0 | M30: 0 | N30: 0 | O30: 0 | P30: 0 | Q30: 0 | R30: 0 | S30: 0 | T30: 0 | U30: 0 | V30: 0 | W30: 0 | X30: 0 | Y30: 0 | Z30: 0 | AA30: 0 | AB30: 0 | AC30: 0 | AD30: 0 | AE30: 0 | AF30: 0 | AG30: 0 | AH30: 0 | AI30: 0 | AJ30: 0 | AK30: 0 | AL30: 0 | AM30: 0 | AN30: 0 | AO30: 0
B32: D8 | C32: =gettext("H31",Sprache!$D$1) -> Anzahl der Wände : | J32: =SUM(L32:AO32) -> 0 | L32: =IF(L$2<>"Not Found",INDIRECT(CONCATENATE("'",L$2,"'","!",$B32)),0) -> 0 | M32: 0 | N32: 0 | O32: 0 | P32: 0 | Q32: 0 | R32: 0 | S32: 0 | T32: 0 | U32: 0 | V32: 0 | W32: 0 | X32: 0 | Y32: 0 | Z32: 0 | AA32: 0 | AB32: 0 | AC32: 0 | AD32: 0 | AE32: 0 | AF32: 0 | AG32: 0 | AH32: 0 | AI32: 0 | AJ32: 0 | AK32: 0 | AL32: 0 | AM32: 0 | AN32: 0 | AO32: 0
B34: D10 | C34: =gettext("H3",Sprache!$D$1) -> Abmessungen der Wand | D34: =gettext("H4",Sprache!$D$1) -> Bauhöhe ab OKFFB (mm) / Schachthöhe | L34: =IF(L$2<>"Not Found",INDIRECT(CONCATENATE("'",L$2,"'","!",$B34)),0) -> 0 | M34: 0 | N34: 0 | O34: 0 | P34: 0 | Q34: 0 | R34: 0 | S34: 0 | T34: 0 | U34: 0 | V34: 0 | W34: 0 | X34: 0 | Y34: 0 | Z34: 0 | AA34: 0 | AB34: 0 | AC34: 0 | AD34: 0 | AE34: 0 | AF34: 0 | AG34: 0 | AH34: 0 | AI34: 0 | AJ34: 0 | AK34: 0 | AL34: 0 | AM34: 0 | AN34: 0 | AO34: 0
B35: D11 | D35: =gettext("H5",Sprache!$D$1) -> Wandbreite (mm) / Schachtbreite | L35: =IF(L$2<>"Not Found",INDIRECT(CONCATENATE("'",L$2,"'","!",$B35)),0) -> 0 | M35: 0 | N35: 0 | O35: 0 | P35: 0 | Q35: 0 | R35: 0 | S35: 0 | T35: 0 | U35: 0 | V35: 0 | W35: 0 | X35: 0 | Y35: 0 | Z35: 0 | AA35: 0 | AB35: 0 | AC35: 0 | AD35: 0 | AE35: 0 | AF35: 0 | AG35: 0 | AH35: 0 | AI35: 0 | AJ35: 0 | AK35: 0 | AL35: 0 | AM35: 0 | AN35: 0 | AO35: 0
B37: K109 | C37: =gettext("H6",Sprache!$D$1) -> Montagezeit | D37: =gettext("H7",Sprache!$D$1) -> Tragwerk (min) | J37: =SUM(L37:AO37) -> 0 | L37: =IF(L$2<>"Not Found",INDIRECT(CONCATENATE("'",L$2,"'","!",$B37)),0) -> 0 | M37: =IF(M$2<>"Not Found",INDIRECT(CONCATENATE("'",M$2,"'","!",$B37)),0) -> 0 | N37: 0 | O37: 0 | P37: 0 | Q37: 0 | R37: 0 | S37: 0 | T37: 0 | U37: 0 | V37: 0 | W37: 0 | X37: 0 | Y37: 0 | Z37: 0 | AA37: 0 | AB37: 0 | AC37: 0 | AD37: 0 | AE37: 0 | AF37: 0 | AG37: 0 | AH37: 0 | AI37: 0 | AJ37: 0 | AK37: 0 | AL37: 0 | AM37: 0 | AN37: 0 | AO37: 0
B38: K110 | D38: =gettext("H8",Sprache!$D$1) -> Elemente und Module (min.) | J38: =SUM(L38:AO38) -> 0 | L38: =IF(L$2<>"Not Found",INDIRECT(CONCATENATE("'",L$2,"'","!",$B38)),0) -> 0 | M38: 0 | N38: 0 | O38: 0 | P38: 0 | Q38: 0 | R38: 0 | S38: 0 | T38: 0 | U38: 0 | V38: 0 | W38: 0 | X38: 0 | Y38: 0 | Z38: 0 | AA38: 0 | AB38: 0 | AC38: 0 | AD38: 0 | AE38: 0 | AF38: 0 | AG38: 0 | AH38: 0 | AI38: 0 | AJ38: 0 | AK38: 0 | AL38: 0 | AM38: 0 | AN38: 0 | AO38: 0
B39: K111 | D39: =gettext("H9",Sprache!$D$1) -> Beplankung (min) | J39: =SUM(L39:AO39) -> 0 | L39: =IF(L$2<>"Not Found",INDIRECT(CONCATENATE("'",L$2,"'","!",$B39)),0) -> 0 | M39: 0 | N39: 0 | O39: 0 | P39: 0 | Q39: 0 | R39: 0 | S39: 0 | T39: 0 | U39: 0 | V39: 0 | W39: 0 | X39: 0 | Y39: 0 | Z39: 0 | AA39: 0 | AB39: 0 | AC39: 0 | AD39: 0 | AE39: 0 | AF39: 0 | AG39: 0 | AH39: 0 | AI39: 0 | AJ39: 0 | AK39: 0 | AL39: 0 | AM39: 0 | AN39: 0 | AO39: 0
D40: =gettext("H10",Sprache!$D$1) -> Gesamt (min) | J40: =SUM(J37:J39) -> 0 | L40: =SUM(L37:L39) -> 0 | M40: =SUM(M37:M39) -> 0 | N40: 0 | O40: 0 | P40: 0 | Q40: 0 | R40: 0 | S40: 0 | T40: 0 | U40: 0 | V40: 0 | W40: 0 | X40: 0 | Y40: 0 | Z40: 0 | AA40: 0 | AB40: 0 | AC40: 0 | AD40: 0 | AE40: 0 | AF40: 0 | AG40: 0 | AH40: 0 | AI40: 0 | AJ40: 0 | AK40: 0 | AL40: 0 | AM40: 0 | AN40: 0 | AO40: 0
B42: W118 | C42: =gettext("H11",Sprache!$D$1) -> Montagekosten | D42: =CONCATENATE(gettext("H12",Sprache!$D$1),Preise_Prices!L89,gettext("H13",Sprache!$D$1)) -> ( Stundensatz = Euro/ h ) | J42: =SUM(L42:AO42) -> 0 | L42: =IF(L$2<>"Not Found",INDIRECT(CONCATENATE("'",L$2,"'","!",$B42)),0) -> 0 | M42: 0 | N42: 0 | O42: 0 | P42: 0 | Q42: 0 | R42: 0 | S42: 0 | T42: 0 | U42: 0 | V42: 0 | W42: 0 | X42: 0 | Y42: 0 | Z42: 0 | AA42: 0 | AB42: 0 | AC42: 0 | AD42: 0 | AE42: 0 | AF42: 0 | AG42: 0 | AH42: 0 | AI42: 0 | AJ42: 0 | AK42: 0 | AL42: 0 | AM42: 0 | AN42: 0 | AO42: 0
B44: K116 | C44: =gettext("H14",Sprache!$D$1) -> Materialkosten | D44: =gettext("H15",Sprache!$D$1) -> Tragwerk | J44: =SUM(L44:AO44) -> 0 | L44: =IF(L$2<>"Not Found",INDIRECT(CONCATENATE("'",L$2,"'","!",$B44)),0) -> 0 | M44: 0 | N44: 0 | O44: 0 | P44: 0 | Q44: 0 | R44: 0 | S44: 0 | T44: 0 | U44: 0 | V44: 0 | W44: 0 | X44: 0 | Y44: 0 | Z44: 0 | AA44: 0 | AB44: 0 | AC44: 0 | AD44: 0 | AE44: 0 | AF44: 0 | AG44: 0 | AH44: 0 | AI44: 0 | AJ44: 0 | AK44: 0 | AL44: 0 | AM44: 0 | AN44: 0 | AO44: 0
B45: K117 | D45: =gettext("H16",Sprache!$D$1) -> Elemente und Module | J45: =SUM(L45:AO45) -> 0 | L45: =IF(L$2<>"Not Found",INDIRECT(CONCATENATE("'",L$2,"'","!",$B45)),0) -> 0 | M45: 0 | N45: 0 | O45: 0 | P45: 0 | Q45: 0 | R45: 0 | S45: 0 | T45: 0 | U45: 0 | V45: 0 | W45: 0 | X45: 0 | Y45: 0 | Z45: 0 | AA45: 0 | AB45: 0 | AC45: 0 | AD45: 0 | AE45: 0 | AF45: 0 | AG45: 0 | AH45: 0 | AI45: 0 | AJ45: 0 | AK45: 0 | AL45: 0 | AM45: 0 | AN45: 0 | AO45: 0
B46: K118 | D46: =gettext("H17",Sprache!$D$1) -> Beplankung | J46: =SUM(L46:AO46) -> 0 | L46: =IF(L$2<>"Not Found",INDIRECT(CONCATENATE("'",L$2,"'","!",$B46)),0) -> 0 | M46: 0 | N46: 0 | O46: 0 | P46: 0 | Q46: 0 | R46: 0 | S46: 0 | T46: 0 | U46: 0 | V46: 0 | W46: 0 | X46: 0 | Y46: 0 | Z46: 0 | AA46: 0 | AB46: 0 | AC46: 0 | AD46: 0 | AE46: 0 | AF46: 0 | AG46: 0 | AH46: 0 | AI46: 0 | AJ46: 0 | AK46: 0 | AL46: 0 | AM46: 0 | AN46: 0 | AO46: 0
D47: =gettext("H18",Sprache!$D$1) -> Gesamt | J47: =SUM(J44:J46) -> 0 | L47: =SUM(L44:L46) -> 0 | M47: =SUM(M44:M46) -> 0 | N47: 0 | O47: 0 | P47: 0 | Q47: 0 | R47: 0 | S47: 0 | T47: 0 | U47: 0 | V47: 0 | W47: 0 | X47: 0 | Y47: 0 | Z47: 0 | AA47: 0 | AB47: 0 | AC47: 0 | AD47: 0 | AE47: 0 | AF47: 0 | AG47: 0 | AH47: 0 | AI47: 0 | AJ47: 0 | AK47: 0 | AL47: 0 | AM47: 0 | AN47: 0 | AO47: 0
C48: =gettext("G55",Sprache!$D$1)&CHOOSE(Preise_Prices!$X$9,Preise_Prices!C3,Preise_Prices!C4,Preise_Prices!C5)&gettext("G56",Sprache!$D$1) -> * Kosten auf Basis ohne Preise kalkulieren, siehe "Preise_Prices"
C49: =WT!B35 -> Artikel-Nr. | D49: =WT!C35 -> Bezeichnung
B51: K37 | C51: =WT!B37 -> WC-Elemente
B52: K38 | C52: =WT!B38 -> 90.745.00..T000 | D52: =gettext(CONCATENATE(C52,"_1"),Sprache!$D$1) -> INEO FRONTOP WC, kl. RÖ, v./o., BH 820 | H52: =WT!L38 -> Stück | J52: =SUM(L52:AO52) -> 0 | L52: =IF(L$2<>"Not Found",INDIRECT(CONCATENATE("'",L$2,"'","!",$B52)),0) -> 0 | M52: 0 | N52: 0 | O52: 0 | P52: 0 | Q52: 0 | R52: 0 | S52: 0 | T52: 0 | U52: 0 | V52: 0 | W52: 0 | X52: 0 | Y52: 0 | Z52: 0 | AA52: 0 | AB52: =IF(AB$2<>"Not Found",INDIRECT(CONCATENATE("'",AB$2,"'","!",$B52)),0) -> 0 | AC52: 0 | AD52: 0 | AE52: 0 | AF52: 0 | AG52: 0 | AH52: 0 | AI52: 0 | AJ52: 0 | AK52: 0 | AL52: 0 | AM52: 0 | AN52: 0 | AO52: 0 | AQ52: =J52 -> 0
B53: K39 | C53: =WT!B39 -> 90.738.00..T000 | D53: =gettext(CONCATENATE(C53,"_1"),Sprache!$D$1) -> INEO FRONTOP WC, kl. RÖ, v./o., BH 985 | H53: =WT!L39 -> Stück | J53: =SUM(L53:AO53) -> 0 | L53: 0 | M53: 0 | N53: 0 | O53: 0 | P53: 0 | Q53: 0 | R53: 0 | S53: 0 | T53: 0 | U53: 0 | V53: 0 | W53: 0 | X53: 0 | Y53: 0 | Z53: 0 | AA53: 0 | AB53: 0 | AC53: 0 | AD53: 0 | AE53: 0 | AF53: 0 | AG53: 0 | AH53: 0 | AI53: 0 | AJ53: 0 | AK53: 0 | AL53: 0 | AM53: 0 | AN53: 0 | AO53: 0 | AQ53: =J53 -> 0
B54: K40 | C54: =WT!B40 -> 90.743.00..T000 | D54: =gettext(CONCATENATE(C54,"_1"),Sprache!$D$1) -> INEO PLUS WC-El., BH 1120 , B=450 | H54: =WT!L40 -> Stück | J54: 0 | L54: 0 | M54: 0 | N54: 0 | O54: 0 | P54: 0 | Q54: 0 | R54: 0 | S54: 0 | T54: 0 | U54: 0 | V54: 0 | W54: 0 | X54: 0 | Y54: 0 | Z54: 0 | AA54: 0 | AB54: 0 | AC54: 0 | AD54: 0 | AE54: 0 | AF54: 0 | AG54: 0 | AH54: 0 | AI54: 0 | AJ54: 0 | AK54: 0 | AL54: 0 | AM54: 0 | AN54: 0 | AO54: 0 | AQ54: 0
B55: K41 | C55: =WT!B41 -> 90.735.00..T000 | D55: =gettext(CONCATENATE(C55,"_1"),Sprache!$D$1) -> INEO WC-El., f. Stand-/Kinder-WC, BH 1185 | H55: =WT!L41 -> Stück | J55: 0 | L55: 0 | M55: 0 | N55: 0 | O55: 0 | P55: 0 | Q55: 0 | R55: 0 | S55: 0 | T55: 0 | U55: 0 | V55: 0 | W55: 0 | X55: 0 | Y55: 0 | Z55: 0 | AA55: 0 | AB55: =IF(AB$2<>"Not Found",INDIRECT(CONCATENATE("'",AB$2,"'","!",$B55)),0) -> 0 | AC55: =IF(AC$2<>"Not Found",INDIRECT(CONCATENATE("'",AC$2,"'","!",$B55)),0) -> 0 | AD55: 0 | AE55: 0 | AF55: 0 | AG55: 0 | AH55: 0 | AI55: 0 | AJ55: 0 | AK55: 0 | AL55: 0 | AM55: 0 | AN55: 0 | AO55: 0 | AQ55: 0
B56: K42 | C56: =WT!B42 -> Waschtisch- und Ausgussbecken-Elemente
B57: K43 | C57: =WT!B43 -> 90.672.00..T000 | D57: =gettext(CONCATENATE(C57,"_1"),Sprache!$D$1) -> INEO WT f. Einlocharm., BH 820 | H57: =WT!L43 -> Stück | J57: =SUM(L57:AO57) -> 0 | L57: =IF(L$2<>"Not Found",INDIRECT(CONCATENATE("'",L$2,"'","!",$B57)),0) -> 0 | M57: =IF(M$2<>"Not Found",INDIRECT(CONCATENATE("'",M$2,"'","!",$B57)),0) -> 0 | N57: 0 | O57: 0 | P57: 0 | Q57: 0 | R57: 0 | S57: 0 | T57: 0 | U57: 0 | V57: 0 | W57: 0 | X57: 0 | Y57: 0 | Z57: 0 | AA57: 0 | AB57: =IF(AB$2<>"Not Found",INDIRECT(CONCATENATE("'",AB$2,"'","!",$B57)),0) -> 0 | AC57: 0 | AD57: 0 | AE57: 0 | AF57: 0 | AG57: 0 | AH57: 0 | AI57: 0 | AJ57: 0 | AK57: 0 | AL57: 0 | AM57: 0 | AN57: 0 | AO57: 0 | AQ57: =J57 -> 0
B58: K44 | C58: =WT!B44 -> 90.669.00..T000 | D58: =gettext(CONCATENATE(C58,"_1"),Sprache!$D$1) -> INEO WT f. Einlocharm, BH 985 | H58: =WT!L44 -> Stück | J58: =SUM(L58:AO58) -> 0 | L58: 0 | M58: 0 | N58: 0 | O58: 0 | P58: 0 | Q58: 0 | R58: 0 | S58: 0 | T58: 0 | U58: 0 | V58: 0 | W58: 0 | X58: 0 | Y58: 0 | Z58: 0 | AA58: 0 | AB58: 0 | AC58: 0 | AD58: 0 | AE58: 0 | AF58: 0 | AG58: 0 | AH58: 0 | AI58: 0 | AJ58: 0 | AK58: 0 | AL58: 0 | AM58: 0 | AN58: 0 | AO58: 0 | AQ58: =J58 -> 0
B59: K45 | C59: =WT!B45 -> 90.696.00..T000 | D59: =gettext(CONCATENATE(C59,"_1"),Sprache!$D$1) -> INEO WT f. Einlocharm, BH 1120 | H59: =WT!L45 -> Stück | J59: 0 | L59: 0 | M59: 0 | N59: 0 | O59: 0 | P59: 0 | Q59: 0 | R59: 0 | S59: 0 | T59: 0 | U59: 0 | V59: 0 | W59: 0 | X59: 0 | Y59: 0 | Z59: 0 | AA59: 0 | AB59: 0 | AC59: 0 | AD59: 0 | AE59: 0 | AF59: 0 | AG59: 0 | AH59: 0 | AI59: 0 | AJ59: 0 | AK59: 0 | AL59: 0 | AM59: 0 | AN59: 0 | AO59: 0 | AQ59: 0
B60: K46 | C60: =WT!B46 -> 90.671.00..T000 | D60: =gettext(CONCATENATE(C60,"_1"),Sprache!$D$1) -> INEO WT f. AP-Wandarm., BH 1120 - 1185 | H60: =WT!L46 -> Stück | J60: 0 | L60: 0 | M60: 0 | N60: 0 | O60: 0 | P60: 0 | Q60: 0 | R60: 0 | S60: 0 | T60: 0 | U60: 0 | V60: 0 | W60: 0 | X60: 0 | Y60: 0 | Z60: 0 | AA60: 0 | AB60: 0 | AC60: 0 | AD60: 0 | AE60: 0 | AF60: 0 | AG60: 0 | AH60: 0 | AI60: 0 | AJ60: 0 | AK60: 0 | AL60: 0 | AM60: 0 | AN60: 0 | AO60: 0 | AQ60: 0
B61: K47 | C61: =WT!B47 -> 90.677.00..T000 | D61: =gettext(CONCATENATE(C61,"_1"),Sprache!$D$1) -> INEO Ausg.-El. für Wandarm., BH 1120-1185 | H61: =WT!L47 -> Stück | J61: 0 | L61: 0 | M61: 0 | N61: 0 | O61: 0 | P61: 0 | Q61: 0 | R61: 0 | S61: 0 | T61: 0 | U61: 0 | V61: 0 | W61: 0 | X61: 0 | Y61: 0 | Z61: 0 | AA61: 0 | AB61: 0 | AC61: 0 | AD61: 0 | AE61: 0 | AF61: 0 | AG61: 0 | AH61: 0 | AI61: 0 | AJ61: 0 | AK61: 0 | AL61: 0 | AM61: 0 | AN61: 0 | AO61: 0 | AQ61: 0
B62: K48 | C62: =WT!B48 -> 90.691.00..T000 | D62: =gettext(CONCATENATE(C62,"_1"),Sprache!$D$1) -> INEO WT f.Einlocharm., Wasserz., BH 985 | H62: =WT!L48 -> Stück | J62: 0 | L62: 0 | M62: 0 | N62: 0 | O62: 0 | P62: 0 | Q62: 0 | R62: 0 | S62: 0 | T62: 0 | U62: 0 | V62: 0 | W62: 0 | X62: 0 | Y62: 0 | Z62: 0 | AA62: 0 | AB62: 0 | AC62: 0 | AD62: 0 | AE62: 0 | AF62: 0 | AG62: 0 | AH62: 0 | AI62: 0 | AJ62: 0 | AK62: 0 | AL62: 0 | AM62: 0 | AN62: 0 | AO62: 0 | AQ62: 0
B63: K49 | C63: =WT!B49 -> 90.687.00..T000 | D63: =gettext(CONCATENATE(C63,"_1"),Sprache!$D$1) -> INEO WT f.Einlocharm., Wasserz., BH 1120 | H63: =WT!L49 -> Stück | J63: 0 | L63: 0 | M63: 0 | N63: 0 | O63: 0 | P63: 0 | Q63: 0 | R63: 0 | S63: 0 | T63: 0 | U63: 0 | V63: 0 | W63: 0 | X63: 0 | Y63: 0 | Z63: 0 | AA63: 0 | AB63: 0 | AC63: 0 | AD63: 0 | AE63: 0 | AF63: 0 | AG63: 0 | AH63: 0 | AI63: 0 | AJ63: 0 | AK63: 0 | AL63: 0 | AM63: 0 | AN63: 0 | AO63: 0 | AQ63: 0
B64: K50 | C64: =WT!B50 -> 90.689.00..T000 | D64: =gettext(CONCATENATE(C64,"_1"),Sprache!$D$1) -> INEO WT f. Einlocharm., Durchlauferh., BH 1120 | H64: =WT!L50 -> Stück | J64: 0 | L64: 0 | M64: 0 | N64: 0 | O64: 0 | P64: 0 | Q64: 0 | R64: 0 | S64: 0 | T64: 0 | U64: 0 | V64: 0 | W64: 0 | X64: 0 | Y64: 0 | Z64: 0 | AA64: 0 | AB64: 0 | AC64: 0 | AD64: 0 | AE64: 0 | AF64: 0 | AG64: 0 | AH64: 0 | AI64: 0 | AJ64: 0 | AK64: 0 | AL64: 0 | AM64: 0 | AN64: 0 | AO64: 0 | AQ64: 0
B65: K51 | C65: =WT!B51 -> 90.688.00..T000 | D65: =gettext(CONCATENATE(C65,"_1"),Sprache!$D$1) -> INEO LINNUM Leer-Element, BH 1120 | H65: =WT!L51 -> Stück | J65: 0 | L65: 0 | M65: 0 | N65: 0 | O65: 0 | P65: 0 | Q65: 0 | R65: 0 | S65: 0 | T65: 0 | U65: 0 | V65: 0 | W65: 0 | X65: 0 | Y65: 0 | Z65: 0 | AA65: 0 | AB65: 0 | AC65: 0 | AD65: 0 | AE65: 0 | AF65: 0 | AG65: 0 | AH65: 0 | AI65: 0 | AJ65: 0 | AK65: 0 | AL65: 0 | AM65: 0 | AN65: 0 | AO65: 0 | AQ65: 0
B66: K52 | C66: =WT!B52 -> 90.659.00..0000 | D66: =gettext(CONCATENATE(C66,"_1"),Sprache!$D$1) -> INEO-El. für Ausguss "Publica", BH 1530 | H66: =WT!L52 -> Stück | J66: 0 | L66: 0 | M66: =IF(M$2<>"Not Found",INDIRECT(CONCATENATE("'",M$2,"'","!",$B66)),0) -> 0 | N66: 0 | O66: 0 | P66: 0 | Q66: 0 | R66: 0 | S66: 0 | T66: 0 | U66: 0 | V66: 0 | W66: 0 | X66: 0 | Y66: 0 | Z66: 0 | AA66: 0 | AB66: 0 | AC66: 0 | AD66: 0 | AE66: 0 | AF66: 0 | AG66: 0 | AH66: 0 | AI66: 0 | AJ66: 0 | AK66: 0 | AL66: 0 | AM66: 0 | AN66: 0 | AO66: 0 | AQ66: 0
B67: K53 | C67: =WT!B53 -> Bidet- und Urinal-Elemente
B68: K54 | C68: =WT!B54 -> 90.663.00..T000 | D68: =gettext(CONCATENATE(C68,"_1"),Sprache!$D$1) -> INEO Bidet, BH 820 | H68: =WT!L54 -> Stück | J68: =SUM(L68:AO68) -> 0 | L68: =IF(L$2<>"Not Found",INDIRECT(CONCATENATE("'",L$2,"'","!",$B68)),0) -> 0 | M68: =IF(M$2<>"Not Found",INDIRECT(CONCATENATE("'",M$2,"'","!",$B68)),0) -> 0 | N68: 0 | O68: 0 | P68: 0 | Q68: 0 | R68: 0 | S68: 0 | T68: 0 | U68: 0 | V68: 0 | W68: 0 | X68: 0 | Y68: 0 | Z68: 0 | AA68: 0 | AB68: 0 | AC68: 0 | AD68: 0 | AE68: 0 | AF68: 0 | AG68: 0 | AH68: 0 | AI68: 0 | AJ68: 0 | AK68: 0 | AL68: 0 | AM68: 0 | AN68: 0 | AO68: 0 | AQ68: =J68 -> 0
B69: K55 | C69: =WT!B55 -> 90.662.00..T000 | D69: =gettext(CONCATENATE(C69,"_1"),Sprache!$D$1) -> INEO Bidget, BH 985 | H69: =WT!L55 -> Stück | J69: =SUM(L69:AO69) -> 0 | L69: 0 | M69: 0 | N69: 0 | O69: 0 | P69: 0 | Q69: 0 | R69: 0 | S69: 0 | T69: 0 | U69: 0 | V69: 0 | W69: 0 | X69: 0 | Y69: 0 | Z69: 0 | AA69: 0 | AB69: 0 | AC69: 0 | AD69: 0 | AE69: 0 | AF69: 0 | AG69: 0 | AH69: 0 | AI69: 0 | AJ69: 0 | AK69: 0 | AL69: 0 | AM69: 0 | AN69: 0 | AO69: 0 | AQ69: =J69 -> 0
B70: K56 | C70: =WT!B56 -> 90.676.00..T000 | D70: =gettext(CONCATENATE(C70,"_1"),Sprache!$D$1) -> INEO Bidet, BH 1120 | H70: =WT!L56 -> Stück | J70: 0 | L70: 0 | M70: 0 | N70: 0 | O70: 0 | P70: 0 | Q70: 0 | R70: 0 | S70: 0 | T70: 0 | U70: 0 | V70: 0 | W70: 0 | X70: 0 | Y70: 0 | Z70: 0 | AA70: 0 | AB70: 0 | AC70: 0 | AD70: 0 | AE70: 0 | AF70: 0 | AG70: 0 | AH70: 0 | AI70: 0 | AJ70: 0 | AK70: 0 | AL70: 0 | AM70: 0 | AN70: 0 | AO70: 0 | AQ70: 0
B71: K57 | C71: =WT!B57 -> 90.668.00..T000 | D71: =gettext(CONCATENATE(C71,"_1"),Sprache!$D$1) -> INEO Urinal, BH 1120 - 1185 | H71: =WT!L57 -> Stück | J71: 0 | L71: 0 | M71: 0 | N71: 0 | O71: 0 | P71: 0 | Q71: 0 | R71: 0 | S71: =IF(S$2<>"Not Found",INDIRECT(CONCATENATE("'",S$2,"'","!",$B71)),0) -> 0 | T71: 0 | U71: 0 | V71: 0 | W71: 0 | X71: 0 | Y71: 0 | Z71: 0 | AA71: 0 | AB71: 0 | AC71: 0 | AD71: 0 | AE71: 0 | AF71: 0 | AG71: 0 | AH71: 0 | AI71: =IF(AI$2<>"Not Found",INDIRECT(CONCATENATE("'",AI$2,"'","!",$B71)),0) -> 0 | AJ71: 0 | AK71: 0 | AL71: 0 | AM71: 0 | AN71: 0 | AO71: 0 | AQ71: 0
B72: K58 | C72: =WT!B58 -> 90.675.00..T000 | D72: =gettext(CONCATENATE(C72,"_1"),Sprache!$D$1) -> INEO Urinal AP-Druckspül. BH 1120-1185 | H72: =WT!L58 -> Stück | J72: 0 | L72: 0 | M72: 0 | N72: 0 | O72: 0 | P72: 0 | Q72: 0 | R72: 0 | S72: 0 | T72: 0 | U72: 0 | V72: 0 | W72: 0 | X72: 0 | Y72: 0 | Z72: 0 | AA72: 0 | AB72: 0 | AC72: 0 | AD72: 0 | AE72: 0 | AF72: 0 | AG72: 0 | AH72: 0 | AI72: 0 | AJ72: 0 | AK72: 0 | AL72: 0 | AM72: 0 | AN72: 0 | AO72: 0 | AQ72: 0
B73: K59 | C73: =WT!B59 -> Bade-und Brausewannen | J73: 0 | L73: 0 | M73: 0 | N73: 0 | O73: 0 | P73: 0 | Q73: 0 | R73: 0 | S73: 0 | T73: 0 | U73: 0 | V73: 0 | W73: 0 | X73: 0 | Y73: 0 | Z73: 0 | AA73: 0 | AB73: 0 | AC73: 0 | AD73: 0 | AE73: 0 | AF73: 0 | AG73: 0 | AH73: 0 | AI73: 0 | AJ73: 0 | AK73: 0 | AL73: 0 | AM73: 0 | AN73: 0 | AO73: 0 | AQ73: 0
B74: K60 | C74: =WT!B60 -> 90.681.00..T000 | D74: =gettext(CONCATENATE(C74,"_1"),Sprache!$D$1) -> INEO BW-Element AP | H74: =WT!L60 -> Stück | J74: 0 | L74: 0 | M74: 0 | N74: 0 | O74: 0 | P74: 0 | Q74: 0 | R74: 0 | S74: 0 | T74: 0 | U74: 0 | V74: 0 | W74: 0 | X74: 0 | Y74: 0 | Z74: 0 | AA74: 0 | AB74: 0 | AC74: 0 | AD74: 0 | AE74: 0 | AF74: 0 | AG74: 0 | AH74: 0 | AI74: 0 | AJ74: 0 | AK74: 0 | AL74: 0 | AM74: 0 | AN74: 0 | AO74: 0 | AQ74: 0
B75: K61 | C75: =WT!B61 -> 90.682.00..T000 | D75: =gettext(CONCATENATE(C75,"_1"),Sprache!$D$1) -> INEO BW-Element UP | H75: =WT!L61 -> Stück | J75: 0 | L75: 0 | M75: 0 | N75: 0 | O75: 0 | P75: 0 | Q75: 0 | R75: 0 | S75: 0 | T75: 0 | U75: 0 | V75: 0 | W75: 0 | X75: 0 | Y75: 0 | Z75: 0 | AA75: 0 | AB75: 0 | AC75: 0 | AD75: 0 | AE75: 0 | AF75: 0 | AG75: 0 | AH75: 0 | AI75: 0 | AJ75: 0 | AK75: 0 | AL75: 0 | AM75: 0 | AN75: 0 | AO75: 0 | AQ75: 0
B76: K62 | C76: =WT!B62 -> Waschtisch- und Urinal-Module (Sanitärfunktion ohne Trockenbaurahmen)
B77: K63 | C77: =WT!B63 -> 17.276.00..0000 | D77: =gettext(CONCATENATE(C77,"_1"),Sprache!$D$1) -> WT für Einloch- und AP-Wandarmaturen | H77: =WT!L63 -> Stück | J77: =SUM(L77:AO77) -> 0 | L77: =IF(L$2<>"Not Found",INDIRECT(CONCATENATE("'",L$2,"'","!",$B77)),0) -> 0 | M77: 0 | N77: 0 | O77: 0 | P77: 0 | Q77: 0 | R77: 0 | S77: 0 | T77: 0 | U77: 0 | V77: 0 | W77: 0 | X77: 0 | Y77: 0 | Z77: 0 | AA77: 0 | AB77: =IF(AB$2<>"Not Found",INDIRECT(CONCATENATE("'",AB$2,"'","!",$B77)),0) -> 0 | AC77: 0 | AD77: 0 | AE77: 0 | AF77: 0 | AG77: 0 | AH77: 0 | AI77: 0 | AJ77: 0 | AK77: 0 | AL77: 0 | AM77: 0 | AN77: 0 | AO77: 0 | AQ77: =J77 -> 0
B78: K64 | C78: =WT!B64 -> 17.286.00..0000 | D78: =gettext(CONCATENATE(C78,"_1"),Sprache!$D$1) -> Waschtisch-Modul für Einlocharmaturen | H78: =WT!L64 -> Stück | J78: =SUM(L78:AO78) -> 0 | L78: =IF(L$2<>"Not Found",INDIRECT(CONCATENATE("'",L$2,"'","!",$B78)),0) -> 0 | M78: 0 | N78: 0 | O78: 0 | P78: 0 | Q78: 0 | R78: 0 | S78: 0 | T78: 0 | U78: 0 | V78: 0 | W78: 0 | X78: 0 | Y78: 0 | Z78: 0 | AA78: 0 | AB78: 0 | AC78: 0 | AD78: 0 | AE78: 0 | AF78: 0 | AG78: 0 | AH78: 0 | AI78: 0 | AJ78: 0 | AK78: 0 | AL78: 0 | AM78: 0 | AN78: 0 | AO78: 0 | AQ78: =J78 -> 0
B79: K65 | C79: =WT!B65 -> 03.877.00..0000 | D79: =gettext(CONCATENATE(C79,"_1"),Sprache!$D$1) -> Modul für WT und Ausgussb. mit AP-Armatur | H79: =WT!L65 -> Stück | J79: =SUM(L79:AO79) -> 0 | L79: =IF(L$2<>"Not Found",INDIRECT(CONCATENATE("'",L$2,"'","!",$B79)),0) -> 0 | M79: 0 | N79: 0 | O79: 0 | P79: 0 | Q79: 0 | R79: 0 | S79: 0 | T79: 0 | U79: 0 | V79: 0 | W79: 0 | X79: 0 | Y79: 0 | Z79: 0 | AA79: 0 | AB79: 0 | AC79: 0 | AD79: 0 | AE79: 0 | AF79: 0 | AG79: 0 | AH79: 0 | AI79: 0 | AJ79: 0 | AK79: 0 | AL79: 0 | AM79: 0 | AN79: 0 | AO79: 0 | AQ79: =J79 -> 0
B80: K66 | C80: =WT!B66 -> Weitere Module (Sanitärfunktion ohne Trockenbaurahmen) & Zubehör
B81: K67 | C81: =WT!B67 -> 17.268.00..0000 | D81: =gettext(CONCATENATE(C81,"_1"),Sprache!$D$1) -> Modul für UP- oder AP-Armaturen | H81: =WT!L67 -> Stück | J81: =SUM(L81:AO81) -> 0 | L81: =IF(L$2<>"Not Found",INDIRECT(CONCATENATE("'",L$2,"'","!",$B81)),0) -> 0 | M81: 0 | N81: 0 | O81: 0 | P81: 0 | Q81: 0 | R81: 0 | S81: 0 | T81: 0 | U81: 0 | V81: 0 | W81: 0 | X81: 0 | Y81: 0 | Z81: 0 | AA81: 0 | AB81: =IF(AB$2<>"Not Found",INDIRECT(CONCATENATE("'",AB$2,"'","!",$B81)),0) -> 0 | AC81: 0 | AD81: 0 | AE81: 0 | AF81: 0 | AG81: 0 | AH81: 0 | AI81: 0 | AJ81: 0 | AK81: 0 | AL81: 0 | AM81: 0 | AN81: 0 | AO81: 0 | AQ81: =J81 -> 0
B82: K68 | C82: =WT!B68 -> 17.287.00..0000 | D82: =gettext(CONCATENATE(C82,"_1"),Sprache!$D$1) -> Modul für UP- oder AP-Armaturen | H82: =WT!L68 -> Stück | J82: =SUM(L82:AO82) -> 0 | L82: 0 | M82: 0 | N82: 0 | O82: 0 | P82: 0 | Q82: 0 | R82: 0 | S82: 0 | T82: 0 | U82: 0 | V82: 0 | W82: 0 | X82: 0 | Y82: 0 | Z82: 0 | AA82: 0 | AB82: 0 | AC82: 0 | AD82: 0 | AE82: 0 | AF82: 0 | AG82: 0 | AH82: 0 | AI82: 0 | AJ82: 0 | AK82: 0 | AL82: 0 | AM82: 0 | AN82: 0 | AO82: 0 | AQ82: =J82 -> 0
B83: K69 | C83: =WT!B69 -> 17.275.00..0000 | D83: =gettext(CONCATENATE(C83,"_1"),Sprache!$D$1) -> Modul für Aufputzwandbatterien | H83: =WT!L69 -> Stück | J83: 0 | L83: 0 | M83: 0 | N83: 0 | O83: 0 | P83: 0 | Q83: 0 | R83: 0 | S83: 0 | T83: 0 | U83: 0 | V83: 0 | W83: 0 | X83: 0 | Y83: 0 | Z83: 0 | AA83: 0 | AB83: 0 | AC83: 0 | AD83: 0 | AE83: 0 | AF83: 0 | AG83: 0 | AH83: 0 | AI83: 0 | AJ83: 0 | AK83: 0 | AL83: 0 | AM83: 0 | AN83: 0 | AO83: 0 | AQ83: 0
B84: K70 | C84: =WT!B70 -> 17.282.00..0000 | D84: =gettext(CONCATENATE(C84,"_1"),Sprache!$D$1) -> Modul für Waschmaschinenanschluss | H84: =WT!L70 -> Stück | J84: 0 | L84: 0 | M84: 0 | N84: 0 | O84: 0 | P84: 0 | Q84: 0 | R84: 0 | S84: 0 | T84: 0 | U84: 0 | V84: 0 | W84: 0 | X84: 0 | Y84: 0 | Z84: 0 | AA84: 0 | AB84: 0 | AC84: 0 | AD84: 0 | AE84: 0 | AF84: 0 | AG84: 0 | AH84: 0 | AI84: 0 | AJ84: 0 | AK84: 0 | AL84: 0 | AM84: 0 | AN84: 0 | AO84: 0 | AQ84: 0
B85: K71 | C85: =WT!B71 -> 17.216.00..0000 | D85: =gettext(CONCATENATE(C85,"_1"),Sprache!$D$1) -> Befestigungsmodul f. schwere Gegenstände | H85: =WT!L71 -> Stück | J85: 0 | L85: 0 | M85: 0 | N85: 0 | O85: 0 | P85: 0 | Q85: 0 | R85: 0 | S85: 0 | T85: 0 | U85: 0 | V85: 0 | W85: 0 | X85: 0 | Y85: 0 | Z85: 0 | AA85: 0 | AB85: 0 | AC85: 0 | AD85: 0 | AE85: 0 | AF85: 0 | AG85: 0 | AH85: 0 | AI85: 0 | AJ85: 0 | AK85: 0 | AL85: 0 | AM85: 0 | AN85: 0 | AO85: 0 | AQ85: 0
B86: K72 | C86: =WT!B72 -> 17.280.00..0000 | D86: =gettext(CONCATENATE(C86,"_1"),Sprache!$D$1) -> Befestigungsmodul für Küchenanschlüsse | H86: =WT!L72 -> Stück | J86: 0 | L86: 0 | M86: 0 | N86: 0 | O86: 0 | P86: 0 | Q86: 0 | R86: 0 | S86: 0 | T86: 0 | U86: 0 | V86: 0 | W86: 0 | X86: 0 | Y86: 0 | Z86: 0 | AA86: 0 | AB86: 0 | AC86: 0 | AD86: 0 | AE86: 0 | AF86: 0 | AG86: 0 | AH86: 0 | AI86: 0 | AJ86: 0 | AK86: 0 | AL86: 0 | AM86: 0 | AN86: 0 | AO86: 0 | AQ86: 0
B87: K73 | C87: =WT!B73 -> 17.239.00..0000 | D87: =gettext(CONCATENATE(C87,"_1"),Sprache!$D$1) -> Modul für Sitzbefestigung | H87: =WT!L73 -> Stück | J87: 0 | L87: 0 | M87: 0 | N87: 0 | O87: 0 | P87: 0 | Q87: 0 | R87: 0 | S87: 0 | T87: 0 | U87: 0 | V87: 0 | W87: 0 | X87: 0 | Y87: 0 | Z87: 0 | AA87: 0 | AB87: 0 | AC87: 0 | AD87: 0 | AE87: 0 | AF87: 0 | AG87: 0 | AH87: 0 | AI87: 0 | AJ87: 0 | AK87: 0 | AL87: 0 | AM87: 0 | AN87: 0 | AO87: 0 | AQ87: 0
B88: K74 | C88: =WT!B74 -> 17.281.00..0000 | D88: =gettext(CONCATENATE(C88,"_1"),Sprache!$D$1) -> Modul für Wandscheiben | H88: =WT!L74 -> Stück | J88: 0 | L88: 0 | M88: 0 | N88: 0 | O88: 0 | P88: 0 | Q88: 0 | R88: 0 | S88: 0 | T88: 0 | U88: 0 | V88: 0 | W88: 0 | X88: 0 | Y88: 0 | Z88: 0 | AA88: 0 | AB88: 0 | AC88: 0 | AD88: 0 | AE88: 0 | AF88: 0 | AG88: 0 | AH88: 0 | AI88: 0 | AJ88: 0 | AK88: 0 | AL88: 0 | AM88: 0 | AN88: =IF(AN$2<>"Not Found",INDIRECT(CONCATENATE("'",AN$2,"'","!",$B88)),0) -> 0 | AO88: 0 | AQ88: 0
B89: K75 | C89: =WT!B75 -> 05.132.00..0000 | D89: =gettext(CONCATENATE(C89,"_1"),Sprache!$D$1) -> Dachschrägen-Anschluss | H89: =WT!L75 -> Stück | J89: =SUM(L89:AO89) -> 0 | L89: 0 | M89: 0 | N89: 0 | O89: 0 | P89: 0 | Q89: 0 | R89: 0 | S89: 0 | T89: 0 | U89: 0 | V89: 0 | W89: 0 | X89: 0 | Y89: 0 | Z89: 0 | AA89: 0 | AB89: 0 | AC89: 0 | AD89: 0 | AE89: 0 | AF89: 0 | AG89: 0 | AH89: 0 | AI89: 0 | AJ89: 0 | AK89: 0 | AL89: 0 | AM89: 0 | AN89: 0 | AO89: 0 | AQ89: =J89 -> 0
B90: K76 | C90: =WT!B76 -> 05.201.00..0000 | D90: =gettext(CONCATENATE(C90,"_1"),Sprache!$D$1) -> Rohrschellenbefestigung | H90: =WT!L76 -> Stück | J90: 0 | L90: 0 | M90: 0 | N90: 0 | O90: 0 | P90: 0 | Q90: 0 | R90: 0 | S90: 0 | T90: 0 | U90: 0 | V90: 0 | W90: 0 | X90: 0 | Y90: 0 | Z90: 0 | AA90: 0 | AB90: 0 | AC90: 0 | AD90: 0 | AE90: 0 | AF90: 0 | AG90: 0 | AH90: 0 | AI90: 0 | AJ90: 0 | AK90: 0 | AL90: 0 | AM90: 0 | AN90: 0 | AO90: 0 | AQ90: 0
B91: K77 | C91: =WT!B77 -> barrierefreie Elemente und Module
B92: K78 | C92: =WT!B78 -> 90.685.00..T000 | D92: =gettext(CONCATENATE(C92,"_1"),Sprache!$D$1) -> INEO WT f. Einlocharm., behinderteng. BH 820 | H92: =WT!L78 -> Stück | J92: =SUM(L92:AO92) -> 0 | L92: =IF(L$2<>"Not Found",INDIRECT(CONCATENATE("'",L$2,"'","!",$B92)),0) -> 0 | M92: 0 | N92: 0 | O92: 0 | P92: 0 | Q92: 0 | R92: 0 | S92: 0 | T92: 0 | U92: 0 | V92: 0 | W92: 0 | X92: 0 | Y92: 0 | Z92: 0 | AA92: 0 | AB92: 0 | AC92: 0 | AD92: 0 | AE92: 0 | AF92: 0 | AG92: 0 | AH92: 0 | AI92: 0 | AJ92: 0 | AK92: 0 | AL92: 0 | AM92: 0 | AN92: 0 | AO92: 0 | AQ92: =J92 -> 0
B93: K79 | C93: =WT!B79 -> 90.673.00..T000 | D93: =gettext(CONCATENATE(C93,"_1"),Sprache!$D$1) -> INEO WT f. Einlocharm, behindg. BH 1120 - 1185 | H93: =WT!L79 -> Stück | J93: =SUM(L93:AO93) -> 0 | L93: 0 | M93: 0 | N93: 0 | O93: 0 | P93: 0 | Q93: 0 | R93: 0 | S93: 0 | T93: 0 | U93: 0 | V93: 0 | W93: 0 | X93: 0 | Y93: 0 | Z93: 0 | AA93: 0 | AB93: 0 | AC93: 0 | AD93: 0 | AE93: 0 | AF93: 0 | AG93: 0 | AH93: 0 | AI93: 0 | AJ93: 0 | AK93: 0 | AL93: 0 | AM93: 0 | AN93: 0 | AO93: 0 | AQ93: =J93 -> 0
B94: K80 | C94: =WT!B80 -> 90.744.00..T000 | D94: =gettext(CONCATENATE(C94,"_1"),Sprache!$D$1) -> INEO PLUS WC-El., behindg., BH 1120 | H94: =WT!L80 -> Stück | J94: 0 | L94: 0 | M94: 0 | N94: 0 | O94: 0 | P94: 0 | Q94: 0 | R94: 0 | S94: 0 | T94: 0 | U94: 0 | V94: 0 | W94: 0 | X94: 0 | Y94: 0 | Z94: 0 | AA94: 0 | AB94: 0 | AC94: 0 | AD94: 0 | AE94: 0 | AF94: 0 | AG94: 0 | AH94: 0 | AI94: 0 | AJ94: 0 | AK94: 0 | AL94: 0 | AM94: 0 | AN94: 0 | AO94: 0 | AQ94: 0
B95: K81 | C95: =WT!B81 -> 90.680.00..TR00 | D95: =gettext(CONCATENATE(C95,"_1"),Sprache!$D$1) -> Befestigung. rechts | H95: =WT!L81 -> Stück | J95: 0 | L95: 0 | M95: 0 | N95: 0 | O95: 0 | P95: 0 | Q95: 0 | R95: 0 | S95: 0 | T95: 0 | U95: 0 | V95: 0 | W95: 0 | X95: 0 | Y95: 0 | Z95: 0 | AA95: 0 | AB95: 0 | AC95: 0 | AD95: 0 | AE95: 0 | AF95: 0 | AG95: 0 | AH95: 0 | AI95: 0 | AJ95: 0 | AK95: 0 | AL95: 0 | AM95: 0 | AN95: 0 | AO95: 0 | AQ95: 0
B96: K82 | C96: =WT!B82 -> 90.680.00..TL00 | D96: =gettext(CONCATENATE(C96,"_1"),Sprache!$D$1) -> Befestigung. links | H96: =WT!L82 -> Stück | J96: 0 | L96: 0 | M96: 0 | N96: 0 | O96: 0 | P96: 0 | Q96: 0 | R96: 0 | S96: 0 | T96: 0 | U96: 0 | V96: 0 | W96: 0 | X96: 0 | Y96: 0 | Z96: 0 | AA96: 0 | AB96: 0 | AC96: 0 | AD96: 0 | AE96: 0 | AF96: 0 | AG96: 0 | AH96: 0 | AI96: 0 | AJ96: 0 | AK96: 0 | AL96: 0 | AM96: 0 | AN96: 0 | AO96: 0 | AQ96: 0
B97: K83 | C97: =WT!B83 -> 17.288.00..0000 | D97: =gettext(CONCATENATE(C97,"_1"),Sprache!$D$1) -> Waschtisch-Modul behindertengerecht | H97: =WT!L83 -> Stück | J97: 0 | L97: 0 | M97: 0 | N97: 0 | O97: 0 | P97: 0 | Q97: 0 | R97: 0 | S97: 0 | T97: 0 | U97: 0 | V97: 0 | W97: 0 | X97: 0 | Y97: 0 | Z97: 0 | AA97: 0 | AB97: 0 | AC97: 0 | AD97: 0 | AE97: 0 | AF97: 0 | AG97: 0 | AH97: 0 | AI97: 0 | AJ97: 0 | AK97: 0 | AL97: 0 | AM97: 0 | AN97: 0 | AO97: 0 | AQ97: 0
B98: K84 | C98: =WT!B84 -> 17.279.00..0000 | D98: =gettext(CONCATENATE(C98,"_1"),Sprache!$D$1) -> Befestigungsmodul für Griffe | H98: =WT!L84 -> Stück | J98: 0 | L98: 0 | M98: 0 | N98: 0 | O98: 0 | P98: 0 | Q98: 0 | R98: 0 | S98: 0 | T98: 0 | U98: 0 | V98: 0 | W98: 0 | X98: 0 | Y98: 0 | Z98: 0 | AA98: 0 | AB98: 0 | AC98: 0 | AD98: 0 | AE98: 0 | AF98: 0 | AG98: 0 | AH98: 0 | AI98: 0 | AJ98: 0 | AK98: 0 | AL98: 0 | AM98: 0 | AN98: 0 | AO98: 0 | AQ98: 0
B99: K85 | C99: =WT!B85 -> 17.289.00..0000 | D99: =gettext(CONCATENATE(C99,"_1"),Sprache!$D$1) -> Befestigungsmodul für Griff- und Haltesysteme | H99: =WT!L85 -> Stück | J99: 0 | L99: 0 | M99: 0 | N99: 0 | O99: 0 | P99: 0 | Q99: 0 | R99: 0 | S99: 0 | T99: 0 | U99: 0 | V99: 0 | W99: 0 | X99: 0 | Y99: 0 | Z99: 0 | AA99: 0 | AB99: 0 | AC99: 0 | AD99: 0 | AE99: 0 | AF99: 0 | AG99: 0 | AH99: 0 | AI99: 0 | AJ99: 0 | AK99: 0 | AL99: 0 | AM99: 0 | AN99: 0 | AO99: 0 | AQ99: 0
AQ100: =AQ101 -> 0
B101: K88 | C101: =WT!B88 -> Materialbedarf für Tragwerk und Beplankung | AQ101: =SUM(AQ102:AQ114) -> 0
B102: K90 | C102: =WT!B90 -> 02.208.00..0000 | D102: =gettext(CONCATENATE(C102,"_1"),Sprache!$D$1) -> Stab (5m) | H102: =WT!L90 -> m | J102: =SUM(L102:AO102) -> 0 | L102: =IF(L$2<>"Not Found",INDIRECT(CONCATENATE("'",L$2,"'","!",$B102)),0) -> 0 | M102: 0 | N102: 0 | O102: 0 | P102: 0 | Q102: 0 | R102: 0 | S102: 0 | T102: 0 | U102: 0 | V102: 0 | W102: 0 | X102: 0 | Y102: 0 | Z102: 0 | AA102: 0 | AB102: 0 | AC102: 0 | AD102: 0 | AE102: 0 | AF102: 0 | AG102: 0 | AH102: 0 | AI102: 0 | AJ102: 0 | AK102: 0 | AL102: 0 | AM102: 0 | AN102: 0 | AO102: 0 | AQ102: =J102 -> 0
B103: K91 | C103: =WT!B91 -> 02.596.00..0000 | D103: =gettext(CONCATENATE(C103,"_1"),Sprache!$D$1) -> Universalspachtelmasse | H103: =WT!L91 -> Kg | J103: =SUM(L103:AO103) -> 0 | L103: 0 | M103: 0 | N103: 0 | O103: 0 | P103: 0 | Q103: 0 | R103: 0 | S103: 0 | T103: 0 | U103: 0 | V103: 0 | W103: 0 | X103: 0 | Y103: 0 | Z103: 0 | AA103: 0 | AB103: 0 | AC103: 0 | AD103: 0 | AE103: 0 | AF103: 0 | AG103: 0 | AH103: 0 | AI103: 0 | AJ103: 0 | AK103: 0 | AL103: 0 | AM103: 0 | AN103: 0 | AO103: 0 | AQ103: =J103 -> 0
B104: K92 | C104: =WT!B92 -> 02.597.00..0000 | D104: =gettext(CONCATENATE(C104,"_1"),Sprache!$D$1) -> Senkkopf-Kreuzschlitzschr. | H104: =WT!L92 -> Stück | J104: 0 | L104: 0 | M104: 0 | N104: 0 | O104: 0 | P104: 0 | Q104: 0 | R104: 0 | S104: 0 | T104: 0 | U104: 0 | V104: 0 | W104: 0 | X104: 0 | Y104: 0 | Z104: 0 | AA104: 0 | AB104: 0 | AC104: 0 | AD104: 0 | AE104: 0 | AF104: 0 | AG104: 0 | AH104: 0 | AI104: 0 | AJ104: 0 | AK104: 0 | AL104: 0 | AM104: 0 | AN104: 0 | AO104: 0 | AQ104: 0
B105: K93 | C105: =WT!B93 -> 03.332.00..0000 | D105: =gettext(CONCATENATE(C105,"_1"),Sprache!$D$1) -> Eckverbinder | H105: =WT!L93 -> Stück | J105: 0 | L105: 0 | M105: 0 | N105: 0 | O105: 0 | P105: 0 | Q105: 0 | R105: 0 | S105: 0 | T105: 0 | U105: 0 | V105: 0 | W105: 0 | X105: 0 | Y105: 0 | Z105: 0 | AA105: 0 | AB105: 0 | AC105: 0 | AD105: 0 | AE105: 0 | AF105: 0 | AG105: 0 | AH105: 0 | AI105: 0 | AJ105: 0 | AK105: 0 | AL105: 0 | AM105: 0 | AN105: 0 | AO105: 0 | AQ105: 0
B106: K94 | C106: =WT!B94 -> 03.333.00..0000 | D106: =gettext(CONCATENATE(C106,"_1"),Sprache!$D$1) -> Modulverbinder | H106: =WT!L94 -> Stück | J106: 0 | L106: 0 | M106: 0 | N106: 0 | O106: 0 | P106: 0 | Q106: 0 | R106: 0 | S106: 0 | T106: 0 | U106: 0 | V106: 0 | W106: 0 | X106: 0 | Y106: 0 | Z106: 0 | AA106: 0 | AB106: 0 | AC106: 0 | AD106: 0 | AE106: 0 | AF106: 0 | AG106: 0 | AH106: 0 | AI106: 0 | AJ106: 0 | AK106: 0 | AL106: 0 | AM106: 0 | AN106: 0 | AO106: 0 | AQ106: 0
B107: K95 | C107: =WT!B95 -> 03.346.00..0000 | D107: =gettext(CONCATENATE(C107,"_1"),Sprache!$D$1) -> Trennstreifen | H107: =WT!L95 -> m | J107: 0 | L107: 0 | M107: 0 | N107: 0 | O107: 0 | P107: 0 | Q107: 0 | R107: 0 | S107: 0 | T107: 0 | U107: 0 | V107: 0 | W107: 0 | X107: 0 | Y107: 0 | Z107: 0 | AA107: 0 | AB107: 0 | AC107: 0 | AD107: 0 | AE107: 0 | AF107: 0 | AG107: 0 | AH107: 0 | AI107: 0 | AJ107: 0 | AK107: 0 | AL107: 0 | AM107: 0 | AN107: 0 | AO107: 0 | AQ107: 0
B108: K96 | C108: =WT!B96 -> 03.545.00..0000 | D108: =gettext(CONCATENATE(C108,"_1"),Sprache!$D$1) -> Bauwerksanschluss | H108: =WT!L96 -> Stück | J108: 0 | L108: 0 | M108: 0 | N108: 0 | O108: 0 | P108: 0 | Q108: 0 | R108: 0 | S108: 0 | T108: 0 | U108: 0 | V108: 0 | W108: 0 | X108: 0 | Y108: 0 | Z108: 0 | AA108: 0 | AB108: 0 | AC108: 0 | AD108: 0 | AE108: 0 | AF108: 0 | AG108: 0 | AH108: 0 | AI108: 0 | AJ108: 0 | AK108: 0 | AL108: 0 | AM108: 0 | AN108: 0 | AO108: 0 | AQ108: 0
B109: K97 | C109: =WT!B97 -> 03.723.00..0000 | D109: =gettext(CONCATENATE(C109,"_1"),Sprache!$D$1) -> Multiverbinder (Tiefe 155-215 mm) | H109: =WT!L97 -> Stück | J109: 0 | L109: 0 | M109: 0 | N109: 0 | O109: 0 | P109: 0 | Q109: 0 | R109: 0 | S109: 0 | T109: 0 | U109: 0 | V109: 0 | W109: 0 | X109: 0 | Y109: 0 | Z109: 0 | AA109: 0 | AB109: 0 | AC109: 0 | AD109: 0 | AE109: 0 | AF109: 0 | AG109: 0 | AH109: 0 | AI109: 0 | AJ109: 0 | AK109: 0 | AL109: 0 | AM109: 0 | AN109: 0 | AO109: 0 | AQ109: 0
B110: K98 | C110: =WT!B98 -> 03.723.00..S000 | D110: =gettext(CONCATENATE(C110,"_1"),Sprache!$D$1) -> Multiverbinder (Tiefe 255-315 mm) | H110: =WT!L98 -> Stück | J110: 0 | L110: 0 | M110: 0 | N110: 0 | O110: 0 | P110: 0 | Q110: 0 | R110: 0 | S110: 0 | T110: 0 | U110: 0 | V110: 0 | W110: 0 | X110: 0 | Y110: 0 | Z110: 0 | AA110: =IF(AA$2<>"Not Found",INDIRECT(CONCATENATE("'",AA$2,"'","!",$B110)),0) -> 0 | AB110: 0 | AC110: 0 | AD110: 0 | AE110: 0 | AF110: 0 | AG110: 0 | AH110: 0 | AI110: 0 | AJ110: 0 | AK110: 0 | AL110: 0 | AM110: 0 | AN110: 0 | AO110: 0 | AQ110: 0
B111: K99 | C111: =WT!B99 -> 03.754.00..0000 | D111: =gettext(CONCATENATE(C111,"_1"),Sprache!$D$1) -> Verbindungsset | H111: =WT!L99 -> Stück | J111: 0 | L111: =IF(L$2<>"Not Found",INDIRECT(CONCATENATE("'",L$2,"'","!",$B111)),0) -> 0 | M111: 0 | N111: 0 | O111: 0 | P111: 0 | Q111: 0 | R111: 0 | S111: 0 | T111: 0 | U111: 0 | V111: 0 | W111: 0 | X111: 0 | Y111: 0 | Z111: 0 | AA111: 0 | AB111: 0 | AC111: 0 | AD111: 0 | AE111: 0 | AF111: 0 | AG111: 0 | AH111: 0 | AI111: 0 | AJ111: 0 | AK111: 0 | AL111: 0 | AM111: 0 | AN111: 0 | AO111: 0 | AQ111: 0
B112: K100 | C112: =WT!B100 -> 04.070.00..0000 | D112: =gettext(CONCATENATE(C112,"_1"),Sprache!$D$1) -> Stützfuß | H112: =WT!L100 -> Stück | J112: 0 | L112: 0 | M112: 0 | N112: 0 | O112: 0 | P112: 0 | Q112: 0 | R112: 0 | S112: 0 | T112: 0 | U112: 0 | V112: 0 | W112: 0 | X112: 0 | Y112: 0 | Z112: 0 | AA112: 0 | AB112: 0 | AC112: 0 | AD112: 0 | AE112: 0 | AF112: 0 | AG112: 0 | AH112: 0 | AI112: 0 | AJ112: 0 | AK112: 0 | AL112: 0 | AM112: 0 | AN112: 0 | AO112: 0 | AQ112: 0
B113: K101 | C113: =WT!B101 -> 16.032.00..0000 | D113: =gettext(CONCATENATE(C113,"_1"),Sprache!$D$1) -> Schallschutzset zu INEO plus, 996 | H113: =WT!L101 -> Stück | J113: 0 | L113: 0 | M113: 0 | N113: 0 | O113: 0 | P113: 0 | Q113: 0 | R113: 0 | S113: 0 | T113: 0 | U113: 0 | V113: 0 | W113: 0 | X113: 0 | Y113: 0 | Z113: 0 | AA113: 0 | AB113: 0 | AC113: 0 | AD113: 0 | AE113: 0 | AF113: 0 | AG113: 0 | AH113: 0 | AI113: 0 | AJ113: 0 | AK113: 0 | AL113: 0 | AM113: 0 | AN113: 0 | AO113: 0 | AQ113: 0
B114: K102 | C114: =WT!B102 -> 17.115.00..S000 | D114: =gettext(CONCATENATE(C114,"_1"),Sprache!$D$1) -> GKBI-Universalverkleidungsplatte | H114: =WT!L102 -> Stück | J114: 0 | L114: 0 | M114: 0 | N114: 0 | O114: 0 | P114: 0 | Q114: 0 | R114: 0 | S114: 0 | T114: 0 | U114: 0 | V114: 0 | W114: 0 | X114: 0 | Y114: 0 | Z114: 0 | AA114: 0 | AB114: 0 | AC114: 0 | AD114: 0 | AE114: 0 | AF114: 0 | AG114: 0 | AH114: 0 | AI114: 0 | AJ114: 0 | AK114: 0 | AL114: 0 | AM114: 0 | AN114: 0 | AO114: 0 | AQ114: 0

Sheet Bestellung_Order
B1: =IF(Übersicht_Summary!$J$5>0,gettext("I17",Sprache!$D$1),"") -> 
B2: =gettext("I1",Sprache!$D$1) -> Bestellung für SANIT Schienensystem 996 für Trockenbau
B5: =gettext("I2",Sprache!$D$1) -> Firma : | F5: =gettext("I3",Sprache!$D$1) -> Kundennummer :
I7: =gettext("I13",Sprache!$D$1) -> *Bitte wenden Sie sich mit Ihrer Bestellung
F8: =gettext("I4",Sprache!$D$1) -> Besteller / Ansprechpartner : | I8: =gettext("I14",Sprache!$D$1) -> an ihren Großhandelspartner !
I10: =gettext("I15",Sprache!$D$1) -> Ihr Großhandelspartner:
F11: =gettext("I5",Sprache!$D$1) -> Telefon :
B14: =Wandtypen_Walltypes!E1 -> Bauvorhaben / Projekt : | F14: =gettext("I6",Sprache!$D$1) -> Fax :
B15: =Wandtypen_Walltypes!G1 -> 0
B17: =gettext("I11",Sprache!$D$1) -> Kommission : | F17: =gettext("I7",Sprache!$D$1) -> e-mail :
B20: =gettext("I12",Sprache!$D$1) -> Lieferanschrift : | F20: =gettext("I8",Sprache!$D$1) -> Bestellnummer :
F23: =gettext("I9",Sprache!$D$1) -> Bestelldatum :
F26: =gettext("I10",Sprache!$D$1) -> Terminwunsch Lieferung :
B29: =gettext("I18",Sprache!$D$1) -> * abweichend von den in dieser Bestellung exakt ausgewiesenen Mengen erfolgt die Auslieferung nur in kompletten Verpackungseinheiten !
B32: =WT!B35 -> Artikel-Nr. | C32: =WT!C35 -> Bezeichnung | D32: Artikel-Nr. | E32: Artikel-Nr. | F32: Artikel-Nr. | G32: Artikel-Nr. | H32: Artikel-Nr. | I32: Artikel-Nr. | K32: =WT!J35 -> Anzahl | L32: =WT!L35 -> Einheit | O32: Menge kalkuliert | P32: Mengeneinheit Angebot | Q32: Vielfaches Kalk/Angebot
B33: keine Elemente | C33: keine Elemente | D33: keine Elemente | E33: keine Elemente | F33: keine Elemente | G33: keine Elemente | H33: keine Elemente | I33: keine Elemente | K33: Anzahl
B34: =Einbauten!A3 -> WC-Elemente | Q34: 0
B35: =Einbauten!A4 -> 90.745.00..T000 | C35: =gettext(B35,Sprache!$D$1) -> INEO FRONTOP WC-El., kl. RÖ, Betät. v.vorn/oben, BH 820 mm | K35: =Q35 -> 0 | L35: =Einbauten!B4 -> Stück | O35: =Übersicht_Summary!J52 -> 0 | P35: 1 | Q35: =ROUNDUP(O35/P35,0) -> 0
B36: =Einbauten!A5 -> 90.738.00..T000 | C36: =gettext(B36,Sprache!$D$1) -> INEO FRONTOP WC-El., kl. RÖ, Betät. v.vorn/oben, BH 985 mm | K36: =Q36 -> 0 | L36: =Einbauten!B5 -> Stück | O36: =Übersicht_Summary!J53 -> 0 | P36: 1 | Q36: =ROUNDUP(O36/P36,0) -> 0
B37: =Einbauten!A6 -> 90.743.00..T000 | C37: =gettext(B37,Sprache!$D$1) -> INEO PLUS WC-El., kl. RÖ, Betät. v. vorn, BH 1120 mm, Breite 450 mm o. Wandhalter | K37: 0 | L37: =Einbauten!B6 -> Stück | O37: =Übersicht_Summary!J54 -> 0 | P37: 1 | Q37: 0
B38: =Einbauten!A7 -> 90.735.00..T000 | C38: =gettext(B38,Sprache!$D$1) -> INEO WC-El. für Stand-/Kinder-WC, kl. RÖ, Betät. v. vorn, BH 1120 mm | K38: 0 | L38: =Einbauten!B7 -> Stück | O38: =Übersicht_Summary!J55 -> 0 | P38: 1 | Q38: 0
B39: =Einbauten!A8 -> Waschtisch- und Ausgussbecken-Elemente | Q39: 0
B40: =Einbauten!A9 -> 90.672.00..T000 | C40: =gettext(B40,Sprache!$D$1) -> INEO WT-Element für Einlocharmaturen, BH 820 mm | K40: =Q40 -> 0 | L40: =Einbauten!B9 -> Stück | O40: =Übersicht_Summary!J57 -> 0 | P40: 1 | Q40: =ROUNDUP(O40/P40,0) -> 0
B41: =Einbauten!A10 -> 90.669.00..T000 | C41: =gettext(B41,Sprache!$D$1) -> INEO WT-Element für Einlocharmaturen, BH 985 mm | K41: 0 | L41: =Einbauten!B10 -> Stück | O41: =Übersicht_Summary!J58 -> 0 | P41: 1 | Q41: 0
B42: =Einbauten!A11 -> 90.696.00..T000 | C42: =gettext(B42,Sprache!$D$1) -> INEO WT-Element für Einlocharmaturen, BH 1120 mm | K42: 0 | L42: =Einbauten!B11 -> Stück | O42: =Übersicht_Summary!J59 -> 0 | P42: 1 | Q42: 0
B43: =Einbauten!A12 -> 90.671.00..T000 | C43: =gettext(B43,Sprache!$D$1) -> INEO WT-Element für AP-Wandarmaturen, BH 1120 - 1185 mm | K43: 0 | L43: =Einbauten!B12 -> Stück | O43: =Übersicht_Summary!J60 -> 0 | P43: 1 | Q43: 0
B44: =Einbauten!A13 -> 90.677.00..T000 | C44: =gettext(B44,Sprache!$D$1) -> INEO Ausguss-Element für Wandarmaturen, BH 1120 - 1185 mm | K44: 0 | L44: =Einbauten!B13 -> Stück | O44: =Übersicht_Summary!J61 -> 0 | P44: 1 | Q44: 0
B45: =Einbauten!A14 -> 90.691.00..T000 | C45: =gettext(B45,Sprache!$D$1) -> INEO WT-El. für Einlocharmaturen mit 2 UP-Wasserzählerstrecken, BH 985 mm | K45: 0 | L45: =Einbauten!B14 -> Stück | O45: =Übersicht_Summary!J62 -> 0 | P45: 1 | Q45: 0
B46: =Einbauten!A15 -> 90.687.00..T000 | C46: =gettext(B46,Sprache!$D$1) -> INEO WT-El. für Einlocharmaturen mit 2 UP-Wasserzählerstrecken, BH 1120 mm | K46: 0 | L46: =Einbauten!B15 -> Stück | O46: =Übersicht_Summary!J63 -> 0 | P46: 1 | Q46: 0
B47: =Einbauten!A16 -> 90.689.00..T000 | C47: =gettext(B47,Sprache!$D$1) -> INEO WT-El. für Einlocharmaturen, UP-Montage v. Durchlauferhitzern, BH 1120 mm | K47: 0 | L47: =Einbauten!B16 -> Stück | O47: =Übersicht_Summary!J64 -> 0 | P47: 1 | Q47: 0
B48: =Einbauten!A17 -> 90.688.00..T000 | C48: =gettext(B48,Sprache!$D$1) -> INEO LINNUM Leer-Element, BH 1120 mm | K48: 0 | L48: =Einbauten!B17 -> Stück | O48: =Übersicht_Summary!J65 -> 0 | P48: 1 | Q48: 0
B49: =Einbauten!A18 -> 90.659.00..0000 | C49: =gettext(B49,Sprache!$D$1) -> INEO-Fäkalausguss-El. für Ausguss "Publica", kl. RÖ, Betät. v. vorn, BH 1530 mm | K49: 0 | L49: =Einbauten!B18 -> Stück | O49: =Übersicht_Summary!J66 -> 0 | P49: 1 | Q49: 0
B50: =Einbauten!A19 -> Bidet- und Urinal-Elemente | Q50: 0
B51: =Einbauten!A20 -> 90.663.00..T000 | C51: =gettext(B51,Sprache!$D$1) -> INEO Bidet-Element, BH 820 mm | K51: =Q51 -> 0 | L51: =Einbauten!B20 -> Stück | O51: =Übersicht_Summary!J68 -> 0 | P51: 1 | Q51: =ROUNDUP(O51/P51,0) -> 0
B52: =Einbauten!A21 -> 90.662.00..T000 | C52: =gettext(B52,Sprache!$D$1) -> INEO Bidet-Element, BH 985 mm | K52: 0 | L52: =Einbauten!B21 -> Stück | O52: =Übersicht_Summary!J69 -> 0 | P52: 1 | Q52: 0
B53: =Einbauten!A22 -> 90.676.00..T000 | C53: =gettext(B53,Sprache!$D$1) -> INEO Bidet-Element, BH 1120 mm | K53: 0 | L53: =Einbauten!B22 -> Stück | O53: =Übersicht_Summary!J70 -> 0 | P53: 1 | Q53: 0
B54: =Einbauten!A23 -> 90.668.00..T000 | C54: =gettext(B54,Sprache!$D$1) -> INEO Urinal-Element, für Urinal-Kartuschenventiltechnik, BH 1120 - 1185 mm | K54: 0 | L54: =Einbauten!B23 -> Stück | O54: =Übersicht_Summary!J71 -> 0 | P54: 1 | Q54: 0
B55: =Einbauten!A24 -> 90.675.00..T000 | C55: =gettext(B55,Sprache!$D$1) -> INEO Urinal-Element für Aufputzdruckspüler, BH 1120 - 1185 mm | K55: 0 | L55: =Einbauten!B24 -> Stück | O55: =Übersicht_Summary!J72 -> 0 | P55: 1 | Q55: 0
B56: =Einbauten!A25 -> Bade-und Brausewannen | Q56: 0
B57: =Einbauten!A26 -> 90.681.00..T000 | C57: =gettext(B57,Sprache!$D$1) -> INEO BW-Element für Aufputzwandarmaturen, BH 1120-1185 mm | K57: =Q57 -> 0 | L57: =Einbauten!B26 -> Stück | O57: =Übersicht_Summary!J74 -> 0 | P57: 1 | Q57: =ROUNDUP(O57/P57,0) -> 0
B58: =Einbauten!A27 -> 90.682.00..T000 | C58: =gettext(B58,Sprache!$D$1) -> INEO BW-Element für UP-Armaturen, BH 1120-1185 mm | K58: 0 | L58: =Einbauten!B27 -> Stück | O58: =Übersicht_Summary!J75 -> 0 | P58: 1 | Q58: 0
B59: =Einbauten!A28 -> Waschtisch- und Urinal-Module (Sanitärfunktion ohne Trockenbaurahmen) | Q59: 0
B60: =Einbauten!A29 -> 17.276.00..0000 | C60: =gettext(B60,Sprache!$D$1) -> WT-Modul für Einloch- und AP-Wandarmaturen | K60: =Q60 -> 0 | L60: =Einbauten!B29 -> Stück | O60: =Übersicht_Summary!J77 -> 0 | P60: 1 | Q60: =ROUNDUP(O60/P60,0) -> 0
B61: =Einbauten!A30 -> 17.286.00..0000 | C61: =gettext(B61,Sprache!$D$1) -> Waschtisch-Modul für Einlocharmaturen | K61: 0 | L61: =Einbauten!B30 -> Stück | O61: =Übersicht_Summary!J78 -> 0 | P61: 1 | Q61: 0
B62: =Einbauten!A31 -> 03.877.00..0000 | C62: =gettext(B62,Sprache!$D$1) -> Modul für Waschtisch und Ausgussbecken mit AP-Armatur | K62: 0 | L62: =Einbauten!B31 -> Stück | O62: =Übersicht_Summary!J79 -> 0 | P62: 1 | Q62: 0
B63: =Einbauten!A32 -> Weitere Module (Sanitärfunktion ohne Trockenbaurahmen) & Zubehör | Q63: 0
B64: =Einbauten!A33 -> 17.268.00..0000 | C64: =gettext(B64,Sprache!$D$1) -> Modul für UP- oder AP-Armaturen | K64: =Q64 -> 0 | L64: =Einbauten!B33 -> Stück | O64: =Übersicht_Summary!J81 -> 0 | P64: 1 | Q64: =ROUNDUP(O64/P64,0) -> 0
B65: =Einbauten!A34 -> 17.287.00..0000 | C65: =gettext(B65,Sprache!$D$1) -> Modul für UP- oder AP-Armaturen | K65: 0 | L65: =Einbauten!B34 -> Stück | O65: =Übersicht_Summary!J82 -> 0 | P65: 1 | Q65: 0
B66: =Einbauten!A35 -> 17.275.00..0000 | C66: =gettext(B66,Sprache!$D$1) -> Modul für Aufputzwandbatterien | K66: 0 | L66: =Einbauten!B35 -> Stück | O66: =Übersicht_Summary!J83 -> 0 | P66: 1 | Q66: 0
B67: =Einbauten!A36 -> 17.282.00..0000 | C67: =gettext(B67,Sprache!$D$1) -> Modul für Waschmaschinenanschluss | K67: 0 | L67: =Einbauten!B36 -> Stück | O67: =Übersicht_Summary!J84 -> 0 | P67: 1 | Q67: 0
B68: =Einbauten!A37 -> 17.216.00..0000 | C68: =gettext(B68,Sprache!$D$1) -> Befestigungsmodul für schwere Gegenstände, Griffe u.ä. | K68: 0 | L68: =Einbauten!B37 -> Stück | O68: =Übersicht_Summary!J85 -> 0 | P68: 1 | Q68: 0
B69: =Einbauten!A38 -> 17.280.00..0000 | C69: =gettext(B69,Sprache!$D$1) -> Befestigungsmodul für Küchenanschlüsse | K69: 0 | L69: =Einbauten!B38 -> Stück | O69: =Übersicht_Summary!J86 -> 0 | P69: 1 | Q69: 0
B70: =Einbauten!A39 -> 17.239.00..0000 | C70: =gettext(B70,Sprache!$D$1) -> Ergänzungsmodul für Sitzbefestigung | K70: 0 | L70: =Einbauten!B39 -> Stück | O70: =Übersicht_Summary!J87 -> 0 | P70: 1 | Q70: 0
B71: =Einbauten!A40 -> 17.281.00..0000 | C71: =gettext(B71,Sprache!$D$1) -> Modul für Wandscheiben | K71: 0 | L71: =Einbauten!B40 -> Stück | O71: =Übersicht_Summary!J88 -> 0 | P71: 1 | Q71: 0
B72: =Einbauten!A41 -> 05.132.00..0000 | C72: =gettext(B72,Sprache!$D$1) -> Dachschrägen-Anschluss | K72: =Q72 -> 0 | L72: =Einbauten!B41 -> Stück | O72: =Übersicht_Summary!J89 -> 0 | P72: 1 | Q72: =ROUNDUP(O72/P72,0) -> 0
B73: =Einbauten!A42 -> 05.201.00..0000 | C73: =gettext(B73,Sprache!$D$1) -> Rohrschellenbefestigung | K73: 0 | L73: =Einbauten!B42 -> Stück | O73: =Übersicht_Summary!J90 -> 0 | P73: 1 | Q73: 0
B74: =Einbauten!A43 -> barrierefreie Elemente und Module | Q74: 0
B75: =Einbauten!A44 -> 90.685.00..T000 | C75: =gettext(B75,Sprache!$D$1) -> INEO WT-Element für Einlocharmaturen, behinderteng. BH 820 mm | K75: =Q75 -> 0 | L75: =Einbauten!B44 -> Stück | O75: =Übersicht_Summary!J92 -> 0 | P75: 1 | Q75: =ROUNDUP(O75/P75,0) -> 0
B76: =Einbauten!A45 -> 90.673.00..T000 | C76: =gettext(B76,Sprache!$D$1) -> INEO WT-El. für Einloch- o. AP-Wandarmaturen, behinderteng., BH 1120 - 1185 mm | K76: 0 | L76: =Einbauten!B45 -> Stück | O76: =Übersicht_Summary!J93 -> 0 | P76: 1 | Q76: 0
B77: =Einbauten!A46 -> 90.744.00..T000 | C77: =gettext(B77,Sprache!$D$1) -> INEO PLUS WC-El., kl. RÖ, Betät. v. vorn, behindertengerecht, BH 1120 mm | K77: 0 | L77: =Einbauten!B46 -> Stück | O77: =Übersicht_Summary!J94 -> 0 | P77: 1 | Q77: 0
B78: =Einbauten!A47 -> 90.680.00..TR00 | C78: =gettext(B78,Sprache!$D$1) -> Befest.-El. rechts für Griff- u. Haltesysteme, BH 1185 mm | K78: 0 | L78: =Einbauten!B47 -> Stück | O78: =Übersicht_Summary!J95 -> 0 | P78: 1 | Q78: 0
B79: =Einbauten!A48 -> 90.680.00..TL00 | C79: =gettext(B79,Sprache!$D$1) -> Befest.-El. links für Griff- u. Haltesysteme, BH 1185 mm | K79: 0 | L79: =Einbauten!B48 -> Stück | O79: =Übersicht_Summary!J96 -> 0 | P79: 1 | Q79: 0
B80: =Einbauten!A49 -> 17.288.00..0000 | C80: =gettext(B80,Sprache!$D$1) -> Waschtisch-Modul behindertengerecht | K80: 0 | L80: =Einbauten!B49 -> Stück | O80: =Übersicht_Summary!J97 -> 0 | P80: 1 | Q80: 0
B81: =Einbauten!A50 -> 17.279.00..0000 | C81: =gettext(B81,Sprache!$D$1) -> Befestigungsmodul für Griff- und Haltesysteme | K81: 0 | L81: =Einbauten!B50 -> Stück | O81: =Übersicht_Summary!J98 -> 0 | P81: 1 | Q81: 0
B82: =Einbauten!A51 -> 17.289.00..0000 | C82: =gettext(B82,Sprache!$D$1) -> Befestigungs-Modul für Griff- und Haltesysteme | K82: 0 | L82: =Einbauten!B51 -> Stück | O82: =Übersicht_Summary!J99 -> 0 | P82: 1 | Q82: 0
Q84: =SUM(Q87:Q99) -> 0
B85: =gettext("G28",Sprache!$D$1) -> Materialbedarf für Tragwerk und Beplankung | Q85: =SUM(Q87:Q99) -> 0
Q86: =SUM(Q87:Q99) -> 0
B87: =Basismaterial!A3 -> 02.208.00..0000 | C87: =gettext(B87,Sprache!$D$1) -> Stab (5m) | K87: =Q87 -> 0 | L87: =Basismaterial!C3 -> m | O87: =Übersicht_Summary!J102 -> 0 | P87: 1 | Q87: =ROUNDUP(O87/P87,0) -> 0
B88: =Basismaterial!A4 -> 02.596.00..0000 | C88: =gettext(B88,Sprache!$D$1) -> Universalspachtelmasse ( ca. 0,25 Kg/m2 ) | K88: =Q88 -> 0 | L88: =Basismaterial!C4 -> Kg | O88: =Übersicht_Summary!J103 -> 0 | P88: 1 | Q88: =ROUNDUP(O88/P88,0) -> 0
B89: =Basismaterial!A5 -> 02.597.00..0000 | C89: =gettext(B89,Sprache!$D$1) -> Senkkopf-Kreuzschlitzschraube zur Verkleidungsplatte | K89: 0 | L89: =Basismaterial!C5 -> Stück | O89: =Übersicht_Summary!J104 -> 0 | P89: 1 | Q89: 0
B90: =Basismaterial!A6 -> 03.332.00..0000 | C90: =gettext(B90,Sprache!$D$1) -> Eckverbinder | K90: 0 | L90: =Basismaterial!C6 -> Stück | O90: =Übersicht_Summary!J105 -> 0 | P90: 1 | Q90: 0
B91: =Basismaterial!A7 -> 03.333.00..0000 | C91: =gettext(B91,Sprache!$D$1) -> Modulverbinder | K91: 0 | L91: =Basismaterial!C7 -> Stück | O91: =Übersicht_Summary!J106 -> 0 | P91: 1 | Q91: 0
B92: =Basismaterial!A8 -> 03.346.00..0000 | C92: =gettext(B92,Sprache!$D$1) -> Trennstreifen für Putzanschluss 20m | K92: 0 | L92: =Basismaterial!C8 -> m | O92: =Übersicht_Summary!J107 -> 0 | P92: 1 | Q92: 0
B93: =Basismaterial!A9 -> 03.545.00..0000 | C93: =gettext(B93,Sprache!$D$1) -> Bauwerksanschluss | K93: 0 | L93: =Basismaterial!C9 -> Stück | O93: =Übersicht_Summary!J108 -> 0 | P93: 1 | Q93: 0
B94: =Basismaterial!A10 -> 03.723.00..0000 | C94: =gettext(B94,Sprache!$D$1) -> Multiverbinder (Tiefe 155-215 mm) | K94: 0 | L94: =Basismaterial!C10 -> Stück | O94: =Übersicht_Summary!J109 -> 0 | P94: 1 | Q94: 0
B95: =Basismaterial!A11 -> 03.723.00..S000 | C95: =gettext(B95,Sprache!$D$1) -> Multiverbinder (Tiefe 255-315 mm) | K95: 0 | L95: =Basismaterial!C11 -> Stück | O95: =Übersicht_Summary!J110 -> 0 | P95: 1 | Q95: 0
B96: =Basismaterial!A12 -> 03.754.00..0000 | C96: =gettext(B96,Sprache!$D$1) -> Verbindungsset für VW-Elemente | K96: 0 | L96: =Basismaterial!C12 -> Stück | O96: =Übersicht_Summary!J111 -> 0 | P96: 1 | Q96: 0
B97: =Basismaterial!A13 -> 04.070.00..0000 | C97: =gettext(B97,Sprache!$D$1) -> Stützfuß für freistehende Wände | K97: 0 | L97: =Basismaterial!C13 -> Stück | O97: =Übersicht_Summary!J112 -> 0 | P97: 1 | Q97: 0
B98: =Basismaterial!A14 -> 16.032.00..0000 | C98: =gettext(B98,Sprache!$D$1) -> Schallschutzset zu INEO plus, 996 | K98: 0 | L98: =Basismaterial!C14 -> Stück | O98: =Übersicht_Summary!J113 -> 0 | P98: 1 | Q98: 0
B99: =Basismaterial!A15 -> 17.115.00..S000 | C99: =gettext(B99,Sprache!$D$1) -> GKBI-Universalverkleidungsplatte ( 1300x600x18 mm ) | K99: 0 | L99: =Basismaterial!C15 -> Stück | O99: =Übersicht_Summary!J114 -> 0 | P99: 1 | Q99: 0
B101: =gettext("I16",Sprache!$D$1) -> Zusätze ( z.B. Betätigungsplatten, WC-und Urinal-Steuerungen, etc. ):
